{"text_format":"1","workbook":"xlsx","n_sheets":9,"sheets":["How to Use This Spreadsheet","Chemical Lookup (hidden)","Step 1 Toxicity_Values","Step 2 Chemical_Parameters","Step 3 Exposure Parameters","Consumption_HH_Tissue","Consumption_Eco_Tissue","Consumption_Sediment","IngestionDermal_Sediment"],"not_rendered":{"charts":0,"images":1,"macros":1,"external_links":0,"defined_names":14,"comments":7,"pivot_tables":0},"unopened":[],"bounds":{"document_bytes":16777216,"sheet_cells":100000,"rows_first":2000,"rows_last":500,"rows_between":2000,"halvings":0,"cell_chars":16384,"cell_head_chars":4096},"cells_cut":0,"cells_raw":0,"read":"whole","date_system":"1900"}

{"sheet":"How to Use This Spreadsheet","index":0,"n_rows":87,"n_cols":2,"rows_kept":87,"cut":false,"hidden":false,"merged":[]}
[null,"Sediment Cleanup Users Manual - Appendix K"]
[null,"Instructions for Using this Spreadsheet"]
[null,"Updated April 2025"]
[null,"To run this workbook, MACROS MUST BE ENABLED"]
[null,"Overview"]
[null,"This spreadsheet supports calculation of risk-based tissue and sediment concentrations for human health "]
[null,"and upper trophic ecological levels, as shown in the figure to the right. These calculations are described in Chapter 9"]
[null,"and Appendix E. "]
[]
[null,"Each of the consumption outputs (i.e., human consumption of fish/shellfish and higher trophic level consumption of fish/shellfish)"]
[null,"are intended for use with Option 2 (see Chapter 9 Section 9.1.1.2). If you are choosing Option 1 (Section 9.1.1.1) for calculation of risk-based"]
[null,"sediment concentrations, you do not need to perform these calculations."]
[]
[null,"The risk-based sediment concentrations based on incidental ingestion and dermal contact (see Section 9.2.2) are used with "]
[null,"both Option 1 and Option 2. These values can be automatically calculated using the recommended exposure assumptions."]
[]
[null,"Step 1: Toxicity Values (Human Health)"]
[null,"Use the CLARC tables to enter the CAS number. Chemical name, chemical class, toxicity values, and the GI are auto-filled using lookup"]
[null,"equations that key on the CAS."]
[]
[null,"Several common chemicals have been pre-entered for you."]
[null,"In the gray-shaded cells, you may add a new Chemical of Concern (CoC) or modify the existing CoCs by manually updating the CAS number."]
[]
[null,"Based on the GI, the worksheet will automatically calculate dermal RfDs and CPFs for you."]
[]
[null,"Step 2: Chemical Parameters (Human Health)"]
[null,"On this worksheet, you may enter the site-specific BSAF if you are using Option 2 (see Chapter 9.3). Otherwise, leave it blank."]
[null,"All other parameters (e.g., AB and ABS) are filled in automatically in the worksheet."]
[]
[]
[null,"Step 3: Exposure Parameters (Human Health and Ecological Risk)"]
[null,"Recommended values for several scenarios have been provided in the worksheet for all human health exposure parameters."]
[null,"Recommended values may be revised with Ecology's concurrence by entering a different value into gray-shaded areas."]
[]
[null,"Table 1a: If using a recommended value, select one of the three default scenarios and copy it into the first two gray columns."]
[null,"Three alternatives are shown based on different Ecology-approved tribal RME exposure scenarios."]
[null,"In consultation with the tribes affected by the cleanup site, Ecology site managers may select the one that"]
[null,"most closely represents the affected tribes, or modify the recommended exposure parameters in Step 3 appropriately."]
[null,"If you are developing a site-specific scenario, revised the gray columns with the name of the scenario"]
[null,"and its associated RME values."]
[]
[null,"For calculating sediment screening levels for seafood consumption, enter in % lipid of food items and % TOC in sediments in "]
[null,"appropriate location (cells C14 and C15, respectively)."]
[]
[null,"Table 1b:  Exposure parameters for seafood ingestions incorporating Early Life Exposure (ELE) for mutagenic chemicals (e.g., cPAHs)."]
[null,"Four alternatives are shown based on different Ecology-approved tribal RME exposure scenarios and EPA recommended general population parameters."]
[null,"For Tribal values, ages 0-16 are assumed to consume 40% of the adult rate."]
[null,"In consultation with the tribes affected by the cleanup site, Ecology site managers may select the one that"]
[null,"most closely represents the affected tribes, or modify the recommended exposure parameters in Step 3 appropriately."]
[null,"If you are developing a site-specific scenario, revised the gray columns with the name of the scenario"]
[null,"and its associated RME values."]
[]
[null,"Table 2a: Use the default values provided in this table. Or, enter site-specific values where applicable and in coordination with the Ecology site manager."]
[]
[null,"Table 2b:  Used for calculating ELE for mutagenic chemicals (e.g., cPAHs).  Use the default values provided in this table."]
[null,"Or, enter site-specific values where applicable and in coordination with the Ecology site manager."]
[]
[null,"Table 3: If you are calculating ecological risk-based concentrations under Option 2 (see Chapter 9.3), use Table 3 to enter "]
[null,"ecological risk CoCs, toxicity reference values (TRVs), and exposure parameters for each indicator species chosen."]
[null,"Enter the CoCs into the first cell of each section (there is room for 8 CoCs); they will be copied to the other cells in that section."]
[null,"Enter the indicator species into the first section corresponding to the first CoC; they will be copied to all of the other sections."]
[null,"Recommended values have not been entered into the ecological risk table, because they are species-specific."]
[null,"If the TRV is for the indicator species, enter the TRVis and leave the other cells blank."]
[null,"If the TRV is for a different test species, leave the TRV blank and enter the other values in that section."]
[null,"Enter the values for the eggshell thinning pathway if you are using that exposure pathway for fish-eating birds, otherwise, leave blank."]
[null,"TRVs and BMFs are both species- and chemical-specific and must be entered individually for each combination of species and chemical."]
[null,"FIRs and BWs are species-specific and need only be entered in the first section; they will be copied to the other sections."]
[]
[null,"Calculation Worksheets"]
[]
[null,"Consumption_HH_Tissue"]
[null,"This worksheet calculates risk-based tissue concentrations for consumption of fish/shellfish by humans."]
[null,"The lowest of the cancer and non-cancer values for the appropriate RME is used as the risk-based concentration."]
[]
[null,"Consumption_Eco_Tissue"]
[null,"This worksheet calculates risk-based tissue concentrations for consumption of fish/shellfish by higher trophic levels."]
[null,"The worksheet has enough space for 8 CoCs and 6 indicator species."]
[null,"The lowest of direct consumption of fish/shellfish and eggshell thinning values (if available) is used."]
[]
[null,"Consumption_Sediment"]
[null,"This worksheet calculates risk-based concentrations in sediment based on the lowest of the human health and ecological risk-based concentrations in tissue."]
[null,"The ecological risk-based values must be hand-entered from the Consumption_Eco_Tissue spreadsheet above (if used). The human health values will be automatically entered."]
[null,"This calculation requires a site-specific BSAF to be entered in Step 2, and also uses the SUF, % lipid, and % TOC from Step 3."]
[]
[null,"IngestionDermal_Sediment"]
[null,"This worksheet calculates risk-based concentrations in sediment based on incidental ingestion and dermal contact with sediments."]
[null,"Three exposure pathways/activities are shown, and the lowest result for any that apply to the site is used as the risk-based sediment concentration."]

{"sheet":"Chemical Lookup (hidden)","index":1,"n_rows":660,"n_cols":22,"rows_kept":660,"cut":false,"hidden":true,"merged":[[1,18,1,21]]}
[]
[null,"GI and ABS values are from the EPA Novemer 2024 Regional Screening Level Table.  The GI and ABS presented in the EPA RSL table are consistent with EPA's RAGS Part E (EPA, 2004).",null,null,null,null,null,null,null,null,null,null,null,null,null,null,null,null,"Chemical Update Log"]
[null,"EPA, 2004.  Risk Assessment Guidance for Superfund, Vol. I:  Human Health Evaluation Manual (Part E, Supplemental Guidance for Dermal Risk Assessment).  Final.  July 2004.  EPA/540/R/99/005.",null,null,null,null,null,null,null,null,null,null,null,null,null,null,null,null,"No.","Made by","Date","Description"]
[null,null,null,null,null,null,null,null,null,null,null,null,null,null,null,null,null,null,1,"kallus","April 2025","Replaced the chemical list with the CLARC list."]
[null,null,null,null,null,null,null,null,null,null,null,null,null,null,null,null,null,null,null,"kallus","April 2025","Updated GI and ABS based on EPA's November 2024 RSL."]
[null,null,null,null,null,null,null,null,null,null,null,null,null,null,null,null,null,null,null,"kallus","April 2025","Added toxicity data from February 2025 CLARC."]
[null,null,null,null,null,null,null,null,null,null,null,null,null,null,null,null,null,null,null,"kallus","April 2025","Added chemical class designations using the same class designations used in the workbook (i.e., inorganics, other organic hazards, dioxins/furans, vocs)."]
[null,"CAS","Chemical","GI","ABS","Class","RfDo\nmg/kg-day","CPFo\nkg-day/mg","Mutagen",null,null,null,null,null,null,null,null,null,null,"kallus","April 2025","Added a column identifying chemicals with a mutagenic mode of action (\"M\")"]
[null,"83-32-9","acenaphthene",1,0.13,"Other organic hazards",0.06,"NTV",null,null,null,null,null,null,null,null,null,null,2]
[null,"30560-19-1","acephate",1,0.1,"Other organic hazards",2.9999999999999997E-4,"NTV"]
[null,"75-07-0","acetaldehyde",1,0,"VOCs","NTV","NTV"]
[null,"34256-82-1","acetochlor",1,0.1,"Other organic hazards",0.02,"NTV"]
[null,"67-64-1","acetone",1,0,"VOCs",0.9,"NTV"]
[null,"75-86-5","acetone cyanohydrin",1,0.1,"Other organic hazards","NTV","NTV"]
[null,"75-05-8","acetonitrile",1,0,"VOCs","NTV","NTV"]
[null,"98-86-2","acetophenone",1,0,"Other organic hazards",0.1,"NTV"]
[null,"62476-59-9","acifluorfen, sodium",1,0.1,"Other organic hazards",1.2999999999999999E-2,"NTV"]
[null,"107-02-8","acrolein",1,0,"VOCs",5.0000000000000001E-4,"NTV"]
[null,"79-06-1","acrylamide",1,0.1,"Other organic hazards",2E-3,0.5,"M"]
[null,"79-10-7","acrylic acid",1,0,"VOCs",0.5,"NTV"]
[null,"107-13-1","acrylonitrile",1,0,"VOCs",1E-3,0.54]
[null,"15972-60-8","alachlor",1,0.1,"Other organic hazards",0.01,5.6000000000000001E-2]
[null,"1596-84-5","alar",1,0.1,"Other organic hazards",0.15,1.7999999999999999E-2]
[null,"116-06-3","aldicarb",1,0.1,"Other organic hazards",1E-3,"NTV"]
[null,"1646-88-4","aldicarb sulfone",1,0.1,"Other organic hazards",1E-3,"NTV"]
[null,"309-00-2","aldrin",1,0,"Other organic hazards",3.0000000000000001E-5,17]
[null,"74223-64-6","ally",1,0.1,"Other organic hazards",0.25,"NTV"]
[null,"107-18-6","allyl alcohol",1,0,"VOCs",5.0000000000000001E-3,"NTV"]
[null,"107-05-1","allyl chloride",1,0,"VOCs","NTV",2.1000000000000001E-2]
[null,"7429-90-5","aluminum",1,0,"Inorganics",1,"NTV"]
[null,"20859-73-8","aluminum phosphide",1,0,"Inorganics",4.0000000000000002E-4,"NTV"]
[null,"67485-29-4","amdro",1,0.1,"Other organic hazards",1.7000000000000001E-2,"NTV"]
[null,"834-12-8","ametryn",1,0.1,"Other organic hazards",8.9999999999999993E-3,"NTV"]
[null,"92-67-1","aminobiphenyl;4-",1,0.1,"Other organic hazards","NTV",21]
[null,"591-27-5","aminophenol;m-",1,0.1,"Other organic hazards",0.08,"NTV"]
[null,"33089-61-1","amitraz",1,0.1,"Other organic hazards",2.5000000000000001E-3,"NTV"]
[null,"7664-41-7","AMMONIA",1,0,"Inorganics","NTV","NTV"]
[null,"7790-98-9","ammonium perchlorate",1,0,"Other organic hazards",6.9999999999999999E-4,"NTV"]
[null,"7773-06-0","ammonium sulfamate",1,0,"Inorganics",0.2,"NTV"]
[null,"62-53-3","aniline",1,0.1,"Other organic hazards",7.0000000000000001E-3,5.7000000000000002E-3]
[null,"120-12-7","anthracene",1,0.13,"Other organic hazards",0.3,"NTV"]
[null,"7440-36-0","antimony",0.15,0,"Inorganics",4.0000000000000002E-4,"NTV"]
[null,"1314-60-9","antimony pentoxide",0.15,0,"Inorganics",5.0000000000000001E-4,"NTV"]
[null,"28300-74-5","antimony potassium tartrate",0.15,0,"Inorganics",8.9999999999999998E-4,"NTV",null,"not in EPA RSL"]
[null,"1332-81-6","antimony tetroxide",0.15,0,"Inorganics",4.0000000000000002E-4,"NTV"]
[null,"1309-64-4","antimony trioxide",0.15,0,"Inorganics",4.0000000000000002E-4,"NTV"]
[null,"74115-24-5","apollo",1,0.1,"Other organic hazards",1.2999999999999999E-2,"NTV"]
[null,"140-57-8","aramite",1,0.1,"Other organic hazards",0.05,2.5000000000000001E-2]
[null,"12674-11-2","aroclor 1016",1,0.14000000000000001,"Other organic hazards",6.9999999999999994E-5,7.0000000000000007E-2]
[null,"11097-69-1","aroclor 1254",1,0.14000000000000001,"Other organic hazards",2.0000000000000002E-5,2]
[null,"11096-82-5","aroclor 1260",1,0.14000000000000001,"Other organic hazards","NTV",2]
[null,"7440-38-2","arsenic, inorganic",1,0.03,"Inorganics",6.0000000000000002E-5,32]
[null,"7784-42-1","arsine",1,0,"Inorganics",3.4999999999999999E-6,"NTV"]
[null,"76578-14-8","assure",1,0.1,"Other organic hazards",8.9999999999999993E-3,"NTV"]
[null,"3337-71-1","asulam",1,0.1,"Other organic hazards",0.36,"NTV"]
[null,"1912-24-9","atrazine",1,0.1,"Other organic hazards",3.5000000000000003E-2,0.23]
[null,"65195-55-3","avermectin B1",1,0.1,"Other organic hazards",4.0000000000000002E-4,"NTV"]
[null,"103-33-3","azobenzene",1,0,"Other organic hazards","NTV",0.11]
[null,"7440-39-3","barium and compounds",7.0000000000000007E-2,0,"Inorganics",0.2,"NTV"]
[null,"114-26-1","baygon",1,0.1,"Other organic hazards",4.0000000000000001E-3,"NTV"]
[null,"43121-43-3","bayleton",1,0.1,"Other organic hazards",3.4000000000000002E-2,"NTV"]
[null,"68359-37-5","baythroid",1,0.1,"Other organic hazards",2.5000000000000001E-2,"NTV"]
[null,"1861-40-1","benefin",1,0,"Other organic hazards",5.0000000000000001E-3,"NTV"]
[null,"17804-35-2","benomyl",1,0.1,"Other organic hazards",0.05,"NTV"]
[null,"25057-89-0","bentazon",1,0.1,"Other organic hazards",0.03,"NTV"]
[null,"100-52-7","benzaldehyde",1,0,"Other organic hazards",0.1,4.0000000000000001E-3]
[null,"71-43-2","BENZENE",1,0,"VOCs",4.0000000000000001E-3,5.5E-2]
[null,"108-98-5","benzenethiol",1,0,"Other organic hazards",1E-3,"NTV"]
[null,"92-87-5","benzidine",1,0.1,"Other organic hazards",3.0000000000000001E-3,230,"M"]
[null,"192-97-2","benzo[e]pyrene",1,0.1,"Other organic hazards",9.0000000000000006E-5,"NTV"]
[null,"56-55-3","BENZO[a]ANTHRACENE",1,0.13,"Other organic hazards","NTV","NTV"]
[null,"50-32-8","BENZO[a]PYRENE",1,0.13,"Other organic hazards",2.9999999999999997E-4,1,"M"]
[null,"205-99-2","BENZO[b]FLUORANTHENE",1,0.13,"Other organic hazards","NTV","NTV"]
[null,"207-08-9","BENZO[k]FLUORANTHENE",1,0.13,"Other organic hazards","NTV","NTV"]
[null,"65-85-0","BENZOIC ACID",1,0.1,"Other organic hazards",4,"NTV"]
[null,"98-07-7","benzotrichloride",1,0,"VOCs","NTV",13]
[null,"100-51-6","benzyl alcohol",1,0.1,"Other organic hazards",0.1,"NTV"]
[null,"100-44-7","benzyl chloride",1,0,"VOCs",2E-3,0.17]
[null,"7440-41-7","beryllium",7.0000000000000001E-3,0,"Inorganics",2E-3,"NTV"]
[null,"91-58-7","beta-chloronaphthalene",1,0.13,"Other organic hazards",0.08,"NTV"]
[null,"141-66-2","bidrin",1,0.1,"Other organic hazards",3.0000000000000001E-5,"NTV"]
[null,"82657-04-3","biphenthrin",1,0.1,"Other organic hazards",1.4999999999999999E-2,"NTV"]
[null,"92-52-4","biphenyl;1,1-",1,0,"Other organic hazards",0.5,8.0000000000000002E-3]
[null,"108-60-1","bis(2-chloro-1-methyl-ethyl)ether",1,0,"VOCs",0.04,7.0000000000000007E-2]
[null,"111-91-1","bis(2-chloroethoxy)methane",1,0.1,"Other organic hazards",3.0000000000000001E-3,"NTV"]
[null,"111-44-4","bis(2-chloroethyl)ether",1,0,"Other organic hazards","NTV",1.1000000000000001]
[null,"117-81-7","bis(2-ethylhexyl) phthalate (DEHP)",1,0.1,"Other organic hazards",0.02,1.4E-2]
[null,"542-88-1","bis(chloromethyl)ether",1,0,"VOCs","NTV",220]
[null,"80-05-7","bisphenol a",1,0.1,"Other organic hazards",0.05,"NTV"]
[null,"7440-42-8","boron",1,0,"Inorganics",0.2,"NTV"]
[null,"15541-45-4","bromate",1,0,"Inorganics",4.0000000000000001E-3,0.7]
[null,"79-08-3","bromoacetic acid",1,0.1,"Other organic hazards",1.6999999999999999E-3,"NTV"]
[null,"108-86-1","bromobenzene",1,0,"VOCs",8.0000000000000002E-3,"NTV"]
[null,"74-97-5","bromochloromethane",1,0,"VOCs","NTV","NTV"]
[null,"75-27-4","BROMODICHLOROMETHANE",1,0,"VOCs",0.02,6.2E-2]
[null,"593-60-2","bromoethene",1,0,"VOCs","NTV","NTV"]
[null,"75-25-2","BROMOFORM",1,0,"VOCs",0.02,7.9000000000000008E-3]
[null,"74-83-9","bromomethane",1,0,"VOCs",1.4E-3,"NTV"]
[null,"2104-96-3","bromophos",1,0,"Other organic hazards",5.0000000000000001E-3,"NTV"]
[null,"1689-84-5","bromoxynil",1,0.1,"Other organic hazards",1.4999999999999999E-2,0.1]
[null,"1689-99-2","bromoxynil octanoate",1,0,"Other organic hazards",1.4999999999999999E-2,0.1]
[null,"106-99-0","butadiene;1,3-",1,0,"VOCs","NTV",0.6]
[null,"71-36-3","butanol;n-",1,0,"VOCs",0.1,"NTV"]
[null,"75-65-0","butyl alcohol;tert-",1,0,"VOCs",0.4,5.0000000000000001E-4]
[null,"85-68-7","butyl benzyl phthalate (BBP)",1,0.1,"Other organic hazards",0.2,1.9E-3]
[null,"2008-41-5","butylate",1,0,"Other organic hazards",0.05,"NTV"]
[null,"104-51-8","butylbenzene; n-",1,0,"VOCs",0.05,"NTV"]
[null,"135-98-8","butylbenzene; sec-",1,0,"VOCs",0.1,"NTV"]
[null,"98-06-6","butylbenzene; tert-",1,0,"VOCs",0.1,"NTV"]
[null,"85-70-1","butylphthalyl butylglycolate (BPBG)",1,0.1,"Other organic hazards",1,"NTV"]
[null,"94-81-5","butyric acid;4-(2-methyl-4-chlorophenoxy)-",1,0.1,"Other organic hazards",4.3999999999999997E-2,"NTV"]
[null,"75-60-5","cacodylic acid",1,0.1,"Other organic hazards",0.02,"NTV"]
[null,"7440-43-9","Cadmium",2.5000000000000001E-2,1E-3,"Inorganics",1E-3,"NTV"]
[null,"592-01-8","calcium cyanide",1,0,"Other organic hazards",1E-3,"NTV"]
[null,"105-60-2","caprolactam",1,0.1,"Other organic hazards",0.5,"NTV"]
[null,"2425-06-1","captafol",1,0.1,"Other organic hazards",2E-3,0.15]
[null,"133-06-2","captan",1,0.1,"Other organic hazards",0.13,2.3E-3]
[null,"63-25-2","carbaryl",1,0.1,"Other organic hazards",0.1,"NTV"]
[null,"1563-66-2","carbofuran",1,0.1,"Other organic hazards",5.0000000000000001E-3,"NTV"]
[null,"75-15-0","carbon disulfide",1,0,"VOCs",0.1,"NTV"]
[null,"56-23-5","carbon tetrachloride",1,0,"VOCs",4.0000000000000001E-3,7.0000000000000007E-2]
[null,"55285-14-8","carbosulfan",1,0.1,"Other organic hazards",0.01,"NTV"]
[null,"5234-68-4","carboxin",1,0.1,"Other organic hazards",0.1,"NTV"]
[null,"1306-38-3","cerium oxide and cerium compounds",1,0,"Inorganics","NTV","NTV"]
[null,"302-17-0","chloral hydrate",1,0,"VOCs",0.1,"NTV"]
[null,"133-90-4","chloramben",1,0.1,"Other organic hazards",1.4999999999999999E-2,"NTV"]
[null,"118-75-2","chloranil",1,0.1,"Other organic hazards","NTV",0.4]
[null,"12789-03-6","chlordane",1,0.04,"Other organic hazards",5.0000000000000001E-4,0.35]
[null,"5103-71-9","chlordane (alpha)",1,0.04,"Other organic hazards",5.0000000000000001E-4,"NTV"]
[null,"5103-74-2","chlordane (gamma)",1,0.04,"Other organic hazards",5.0000000000000001E-4,"NTV"]
[null,"143-50-0","chlordecone (kepone)",1,0.1,"Other organic hazards",2.9999999999999997E-4,10]
[null,"16887-00-6","chloride",1,0,"Inorganics","NTV","NTV",null,"not in EPA RSL"]
[null,"90982-32-4","chlorimuron-ethyl",1,0.1,"Other organic hazards",0.09,"NTV"]
[null,"7782-50-5","CHLORINE",1,0,"Inorganics",0.1,"NTV"]
[null,"506-77-4","chlorine cyanide",1,0,"Other organic hazards",0.05,"NTV"]
[null,"10049-04-4","CHLORINE DIOXIDE",1,0,"VOCs",0.03,"NTV"]
[null,"7758-19-2","chlorite",1,0,"Inorganics",0.03,"NTV"]
[null,"75-68-3","chloro-1,1-difluoroethane;1-",1,0,"VOCs","NTV","NTV"]
[null,"126-99-8","chloro-1,3-butadiene;2-",1,0,"VOCs",0.02,"NTV"]
[null,"3165-93-3","chloro-2-methylaniline hydrochloride;4-",1,0.1,"Other organic hazards","NTV",0.46]
[null,"95-69-2","chloro-2-methylaniline;4-",1,0.1,"Other organic hazards",3.0000000000000001E-3,0.1]
[null,"79-11-8","chloroacetic acid",1,0.1,"Other organic hazards",2E-3,"NTV"]
[null,"532-27-4","chloroacetophenone;2-",1,0.1,"Other organic hazards","NTV","NTV"]
[null,"106-47-8","chloroaniline;p-",1,0.1,"Other organic hazards",4.0000000000000001E-3,0.2]
[null,"108-90-7","chlorobenzene",1,0,"VOCs",0.02,"NTV"]
[null,"510-15-6","chlorobenzilate",1,0.1,"Other organic hazards",0.02,0.11]
[null,"74-11-3","chlorobenzoic acid;p-",1,0.1,"Other organic hazards",0.03,"NTV"]
[null,"98-56-6","chlorobenzotrifluoride;4-",1,0,"VOCs",3.0000000000000001E-3,"NTV"]
[null,"109-69-3","chlorobutane;1-",1,0,"VOCs",0.04,"NTV"]
[null,"59-50-7","chlorocresol",1,0.1,"Other organic hazards",0.1,"NTV"]
[null,"75-45-6","chlorodifluoromethane",1,0,"VOCs","NTV","NTV"]
[null,"67-66-3","CHLOROFORM",1,0,"VOCs",0.01,3.1E-2]
[null,"74-87-3","chloromethane",1,0,"VOCs","NTV","NTV"]
[null,"107-30-2","chloromethyl methyl ether",1,0,"VOCs","NTV",2.4]
[null,"88-73-3","chloronitrobenzene;o-",1,0.1,"Other organic hazards",3.0000000000000001E-3,0.3]
[null,"100-00-5","chloronitrobenzene;p-",1,0.1,"Other organic hazards",6.9999999999999999E-4,0.06]
[null,"95-57-8","CHLOROPHENOL;2-",1,0,"Other organic hazards",5.0000000000000001E-3,"NTV"]
[null,"1897-45-6","chlorothalonil",1,0.1,"Other organic hazards",1.4999999999999999E-2,1.7000000000000001E-2]
[null,"95-49-8","chlorotoluene;o-",1,0,"VOCs",0.02,"NTV"]
[null,"106-43-4","chlorotoluene;p-",1,0,"VOCs",0.02,"NTV"]
[null,"101-21-3","chlorpropham",1,0.1,"Other organic hazards",5.0000000000000001E-3,"NTV"]
[null,"2921-88-2","chlorpyrifos",1,0.1,"Other organic hazards",1E-3,"NTV"]
[null,"5598-13-0","chlorpyrifos-methyl",1,0.1,"Other organic hazards",0.01,"NTV"]
[null,"64902-72-3","chlorsulfuron",1,0.1,"Other organic hazards",0.05,"NTV"]
[null,"60238-56-4","chlorthiophos",1,0.1,"Other organic hazards",8.0000000000000004E-4,"NTV"]
[null,"7440-47-3","CHROMIUM (TOTAL)",1.2999999999999999E-2,0,"Inorganics","NTV","NTV"]
[null,"16065-83-1","CHROMIUM (III)",1.2999999999999999E-2,0,"Inorganics",1.5,"NTV"]
[null,"18540-29-9","CHROMIUM (VI)",2.5000000000000001E-2,0,"Inorganics",8.9999999999999998E-4,0.16,"M"]
[null,"218-01-9","CHRYSENE",1,0.13,"Other organic hazards","NTV","NTV"]
[null,"7440-48-4","Cobalt",1,0,"Inorganics",2.9999999999999997E-4,"NTV"]
[null,"E649830","coke oven emissions",1,0,"VOCs","NTV","NTV"]
[null,"7440-50-8","COPPER",1,0,"Inorganics",0.04,"NTV"]
[null,"544-92-3","copper cyanide",1,0,"Other organic hazards",5.0000000000000001E-3,"NTV"]
[null,"108-39-4","cresol;m-",1,0.1,"Other organic hazards",0.05,"NTV"]
[null,"95-48-7","cresol;o-",1,0.1,"Other organic hazards",0.05,"NTV"]
[null,"106-44-5","cresol;p-",1,0.1,"Other organic hazards",0.1,"NTV"]
[null,"1319-77-3","cresols",1,0.1,"Other organic hazards",0.1,"NTV"]
[null,"123-73-9","crotonaldehyde",1,0,"VOCs",1E-3,1.9]
[null,"98-82-8","cumene",1,0,"VOCs",0.1,"NTV"]
[null,"21725-46-2","cyanazine",1,0.1,"Other organic hazards",2E-3,0.84]
[null,"57-12-5","CYANIDE",1,0,"Other organic hazards",6.3000000000000003E-4,"NTV"]
[null,"460-19-5","cyanogen",1,0,"Other organic hazards",1E-3,"NTV"]
[null,"506-68-3","cyanogen bromide",1,0,"Other organic hazards",0.09,"NTV"]
[null,"110-82-7","cyclohexane",1,0,"VOCs","NTV","NTV"]
[null,"108-94-1","cyclohexanone",1,0,"VOCs",5,"NTV"]
[null,"110-83-8","cyclohexene",1,0,"VOCs",5.0000000000000001E-3,"NTV"]
[null,"108-91-8","cyclohexylamine",1,0,"VOCs",0.2,"NTV"]
[null,"66215-27-8","cyromazine",1,0.1,"Other organic hazards",0.5,"NTV"]
[null,"1861-32-1","dacthal",1,0.1,"Other organic hazards",0.01,"NTV"]
[null,"75-99-0","dalapon, sodium salt",1,0.1,"Other organic hazards",0.03,"NTV"]
[null,"39515-41-8","danitol",1,0.1,"Other organic hazards",2.5000000000000001E-2,"NTV"]
[null,"72-54-8","DDD",1,0.1,"Other organic hazards",5.0000000000000001E-4,0.24]
[null,"72-55-9","DDE",1,0,"Other organic hazards",5.0000000000000001E-4,0.34]
[null,"50-29-3","DDT",1,0.03,"Other organic hazards",5.0000000000000001E-4,0.34]
[null,"1163-19-5","decabromodiphenyl ether (PBDE-209)",1,0.1,"Other organic hazards",7.0000000000000001E-3,6.9999999999999999E-4]
[null,"8065-48-3","demeton",1,0.1,"Other organic hazards",4.0000000000000003E-5,"NTV"]
[null,"103-23-1","di(2-ethylhexyl)adipate",1,0.1,"Other organic hazards",0.6,1.1999999999999999E-3]
[null,"2303-16-4","diallate",1,0.1,"Other organic hazards","NTV",6.0999999999999999E-2]
[null,"333-41-5","diazinon",1,0.1,"Other organic hazards",6.9999999999999999E-4,"NTV"]
[null,"53-70-3","DIBENZ[a,h]ANTHRACENE",1,0.13,"Other organic hazards","NTV","NTV"]
[null,"132-64-9","dibenzofuran",1,0,"Other organic hazards",1E-3,"NTV"]
[null,"96-12-8","dibromo-3-chloropropane;1,2-",1,0,"Other organic hazards",2.0000000000000001E-4,0.8,"M"]
[null,"631-64-1","dibromoacetic acid",1,0.1,"Other organic hazards",2.9999999999999997E-4,0.25]
[null,"106-37-6","dibromobenzene;1,4-",1,0,"Other organic hazards",0.01,"NTV"]
[null,"124-48-1","DIBROMOCHLOROMETHANE",1,0,"VOCs",0.02,8.4000000000000005E-2]
[null,"84-74-2","di-butyl phthalate (DBP)",1,0.1,"Other organic hazards",0.1,"NTV"]
[null,"1918-00-9","dicamba",1,0.1,"Other organic hazards",0.03,"NTV"]
[null,"3400-09-7","DICHLORAMINE",1,0.1,"Inorganics","NTV","NTV"]
[null,"764-41-0","dichloro-2-butene;1,4-",1,0,"VOCs","NTV","NTV"]
[null,"110-57-6","dichloro-2-butene;trans-1,4-",1,0,"VOCs","NTV","NTV"]
[null,"79-43-6","dichloroacetic acid",1,0.1,"Other organic hazards",4.0000000000000001E-3,0.05]
[null,"95-50-1","dichlorobenzene;1,2-",1,0,"VOCs",0.09,"NTV"]
[null,"541-73-1","dichlorobenzene;1,3-",1,0,"VOCs","NTV","NTV",null,"not in EPA RSL"]
[null,"106-46-7","dichlorobenzene;1,4-",1,0,"VOCs",7.0000000000000007E-2,5.4000000000000003E-3]
[null,"91-94-1","dichlorobenzidine;3,3'-",1,0.1,"Other organic hazards","NTV",0.45]
[null,"75-71-8","dichlorodifluoromethane",1,0,"VOCs",0.2,"NTV"]
[null,"75-34-3","dichloroethane;1,1-",1,0,"VOCs",0.2,5.7000000000000002E-3]
[null,"107-06-2","dichloroethane;1,2- (EDC)",1,0,"VOCs",6.0000000000000001E-3,9.0999999999999998E-2]
[null,"75-35-4","dichloroethylene;1,1-",1,0,"VOCs",0.05,"NTV"]
[null,"156-59-2","dichloroethylene;cis-1,2-",1,0,"VOCs",2E-3,"NTV"]
[null,"156-60-5","dichloroethylene;trans-1,2-",1,0,"VOCs",0.02,"NTV"]
[null,"120-83-2","DICHLOROPHENOL;2,4-",1,0.1,"Other organic hazards",3.0000000000000001E-3,"NTV"]
[null,"94-75-7","dichlorophenoxyacetic acid;2,4-",1,0.05,"Other organic hazards",0.01,"NTV"]
[null,"78-87-5","dichloropropane;1,2-",1,0,"VOCs",0.04,3.6999999999999998E-2]
[null,"142-28-9","dichloropropane;1,3-",1,0,"VOCs",0.02,"NTV"]
[null,"616-23-9","dichloropropanol;2,3-",1,0.1,"Other organic hazards",3.0000000000000001E-3,"NTV"]
[null,"542-75-6","dichloropropene;1,3-",1,0,"VOCs",0.03,0.1]
[null,"62-73-7","dichlorvos",1,0.1,"Other organic hazards",5.0000000000000001E-4,0.28999999999999998]
[null,"77-73-6","dicyclopentadiene",1,0,"VOCs",0.08,"NTV"]
[null,"60-57-1","dieldrin",1,0.1,"Other organic hazards",5.0000000000000002E-5,16]
[null,"84-66-2","diethyl phthalate",1,0.1,"Other organic hazards",0.8,"NTV"]
[null,"112-34-5","diethylene glycol monobutyl ether",1,0.1,"Other organic hazards",0.03,"NTV"]
[null,"111-90-0","diethylene glycol monoethyl ether",1,0.1,"Other organic hazards",0.06,"NTV"]
[null,"617-84-5","diethylformamide",1,0,"Other organic hazards",1E-3,"NTV"]
[null,"56-53-1","diethylstilbesterol",1,0.1,"Other organic hazards","NTV",350]
[null,"43222-48-6","difenzoquat",1,0.1,"Other organic hazards",8.3000000000000004E-2,"NTV"]
[null,"35367-38-5","diflubenzuron",1,0.1,"Other organic hazards",0.02,"NTV"]
[null,"75-37-6","difluoroethane;1,1-",1,0,"VOCs","NTV","NTV"]
[null,"108-20-3","diisopropyl ether",1,0,"VOCs","NTV","NTV"]
[null,"1445-75-6","diisopropyl methylphosphonate",1,0,"VOCs",0.08,"NTV"]
[null,"55290-64-7","dimethipin",1,0.1,"Other organic hazards",2.1999999999999999E-2,"NTV"]
[null,"60-51-5","dimethoate",1,0.1,"Other organic hazards",2.2000000000000001E-3,"NTV"]
[null,"119-90-4","dimethoxybenzidine;3,3'-",1,0.1,"Other organic hazards","NTV",1.6,"M"]
[null,"131-11-3","dimethyl phthalate",1,0.1,"Other organic hazards","NTV","NTV",null,"not in EPA RSL"]
[null,"120-61-6","dimethyl terephthalate",1,0,"Other organic hazards",0.1,"NTV"]
[null,"21436-96-4","dimethylaniline hydrochloride;2,4-",1,0.1,"Other organic hazards","NTV",0.57999999999999996]
[null,"95-68-1","dimethylaniline;2,4-",1,0.1,"Other organic hazards",2E-3,0.2]
[null,"121-69-7","dimethylaniline;N,N-",1,0,"VOCs",2E-3,2.7E-2]
[null,"119-93-7","dimethylbenzidine;3,3'-",1,0.1,"Other organic hazards","NTV",11,"M"]
[null,"68-12-2","dimethylformamide;N,N-",1,0,"VOCs",0.1,"NTV"]
[null,"57-14-7","dimethylhydrazine;1,1-",1,0,"VOCs",1E-4,"NTV"]
[null,"540-73-8","dimethylhydrazine;1,2-",1,0,"VOCs","NTV",550]
[null,"105-67-9","dimethylphenol;2,4-",1,0.1,"Other organic hazards",0.02,"NTV"]
[null,"576-26-1","dimethylphenol;2,6-",1,0.1,"Other organic hazards",5.9999999999999995E-4,"NTV"]
[null,"95-65-8","dimethylphenol;3,4-",1,0.1,"Other organic hazards",1E-3,"NTV"]
[null,"99-65-0","dinitrobenzene;m-",1,0.1,"Other organic hazards",1E-4,"NTV"]
[null,"528-29-0","dinitrobenzene;o-",1,0.1,"Other organic hazards",1E-4,"NTV"]
[null,"100-25-4","dinitrobenzene;p-",1,0.1,"Other organic hazards",1E-4,"NTV"]
[null,"131-89-5","dinitro-o-cyclohexyl phenol;4,6-",1,0.1,"Other organic hazards",2E-3,"NTV"]
[null,"51-28-5","DINITROPHENOL;2,4-",1,0.1,"Other organic hazards",2E-3,"NTV"]
[null,"25550-58-7","dinitrophenols",1,0.1,"Other organic hazards","NTV","NTV",null,"not in EPA RSL"]
[null,"E1615210","dinitrotoluene mixture; 2,4-/2,6-",1,0.1,"Other organic hazards",8.9999999999999998E-4,0.68]
[null,"121-14-2","dinitrotoluene;2,4-",1,0.10199999999999999,"Other organic hazards",2E-3,0.31]
[null,"606-20-2","dinitrotoluene;2,6-",1,9.9000000000000005E-2,"Other organic hazards",2.9999999999999997E-4,1.5]
[null,"35572-78-2","dinitrotoluene, 2-Amino-4,6-",1,6.0000000000000001E-3,"Other organic hazards",1E-4,"NTV"]
[null,"19406-51-0","dinitrotoluene, 4-Amino-2,6-",1,8.9999999999999993E-3,"Other organic hazards",1E-4,"NTV"]
[null,"117-84-0","di-n-octyl phthalate (DNoP)",1,0.1,"Other organic hazards",0.01,"NTV"]
[null,"88-85-7","dinoseb",1,0.1,"Other organic hazards",1E-3,"NTV"]
[null,"123-91-1","dioxane;1,4-",1,0,"VOCs",0.03,0.1]
[null,"957-51-7","diphenamid",1,0.1,"Other organic hazards",0.03,"NTV"]
[null,"122-39-4","diphenylamine",1,0.1,"Other organic hazards",0.1,"NTV"]
[null,"122-66-7","diphenylhydrazine;1,2-",1,0.1,"Other organic hazards","NTV",0.8]
[null,"2764-72-9","diquat",1,0.1,"Other organic hazards",2.2000000000000001E-3,"NTV"]
[null,"1937-37-7","direct black 38",1,0.1,"Other organic hazards","NTV",7.4]
[null,"2602-46-2","direct blue 6",1,0.1,"Other organic hazards","NTV",7.4]
[null,"16071-86-6","direct brown 95",1,0.1,"Other organic hazards","NTV",6.7]
[null,"298-04-4","disulfoton",1,0.1,"Other organic hazards",4.0000000000000003E-5,"NTV"]
[null,"505-29-3","dithiane;1,4-",1,0,"Other organic hazards",0.01,"NTV"]
[null,"330-54-1","diuron",1,0.1,"Other organic hazards",2E-3,"NTV"]
[null,"534-52-1","DNOC",1,0.1,"Other organic hazards",8.0000000000000007E-5,"NTV"]
[null,"2439-10-3","dodine",1,0.1,"Other organic hazards",0.02,"NTV"]
[null,"115-29-7","endosulfan",1,0,"Other organic hazards",6.0000000000000001E-3,"NTV"]
[null,"1031-07-8","endosulfan sulfate",1,0.1,"Other organic hazards",6.0000000000000001E-3,"NTV"]
[null,"959-98-8","endosulfan;alpha",1,0.1,"Other organic hazards","NTV","NTV",null,"not in EPA RSL"]
[null,"33213-65-9","endosulfan;beta",1,0.1,"Other organic hazards","NTV","NTV",null,"not in EPA RSL"]
[null,"145-73-3","endothall",1,0.1,"Other organic hazards",0.02,"NTV"]
[null,"72-20-8","endrin",1,0.1,"Other organic hazards",2.9999999999999997E-4,"NTV"]
[null,"7421-93-4","endrin aldehyde",1,0.1,"Other organic hazards","NTV","NTV",null,"not in EPA RSL"]
[null,"106-89-8","epichlorohydrin",1,0,"VOCs",6.0000000000000001E-3,9.9000000000000008E-3]
[null,"106-88-7","epoxybutane",1,0,"VOCs","NTV","NTV"]
[null,"16672-87-0","ethephon",1,0.1,"Other organic hazards",5.0000000000000001E-3,"NTV"]
[null,"563-12-2","ethion",1,0.1,"Other organic hazards",5.0000000000000001E-4,"NTV"]
[null,"111-15-9","ethoxyethanol acetate;2-",1,0,"VOCs",0.1,"NTV"]
[null,"110-80-5","ethoxyethanol;2-",1,0,"VOCs",0.09,"NTV"]
[null,"141-78-6","ethyl acetate",1,0,"VOCs",0.9,"NTV"]
[null,"140-88-5","ethyl acrylate",1,0,"VOCs",5.0000000000000001E-3,4.8000000000000001E-2]
[null,"75-00-3","ethyl chloride",1,0,"VOCs","NTV","NTV"]
[null,"759-94-4","ethyl dipropylthiocarbamate;S-",1,0,"Other organic hazards",0.05,"NTV"]
[null,"60-29-7","ethyl ether",1,0,"VOCs",0.2,"NTV"]
[null,"97-63-2","ethyl methacrylate",1,0,"VOCs",0.09,"NTV"]
[null,"2104-64-5","ethyl p-nitrophenyl phenylphosphorothioate",1,0.1,"Other organic hazards",1.0000000000000001E-5,"NTV"]
[null,"637-92-3","ethyl tertiary butyl ether (ETBE)",1,0,"VOCs",1,"NTV"]
[null,"100-41-4","ethylbenzene",1,0,"VOCs",0.1,"NTV"]
[null,"109-78-4","ethylene cyanohydrin",1,0.1,"Other organic hazards",7.0000000000000007E-2,"NTV"]
[null,"107-15-3","ethylene diamine",1,0,"VOCs",0.09,"NTV"]
[null,"106-93-4","ethylene dibromide (EDB)",1,0,"VOCs",8.9999999999999993E-3,2]
[null,"107-21-1","ethylene glycol",1,0.1,"Other organic hazards",2,"NTV"]
[null,"111-76-2","ethylene glycol monobutyl ether (EGBE)",1,0.1,"Other organic hazards",0.1,"NTV"]
[null,"75-21-8","ethylene oxide",1,0,"VOCs","NTV",0.31,"M"]
[null,"96-45-7","ethylene thiourea",1,0.1,"Other organic hazards",8.0000000000000007E-5,4.4999999999999998E-2]
[null,"84-72-0","ethylphthalyl ethyl glycolate",1,0.1,"Other organic hazards",3,"NTV"]
[null,"101200-48-0","express",1,0.1,"Other organic hazards",8.0000000000000002E-3,"NTV"]
[null,"22224-92-6","fenamiphos",1,0.1,"Other organic hazards",2.5000000000000001E-4,"NTV"]
[null,"2164-17-2","fluometuron",1,0.1,"Other organic hazards",1.2999999999999999E-2,"NTV"]
[null,"206-44-0","fluoranthene",1,0.13,"Other organic hazards",0.04,"NTV"]
[null,"86-73-7","fluorene",1,0.13,"Other organic hazards",0.04,"NTV"]
[null,"16984-48-8","FLUORIDE",1,0,"Inorganics",0.06,"NTV"]
[null,"27619-97-2","FLUOROTELOMER SULFONIC ACID;6:2 (6:2 FTS)",1,0.1,"Other organic hazards",2.0000000000000001E-4,"NTV",null,"not in EPA RSL"]
[null,"59756-60-4","fluridone",1,0.1,"Other organic hazards",0.08,"NTV"]
[null,"56425-91-3","flurprimidol",1,0.1,"Other organic hazards",0.04,"NTV"]
[null,"66332-96-5","flutolanil",1,0.1,"Other organic hazards",0.5,"NTV"]
[null,"69409-94-5","fluvalinate",1,0.1,"Other organic hazards",0.01,"NTV"]
[null,"133-07-3","folpet",1,0.1,"Other organic hazards",0.09,"NTV"]
[null,"72178-02-0","fomesafen",1,0.1,"Other organic hazards",0.01,"NTV"]
[null,"944-22-9","fonofos",1,0.1,"Other organic hazards",2E-3,"NTV"]
[null,"50-00-0","formaldehyde",1,0,"VOCs",0.2,2.1000000000000001E-2,"M"]
[null,"64-18-6","formic acid",1,0,"VOCs",0.9,"NTV"]
[null,"39148-24-8","fosetyl-al",1,0.1,"Other organic hazards",2.5,"NTV"]
[null,"110-00-9","furan",1,0,"Other organic hazards",1E-3,"NTV"]
[null,"67-45-8","furazolidone",1,0.1,"Other organic hazards","NTV",3.8]
[null,"98-01-1","furfural",1,0,"VOCs",3.0000000000000001E-3,"NTV"]
[null,"531-82-8","furium",1,0.1,"Other organic hazards","NTV",1.5]
[null,"60568-05-0","furmecyclox",1,0.1,"Other organic hazards","NTV",0.03]
[null,"77182-82-2","glufosinate-ammonium",1,0.1,"Other organic hazards",6.0000000000000001E-3,"NTV"]
[null,"765-34-4","glycidaldehyde",1,0,"VOCs",4.0000000000000002E-4,"NTV"]
[null,"1071-83-6","glyphosate",1,0.1,"Other organic hazards",0.1,"NTV"]
[null,"86-50-0","guthion",1,0.1,"Other organic hazards",3.0000000000000001E-3,"NTV"]
[null,"69806-40-2","haloxyfop-methyl",1,0.1,"Other organic hazards",5.0000000000000002E-5,"NTV"]
[null,"79277-27-3","harmony",1,0.1,"Other organic hazards",4.2999999999999997E-2,"NTV"]
[null,"76-44-8","heptachlor",1,0,"Other organic hazards",5.0000000000000001E-4,4.5]
[null,"1024-57-3","heptachlor epoxide",1,0,"Other organic hazards",1.2999999999999999E-5,9.1]
[null,"142-82-5","heptane;n-",1,0,"VOCs",2.9999999999999997E-4,"NTV"]
[null,"87-82-1","hexabromobenzene",1,0,"Other organic hazards",2E-3,"NTV"]
[null,"68631-49-2","hexabromodiphenyl ether; 2,2',4,4',5,5'- (PBDE-153)",1,0.1,"Other organic hazards",2.0000000000000001E-4,"NTV"]
[null,"118-74-1","hexachlorobenzene",1,0,"Other organic hazards",8.0000000000000004E-4,1.6]
[null,"87-68-3","hexachlorobutadiene",1,0,"VOCs",1E-3,7.8E-2]
[null,"319-84-6","hexachlorocyclohexane;alpha",1,0.1,"Other organic hazards",8.9999999999999998E-4,6.3]
[null,"319-85-7","hexachlorocyclohexane;beta-",1,0.1,"Other organic hazards","NTV",1.8]
[null,"319-86-8","hexachlorocyclohexane;delta-",1,0.1,"Other organic hazards",5.9999999999999995E-8,"NTV"]
[null,"608-73-1","hexachlorocyclohexane;technical",1,0.1,"Other organic hazards","NTV",1.8]
[null,"77-47-4","hexachlorocyclopentadiene",1,0,"Other organic hazards",6.0000000000000001E-3,"NTV"]
[null,"34465-46-8","hexachlorodibenzo-p-dioxin, mixture",1,0.03,"Dioxins/Furans","NTV",6200]
[null,"67-72-1","hexachloroethane",1,0,"VOCs",6.9999999999999999E-4,0.04]
[null,"70-30-4","hexachlorophene",1,0.1,"Other organic hazards",2.9999999999999997E-4,"NTV"]
[null,"13252-13-6","HEXAFLUOROPROPYLENE OXIDE DIMER ACID (HFPO-DA; GenX)",1,0,"Other organic hazards",3.0000000000000001E-6,"NTV"]
[null,"822-06-0","hexamethylene diisocyanate;1,6-",1,0,"VOCs","NTV","NTV"]
[null,"110-54-3","hexane;n-",1,0,"VOCs",0.06,"NTV"]
[null,"591-78-6","hexanone;2-",1,0,"VOCs",5.0000000000000001E-3,"NTV"]
[null,"51235-04-2","hexazinone",1,0.1,"Other organic hazards",3.3000000000000002E-2,"NTV"]
[null,"302-01-2","hydrazine",1,0,"VOCs","NTV",3]
[null,"10034-93-2","hydrazine sulfate",1,0,"Inorganics","NTV",3]
[null,"7647-01-0","hydrogen chloride",1,0,"Inorganics","NTV","NTV"]
[null,"74-90-8","hydrogen cyanide",1,0,"Other organic hazards",5.9999999999999995E-4,"NTV"]
[null,"7783-06-4","hydrogen sulfide",1,0,"Inorganics","NTV","NTV"]
[null,"123-31-9","hydroquinone",1,0.1,"Other organic hazards",0.04,0.06]
[null,"35554-44-0","imazalil",1,0.1,"Other organic hazards",0.11,6.0999999999999999E-2]
[null,"81335-37-7","imazaquin",1,0.1,"Other organic hazards",0.25,"NTV"]
[null,"193-39-5","INDENO[1,2,3-cd]PYRENE",1,0.13,"Other organic hazards","NTV","NTV"]
[null,"36734-19-7","iprodione",1,0.1,"Other organic hazards",0.04,"NTV"]
[null,"7439-89-6","iron",1,0,"Inorganics",0.7,"NTV"]
[null,"78-83-1","isobutyl alcohol",1,0,"VOCs",0.3,"NTV"]
[null,"78-59-1","isophorone",1,0.1,"Other organic hazards",0.2,9.5E-4]
[null,"33820-53-0","isopropalin",1,0,"Other organic hazards",1.4999999999999999E-2,"NTV"]
[null,"67-63-0","isopropanol",1,0,"VOCs",2,"NTV"]
[null,"1832-54-8","isopropyl methyl phosphonic acid",1,0.1,"Other organic hazards",0.1,"NTV"]
[null,"99-87-6","Isopropyltoluene; p-",1,0,"VOCs",4.0000000000000001E-3,"NTV"]
[null,"82558-50-7","isoxaben",1,0.1,"Other organic hazards",0.05,"NTV"]
[null,"77501-63-4","lactofen",1,0.1,"Other organic hazards",8.0000000000000002E-3,"NTV"]
[null,"7439-92-1","LEAD",1,0,"Inorganics","NTV","NTV"]
[null,"58-89-9","lindane",1,0.04,"Other organic hazards",2.9999999999999997E-4,1.1000000000000001]
[null,"330-55-2","linuron",1,0.1,"Other organic hazards",7.7000000000000002E-3,"NTV"]
[null,"7439-93-2","lithium",1,0,"Inorganics",2E-3,"NTV"]
[null,"7791-03-9","lithium perchlorate",1,0,"Other organic hazards",6.9999999999999999E-4,"NTV"]
[null,"83055-99-6","londax",1,0.1,"Other organic hazards",0.2,"NTV"]
[null,"121-75-5","malathion",1,0.1,"Other organic hazards",0.02,"NTV"]
[null,"108-31-6","maleic anhydride",1,0.1,"Other organic hazards",0.1,"NTV"]
[null,"123-33-1","maleic hydrazide",1,0.1,"Other organic hazards",0.5,"NTV"]
[null,"109-77-3","malononitrile",1,0.1,"Other organic hazards",1E-4,"NTV"]
[null,"8018-01-7","mancozeb",1,0.1,"Other organic hazards",0.03,"NTV"]
[null,"12427-38-2","maneb",1,0.1,"Other organic hazards",5.0000000000000001E-3,"NTV"]
[null,"7439-96-5","MANGANESE (Non-Diet - e.g., drinking water or soil)",0.04,0,"Inorganics",4.6699999999999998E-2,"NTV"]
[null,"950-10-7","mephosfolan",1,0.1,"Other organic hazards",9.0000000000000006E-5,"NTV"]
[null,"24307-26-4","mepiquat chloride",1,0.1,"Other organic hazards",0.03,"NTV"]
[null,"7487-94-7","mercuric chloride",7.0000000000000007E-2,0,"Inorganics",2.9999999999999997E-4,"NTV"]
[null,"7439-97-6","mercury",1,0,"Inorganics","NTV","NTV"]
[null,"150-50-5","merphos",1,0,"Other organic hazards",3.0000000000000001E-5,"NTV"]
[null,"57837-19-1","metalaxyl",1,0.1,"Other organic hazards",0.06,"NTV"]
[null,"126-98-7","methacrylonitrile",1,0,"VOCs",1E-4,"NTV"]
[null,"10265-92-6","methamidosphos",1,0.1,"Other organic hazards",5.0000000000000002E-5,"NTV"]
[null,"67-56-1","methanol",1,0,"VOCs",2,"NTV"]
[null,"950-37-8","methidathion",1,0.1,"Other organic hazards",1.5E-3,"NTV"]
[null,"16752-77-5","methomyl",1,0.1,"Other organic hazards",2.5000000000000001E-2,"NTV"]
[null,"99-59-2","methoxy-5-nitroaniline;2-",1,0.1,"Other organic hazards","NTV",4.9000000000000002E-2]
[null,"72-43-5","methoxychlor",1,0.1,"Other organic hazards",5.0000000000000001E-3,"NTV"]
[null,"110-49-6","methoxyethanol acetate;2-",1,0,"VOCs",8.0000000000000002E-3,"NTV"]
[null,"109-86-4","methoxyethanol;2-",1,0,"VOCs",5.0000000000000001E-3,"NTV"]
[null,"79-20-9","methyl acetate",1,0,"VOCs",1,"NTV"]
[null,"96-33-3","methyl acrylate",1,0,"VOCs",0.03,"NTV"]
[null,"78-93-3","methyl ethyl ketone",1,0,"VOCs",0.6,"NTV"]
[null,"108-10-1","methyl isobutyl ketone",1,0,"VOCs",0.08,"NTV"]
[null,"22967-92-6","METHYL MERCURY",1,0,"Inorganics",1E-4,"NTV"]
[null,"80-62-6","methyl methacrylate",1,0,"VOCs",1.4,"NTV"]
[null,"90-12-0","methyl naphthalene;1-",1,0.13,"Other organic hazards",7.0000000000000007E-2,5.0999999999999997E-2]
[null,"91-57-6","methyl naphthalene;2-",1,0.13,"Other organic hazards",4.0000000000000001E-3,"NTV"]
[null,"298-00-0","methyl parathion",1,0.1,"Other organic hazards",2.5000000000000001E-4,"NTV"]
[null,"25013-15-4","methyl styrene",1,0,"VOCs",6.0000000000000001E-3,"NTV"]
[null,"98-83-9","methyl styrene, alpha",1,0,"VOCs",7.0000000000000007E-2,"NTV"]
[null,"1634-04-4","methyl tert-butyl ether (MTBE)",1,0,"VOCs","NTV",1.8E-3]
[null,"94-74-6","methyl-4-chlorophenoxy-acetic acid;2-",1,0.1,"Other organic hazards",5.0000000000000001E-4,"NTV"]
[null,"99-55-8","methyl-5-nitroaniline;2-",1,0.1,"Other organic hazards",0.02,8.9999999999999993E-3]
[null,"636-21-5","methylaniline hydrochloride;2-",1,0.1,"Other organic hazards","NTV",0.13]
[null,"95-53-4","methylaniline;2-",1,0.1,"Other organic hazards","NTV",1.6E-2]
[null,"101-14-4","methylene bis(2-chloroaniline);4,4'-",1,0.1,"Other organic hazards",2E-3,0.1,"M"]
[null,"101-61-1","methylene bis(n,n'-dimethyl)aniline;4,4'-",1,0.1,"Other organic hazards","NTV",4.5999999999999999E-2]
[null,"74-95-3","methylene bromide",1,0,"VOCs",0.01,"NTV"]
[null,"75-09-2","methylene chloride",1,0,"VOCs",6.0000000000000001E-3,2E-3,"M"]
[null,"101-68-8","methylene diphenyl diisocyanate (MDI)",1,0.1,"Other organic hazards","NTV","NTV"]
[null,"9016-87-9","methylene diphenyl diisocyanate (polymeric) (PMDI)",1,0.1,"Other organic hazards","NTV","NTV"]
[null,"101-77-9","methylenebisbenzenamine;4,4-",1,0.1,"Other organic hazards","NTV",1.6]
[null,"60-34-4","methylhydrazine",1,0,"VOCs",1E-3,"NTV"]
[null,"51218-45-2","metolachlor",1,0.1,"Other organic hazards",0.15,"NTV"]
[null,"21087-64-9","metribuzin",1,0.1,"Other organic hazards",2.5000000000000001E-2,"NTV"]
[null,"2385-85-5","mirex",1,0,"Other organic hazards",2.0000000000000001E-4,18]
[null,"2212-67-1","molinate",1,0.1,"Other organic hazards",2E-3,"NTV"]
[null,"7439-98-7","molybdenum",1,0,"Inorganics",5.0000000000000001E-3,"NTV"]
[null,"10599-90-3","MONOCHLORAMINE",1,0,"Inorganics",0.1,"NTV"]
[null,"300-76-5","naled",1,0,"Other organic hazards",2E-3,"NTV"]
[null,"91-20-3","naphthalene",1,0.13,"Other organic hazards",0.02,"NTV"]
[null,"15299-99-7","napropamide",1,0.1,"Other organic hazards",0.12,"NTV"]
[null,"E715532","nickel refinery dust",0.04,0,"Inorganics",1.0999999999999999E-2,"NTV"]
[null,"7440-02-0","NICKEL SOLUBLE SALTS",0.04,0,"Inorganics",0.02,"NTV"]
[null,"12035-72-2","nickel subsulfide",0.04,0,"Inorganics",1.0999999999999999E-2,1.7]
[null,"14797-55-8","nitrate (measured as nitrogen)",1,0,"Inorganics",1.6,"NTV"]
[null,"14797-65-0","nitrite (measured as nitrogen)",1,0,"Inorganics",0.1,"NTV"]
[null,"88-74-4","nitroaniline, 2-",1,0.1,"Other organic hazards",0.01,"NTV"]
[null,"100-01-6","nitroaniline, 4-",1,0.1,"Other organic hazards",4.0000000000000001E-3,0.02]
[null,"98-95-3","nitrobenzene",1,0,"Other organic hazards",2E-3,"NTV"]
[null,"67-20-9","nitrofurantoin",1,0.1,"Other organic hazards",7.0000000000000007E-2,"NTV"]
[null,"59-87-0","nitrofurazone",1,0.1,"Other organic hazards","NTV",1.3]
[null,"55-63-0","nitroglycerin",1,0.1,"Other organic hazards",1E-4,1.7000000000000001E-2]
[null,"556-88-7","nitroguanidine",1,0.1,"Other organic hazards",0.1,"NTV"]
[null,"79-46-9","nitropropane;2-",1,0,"VOCs","NTV","NTV"]
[null,"1116-54-7","nitrosodiethanolamine;N-",1,0.1,"Other organic hazards","NTV",2.8]
[null,"55-18-5","nitrosodiethylamine;N-",1,0.1,"Other organic hazards","NTV",150,"M"]
[null,"62-75-9","nitrosodimethylamine;N-",1,0,"Other organic hazards",7.9999999999999996E-6,51,"M"]
[null,"924-16-3","nitroso-di-n-butylamine;N-",1,0,"Other organic hazards","NTV",5.4]
[null,"621-64-7","nitroso-di-n-propylamine;N-",1,0.1,"Other organic hazards","NTV",7]
[null,"86-30-6","nitrosodiphenylamine;N-",1,0.1,"Other organic hazards","NTV",4.8999999999999998E-3]
[null,"759-73-9","nitroso-n-ethylurea;n-",1,0.1,"Other organic hazards","NTV",27,"M"]
[null,"10595-95-6","nitroso-N-methylethylamine;N-",1,0,"Other organic hazards","NTV",22]
[null,"684-93-5","nitroso-n-methylurea,n-",1,0.1,"Other organic hazards","NTV",120,"M"]
[null,"930-55-2","nitrosopyrrolidine;N-",1,0.1,"Other organic hazards","NTV",2.1]
[null,"99-08-1","nitrotoluene, m-",1,0.1,"Other organic hazards",1E-4,"NTV"]
[null,"88-72-2","nitrotoluene, o-",1,0,"Other organic hazards",8.9999999999999998E-4,0.22]
[null,"99-99-0","nitrotoluene, p-",1,0.1,"Other organic hazards",4.0000000000000001E-3,1.6E-2]
[null,"84852-15-3","nonylphenol",1,0.1,"Other organic hazards","NTV","NTV",null,"not in RSL"]
[null,"27314-13-2","norflurazon",1,0.1,"Other organic hazards",1.5E-3,"NTV"]
[null,"85509-19-9","nustar",1,0.1,"Other organic hazards",2E-3,"NTV"]
[null,"32536-52-0","octabromodiphenyl ether (OctaBDE)",1,0.1,"Other organic hazards",3.0000000000000001E-3,"NTV"]
[null,"2691-41-0","octahydro-1,3,5,7-tetranitro-1,3,5,7-tetrazocine",1,6.0000000000000001E-3,"Other organic hazards",0.05,"NTV"]
[null,"152-16-9","octamethylpyrophosphoramide",1,0.1,"Other organic hazards",2E-3,"NTV"]
[null,"19044-88-3","oryzalin",1,0.1,"Other organic hazards",0.19,7.7999999999999996E-3]
[null,"19666-30-9","oxadiazon",1,0.1,"Other organic hazards",5.0000000000000001E-3,"NTV"]
[null,"23135-22-0","oxamyl",1,0.1,"Other organic hazards",2.5000000000000001E-2,"NTV"]
[null,"42874-03-3","oxyfluorfen",1,0.1,"Other organic hazards",0.04,7.2999999999999995E-2]
[null,"76738-62-0","paclobutrazol",1,0.1,"Other organic hazards",1.2999999999999999E-2,"NTV"]
[null,"1910-42-5","Paraquat Dichloride",1,0.1,"Other organic hazards",4.4999999999999997E-3,"NTV"]
[null,"56-38-2","parathion",1,0.1,"Other organic hazards",6.0000000000000001E-3,"NTV"]
[null,"1114-71-2","pebulate",1,0,"Other organic hazards",0.05,"NTV"]
[null,"40487-42-1","pendimethalin",1,0.1,"Other organic hazards",0.3,"NTV"]
[null,"87-84-3","pentabromo-6-chloro-cyclohexane;1,2,3,4,5-",1,0.1,"Other organic hazards",0.02,0.02]
[null,"60348-60-9","pentabromodiphenyl ether; 2,2',4,4',5- (PBDE-99)",1,0.1,"Other organic hazards",1E-4,"NTV"]
[null,"32534-81-9","pentabromodiphenyl ethers (PentaBDE)",1,0,"Other organic hazards",2E-3,"NTV"]
[null,"608-93-5","pentachlorobenzene",1,0,"Other organic hazards",8.0000000000000004E-4,"NTV"]
[null,"76-01-7","pentachloroethane",1,0,"VOCs","NTV",0.09]
[null,"82-68-8","pentachloronitrobenzene",1,0,"Other organic hazards",3.0000000000000001E-3,0.26]
[null,"87-86-5","PENTACHLOROPHENOL",1,0.25,"Other organic hazards",5.0000000000000001E-3,0.4]
[null,"78-11-5","pentaerythritol tetranitrate (PETN)",1,0.1,"Other organic hazards",8.9999999999999993E-3,4.3E-3]
[null,"109-66-0","pentane;n-",1,0,"VOCs","NTV","NTV"]
[null,"14797-73-0","perchlorate and perchlorate salts",1,0,"Other organic hazards",6.9999999999999999E-4,"NTV"]
[null,"375-73-5","PERFLUOROBUTANESULFONIC ACID (PFBS)",1,0.1,"Other organic hazards",2.9999999999999997E-4,"NTV"]
[null,"375-22-4","PERFLUOROBUTANOIC ACID (PFBA)",1,0,"Other organic hazards",1E-3,"NTV"]
[null,"335-76-2","PERFLUORODECANOIC ACID (PFDA)",1,0.1,"Other organic hazards",2.0000000000000001E-9,"NTV"]
[null,"355-46-4","PERFLUOROHEXANESULFONIC ACID (PFHxS)",1,0.1,"Other organic hazards",4.0000000000000001E-10,"NTV"]
[null,"307-24-4","PERFLUOROHEXANOIC ACID (PFHxA)",1,0.1,"Other organic hazards",5.0000000000000001E-4,"NTV"]
[null,"375-95-1","PERFLUORONONANOIC ACID (PFNA)",1,0.1,"Other organic hazards",2.5000000000000002E-6,"NTV"]
[null,"1763-23-1","PERFLUOROOCTANESULFONIC ACID (PFOS)",1,0.1,"Other organic hazards",9.9999999999999995E-8,39.5]
[null,"335-67-1","PERFLUOROOCTANOIC ACID (PFOA)",1,0.1,"Other organic hazards",2.9999999999999997E-8,29300]
[null,"52645-53-1","permethrin",1,0.1,"Other organic hazards",0.05,"NTV"]
[null,"13684-63-4","phenmedipham",1,0.1,"Other organic hazards",0.24,"NTV"]
[null,"108-95-2","phenol",1,0.1,"Other organic hazards",0.3,"NTV"]
[null,"106-50-3","phenylenediamine, p-",1,0.1,"Other organic hazards",1E-3,"NTV"]
[null,"108-45-2","phenylenediamine;m-",1,0.1,"Other organic hazards",6.0000000000000001E-3,"NTV"]
[null,"95-54-5","phenylenediamine;o-",1,0.1,"Other organic hazards",4.0000000000000001E-3,0.12,"M"]
[null,"62-38-4","phenylmercuric acetate",1,0.1,"Other organic hazards",8.0000000000000007E-5,"NTV"]
[null,"90-43-7","phenylphenol;2-",1,0.1,"Other organic hazards","NTV",1.9E-3]
[null,"298-02-2","phorate",1,0.1,"Other organic hazards",2.0000000000000001E-4,"NTV"]
[null,"75-44-5","phosgene",1,0,"VOCs","NTV","NTV"]
[null,"732-11-6","phosmet",1,0.1,"Other organic hazards",0.02,"NTV"]
[null,"7803-51-2","phosphine",1,0,"Inorganics",2.9999999999999997E-4,"NTV"]
[null,"7664-38-2","phosphoric acid",1,0,"Inorganics",1,"NTV"]
[null,"7723-14-0","phosphorus",1,0,"Inorganics",2.0000000000000002E-5,"NTV"]
[null,"100-21-0","phthalic acid;p-",1,0.1,"Other organic hazards",0.5,"NTV"]
[null,"85-44-9","phthalic anhydride",1,0.1,"Other organic hazards",2,"NTV"]
[null,"1918-02-1","picloram",1,0.1,"Other organic hazards",7.0000000000000007E-2,"NTV"]
[null,"29232-93-7","pirimiphos-methyl",1,0.1,"Other organic hazards",7.2999999999999996E-4,"NTV"]
[null,"36355-01-8","polybrominated biphenyls",1,0.1,"Other organic hazards",6.9999999999999999E-6,30]
[null,"1336-36-3","polychlorinated biphenyls (PCBs)",1,0.14000000000000001,"Other organic hazards","NTV",2]
[null,"151-50-8","potassium cyanide",1,0,"Other organic hazards",2E-3,"NTV"]
[null,"7778-74-7","potassium perchlorate",1,0,"Other organic hazards",6.9999999999999999E-4,"NTV"]
[null,"506-61-6","potassium silver cyanide",0.04,0,"Other organic hazards",5.0000000000000001E-3,"NTV"]
[null,"67747-09-5","prochloraz",1,0.1,"Other organic hazards",8.9999999999999993E-3,0.15]
[null,"26399-36-0","profluralin",1,0,"Other organic hazards",6.0000000000000001E-3,"NTV"]
[null,"1610-18-0","prometon",1,0.1,"Other organic hazards",1.4999999999999999E-2,"NTV"]
[null,"7287-19-6","prometryn",1,0.1,"Other organic hazards",0.04,"NTV"]
[null,"23950-58-5","pronamide",1,0.1,"Other organic hazards",7.4999999999999997E-2,"NTV"]
[null,"1918-16-7","propachlor",1,0.1,"Other organic hazards",1.2999999999999999E-2,"NTV"]
[null,"709-98-8","propanil",1,0.1,"Other organic hazards",5.0000000000000001E-3,"NTV"]
[null,"2312-35-8","propargite",1,0.1,"Other organic hazards",0.04,0.19]
[null,"107-19-7","propargyl alcohol",1,0,"VOCs",2E-3,"NTV"]
[null,"139-40-2","propazine",1,0.1,"Other organic hazards",0.02,"NTV"]
[null,"122-42-9","propham",1,0.1,"Other organic hazards",0.02,"NTV"]
[null,"60207-90-1","propiconazole",1,0.1,"Other organic hazards",0.1,"NTV"]
[null,"123-38-6","propionaldehyde",1,0,"VOCs","NTV","NTV"]
[null,"93-65-2","propionic acid;(2-methyl-4-chlorophenoxy)2-",1,0.1,"Other organic hazards",1E-3,"NTV"]
[null,"103-65-1","propylbenzene;n-",1,0,"VOCs",0.1,"NTV"]
[null,"57-55-6","propylene glycol",1,0.1,"Other organic hazards",20,"NTV"]
[null,"6423-43-4","propylene glycol dinitrate;1,2-",1,0.1,"Other organic hazards","NTV","NTV"]
[null,"52125-53-8","propylene glycol monoethyl ether",1,0,"Other organic hazards",0.7,"NTV",null,"not in RSL"]
[null,"107-98-2","propylene glycol monomethyl ether (PGME)",1,0,"Other organic hazards",0.7,"NTV"]
[null,"75-56-9","propylene oxide",1,0,"VOCs","NTV",0.24]
[null,"81335-77-5","pursuit",1,0.1,"Other organic hazards",2.5,"NTV"]
[null,"51630-58-1","pydrin",1,0.1,"Other organic hazards",2.5000000000000001E-2,"NTV"]
[null,"129-00-0","pyrene",1,0.13,"Other organic hazards",0.03,"NTV"]
[null,"110-86-1","pyridine",1,0,"VOCs",1E-3,"NTV"]
[null,"13593-03-8","quinalphos",1,0.1,"Other organic hazards",5.0000000000000001E-4,"NTV"]
[null,"91-22-5","quinoline",1,0.1,"Other organic hazards","NTV",3]
[null,"121-82-4","rdx",1,1.4999999999999999E-2,"Other organic hazards",4.0000000000000001E-3,0.08]
[null,"10453-86-8","resmethrin",1,0.1,"Other organic hazards",0.03,"NTV"]
[null,"299-84-3","ronnel",1,0,"Other organic hazards",0.05,"NTV"]
[null,"83-79-4","rotenone",1,0.1,"Other organic hazards",4.0000000000000001E-3,"NTV"]
[null,"78-48-8","s,s,s-tributylphosphorotrithioate",1,0.1,"Other organic hazards",2.0000000000000001E-4,"NTV"]
[null,"78587-05-0","savey",1,0.1,"Other organic hazards",2.5000000000000001E-2,"NTV"]
[null,"7783-00-8","selenious acid",1,0,"Inorganics",5.0000000000000001E-3,"NTV"]
[null,"7782-49-2","selenium and compounds",1,0,"Inorganics",5.0000000000000001E-3,"NTV"]
[null,"74051-80-2","sethoxydim",1,0.1,"Other organic hazards",0.14000000000000001,"NTV"]
[null,"7440-22-4","SILVER",0.04,0,"Inorganics",5.0000000000000001E-3,"NTV"]
[null,"506-64-9","silver cyanide",0.04,0,"Other organic hazards",0.1,"NTV"]
[null,"122-34-9","simazine",1,0.1,"Other organic hazards",5.0000000000000001E-3,0.12]
[null,"26628-22-8","sodium azide",1,0,"Inorganics",4.0000000000000001E-3,"NTV"]
[null,"143-33-9","sodium cyanide",1,0,"Other organic hazards",1E-3,"NTV"]
[null,"148-18-5","sodium diethyldithiocarbamate",1,0.1,"Other organic hazards",0.03,0.27]
[null,"62-74-8","sodium fluoroacetate",1,0.1,"Other organic hazards",2.0000000000000002E-5,"NTV"]
[null,"13718-26-8","sodium metavanadate",1,0,"Inorganics",1E-3,"NTV"]
[null,"7601-89-0","sodium perchlorate",1,0,"Other organic hazards",6.9999999999999999E-4,"NTV"]
[null,"7440-24-6","strontium",1,0,"Inorganics",0.6,"NTV"]
[null,"57-24-9","strychnine",1,0.1,"Other organic hazards",2.9999999999999997E-4,"NTV"]
[null,"100-42-5","styrene",1,0,"VOCs",0.2,"NTV"]
[null,"14808-79-8","sulfate",1,0,"Inorganics","NTV","NTV",null,"not in RSL"]
[null,"88671-89-0","systhane",1,0.1,"Other organic hazards",2.5000000000000001E-2,"NTV"]
[null,"1746-01-6","TCDD;2,3,7,8 (DIOXIN)",1,0.03,"Dioxins/Furans",6.9999999999999996E-10,130000]
[null,"34014-18-1","tebuthiuron",1,0.1,"Other organic hazards",7.0000000000000007E-2,"NTV"]
[null,"3383-96-8","temephos",1,0.1,"Other organic hazards",0.02,"NTV"]
[null,"5902-51-2","terbacil",1,0.1,"Other organic hazards",1.2999999999999999E-2,"NTV"]
[null,"13071-79-9","terbufos",1,0,"Other organic hazards",2.5000000000000001E-5,"NTV"]
[null,"886-50-0","terbutryn",1,0.1,"Other organic hazards",1E-3,"NTV"]
[null,"5436-43-1","tetrabromodiphenyl ether 2,2',4,4' (PBDE-47)",1,0.1,"Other organic hazards",1E-4,"NTV"]
[null,"95-94-3","tetrachlorobenzene;1,2,4,5-",1,0,"Other organic hazards",2.9999999999999997E-4,"NTV"]
[null,"630-20-6","tetrachloroethane;1,1,1,2-",1,0,"VOCs",0.03,2.5999999999999999E-2]
[null,"79-34-5","tetrachloroethane;1,1,2,2-",1,0,"VOCs",0.02,0.2]
[null,"127-18-4","TETRACHLOROETHYLENE (PCE)",1,0,"VOCs",6.0000000000000001E-3,2.0999999999999999E-3]
[null,"58-90-2","TETRACHLOROPHENOL;2,3,4,6-",1,0.1,"Other organic hazards",0.03,"NTV"]
[null,"5216-25-1","tetrachlorotoluene;p,a,a,a,-",1,0,"VOCs",6.0000000000000002E-5,16]
[null,"961-11-5","tetrachlorvinphos",1,0.1,"Other organic hazards",0.03,2.4E-2]
[null,"3689-24-5","tetraethyl dithiopyrophosphate",1,0.1,"Other organic hazards",5.0000000000000001E-4,"NTV"]
[null,"78-00-2","tetraethyl lead",1,0,"Other organic hazards",9.9999999999999995E-8,"NTV"]
[null,"811-97-2","tetrafluoroethane;1,1,1,2-",1,0,"VOCs","NTV","NTV"]
[null,"109-99-9","tetrahydrofuran",1,0,"Other organic hazards",0.9,"NTV"]
[null,"1314-32-5","thallic oxide",1,0,"Inorganics",2.0000000000000002E-5,"NTV"]
[null,"563-68-8","thallium acetate",1,0,"Inorganics",1.0000000000000001E-5,"NTV"]
[null,"6533-73-9","thallium carbonate",1,0.1,"Inorganics",2.0000000000000002E-5,"NTV"]
[null,"7791-12-0","thallium chloride",1,0,"Inorganics",1.0000000000000001E-5,"NTV"]
[null,"10102-45-1","thallium nitrate",1,0,"Inorganics",1.0000000000000001E-5,"NTV"]
[null,"12039-52-0","thallium selenite",1,0,"Inorganics",1.0000000000000001E-5,"NTV"]
[null,"7446-18-6","thallium(I) sulfate",1,0,"Inorganics",2.0000000000000002E-5,"NTV"]
[null,"7440-28-0","thallium, soluble salts",1,0,"Inorganics",1.0000000000000001E-5,"NTV"]
[null,"28249-77-6","thiobencarb",1,0.1,"Other organic hazards",0.01,"NTV"]
[null,"21564-17-0","thiocyanomethylthiobenzothiazole;2-",1,0.1,"Other organic hazards",0.03,"NTV"]
[null,"39196-18-4","thiofanox",1,0.1,"Other organic hazards",2.9999999999999997E-4,"NTV"]
[null,"23564-05-8","thiophanate-methyl",1,0.1,"Other organic hazards",0.16,1.2E-2]
[null,"137-26-8","thiram",1,0.1,"Other organic hazards",1.4999999999999999E-2,"NTV"]
[null,"7440-31-5","tin",1,0,"Inorganics",0.6,"NTV"]
[null,"118-96-7","tnt",1,3.2000000000000001E-2,"Other organic hazards",5.0000000000000001E-4,0.03]
[null,"108-88-3","toluene",1,0,"VOCs",0.08,"NTV"]
[null,"584-84-9","toluene-2,4-diisocyanate",1,0,"VOCs","NTV",3.9E-2]
[null,"91-08-7","toluene-2,6-diisocyanate",1,0,"VOCs","NTV",3.9E-2]
[null,"95-70-5","toluenediamine;2,5-",1,0.1,"Other organic hazards",2.0000000000000001E-4,0.18]
[null,"106-49-0","toluidine;p-",1,0.1,"Other organic hazards",4.0000000000000001E-3,0.03]
[null,"8001-35-2","toxaphene",1,0.1,"Other organic hazards",9.0000000000000006E-5,1.1000000000000001]
[null,"93-72-1","tp;2,4,5-",1,0.1,"Other organic hazards",8.0000000000000002E-3,"NTV"]
[null,"66841-25-6","tralomethrin",1,0.1,"Other organic hazards",7.4999999999999997E-3,"NTV"]
[null,"2303-17-5","triallate",1,0,"Other organic hazards",2.5000000000000001E-2,7.1999999999999995E-2]
[null,"82097-50-5","triasulfuron",1,0.1,"Other organic hazards",0.01,"NTV"]
[null,"615-54-3","tribromobenzene;1,2,4-",1,0,"VOCs",5.0000000000000001E-3,"NTV"]
[null,"688-73-3","tributyltin",1,0,"Other organic hazards","NTV","NTV"]
[null,"56-35-9","tributyltin oxide",1,0.1,"Other organic hazards",2.9999999999999997E-4,"NTV"]
[null,"10025-85-1","TRICHLORAMINE",1,0.1,"Inorganics","NTV","NTV"]
[null,"76-13-1","trichloro-1,2,2-trifluoroethane;1,1,2-",1,0,"VOCs",30,"NTV"]
[null,"76-03-9","trichloroacetic acid",1,0.1,"Other organic hazards",0.02,7.0000000000000007E-2]
[null,"33663-50-2","trichloroaniline hydrochloride;2,4,6-",1,0.1,"Other organic hazards","NTV",2.9000000000000001E-2]
[null,"634-93-5","trichloroaniline;2,4,6-",1,0.1,"Other organic hazards",3.0000000000000001E-5,7.0000000000000001E-3]
[null,"87-61-6","trichlorobenzene;1,2,3-",1,0,"VOCs",8.0000000000000004E-4,"NTV"]
[null,"120-82-1","trichlorobenzene;1,2,4-",1,0,"VOCs",0.01,2.9000000000000001E-2]
[null,"71-55-6","trichloroethane;1,1,1-",1,0,"VOCs",2,"NTV"]
[null,"79-00-5","trichloroethane;1,1,2-",1,0,"VOCs",4.0000000000000001E-3,5.7000000000000002E-2]
[null,"79-01-6","TRICHLOROETHYLENE (TCE)",1,0,"VOCs",5.0000000000000001E-4,4.5999999999999999E-2,"M"]
[null,"75-69-4","trichlorofluoromethane",1,0,"VOCs",0.3,"NTV"]
[null,"95-95-4","TRICHLOROPHENOL;2,4,5-",1,0.1,"Other organic hazards",0.1,"NTV"]
[null,"88-06-2","TRICHLOROPHENOL;2,4,6-",1,0.1,"Other organic hazards",1E-3,1.0999999999999999E-2]
[null,"93-76-5","trichlorophenoxyacetic acid;2,4,5-",1,0.1,"Other organic hazards",0.01,"NTV"]
[null,"598-77-6","trichloropropane;1,1,2-",1,0,"VOCs",5.0000000000000001E-3,"NTV"]
[null,"96-18-4","trichloropropane;1,2,3-",1,0,"VOCs",4.0000000000000001E-3,30,"M"]
[null,"96-19-5","trichloropropene;1,2,3-",1,0,"VOCs",3.0000000000000001E-3,"NTV"]
[null,"58138-08-2","tridiphane",1,0.1,"Other organic hazards",3.0000000000000001E-3,"NTV"]
[null,"121-44-8","triethylamine",1,0,"VOCs","NTV","NTV"]
[null,"1582-09-8","trifluralin",1,0,"Other organic hazards",7.4999999999999997E-3,7.7000000000000002E-3]
[null,"unavailable13","TRIHALOMETHANES, (TOTAL) (TTHMs)",1,0,"VOCs","NTV","NTV",null,"not in RSL"]
[null,"512-56-1","trimethyl phosphate",1,0.1,"Other organic hazards",0.01,0.02]
[null,"526-73-8","trimethylbenzene;1,2,3-",1,0,"VOCs",0.01,"NTV"]
[null,"95-63-6","trimethylbenzene;1,2,4-",1,0,"VOCs",0.01,"NTV"]
[null,"108-67-8","trimethylbenzene;1,3,5-",1,0,"VOCs",0.01,"NTV"]
[null,"99-35-4","trinitrobenzene;1,3,5-",1,1.9E-2,"Other organic hazards",0.03,"NTV"]
[null,"479-45-8","trinitrophenylmethylnitramine",1,6.4999999999999997E-4,"Other organic hazards",2E-3,"NTV"]
[null,"7440-62-2","vanadium",2.5999999999999999E-2,0,"Inorganics",5.0000000000000001E-3,"NTV"]
[null,"1314-62-1","vanadium pentoxide",2.5999999999999999E-2,0,"Inorganics",8.9999999999999993E-3,"NTV"]
[null,"1929-77-7","vernam",1,0,"Other organic hazards",1E-3,"NTV"]
[null,"50471-44-8","vinclozolin",1,0.1,"Other organic hazards",1.1999999999999999E-3,"NTV"]
[null,"108-05-4","vinyl acetate",1,0,"VOCs",1,"NTV"]
[null,"75-01-4","VINYL CHLORIDE",1,0,"VOCs",3.0000000000000001E-3,1.5]
[null,"81-81-2","warfarin",1,0.1,"Other organic hazards",2.9999999999999997E-4,"NTV"]
[null,"8012-95-1","WHITE MINERAL OIL",1,0,"Other organic hazards",3,"NTV"]
[null,"108-38-3","xylene;m-",1,0,"VOCs",0.2,"NTV"]
[null,"95-47-6","xylene;o-",1,0,"VOCs",0.2,"NTV"]
[null,"106-42-3","xylene;p-",1,0,"VOCs",0.2,"NTV"]
[null,"1330-20-7","xylenes",1,0,"VOCs",0.2,"NTV"]
[null,"7440-66-6","ZINC",1,0,"Inorganics",0.3,"NTV"]
[null,"557-21-1","zinc cyanide",1,0,"Other organic hazards",0.05,"NTV"]
[null,"1314-84-7","zinc phosphide",1,0,"Inorganics",2.9999999999999997E-4,"NTV"]
[null,"12122-67-7","zineb",1,0.1,"Other organic hazards",0.05,"NTV"]
[null,"1336-36-3a","Dioxin-like PCBs",1,0.03,"Dioxins/Furans",6.9999999999999996E-10,130000,null,"not in RSL"]

{"sheet":"Step 1 Toxicity_Values","index":2,"n_rows":44,"n_cols":14,"rows_kept":44,"cut":false,"hidden":false,"merged":[[2,6,2,8],[1,6,1,8],[9,1,10,1],[9,2,10,2]]}
["Reference Data for Calculated Fields"]
["Abbrev","Parameter Name","Units","Source located in:",null,"Notes:"]
["CPFo","Oral Cancer Potency Factor","kg-day/mg","CLARC, EPA IRIS",null,"Chemical-specific.   Source data from CLARC and IRIS databases."]
["RfDo","Oral Reference Dose","mg/kg-day","CLARC",null,"Chemical-specific.  Source data from CLARC database."]
["CPFd","Dermal Cancer Potency Factor","kg-day/mg","=CPFo / GI",null,"Chemical-specific derived by (SFo/GI) where GI = 0.2 for inorganic hazardous substances; 0.8 for VOC and mixtures of dioxins/furans; 0.5 for other organic hazardous substances."]
["RfDd","Dermal Reference Dose","mg/kg-day","=RfDo * GI",null,"Chemical-specific derived by (RfDo*GI) where GI =  0.2 for inorganic hazardous substances; 0.8 for VOC and mixtures of dioxins/furans; 0.5 for other organic hazardous substances."]
[]
[null,null,null,null,null,"hide column",null,"hide column"]
[null,null,null,null,null,"hide",null,"hide",null,null,null,"Abbrev","Parameter Name","Units"]
[null,"Contaminant of Concern","Class","CPFo","RfDo","CPFd","CPFd","RfDd","RfDd","GI",null,"CPFo","Oral Cancer Potency Factor","kg-day/mg"]
["CAS Number",null,null,"kg-day/mg","mg/kg-day","SFd = (CPFo/GI)","kg-day/mg","RfDd = (RfDo*GI)","mg/kg-day","unitless",null,"RfDo","Oral Reference Dose","mg/kg-day"]
["7440-38-2",{"$f":"IF(A12=\"\",\"--\",IF(A12=\"Enter CAS\",\"--\",VLOOKUP(A12,chemical,2,FALSE)))","v":"arsenic, inorganic"},{"$f":"IF(A12=\"Enter CAS\",\"--\",IF(A12=\"\",\"--\",VLOOKUP(A12,chemical,5,FALSE)))","v":"Inorganics"},{"$f":"IF(ISERROR(IF((VLOOKUP(A12,chemical,7,FALSE))=\"NTV\",\"--\",VLOOKUP(A12,chemical,7,FALSE))),\"--\",IF((VLOOKUP(A12,chemical,7,FALSE))=\"NTV\",\"--\",VLOOKUP(A12,chemical,7,FALSE)))","v":32},{"$f":"IF(ISERROR(IF((VLOOKUP(A12,chemical,6,FALSE))=\"NTV\",\"--\",VLOOKUP(A12,chemical,6,FALSE))),\"--\",IF((VLOOKUP(A12,chemical,6,FALSE))=\"NTV\",\"--\",VLOOKUP(A12,chemical,6,FALSE)))","v":6.0000000000000002E-5},{"$f":"IF(D12=\"--\",\"--\",D12/J12)","v":32},{"$f":"IF(ISNUMBER(F12),(F12),\"--\")","v":32},{"$f":"IF(E12=\"--\",\"--\",E12*J12)","v":6.0000000000000002E-5},{"$f":"IF(ISNUMBER(H12),(H12),\"--\")","v":6.0000000000000002E-5},{"$f":"IF(A12=\"\",\"--\",IF(A12=\"Enter CAS\",\"--\",VLOOKUP(A12,chemical,3,FALSE)))","v":1},null,"CPFd","Dermal Cancer Potency Factor","kg-day/mg"]
["7440-43-9","Cadmium","Inorganics","--",1E-3,{"$f":"IF(D13=\"--\",\"--\",D13/J13)","v":"--"},{"$f":"IF(ISNUMBER(F13),(F13),\"--\")","v":"--"},{"$f":"IF(E13=\"--\",\"--\",E13*J13)","v":2.5000000000000001E-5},{"$f":"IF(ISNUMBER(H13),(H13),\"--\")","v":2.5000000000000001E-5},2.5000000000000001E-2,null,"RfDd","Dermal Reference Dose","mg/kg-day"]
["50-32-8","BENZO[a]PYRENE","Other organic hazards",1,2.9999999999999997E-4,{"$f":"IF(D14=\"--\",\"--\",D14/J14)","v":1},1,2.9999999999999997E-4,2.9999999999999997E-4,1,null,"GI","Gastrointestinal absorption conversion factor","unitless"]
["1746-01-6","TCDD;2,3,7,8 (DIOXIN)","Dioxins/Furans",130000,6.9999999999999996E-10,130000,130000,6.9999999999999996E-10,6.9999999999999996E-10,1]
["7439-92-1","LEAD","Inorganics","--","--","--","--","--","--",1]
["22967-92-6","METHYL MERCURY","Inorganics","--",1E-4,"--","--",1E-4,1E-4,1]
["1336-36-3a","Dioxin-like PCBs","Dioxins/Furans",130000,6.9999999999999996E-10,130000,130000,6.9999999999999996E-10,6.9999999999999996E-10,1]
["56-35-9","tributyltin oxide","Other organic hazards","--",2.9999999999999997E-4,"--","--",2.9999999999999997E-4,2.9999999999999997E-4,1]
["50-29-3","DDT","Other organic hazards",0.34,5.0000000000000001E-4,0.34,0.34,5.0000000000000001E-4,5.0000000000000001E-4,1]
["71-43-2","BENZENE","VOCs",5.5E-2,4.0000000000000001E-3,5.5E-2,5.5E-2,4.0000000000000001E-3,4.0000000000000001E-3,1]
["Enter CAS","--","--","--","--","--","--","--","--","--"]
["Enter CAS","--","--","--","--","--","--","--","--","--"]
["Enter CAS","--","--","--","--","--","--","--","--","--"]
["Enter CAS","--","--","--","--","--","--","--","--","--"]
["Enter CAS","--","--","--","--","--","--","--","--","--"]
["Enter CAS","--","--","--","--","--","--","--","--","--"]
["Enter CAS","--","--","--","--","--","--","--","--","--"]
["Enter CAS","--","--","--","--","--","--","--","--","--"]
["Enter CAS","--","--","--","--","--","--","--","--","--"]
["Enter CAS","--","--","--","--","--","--","--","--","--"]
["Enter CAS","--","--","--","--","--","--","--","--","--"]
["Enter CAS","--","--","--","--","--","--","--","--","--"]
["Enter CAS","--","--","--","--","--","--","--","--","--"]
["Enter CAS","--","--","--","--","--","--","--","--","--"]
["Enter CAS","--","--","--","--","--","--","--","--","--"]
["Enter CAS","--","--","--","--","--","--","--","--","--"]
["Enter CAS","--","--","--","--","--","--","--","--","--"]
["Enter CAS","--","--","--","--","--","--","--","--","--"]
["Enter CAS","--","--","--","--","--","--","--","--","--"]
["Enter CAS","--","--","--","--","--","--","--","--","--"]
["Enter CAS","--","--","--","--","--","--","--","--","--"]
["Enter CAS","--","--","--","--","--","--","--","--","--"]
["Enter CAS","--","--","--","--","--","--","--","--","--"]

{"sheet":"Step 2 Chemical_Parameters","index":3,"n_rows":44,"n_cols":16,"rows_kept":44,"cut":false,"hidden":false,"merged":[[4,5,4,9],[9,1,10,1],[9,8,9,9],[10,8,10,9],[15,8,15,9],[9,2,10,2]]}
[null,null,null,null,null,null,null,null,null,null,null,"hide row",null,"hide column","hide column","hide column"]
[null,null,null,null,null,null,null,null,null,null,null,"hide row"]
["Abbrev","Parameter Name",null,"Units","Source located in:","Notes:",null,null,null,null,null,"hide row"]
["BSAF","Biota-Sediment Accumulation Factor",null,"g/g","Site-specific","Chemical- and site-specific",null,null,null,null,null,"hide row"]
["AB","Gastrointestinal Absorption Fraction",null,"unitless","MTCA","Values are pulled in automatically based on the chemical class in Column C. The default is 1; D/F is 0.6.",null,null,null,null,null,"hide row"]
["ABS","Dermal Absorption Fraction",null,"unitless","EPA RAGS Part E","Values are pulled in from the hidden chemical lookup table",null,null,null,null,null,"hide row"]
[null,null,null,null,null,null,null,null,null,null,null,"hide row"]
[null,null,null,null,null,null,null,null,null,null,null,"hide row"]
[null,null,null,"Input BSAF",null,null,null,null,null,null,null,null,null,"Data from Worksheet Step 1 Toxicity_Values"]
[null,"Contaminant of Concern","Class","BSAF","AB","ABS",null,null,"Gastrointestinal Absorption",null,null,null,null,"hide","hide","hide"]
["CAS Number",null,null,"g/g","unitless","unitless",null,null,"Fraction (AB)",null,null,null,null,"CAS Number","Contaminant of Concern","Class"]
[{"$f":"IF(N12=\"Enter CAS\",\"--\",N12)","v":"7440-38-2"},{"$f":"IF(O12=\"Enter CoC\",\"--\",O12)","v":"arsenic, inorganic"},{"$f":"IF(P12=\"\",\"--\",P12)","v":"Inorganics"},null,{"$f":"IF(C12=\"--\",\"--\",VLOOKUP(C12,$I$12:$J$15,2,FALSE))","v":1},{"$f":"IF(A12=\"--\",\"---\",VLOOKUP(A12,chemical,4,FALSE))","v":0.03},null,null,"Inorganics",1,null,null,null,{"$f":"IF('Step 1 Toxicity_Values'!A12=\"Enter CAS\",\"Enter CAS\",IF('Step 1 Toxicity_Values'!A12=\"\",\"Enter CAS\",'Step 1 Toxicity_Values'!A12))","v":"7440-38-2"},{"$f":"IF('Step 1 Toxicity_Values'!B12=\"--\",\"--\",IF('Step 1 Toxicity_Values'!B12=\"\",\"--\",'Step 1 Toxicity_Values'!B12))","v":"arsenic, inorganic"},{"$f":"'Step 1 Toxicity_Values'!C12","v":"Inorganics"}]
["7440-43-9","Cadmium",{"$f":"IF(P13=\"\",\"--\",P13)","v":"Inorganics"},null,1,1E-3,null,null,"VOCs",1,null,null,null,{"$f":"IF('Step 1 Toxicity_Values'!A13=\"Enter CAS\",\"Enter CAS\",IF('Step 1 Toxicity_Values'!A13=\"\",\"Enter CAS\",'Step 1 Toxicity_Values'!A13))","v":"7440-43-9"},{"$f":"IF('Step 1 Toxicity_Values'!B13=\"--\",\"--\",IF('Step 1 Toxicity_Values'!B13=\"\",\"--\",'Step 1 Toxicity_Values'!B13))","v":"Cadmium"},{"$f":"'Step 1 Toxicity_Values'!C13","v":"Inorganics"}]
["50-32-8","BENZO[a]PYRENE","Other organic hazards",null,1,0.13,null,null,"Dioxins/Furans",0.6,null,null,null,{"$f":"IF('Step 1 Toxicity_Values'!A14=\"Enter CAS\",\"Enter CAS\",IF('Step 1 Toxicity_Values'!A14=\"\",\"Enter CAS\",'Step 1 Toxicity_Values'!A14))","v":"50-32-8"},{"$f":"IF('Step 1 Toxicity_Values'!B14=\"--\",\"--\",IF('Step 1 Toxicity_Values'!B14=\"\",\"--\",'Step 1 Toxicity_Values'!B14))","v":"BENZO[a]PYRENE"},{"$f":"'Step 1 Toxicity_Values'!C14","v":"Other organic hazards"}]
["1746-01-6","TCDD;2,3,7,8 (DIOXIN)","Dioxins/Furans",null,0.6,0.03,null,null,"Other organic hazards",1,null,null,null,{"$f":"IF('Step 1 Toxicity_Values'!A15=\"Enter CAS\",\"Enter CAS\",IF('Step 1 Toxicity_Values'!A15=\"\",\"Enter CAS\",'Step 1 Toxicity_Values'!A15))","v":"1746-01-6"},{"$f":"IF('Step 1 Toxicity_Values'!B15=\"--\",\"--\",IF('Step 1 Toxicity_Values'!B15=\"\",\"--\",'Step 1 Toxicity_Values'!B15))","v":"TCDD;2,3,7,8 (DIOXIN)"},{"$f":"'Step 1 Toxicity_Values'!C15","v":"Dioxins/Furans"}]
["7439-92-1","LEAD","Inorganics",null,1,0,null,null,null,null,null,null,null,{"$f":"IF('Step 1 Toxicity_Values'!A16=\"Enter CAS\",\"Enter CAS\",IF('Step 1 Toxicity_Values'!A16=\"\",\"Enter CAS\",'Step 1 Toxicity_Values'!A16))","v":"7439-92-1"},{"$f":"IF('Step 1 Toxicity_Values'!B16=\"--\",\"--\",IF('Step 1 Toxicity_Values'!B16=\"\",\"--\",'Step 1 Toxicity_Values'!B16))","v":"LEAD"},{"$f":"'Step 1 Toxicity_Values'!C16","v":"Inorganics"}]
["22967-92-6","METHYL MERCURY","Inorganics",null,1,0,null,null,"Abbrev","Parameter Name",null,null,null,{"$f":"IF('Step 1 Toxicity_Values'!A17=\"Enter CAS\",\"Enter CAS\",IF('Step 1 Toxicity_Values'!A17=\"\",\"Enter CAS\",'Step 1 Toxicity_Values'!A17))","v":"22967-92-6"},{"$f":"IF('Step 1 Toxicity_Values'!B17=\"--\",\"--\",IF('Step 1 Toxicity_Values'!B17=\"\",\"--\",'Step 1 Toxicity_Values'!B17))","v":"METHYL MERCURY"},{"$f":"'Step 1 Toxicity_Values'!C17","v":"Inorganics"}]
["1336-36-3a","Dioxin-like PCBs","Dioxins/Furans",null,0.6,0.03,null,null,"BSAF","Biota-Sediment Accumulation Factor",null,null,null,{"$f":"IF('Step 1 Toxicity_Values'!A18=\"Enter CAS\",\"Enter CAS\",IF('Step 1 Toxicity_Values'!A18=\"\",\"Enter CAS\",'Step 1 Toxicity_Values'!A18))","v":"1336-36-3a"},{"$f":"IF('Step 1 Toxicity_Values'!B18=\"--\",\"--\",IF('Step 1 Toxicity_Values'!B18=\"\",\"--\",'Step 1 Toxicity_Values'!B18))","v":"Dioxin-like PCBs"},{"$f":"'Step 1 Toxicity_Values'!C18","v":"Dioxins/Furans"}]
["56-35-9","tributyltin oxide","Other organic hazards",null,1,0.1,null,null,"AB","Gastrointestinal Absorption Fraction",null,null,null,{"$f":"IF('Step 1 Toxicity_Values'!A19=\"Enter CAS\",\"Enter CAS\",IF('Step 1 Toxicity_Values'!A19=\"\",\"Enter CAS\",'Step 1 Toxicity_Values'!A19))","v":"56-35-9"},{"$f":"IF('Step 1 Toxicity_Values'!B19=\"--\",\"--\",IF('Step 1 Toxicity_Values'!B19=\"\",\"--\",'Step 1 Toxicity_Values'!B19))","v":"tributyltin oxide"},{"$f":"'Step 1 Toxicity_Values'!C19","v":"Other organic hazards"}]
["50-29-3","DDT","Other organic hazards",null,1,0.03,null,null,"ABS","Dermal Absorption Fraction",null,null,null,{"$f":"IF('Step 1 Toxicity_Values'!A20=\"Enter CAS\",\"Enter CAS\",IF('Step 1 Toxicity_Values'!A20=\"\",\"Enter CAS\",'Step 1 Toxicity_Values'!A20))","v":"50-29-3"},{"$f":"IF('Step 1 Toxicity_Values'!B20=\"--\",\"--\",IF('Step 1 Toxicity_Values'!B20=\"\",\"--\",'Step 1 Toxicity_Values'!B20))","v":"DDT"},{"$f":"'Step 1 Toxicity_Values'!C20","v":"Other organic hazards"}]
["71-43-2","BENZENE","VOCs",null,1,0,null,null,null,null,null,null,null,{"$f":"IF('Step 1 Toxicity_Values'!A21=\"Enter CAS\",\"Enter CAS\",IF('Step 1 Toxicity_Values'!A21=\"\",\"Enter CAS\",'Step 1 Toxicity_Values'!A21))","v":"71-43-2"},{"$f":"IF('Step 1 Toxicity_Values'!B21=\"--\",\"--\",IF('Step 1 Toxicity_Values'!B21=\"\",\"--\",'Step 1 Toxicity_Values'!B21))","v":"BENZENE"},{"$f":"'Step 1 Toxicity_Values'!C21","v":"VOCs"}]
[{"$f":"IF(N22=\"Enter CAS\",\"--\",N22)","v":"--"},{"$f":"IF(O22=\"Enter CoC\",\"--\",O22)","v":"--"},"--",null,{"$f":"IF(C22=\"--\",\"--\",VLOOKUP(C22,$I$12:$J$15,2,FALSE))","v":"--"},{"$f":"IF(A22=\"--\",\"--\",VLOOKUP(A22,chemical,4,FALSE))","v":"--"},null,null,null,null,null,null,null,{"$f":"IF('Step 1 Toxicity_Values'!A22=\"Enter CAS\",\"Enter CAS\",IF('Step 1 Toxicity_Values'!A22=\"\",\"Enter CAS\",'Step 1 Toxicity_Values'!A22))","v":"Enter CAS"},{"$f":"IF('Step 1 Toxicity_Values'!B22=\"--\",\"--\",IF('Step 1 Toxicity_Values'!B22=\"\",\"--\",'Step 1 Toxicity_Values'!B22))","v":"--"},{"$f":"'Step 1 Toxicity_Values'!C22","v":"--"}]
[{"$f":"IF(N23=\"Enter CAS\",\"--\",N23)","v":"--"},{"$f":"IF(O23=\"Enter CoC\",\"--\",O23)","v":"--"},"--",null,{"$f":"IF(C23=\"--\",\"--\",VLOOKUP(C23,$I$12:$J$15,2,FALSE))","v":"--"},"--",null,null,null,null,null,null,null,{"$f":"IF('Step 1 Toxicity_Values'!A23=\"Enter CAS\",\"Enter CAS\",IF('Step 1 Toxicity_Values'!A23=\"\",\"Enter CAS\",'Step 1 Toxicity_Values'!A23))","v":"Enter CAS"},{"$f":"IF('Step 1 Toxicity_Values'!B23=\"--\",\"--\",IF('Step 1 Toxicity_Values'!B23=\"\",\"--\",'Step 1 Toxicity_Values'!B23))","v":"--"},{"$f":"'Step 1 Toxicity_Values'!C23","v":"--"}]
["--","--","--",null,"--","--",null,null,null,null,null,null,null,{"$f":"IF('Step 1 Toxicity_Values'!A24=\"Enter CAS\",\"Enter CAS\",IF('Step 1 Toxicity_Values'!A24=\"\",\"Enter CAS\",'Step 1 Toxicity_Values'!A24))","v":"Enter CAS"},{"$f":"IF('Step 1 Toxicity_Values'!B24=\"--\",\"--\",IF('Step 1 Toxicity_Values'!B24=\"\",\"--\",'Step 1 Toxicity_Values'!B24))","v":"--"},{"$f":"'Step 1 Toxicity_Values'!C24","v":"--"}]
["--","--","--",null,"--","--",null,null,null,null,null,null,null,{"$f":"IF('Step 1 Toxicity_Values'!A25=\"Enter CAS\",\"Enter CAS\",IF('Step 1 Toxicity_Values'!A25=\"\",\"Enter CAS\",'Step 1 Toxicity_Values'!A25))","v":"Enter CAS"},{"$f":"IF('Step 1 Toxicity_Values'!B25=\"--\",\"--\",IF('Step 1 Toxicity_Values'!B25=\"\",\"--\",'Step 1 Toxicity_Values'!B25))","v":"--"},{"$f":"'Step 1 Toxicity_Values'!C25","v":"--"}]
["--","--","--",null,"--","--",null,null,null,null,null,null,null,{"$f":"IF('Step 1 Toxicity_Values'!A26=\"Enter CAS\",\"Enter CAS\",IF('Step 1 Toxicity_Values'!A26=\"\",\"Enter CAS\",'Step 1 Toxicity_Values'!A26))","v":"Enter CAS"},{"$f":"IF('Step 1 Toxicity_Values'!B26=\"--\",\"--\",IF('Step 1 Toxicity_Values'!B26=\"\",\"--\",'Step 1 Toxicity_Values'!B26))","v":"--"},{"$f":"'Step 1 Toxicity_Values'!C26","v":"--"}]
["--","--","--",null,"--","--",null,null,null,null,null,null,null,{"$f":"IF('Step 1 Toxicity_Values'!A27=\"Enter CAS\",\"Enter CAS\",IF('Step 1 Toxicity_Values'!A27=\"\",\"Enter CAS\",'Step 1 Toxicity_Values'!A27))","v":"Enter CAS"},{"$f":"IF('Step 1 Toxicity_Values'!B27=\"--\",\"--\",IF('Step 1 Toxicity_Values'!B27=\"\",\"--\",'Step 1 Toxicity_Values'!B27))","v":"--"},{"$f":"'Step 1 Toxicity_Values'!C27","v":"--"}]
["--","--","--",null,"--","--",null,null,null,null,null,null,null,{"$f":"IF('Step 1 Toxicity_Values'!A28=\"Enter CAS\",\"Enter CAS\",IF('Step 1 Toxicity_Values'!A28=\"\",\"Enter CAS\",'Step 1 Toxicity_Values'!A28))","v":"Enter CAS"},{"$f":"IF('Step 1 Toxicity_Values'!B28=\"--\",\"--\",IF('Step 1 Toxicity_Values'!B28=\"\",\"--\",'Step 1 Toxicity_Values'!B28))","v":"--"},{"$f":"'Step 1 Toxicity_Values'!C28","v":"--"}]
["--","--","--",null,"--","--",null,null,null,null,null,null,null,{"$f":"IF('Step 1 Toxicity_Values'!A29=\"Enter CAS\",\"Enter CAS\",IF('Step 1 Toxicity_Values'!A29=\"\",\"Enter CAS\",'Step 1 Toxicity_Values'!A29))","v":"Enter CAS"},{"$f":"IF('Step 1 Toxicity_Values'!B29=\"--\",\"--\",IF('Step 1 Toxicity_Values'!B29=\"\",\"--\",'Step 1 Toxicity_Values'!B29))","v":"--"},{"$f":"'Step 1 Toxicity_Values'!C29","v":"--"}]
["--","--","--",null,"--","--",null,null,null,null,null,null,null,{"$f":"IF('Step 1 Toxicity_Values'!A30=\"Enter CAS\",\"Enter CAS\",IF('Step 1 Toxicity_Values'!A30=\"\",\"Enter CAS\",'Step 1 Toxicity_Values'!A30))","v":"Enter CAS"},{"$f":"IF('Step 1 Toxicity_Values'!B30=\"--\",\"--\",IF('Step 1 Toxicity_Values'!B30=\"\",\"--\",'Step 1 Toxicity_Values'!B30))","v":"--"},{"$f":"'Step 1 Toxicity_Values'!C30","v":"--"}]
["--","--","--",null,"--","--",null,null,null,null,null,null,null,{"$f":"IF('Step 1 Toxicity_Values'!A31=\"Enter CAS\",\"Enter CAS\",IF('Step 1 Toxicity_Values'!A31=\"\",\"Enter CAS\",'Step 1 Toxicity_Values'!A31))","v":"Enter CAS"},{"$f":"IF('Step 1 Toxicity_Values'!B31=\"--\",\"--\",IF('Step 1 Toxicity_Values'!B31=\"\",\"--\",'Step 1 Toxicity_Values'!B31))","v":"--"},{"$f":"'Step 1 Toxicity_Values'!C31","v":"--"}]
["--","--","--",null,"--","--",null,null,null,null,null,null,null,{"$f":"IF('Step 1 Toxicity_Values'!A32=\"Enter CAS\",\"Enter CAS\",IF('Step 1 Toxicity_Values'!A32=\"\",\"Enter CAS\",'Step 1 Toxicity_Values'!A32))","v":"Enter CAS"},{"$f":"IF('Step 1 Toxicity_Values'!B32=\"--\",\"--\",IF('Step 1 Toxicity_Values'!B32=\"\",\"--\",'Step 1 Toxicity_Values'!B32))","v":"--"},{"$f":"'Step 1 Toxicity_Values'!C32","v":"--"}]
["--","--","--",null,"--","--",null,null,null,null,null,null,null,{"$f":"IF('Step 1 Toxicity_Values'!A33=\"Enter CAS\",\"Enter CAS\",IF('Step 1 Toxicity_Values'!A33=\"\",\"Enter CAS\",'Step 1 Toxicity_Values'!A33))","v":"Enter CAS"},{"$f":"IF('Step 1 Toxicity_Values'!B33=\"--\",\"--\",IF('Step 1 Toxicity_Values'!B33=\"\",\"--\",'Step 1 Toxicity_Values'!B33))","v":"--"},{"$f":"'Step 1 Toxicity_Values'!C33","v":"--"}]
["--","--","--",null,"--","--",null,null,null,null,null,null,null,{"$f":"IF('Step 1 Toxicity_Values'!A34=\"Enter CAS\",\"Enter CAS\",IF('Step 1 Toxicity_Values'!A34=\"\",\"Enter CAS\",'Step 1 Toxicity_Values'!A34))","v":"Enter CAS"},{"$f":"IF('Step 1 Toxicity_Values'!B34=\"--\",\"--\",IF('Step 1 Toxicity_Values'!B34=\"\",\"--\",'Step 1 Toxicity_Values'!B34))","v":"--"},{"$f":"'Step 1 Toxicity_Values'!C34","v":"--"}]
["--","--","--",null,"--","--",null,null,null,null,null,null,null,{"$f":"IF('Step 1 Toxicity_Values'!A35=\"Enter CAS\",\"Enter CAS\",IF('Step 1 Toxicity_Values'!A35=\"\",\"Enter CAS\",'Step 1 Toxicity_Values'!A35))","v":"Enter CAS"},{"$f":"IF('Step 1 Toxicity_Values'!B35=\"--\",\"--\",IF('Step 1 Toxicity_Values'!B35=\"\",\"--\",'Step 1 Toxicity_Values'!B35))","v":"--"},{"$f":"'Step 1 Toxicity_Values'!C35","v":"--"}]
["--","--","--",null,"--","--",null,null,null,null,null,null,null,{"$f":"IF('Step 1 Toxicity_Values'!A36=\"Enter CAS\",\"Enter CAS\",IF('Step 1 Toxicity_Values'!A36=\"\",\"Enter CAS\",'Step 1 Toxicity_Values'!A36))","v":"Enter CAS"},{"$f":"IF('Step 1 Toxicity_Values'!B36=\"--\",\"--\",IF('Step 1 Toxicity_Values'!B36=\"\",\"--\",'Step 1 Toxicity_Values'!B36))","v":"--"},{"$f":"'Step 1 Toxicity_Values'!C36","v":"--"}]
["--","--","--",null,"--","--",null,null,null,null,null,null,null,{"$f":"IF('Step 1 Toxicity_Values'!A37=\"Enter CAS\",\"Enter CAS\",IF('Step 1 Toxicity_Values'!A37=\"\",\"Enter CAS\",'Step 1 Toxicity_Values'!A37))","v":"Enter CAS"},{"$f":"IF('Step 1 Toxicity_Values'!B37=\"--\",\"--\",IF('Step 1 Toxicity_Values'!B37=\"\",\"--\",'Step 1 Toxicity_Values'!B37))","v":"--"},{"$f":"'Step 1 Toxicity_Values'!C37","v":"--"}]
["--","--","--",null,"--","--",null,null,null,null,null,null,null,{"$f":"IF('Step 1 Toxicity_Values'!A38=\"Enter CAS\",\"Enter CAS\",IF('Step 1 Toxicity_Values'!A38=\"\",\"Enter CAS\",'Step 1 Toxicity_Values'!A38))","v":"Enter CAS"},{"$f":"IF('Step 1 Toxicity_Values'!B38=\"--\",\"--\",IF('Step 1 Toxicity_Values'!B38=\"\",\"--\",'Step 1 Toxicity_Values'!B38))","v":"--"},{"$f":"'Step 1 Toxicity_Values'!C38","v":"--"}]
["--","--","--",null,"--","--",null,null,null,null,null,null,null,{"$f":"IF('Step 1 Toxicity_Values'!A39=\"Enter CAS\",\"Enter CAS\",IF('Step 1 Toxicity_Values'!A39=\"\",\"Enter CAS\",'Step 1 Toxicity_Values'!A39))","v":"Enter CAS"},{"$f":"IF('Step 1 Toxicity_Values'!B39=\"--\",\"--\",IF('Step 1 Toxicity_Values'!B39=\"\",\"--\",'Step 1 Toxicity_Values'!B39))","v":"--"},{"$f":"'Step 1 Toxicity_Values'!C39","v":"--"}]
["--","--","--",null,"--","--",null,null,null,null,null,null,null,{"$f":"IF('Step 1 Toxicity_Values'!A40=\"Enter CAS\",\"Enter CAS\",IF('Step 1 Toxicity_Values'!A40=\"\",\"Enter CAS\",'Step 1 Toxicity_Values'!A40))","v":"Enter CAS"},{"$f":"IF('Step 1 Toxicity_Values'!B40=\"--\",\"--\",IF('Step 1 Toxicity_Values'!B40=\"\",\"--\",'Step 1 Toxicity_Values'!B40))","v":"--"},{"$f":"'Step 1 Toxicity_Values'!C40","v":"--"}]
["--","--","--",null,"--","--",null,null,null,null,null,null,null,{"$f":"IF('Step 1 Toxicity_Values'!A41=\"Enter CAS\",\"Enter CAS\",IF('Step 1 Toxicity_Values'!A41=\"\",\"Enter CAS\",'Step 1 Toxicity_Values'!A41))","v":"Enter CAS"},{"$f":"IF('Step 1 Toxicity_Values'!B41=\"--\",\"--\",IF('Step 1 Toxicity_Values'!B41=\"\",\"--\",'Step 1 Toxicity_Values'!B41))","v":"--"},{"$f":"'Step 1 Toxicity_Values'!C41","v":"--"}]
["--","--","--",null,"--","--",null,null,null,null,null,null,null,{"$f":"IF('Step 1 Toxicity_Values'!A42=\"Enter CAS\",\"Enter CAS\",IF('Step 1 Toxicity_Values'!A42=\"\",\"Enter CAS\",'Step 1 Toxicity_Values'!A42))","v":"Enter CAS"},{"$f":"IF('Step 1 Toxicity_Values'!B42=\"--\",\"--\",IF('Step 1 Toxicity_Values'!B42=\"\",\"--\",'Step 1 Toxicity_Values'!B42))","v":"--"},{"$f":"'Step 1 Toxicity_Values'!C42","v":"--"}]
["--","--","--",null,"--","--",null,null,null,null,null,null,null,{"$f":"IF('Step 1 Toxicity_Values'!A43=\"Enter CAS\",\"Enter CAS\",IF('Step 1 Toxicity_Values'!A43=\"\",\"Enter CAS\",'Step 1 Toxicity_Values'!A43))","v":"Enter CAS"},{"$f":"IF('Step 1 Toxicity_Values'!B43=\"--\",\"--\",IF('Step 1 Toxicity_Values'!B43=\"\",\"--\",'Step 1 Toxicity_Values'!B43))","v":"--"},{"$f":"'Step 1 Toxicity_Values'!C43","v":"--"}]
["--","--","--",null,"--","--",null,null,null,null,null,null,null,{"$f":"IF('Step 1 Toxicity_Values'!A44=\"Enter CAS\",\"Enter CAS\",IF('Step 1 Toxicity_Values'!A44=\"\",\"Enter CAS\",'Step 1 Toxicity_Values'!A44))","v":"Enter CAS"},{"$f":"IF('Step 1 Toxicity_Values'!B44=\"--\",\"--\",IF('Step 1 Toxicity_Values'!B44=\"\",\"--\",'Step 1 Toxicity_Values'!B44))","v":"--"},{"$f":"'Step 1 Toxicity_Values'!C44","v":"--"}]

{"sheet":"Step 3 Exposure Parameters","index":4,"n_rows":91,"n_cols":57,"rows_kept":91,"cut":false,"hidden":false,"merged":[[1,27,1,30],[1,31,1,34],[2,13,3,13],[2,14,3,14],[1,15,1,18],[1,19,1,22],[1,23,1,26],[2,27,2,30],[2,23,2,26],[41,2,42,2],[2,5,2,6],[21,3,21,4],[21,5,21,6],[21,7,21,8],[2,7,2,8],[1,3,1,4],[21,15,21,16],[21,17,21,18],[21,19,21,20],[2,9,2,10],[2,3,2,4],[20,15,20,20],[2,12,3,12],[2,15,2,18],[2,19,2,22],[20,51,20,56],[21,39,21,40],[21,41,21,42],[21,43,21,44],[21,51,21,52],[21,53,21,54],[21,55,21,56]]}
["Table 1a: Human Consumption of Fish/Shellfish",null,null,null,null,null,null,null,null,null,null,null,"Table 1b: Human Consumption of Fish/Shellfish, Early Life Stage Adjustments for Mutagens (e.g., cPAHs)",null,null,null,null,null,null,null,null,null,null,null,null,null,null,null,null,null,null,null,null,null,null,null,"hide","hide","hide","hide","hide","hide","hide","hide","hide","hide","hide","hide","hide","hide","hide","hide","hide","hide","hide","hide","hide"]
[null,null,null,"Input Exposure Parameters",null,null,null,null,null,null,null,null,null,null,null,"Input Exposure Parameters",null,null,null,"Suquamish Tribal",null,null,null,"Tulalip Tribal",null,null,null,"Columbia River ",null,null,null,"EPA general population (Exposure Factors Handbook)"]
[null,null,null,"Selected RME Values",null,"Suquamish Tribal Adult",null,"Tulalip Tribal Adult",null,"Columbia River Tribal Adult",null,null,"Abbrev","Exposure Parameter","Units","Selected ELS RME Values for mutagens, currently only for cPAHs",null,null,null,"Early Life stages (currently cPAH cancer only)",null,null,null,"Early Life stages (currently cPAH cancer only)",null,null,null,"Early Life stages (currently cPAH cancer only)",null,null,null,"Early Life stages (currently cPAH cancer only)"]
["Abbrev","Exposure Parameter","Units","Cancer","Noncancer","Cancer","Noncancer",{"$f":"F4","v":"Cancer"},"Noncancer","Cancer","Noncancer",null,null,null,null,"AGE: 0-<2","AGE: 2-<6","AGE: 6-<16","AGE: 16-70","AGE: 0-<2","AGE: 2-<6","AGE: 6-<16","AGE: 16-70","AGE: 0-<2","AGE: 2-<6","AGE: 6-<16","AGE: 16-70","AGE: 0-<2","AGE: 2-<6","AGE: 6-<16","AGE: 16-70","AGE: 0-<2","AGE: 2-<6","AGE: 6-<16","AGE: 16-70"]
["CR / HQ","Cancer (CR) / Hazard Quotient (HQ)","unitless",null,null,9.9999999999999995E-7,1,9.9999999999999995E-7,1,9.9999999999999995E-7,1,null,"CR / HQ","Cancer (CR) / Hazard Quotient (HQ)","unitless",null,null,null,null,9.9999999999999995E-7,9.9999999999999995E-7,9.9999999999999995E-7,9.9999999999999995E-7,9.9999999999999995E-7,9.9999999999999995E-7,9.9999999999999995E-7,9.9999999999999995E-7,9.9999999999999995E-7,9.9999999999999995E-7,9.9999999999999995E-7,9.9999999999999995E-7,9.9999999999999995E-7,9.9999999999999995E-7,9.9999999999999995E-7,9.9999999999999995E-7]
["BW","Body Weight","kg",null,null,80,80,80,80,80,80,null,"BW","Body Weight","kg",null,null,null,null,16,16,80,80,16,16,80,80,16,16,80,80,10,17,41,79]
["AT","Averaging Time","days",null,null,{"$f":"70*365","v":25550},25550,{"$f":"70*365","v":25550},25550,{"$f":"70*365","v":25550},25550,null,"AT","Averaging Time","days",null,null,null,null,{"$f":"70*365","v":25550},{"$f":"70*365","v":25550},25550,25550,25550,25550,25550,25550,25550,25550,25550,25550,25550,25550,25550,25550]
["UCF","Unit Conversion Factor","g/kg",null,null,1000,1000,1000,1000,1000,1000,null,"UCF","Unit Conversion Factor","g/kg",null,null,null,null,1000,1000,1000,1000,1000,1000,1000,1000,1000,1000,1000,1000,1000,1000,1000,1000]
["FCR","Fish/Shellfish Consumption Rate","g/day",null,null,489,489,193,193,130,130,null,"FCR","Fish/Shellfish Consumption Rate","g/day",null,null,null,null,{"$f":"$F9*0.4","v":195.60000000000002},{"$f":"$F9*0.4","v":195.60000000000002},{"$f":"$F9","v":489},{"$f":"$F9","v":489},{"$f":"$H9*0.4","v":77.2},{"$f":"$H9*0.4","v":77.2},{"$f":"$H9","v":193},{"$f":"$H9","v":193},{"$f":"$J9*0.4","v":52},{"$f":"$J9*0.4","v":52},{"$f":"$J9","v":130},{"$f":"$J9","v":130},38,68,95,157]
["FDF","Fish/Shellfish Diet Fraction","unitless",null,null,1,1,1,1,1,1,null,"FDF","Fish/Shellfish Diet Fraction","unitless",null,null,null,null,1,1,1,1,1,1,1,1,1,1,1,1,1,1,1,1]
["SUF","Site Use Factor","unitless",null,null,1,1,1,1,1,1,null,"SUF","Site Use Factor","unitless",null,null,null,null,1,1,1,1,1,1,1,1,1,1,1,1,1,1,1,1]
["EF","Exposure Frequency","day/yr",null,null,365,365,365,365,365,365,null,"EF","Exposure Frequency","day/yr",null,null,null,null,365,365,365,365,365,365,365,365,365,365,365,365,365,365,365,365]
["ED","Exposure Duration","yr",null,null,70,70,70,70,70,70]
["% lipid"," % lipid in food items","%",null,null,null,null,null,null,null,null,null,"ED","Exposure Duration","yr",2,4,10,54]
["% TOC","% TOC in sediment","%",null,null,null,null,null,null,null,null,null,"ADAF","Age-Dependent Adjustment Factor","unitless",10,3,3,1]
[]
[]
[null,null,null,null,null,null,null,null,null,null,null,null,null,null,null,null,null,null,null,null,null,null,null,null,null,null,null,null,null,null,null,null,null,null,null,null,"Default Values"]
[null,null,null,null,null,null,null,null,null,null,null,null,"Table 2b: Early Life Stage Human Incidental Ingestion of Sediment and Dermal Contact with Sediment for Mutagens (e.g., cPAHs)",null,null,null,null,null,null,null,null,null,null,null,null,null,null,null,null,null,null,null,null,null,null,null,null,null,null,null,null,null,null,null,null,null,null,null,"Table 2b: Early Life Stage Human Incidental Ingestion of Sediment and Dermal Contact with Sediment for Mutagens (e.g., cPAHs)"]
["Table 2a: Human Incidental Ingestion of Sediment and Dermal Contact with Sediment",null,null,null,null,null,null,null,null,null,null,null,"Enter site-specific values where applicable and in coordination with the Ecology site manager.",null,null,null,null,null,null,null,null,null,null,null,null,null,null,null,null,null,null,null,null,null,null,null,"Table 2a: Human Incidental Ingestion of Sediment and Dermal Contact with Sediment",null,null,null,null,null,null,null,null,null,null,null,"Enter site-specific values where applicable and in coordination with the Ecology site manager."]
["Enter site-specific values where applicable and in coordination with the Ecology site manager.",null,null,null,null,null,null,null,null,null,null,null,null,null,null,"Selected ELS RME Values for mutagens, direct ingestion/dermal contact, currently only for cPAHs",null,null,null,null,null,null,null,null,null,null,null,null,null,null,null,null,null,null,null,null,"Enter site-specific values where applicable and in coordination with the Ecology site manager.",null,null,null,null,null,null,null,null,null,null,null,null,null,null,"Selected ELS RME Values for mutagens, direct ingestion/dermal contact, currently only for cPAHs"]
[null,null,null,"Beach Play Child",null,"Subs. Clam Digging Adult",null,"Subs. Net Fishing Adult",null,null,null,null,null,null,null,"Child Beach Play",null,"Adult Clamming",null,"Adult Net Fishing",null,null,null,null,null,null,null,null,null,null,null,null,null,null,null,null,null,null,null,"Beach Play Child",null,"Subs. Clam Digging Adult",null,"Subs. Net Fishing Adult",null,null,null,null,null,null,null,"Child Beach Play",null,"Adult Clamming",null,"Adult Net Fishing"]
["Abbrev","Exposure Parameter","Units","Cancer","Noncancer",{"$f":"D23","v":"Cancer"},{"$f":"E23","v":"Noncancer"},{"$f":"F23","v":"Cancer"},{"$f":"G23","v":"Noncancer"},null,null,null,"Abbrev","Exposure Parameter","Units","AGE: 0-<2","AGE: 2-<6","AGE: 6-<16","AGE: 16-70","AGE: 6-<16","AGE: 16-70",null,null,null,null,null,null,null,null,null,null,null,null,null,null,null,"Abbrev","Exposure Parameter","Units","Cancer","Noncancer",{"$f":"AN23","v":"Cancer"},{"$f":"AO23","v":"Noncancer"},{"$f":"AP23","v":"Cancer"},{"$f":"AQ23","v":"Noncancer"},null,null,null,"Abbrev","Exposure Parameter","Units","AGE: 0-<2","AGE: 2-<6","AGE: 6-<16","AGE: 16-70","AGE: 6-<16","AGE: 16-70"]
["CR / HQ","Cancer (CR) / Hazard Quotient (HQ)","unitless",9.9999999999999995E-7,1,9.9999999999999995E-7,1,9.9999999999999995E-7,1,null,null,null,"CR / HQ","Cancer (CR) / Hazard Quotient (HQ)","unitless",9.9999999999999995E-7,9.9999999999999995E-7,9.9999999999999995E-7,9.9999999999999995E-7,9.9999999999999995E-7,9.9999999999999995E-7,null,null,null,null,null,null,null,null,null,null,null,null,null,null,null,"CR / HQ","Cancer (CR) / Hazard Quotient (HQ)","unitless",9.9999999999999995E-7,1,9.9999999999999995E-7,1,9.9999999999999995E-7,1,null,null,null,"CR / HQ","Cancer (CR) / Hazard Quotient (HQ)","unitless",9.9999999999999995E-7,9.9999999999999995E-7,9.9999999999999995E-7,9.9999999999999995E-7,9.9999999999999995E-7,9.9999999999999995E-7]
["BW","Body Weight","kg",15,15,75,75,75,75,null,null,null,"BW","Body Weight","kg",10,17,44,81,44,81,null,null,null,null,null,null,null,null,null,null,null,null,null,null,null,"BW","Body Weight","kg",15,15,75,75,75,75,null,null,null,"BW","Body Weight","kg",10,17,44,81,44,81]
["AT","Averaging Time","days",25550,2190,25550,25550,25550,25550,null,null,null,"AT","Averaging Time","days",25550,25550,25550,25550,25550,25550,null,null,null,null,null,null,null,null,null,null,null,null,null,null,null,"AT","Averaging Time","days",25550,2190,25550,25550,25550,25550,null,null,null,"AT","Averaging Time","days",25550,25550,25550,25550,25550,25550]
["UCF","Unit Conversion Factor","mg/kg",1000000,1000000,1000000,1000000,1000000,1000000,null,null,null,"UCF","Unit Conversion Factor","mg/kg",1000000,1000000,1000000,1000000,1000000,1000000,null,null,null,null,null,null,null,null,null,null,null,null,null,null,null,"UCF","Unit Conversion Factor","mg/kg",1000000,1000000,1000000,1000000,1000000,1000000,null,null,null,"UCF","Unit Conversion Factor","mg/kg",1000000,1000000,1000000,1000000,1000000,1000000]
["EF","Exposure Frequency","day/yr",41,41,120,120,119,119,null,null,null,"EF","Exposure Frequency","day/yr",41,41,120,120,119,119,null,null,null,null,null,null,null,null,null,null,null,null,null,null,null,"EF","Exposure Frequency","day/yr",41,41,120,120,119,119,null,null,null,"EF","Exposure Frequency","day/yr",41,41,120,120,119,119]
["ED","Exposure Duration","yr",6,6,70,70,70,70,null,null,null,"ED","Exposure Duration","yr",2,4,10,54,10,54,null,null,null,null,null,null,null,null,null,null,null,null,null,null,null,"ED","Exposure Duration","yr",6,6,70,70,70,70,null,null,null,"ED","Exposure Duration","yr",2,4,10,54,10,54]
["IR","Ingestion Rate","mg/day",200,200,100,100,50,50,null,null,null,"IR","Ingestion Rate","mg/day",200,200,100,100,50,50,null,null,null,null,null,null,null,null,null,null,null,null,null,null,null,"IR","Ingestion Rate","mg/day",200,200,100,100,50,50,null,null,null,"IR","Ingestion Rate","mg/day",200,200,100,100,50,50]
["SA","Dermal Surface Area","cm2",3835,3835,11813,11813,5590,5590,null,null,null,"SA","Dermal Surface Area","cm2",2989,4258,8060,12508,3749,5931,null,null,null,null,null,null,null,null,null,null,null,null,null,null,null,"SA","Dermal Surface Area","cm2",3835,3835,11813,11813,5590,5590,null,null,null,"SA","Dermal Surface Area","cm2",2989,4258,8060,12508,3749,5931]
["AF","Sediment to Skin Adherence Factor","mg/cm2-day",2.6,2.6,0.24,0.24,0.19,0.19,null,null,null,"AF","Sediment to Skin Adherence Factor","mg/cm2-day",2.6,2.6,0.24,0.24,0.19,0.19,null,null,null,null,null,null,null,null,null,null,null,null,null,null,null,"AF","Sediment to Skin Adherence Factor","mg/cm2-day",2.6,2.6,0.24,0.24,0.19,0.19,null,null,null,"AF","Sediment to Skin Adherence Factor","mg/cm2-day",2.6,2.6,0.24,0.24,0.19,0.19]
[null,null,null,null,null,null,null,null,null,null,null,null,"ADAF","Age-Dependent Adjustment Factor","unitless",10,3,3,1,3,1,null,null,null,null,null,null,null,null,null,null,null,null,null,null,null,null,null,null,null,null,null,null,null,null,null,null,null,"ADAF","Age-Dependent Adjustment Factor","unitless",10,3,3,1,3,1]
[]
["Table 3: Upper Trophic Level Consumption of Fish/Shellfish"]
[null,null,"Cells colored grey, green, blue, and pink are for entering information"]
[null,null,null,"Space for entering CoC and indicator species. Note that space is provided 8 CoCs and 6 indicator species."]
[null,null,null,"Use this column if you have a TRV for the Indicator Species entered in column C, and leave the blue columns (columns E to I) blank."]
[null,null,null,"Use these columns if you need to calculate a body-weight adjusted TRV for the Indicator species based on another test species, and leave the green Column D blank."]
[null,null,null,"Use these columns for calculating eggshell thinning in birds."]
[null,null,null,"Direct Consumption of Fish/Shellfish",null,null,null,null,null,"Eggshell Thinning"]
[null,null,"Indicator Species","TRVis","TRVtest","FIRis","FIRtest","BWis","BWtest","TRVegg","BMFegg",null,"TRVis","Toxicity reference value for the indicator species"]
[null,"Contaminant of Concern (CoC)",null,"mg/kg","mg/kg","kg/day","kg/day","kg","kg","mg/kg","unitless",null,"TRVtest","Toxicity reference value for a test species"]
[1,null,null,null,null,null,null,null,null,null,null,null,"FIRis","Food ingestion rate for the indicator species"]
[null,{"$f":"IF(ISBLANK($B$44),\" \",$B$44)","v":" "},null,null,null,null,null,null,null,null,null,null,"FIRtest","Food ingestion rate for the test species"]
[null,{"$f":"IF(ISBLANK($B$44),\" \",$B$44)","v":" "},null,null,null,null,null,null,null,null,null,null,"BWis","Body weight of the indicator species"]
[null," ",null,null,null,null,null,null,null,null,null,null,"BWtest","Body weight of the text species"]
[null," ",null,null,null,null,null,null,null,null,null,null,"TRVegg","Toxicity reference value for eggshells"]
[null," ",null,null,null,null,null,null,null,null,null,null,"BMFegg","Biomagnification factor from prey to egg"]
[2,null,{"$f":"IF(ISBLANK(B50),\" \",IF(ISBLANK($C$44),\" \",$C$44))","v":" "},null,null,{"$f":"IF(ISBLANK($B50),\" \",IF(ISBLANK(F$44),\" \",F$44))","v":" "},{"$f":"IF(ISBLANK($B50),\" \",IF(ISBLANK(G$44),\" \",G$44))","v":" "}," "," "]
[null,{"$f":"IF(ISBLANK($B$50),\" \",$B$50)","v":" "},{"$f":"IF(B51=\" \",\" \",IF(ISBLANK($C$45),\" \",$C$45))","v":" "},null,null,{"$f":"IF(ISBLANK($B51),\" \",IF(ISBLANK(F$45),\" \",F$45))","v":" "},{"$f":"IF(ISBLANK($B51),\" \",IF(ISBLANK(G$45),\" \",G$45))","v":" "}," "," "]
[null,{"$f":"IF(ISBLANK($B$50),\" \",$B$50)","v":" "},{"$f":"IF(B52=\" \",\" \",IF(ISBLANK($C$46),\" \",$C$46))","v":" "},null,null,{"$f":"IF(ISBLANK($B52),\" \",IF(ISBLANK(F$46),\" \",F$46))","v":" "},{"$f":"IF(ISBLANK($B52),\" \",IF(ISBLANK(G$46),\" \",G$46))","v":" "}," "," "]
[null," ",{"$f":"IF(B53=\" \",\" \",IF(ISBLANK($C$47),\" \",$C$47))","v":" "},null,null,{"$f":"IF(ISBLANK($B53),\" \",IF(ISBLANK(F$47),\" \",F$47))","v":" "},{"$f":"IF(ISBLANK($B53),\" \",IF(ISBLANK(G$47),\" \",G$47))","v":" "}," "," "]
[null," ",{"$f":"IF(B54=\" \",\" \",IF(ISBLANK($C$48),\" \",$C$48))","v":" "},null,null,{"$f":"IF(ISBLANK($B54),\" \",IF(ISBLANK(F$48),\" \",F$48))","v":" "},{"$f":"IF(ISBLANK($B54),\" \",IF(ISBLANK(G$48),\" \",G$48))","v":" "}," "," "]
[null," ",{"$f":"IF(B55=\" \",\" \",IF(ISBLANK($C$49),\" \",$C$49))","v":" "},null,null,{"$f":"IF(ISBLANK($B55),\" \",IF(ISBLANK(F$49),\" \",F$49))","v":" "},{"$f":"IF(ISBLANK($B55),\" \",IF(ISBLANK(G$49),\" \",G$49))","v":" "}," "," "]
[3,null,{"$f":"IF(ISBLANK(B56),\" \",IF(ISBLANK($C$44),\" \",$C$44))","v":" "},null,null,{"$f":"IF(ISBLANK($B56),\" \",IF(ISBLANK(F$44),\" \",F$44))","v":" "},{"$f":"IF(ISBLANK($B56),\" \",IF(ISBLANK(G$44),\" \",G$44))","v":" "}," "," "]
[null,{"$f":"IF(ISBLANK($B$56),\" \",$B$56)","v":" "},{"$f":"IF(B57=\" \",\" \",IF(ISBLANK($C$45),\" \",$C$45))","v":" "},null,null,{"$f":"IF(ISBLANK($B57),\" \",IF(ISBLANK(F$45),\" \",F$45))","v":" "},{"$f":"IF(ISBLANK($B57),\" \",IF(ISBLANK(G$45),\" \",G$45))","v":" "}," "," "]
[null,{"$f":"IF(ISBLANK($B$56),\" \",$B$56)","v":" "},{"$f":"IF(B58=\" \",\" \",IF(ISBLANK($C$46),\" \",$C$46))","v":" "},null,null,{"$f":"IF(ISBLANK($B58),\" \",IF(ISBLANK(F$46),\" \",F$46))","v":" "},{"$f":"IF(ISBLANK($B58),\" \",IF(ISBLANK(G$46),\" \",G$46))","v":" "}," "," "]
[null," ",{"$f":"IF(B59=\" \",\" \",IF(ISBLANK($C$47),\" \",$C$47))","v":" "},null,null,{"$f":"IF(ISBLANK($B59),\" \",IF(ISBLANK(F$47),\" \",F$47))","v":" "},{"$f":"IF(ISBLANK($B59),\" \",IF(ISBLANK(G$47),\" \",G$47))","v":" "}," "," "]
[null," ",{"$f":"IF(B60=\" \",\" \",IF(ISBLANK($C$48),\" \",$C$48))","v":" "},null,null,{"$f":"IF(ISBLANK($B60),\" \",IF(ISBLANK(F$48),\" \",F$48))","v":" "},{"$f":"IF(ISBLANK($B60),\" \",IF(ISBLANK(G$48),\" \",G$48))","v":" "}," "," "]
[null," ",{"$f":"IF(B61=\" \",\" \",IF(ISBLANK($C$49),\" \",$C$49))","v":" "},null,null,{"$f":"IF(ISBLANK($B61),\" \",IF(ISBLANK(F$49),\" \",F$49))","v":" "},{"$f":"IF(ISBLANK($B61),\" \",IF(ISBLANK(G$49),\" \",G$49))","v":" "}," "," "]
[4,null," ",null,null,{"$f":"IF(ISBLANK($B62),\" \",IF(ISBLANK(F$44),\" \",F$44))","v":" "}," "," "," "]
[null,{"$f":"IF(ISBLANK($B$62),\" \",$B$62)","v":" "},{"$f":"IF(B63=\" \",\" \",IF(ISBLANK($C$45),\" \",$C$45))","v":" "},null,null,{"$f":"IF(ISBLANK($B63),\" \",IF(ISBLANK(F$45),\" \",F$45))","v":" "}," "," "," "]
[null,{"$f":"IF(ISBLANK($B$62),\" \",$B$62)","v":" "},{"$f":"IF(B64=\" \",\" \",IF(ISBLANK($C$46),\" \",$C$46))","v":" "},null,null,{"$f":"IF(ISBLANK($B64),\" \",IF(ISBLANK(F$46),\" \",F$46))","v":" "}," "," "," "]
[null," ",{"$f":"IF(B65=\" \",\" \",IF(ISBLANK($C$47),\" \",$C$47))","v":" "},null,null,{"$f":"IF(ISBLANK($B65),\" \",IF(ISBLANK(F$47),\" \",F$47))","v":" "}," "," "," "]
[null," ",{"$f":"IF(B66=\" \",\" \",IF(ISBLANK($C$48),\" \",$C$48))","v":" "},null,null,{"$f":"IF(ISBLANK($B66),\" \",IF(ISBLANK(F$48),\" \",F$48))","v":" "}," "," "," "]
[null," ",{"$f":"IF(B67=\" \",\" \",IF(ISBLANK($C$49),\" \",$C$49))","v":" "},null,null,{"$f":"IF(ISBLANK($B67),\" \",IF(ISBLANK(F$49),\" \",F$49))","v":" "}," "," "," "]
[5,null," ",null,null,{"$f":"IF(ISBLANK($B68),\" \",IF(ISBLANK(F$44),\" \",F$44))","v":" "}," "," "," "]
[null,{"$f":"IF(ISBLANK($B$68),\" \",$B$68)","v":" "},{"$f":"IF(B69=\" \",\" \",IF(ISBLANK($C$45),\" \",$C$45))","v":" "},null,null,{"$f":"IF(ISBLANK($B69),\" \",IF(ISBLANK(F$45),\" \",F$45))","v":" "}," "," "," "]
[null,{"$f":"IF(ISBLANK($B$68),\" \",$B$68)","v":" "},{"$f":"IF(B70=\" \",\" \",IF(ISBLANK($C$46),\" \",$C$46))","v":" "},null,null,{"$f":"IF(ISBLANK($B70),\" \",IF(ISBLANK(F$46),\" \",F$46))","v":" "}," "," "," "]
[null," ",{"$f":"IF(B71=\" \",\" \",IF(ISBLANK($C$47),\" \",$C$47))","v":" "},null,null,{"$f":"IF(ISBLANK($B71),\" \",IF(ISBLANK(F$47),\" \",F$47))","v":" "}," "," "," "]
[null," ",{"$f":"IF(B72=\" \",\" \",IF(ISBLANK($C$48),\" \",$C$48))","v":" "},null,null,{"$f":"IF(ISBLANK($B72),\" \",IF(ISBLANK(F$48),\" \",F$48))","v":" "}," "," "," "]
[null," ",{"$f":"IF(B73=\" \",\" \",IF(ISBLANK($C$49),\" \",$C$49))","v":" "},null,null,{"$f":"IF(ISBLANK($B73),\" \",IF(ISBLANK(F$49),\" \",F$49))","v":" "}," "," "," "]
[6,null," ",null,null,{"$f":"IF(ISBLANK($B74),\" \",IF(ISBLANK(F$44),\" \",F$44))","v":" "}," "," "," "]
[null,{"$f":"IF(ISBLANK($B$74),\" \",$B$74)","v":" "},{"$f":"IF(B75=\" \",\" \",IF(ISBLANK($C$45),\" \",$C$45))","v":" "},null,null,{"$f":"IF(ISBLANK($B75),\" \",IF(ISBLANK(F$45),\" \",F$45))","v":" "}," "," "," "]
[null,{"$f":"IF(ISBLANK($B$74),\" \",$B$74)","v":" "},{"$f":"IF(B76=\" \",\" \",IF(ISBLANK($C$46),\" \",$C$46))","v":" "},null,null,{"$f":"IF(ISBLANK($B76),\" \",IF(ISBLANK(F$46),\" \",F$46))","v":" "}," "," "," "]
[null," ",{"$f":"IF(B77=\" \",\" \",IF(ISBLANK($C$47),\" \",$C$47))","v":" "},null,null,{"$f":"IF(ISBLANK($B77),\" \",IF(ISBLANK(F$47),\" \",F$47))","v":" "}," "," "," "]
[null," ",{"$f":"IF(B78=\" \",\" \",IF(ISBLANK($C$48),\" \",$C$48))","v":" "},null,null,{"$f":"IF(ISBLANK($B78),\" \",IF(ISBLANK(F$48),\" \",F$48))","v":" "}," "," "," "]
[null," ",{"$f":"IF(B79=\" \",\" \",IF(ISBLANK($C$49),\" \",$C$49))","v":" "},null,null,{"$f":"IF(ISBLANK($B79),\" \",IF(ISBLANK(F$49),\" \",F$49))","v":" "}," "," "," "]
[7,null," ",null,null,{"$f":"IF(ISBLANK($B80),\" \",IF(ISBLANK(F$44),\" \",F$44))","v":" "}," "," "," "]
[null,{"$f":"IF(ISBLANK($B$80),\" \",$B$80)","v":" "},{"$f":"IF(B81=\" \",\" \",IF(ISBLANK($C$45),\" \",$C$45))","v":" "},null,null,{"$f":"IF(ISBLANK($B81),\" \",IF(ISBLANK(F$45),\" \",F$45))","v":" "}," "," "," "]
[null,{"$f":"IF(ISBLANK($B$80),\" \",$B$80)","v":" "},{"$f":"IF(B82=\" \",\" \",IF(ISBLANK($C$46),\" \",$C$46))","v":" "},null,null,{"$f":"IF(ISBLANK($B82),\" \",IF(ISBLANK(F$46),\" \",F$46))","v":" "}," "," "," "]
[null," ",{"$f":"IF(B83=\" \",\" \",IF(ISBLANK($C$47),\" \",$C$47))","v":" "},null,null,{"$f":"IF(ISBLANK($B83),\" \",IF(ISBLANK(F$47),\" \",F$47))","v":" "}," "," "," "]
[null," ",{"$f":"IF(B84=\" \",\" \",IF(ISBLANK($C$48),\" \",$C$48))","v":" "},null,null,{"$f":"IF(ISBLANK($B84),\" \",IF(ISBLANK(F$48),\" \",F$48))","v":" "}," "," "," "]
[null," ",{"$f":"IF(B85=\" \",\" \",IF(ISBLANK($C$49),\" \",$C$49))","v":" "},null,null,{"$f":"IF(ISBLANK($B85),\" \",IF(ISBLANK(F$49),\" \",F$49))","v":" "}," "," "," "]
[8,null," ",null,null,{"$f":"IF(ISBLANK($B86),\" \",IF(ISBLANK(F$44),\" \",F$44))","v":" "}," "," "," "]
[null,{"$f":"IF(ISBLANK($B$86),\" \",$B$86)","v":" "},{"$f":"IF(B87=\" \",\" \",IF(ISBLANK($C$45),\" \",$C$45))","v":" "},null,null,{"$f":"IF(ISBLANK($B87),\" \",IF(ISBLANK(F$45),\" \",F$45))","v":" "}," "," "," "]
[null,{"$f":"IF(ISBLANK($B$86),\" \",$B$86)","v":" "},{"$f":"IF(B88=\" \",\" \",IF(ISBLANK($C$46),\" \",$C$46))","v":" "},null,null,{"$f":"IF(ISBLANK($B88),\" \",IF(ISBLANK(F$46),\" \",F$46))","v":" "}," "," "," "]
[null," ",{"$f":"IF(B89=\" \",\" \",IF(ISBLANK($C$47),\" \",$C$47))","v":" "},null,null,{"$f":"IF(ISBLANK($B89),\" \",IF(ISBLANK(F$47),\" \",F$47))","v":" "}," "," "," "]
[null," ",{"$f":"IF(B90=\" \",\" \",IF(ISBLANK($C$48),\" \",$C$48))","v":" "},null,null,{"$f":"IF(ISBLANK($B90),\" \",IF(ISBLANK(F$48),\" \",F$48))","v":" "}," "," "," "]
[null," ",{"$f":"IF(B91=\" \",\" \",IF(ISBLANK($C$49),\" \",$C$49))","v":" "},null,null,{"$f":"IF(ISBLANK($B91),\" \",IF(ISBLANK(F$49),\" \",F$49))","v":" "}," "," "," "]

{"sheet":"Consumption_HH_Tissue","index":5,"n_rows":66,"n_cols":16,"rows_kept":66,"cut":false,"hidden":false,"merged":[[31,2,31,3],[30,1,30,5],[31,1,32,1],[1,7,1,10]]}
["Data from Step 3 page",null,null,null,"hide row",null,null,null,"hide column","hide column","hide column","hide column","hide column","hide column"]
[null,null,null,null,"hide row",null,null,"Early Life stages (cPAH cancer only)"]
["Parameter Name","Units","Cancer","Noncancer","hide row","Parameter Name","Units","AGE: 0-<2","AGE: 2-<6","AGE: 6-<16","AGE: 16-70"]
["Cancer (CR) / Hazard Quotient (HQ)","unitless",{"$f":"'Step 3 Exposure Parameters'!D5","v":0},{"$f":"'Step 3 Exposure Parameters'!E5","v":0},"hide row","Cancer (CR) / Hazard Quotient (HQ)","unitless",{"$f":"'Step 3 Exposure Parameters'!P5","v":0},{"$f":"'Step 3 Exposure Parameters'!Q5","v":0},{"$f":"'Step 3 Exposure Parameters'!R5","v":0},{"$f":"'Step 3 Exposure Parameters'!S5","v":0}]
["Body Weight","kg",{"$f":"'Step 3 Exposure Parameters'!D6","v":0},{"$f":"'Step 3 Exposure Parameters'!E6","v":0},"hide row","Body Weight","kg",{"$f":"'Step 3 Exposure Parameters'!P6","v":0},{"$f":"'Step 3 Exposure Parameters'!Q6","v":0},{"$f":"'Step 3 Exposure Parameters'!R6","v":0},{"$f":"'Step 3 Exposure Parameters'!S6","v":0}]
["Averaging Time","days",{"$f":"'Step 3 Exposure Parameters'!D7","v":0},{"$f":"'Step 3 Exposure Parameters'!E7","v":0},"hide row","Averaging Time","days",{"$f":"'Step 3 Exposure Parameters'!P7","v":0},{"$f":"'Step 3 Exposure Parameters'!Q7","v":0},{"$f":"'Step 3 Exposure Parameters'!R7","v":0},{"$f":"'Step 3 Exposure Parameters'!S7","v":0}]
["Unit Conversion Factor","g/kg",{"$f":"'Step 3 Exposure Parameters'!D8","v":0},{"$f":"'Step 3 Exposure Parameters'!E8","v":0},"hide row","Unit Conversion Factor","g/kg",{"$f":"'Step 3 Exposure Parameters'!P8","v":0},{"$f":"'Step 3 Exposure Parameters'!Q8","v":0},{"$f":"'Step 3 Exposure Parameters'!R8","v":0},{"$f":"'Step 3 Exposure Parameters'!S8","v":0}]
["Fish Consumption Rate","grams/day",{"$f":"'Step 3 Exposure Parameters'!D9","v":0},{"$f":"'Step 3 Exposure Parameters'!E9","v":0},"hide row","Fish Consumption Rate","grams/day",{"$f":"'Step 3 Exposure Parameters'!P9","v":0},{"$f":"'Step 3 Exposure Parameters'!Q9","v":0},{"$f":"'Step 3 Exposure Parameters'!R9","v":0},{"$f":"'Step 3 Exposure Parameters'!S9","v":0}]
["Fish Diet Fraction","proportion",{"$f":"'Step 3 Exposure Parameters'!D10","v":0},{"$f":"'Step 3 Exposure Parameters'!E10","v":0},"hide row","Fish Diet Fraction","proportion",{"$f":"'Step 3 Exposure Parameters'!P10","v":0},{"$f":"'Step 3 Exposure Parameters'!Q10","v":0},{"$f":"'Step 3 Exposure Parameters'!R10","v":0},{"$f":"'Step 3 Exposure Parameters'!S10","v":0}]
["Site Use Factor","proportion",{"$f":"'Step 3 Exposure Parameters'!D11","v":0},{"$f":"'Step 3 Exposure Parameters'!E11","v":0},"hide row","Site Use Factor","proportion",{"$f":"'Step 3 Exposure Parameters'!P11","v":0},{"$f":"'Step 3 Exposure Parameters'!Q11","v":0},{"$f":"'Step 3 Exposure Parameters'!R11","v":0},{"$f":"'Step 3 Exposure Parameters'!S11","v":0}]
["Exposure Frequency","days/year",{"$f":"'Step 3 Exposure Parameters'!D12","v":0},{"$f":"'Step 3 Exposure Parameters'!E12","v":0},"hide row","Exposure Frequency","days/year",{"$f":"'Step 3 Exposure Parameters'!P12","v":0},{"$f":"'Step 3 Exposure Parameters'!Q12","v":0},{"$f":"'Step 3 Exposure Parameters'!R12","v":0},{"$f":"'Step 3 Exposure Parameters'!S12","v":0}]
["Exposure Duration","years",{"$f":"'Step 3 Exposure Parameters'!D13","v":0},{"$f":"'Step 3 Exposure Parameters'!E13","v":0},"hide row","Exposure Duration","years",{"$f":"'Step 3 Exposure Parameters'!P14","v":2},{"$f":"'Step 3 Exposure Parameters'!Q14","v":4},{"$f":"'Step 3 Exposure Parameters'!R14","v":10},{"$f":"'Step 3 Exposure Parameters'!S14","v":54}]
[null,null,null,null,"hide row","Age-Dependent Adjustment Factor","unitless [cPAHs only]",{"$f":"'Step 3 Exposure Parameters'!P15","v":10},{"$f":"'Step 3 Exposure Parameters'!Q15","v":3},{"$f":"'Step 3 Exposure Parameters'!R15","v":3},{"$f":"'Step 3 Exposure Parameters'!S15","v":1}]
[null,null,null,null,"hide row"]
[null,null,null,null,"hide row",null,"ESL FCRF",{"$f":"IF(ISERROR((H11*H12*H8*H13)/H5),\"\",(H11*H12*H8*H13)/H5)","v":""},{"$f":"IF(ISERROR((I11*I12*I8*I13)/I5),\"\",(I11*I12*I8*I13)/I5)","v":""},{"$f":"IF(ISERROR((J11*J12*J8*J13)/J5),\"\",(J11*J12*J8*J13)/J5)","v":""},{"$f":"IF(ISERROR((K11*K12*K8*K13)/K5),\"\",(K11*K12*K8*K13)/K5)","v":""}]
[null,null,null,null,"hide row"]
[null,null,null,null,"hide row"]
[null,"SCUM Equation 9-6:  Human Health Tissue Risk-Based Levels Based on Consumption of Fish/Shellfish (Cancer):  ",null,null,null,null,null,null,"hide","hide","hide","hide","hide","hide"]
[]
[]
[]
[]
[null,"SCUM Equation 9-8:  Human Health Tissue Risk-Based Levels Based on Consumption of Fish/Shellfish (Noncancer):"]
[]
[]
[]
[]
[null,"See SCUM Chapter 9 (Equation 9-7) for Early Life Stage (ELS) calculation formulas. Applicable for mutagens (e.g., cPAHS)."]
[]
[]
[null,"Human Health Risk Based Concentrations (RBCs) Based on Fish/Shellfish Consumption (mg/kg)"]
[null,"Contaminant of Concern","Tribal Adult",null,"ELS",null,null,null,"Data from Step 1 Worksheet",null,"CPFo","RfDo",null,"ESL calculation"]
["CAS Number",null,"Cancer","Noncancer","cancer (for mutagens)","Tissue Risk-Based Level","Mutagen (M)",null,"CAS Number","Contaminant of Concern","kg-day/mg","mg/kg-day"]
[{"$f":"I34","v":"7440-38-2"},{"$f":"J34","v":"arsenic, inorganic"},{"$f":"IF(ISERROR(IF($K34=\"--\",\"--\",($C$4*$C$5*$C$6*$C$7)/($K34*$C$8*$C$9*$C$11*$C$12))),\"--\",IF($K34=\"--\",\"--\",($C$4*$C$5*$C$6*$C$7)/($K34*$C$8*$C$9*$C$11*$C$12)))","v":"--"},{"$f":"IF(ISERROR(IF($L34=\"--\",\"--\",($D$4*$D$5*$D$6*$D$7*$L34)/($D$8*$D$9*$D$11*$D$12))),\"--\",IF($L34=\"--\",\"--\",($D$4*$D$5*$D$6*$D$7*$L34)/($D$8*$D$9*$D$11*$D$12)))","v":"--"},{"$f":"IF($N34=\"--\",\"--\",$N34)","v":"--"},{"$f":"IF(MIN(C34:E34)>0,MIN(C34:E34),\"--\")","v":"--"},{"$f":"IF(A34=\"--\",\"--\",IF(VLOOKUP(A34,chemical,8,FALSE)=\"\",\"--\",VLOOKUP(A34,chemical,8,FALSE)))","v":"--"},null,{"$f":"'Step 2 Chemical_Parameters'!A12","v":"7440-38-2"},{"$f":"'Step 2 Chemical_Parameters'!B12","v":"arsenic, inorganic"},{"$f":"IF('Step 1 Toxicity_Values'!D12=\"--\",\"--\",'Step 1 Toxicity_Values'!D12)","v":32},{"$f":"IF('Step 1 Toxicity_Values'!E12=\"--\",\"--\",'Step 1 Toxicity_Values'!E12)","v":6.0000000000000002E-5},null,{"$f":"IF(A34=\"--\",\"--\",IF(VLOOKUP(A34,chemical,8,FALSE)=\"M\",IF(ISERROR(($I$4*$I$7*$I$6)/(($H$15+$I$15+$J$15+$K$15)*K34)),\"--\",($I$4*$I$7*$I$6)/(($H$15+$I$15+$J$15+$K$15)*K34)),\"--\"))","v":"--"},"Abbrev","Definition"]
["7440-43-9","Cadmium",{"$f":"IF(ISERROR(IF($K35=\"--\",\"--\",($C$4*$C$5*$C$6*$C$7)/($K35*$C$8*$C$9*$C$11*$C$12))),\"--\",IF($K35=\"--\",\"--\",($C$4*$C$5*$C$6*$C$7)/($K35*$C$8*$C$9*$C$11*$C$12)))","v":"--"},{"$f":"IF(ISERROR(IF($L35=\"--\",\"--\",($D$4*$D$5*$D$6*$D$7*$L35)/($D$8*$D$9*$D$11*$D$12))),\"--\",IF($L35=\"--\",\"--\",($D$4*$D$5*$D$6*$D$7*$L35)/($D$8*$D$9*$D$11*$D$12)))","v":"--"},"--",{"$f":"IF(MIN(C35:E35)>0,MIN(C35:E35),\"--\")","v":"--"},"--",null,{"$f":"'Step 2 Chemical_Parameters'!A13","v":"7440-43-9"},{"$f":"'Step 2 Chemical_Parameters'!B13","v":"Cadmium"},{"$f":"IF('Step 1 Toxicity_Values'!D13=\"--\",\"--\",'Step 1 Toxicity_Values'!D13)","v":"--"},{"$f":"IF('Step 1 Toxicity_Values'!E13=\"--\",\"--\",'Step 1 Toxicity_Values'!E13)","v":1E-3},null,"--","2,3,7,8-TCDD","2,3,7,8-Tetrachlorodibenzo-p-dioxin "]
["50-32-8","BENZO[a]PYRENE","--","--",{"$f":"IF($N36=\"--\",\"--\",$N36)","v":"--"},"--","M",null,{"$f":"'Step 2 Chemical_Parameters'!A14","v":"50-32-8"},{"$f":"'Step 2 Chemical_Parameters'!B14","v":"BENZO[a]PYRENE"},{"$f":"IF('Step 1 Toxicity_Values'!D14=\"--\",\"--\",'Step 1 Toxicity_Values'!D14)","v":1},{"$f":"IF('Step 1 Toxicity_Values'!E14=\"--\",\"--\",'Step 1 Toxicity_Values'!E14)","v":2.9999999999999997E-4},null,"--","cPAHs","Carcinogenic PAHs"]
["1746-01-6","TCDD;2,3,7,8 (DIOXIN)","--","--",{"$f":"IF($N37=\"--\",\"--\",$N37)","v":"--"},"--","--",null,{"$f":"'Step 2 Chemical_Parameters'!A15","v":"1746-01-6"},{"$f":"'Step 2 Chemical_Parameters'!B15","v":"TCDD;2,3,7,8 (DIOXIN)"},{"$f":"IF('Step 1 Toxicity_Values'!D15=\"--\",\"--\",'Step 1 Toxicity_Values'!D15)","v":130000},{"$f":"IF('Step 1 Toxicity_Values'!E15=\"--\",\"--\",'Step 1 Toxicity_Values'!E15)","v":6.9999999999999996E-10},null,"--","ELS","Early Life Stage"]
["7439-92-1","LEAD","--","--","--","--","--",null,{"$f":"'Step 2 Chemical_Parameters'!A16","v":"7439-92-1"},{"$f":"'Step 2 Chemical_Parameters'!B16","v":"LEAD"},{"$f":"IF('Step 1 Toxicity_Values'!D16=\"--\",\"--\",'Step 1 Toxicity_Values'!D16)","v":"--"},{"$f":"IF('Step 1 Toxicity_Values'!E16=\"--\",\"--\",'Step 1 Toxicity_Values'!E16)","v":"--"},null,"--","M","Carcinogen with a mutagenic mode of action"]
["22967-92-6","METHYL MERCURY","--","--","--","--","--",null,{"$f":"'Step 2 Chemical_Parameters'!A17","v":"22967-92-6"},{"$f":"'Step 2 Chemical_Parameters'!B17","v":"METHYL MERCURY"},{"$f":"IF('Step 1 Toxicity_Values'!D17=\"--\",\"--\",'Step 1 Toxicity_Values'!D17)","v":"--"},{"$f":"IF('Step 1 Toxicity_Values'!E17=\"--\",\"--\",'Step 1 Toxicity_Values'!E17)","v":1E-4},null,"--","PCB","Polychlorinated Biphenyls"]
["1336-36-3a","Dioxin-like PCBs","--","--","--","--","--",null,{"$f":"'Step 2 Chemical_Parameters'!A18","v":"1336-36-3a"},{"$f":"'Step 2 Chemical_Parameters'!B18","v":"Dioxin-like PCBs"},{"$f":"IF('Step 1 Toxicity_Values'!D18=\"--\",\"--\",'Step 1 Toxicity_Values'!D18)","v":130000},{"$f":"IF('Step 1 Toxicity_Values'!E18=\"--\",\"--\",'Step 1 Toxicity_Values'!E18)","v":6.9999999999999996E-10},null,"--","RBC","Risk-Based Concentration"]
["56-35-9","tributyltin oxide","--","--","--","--","--",null,{"$f":"'Step 2 Chemical_Parameters'!A19","v":"56-35-9"},{"$f":"'Step 2 Chemical_Parameters'!B19","v":"tributyltin oxide"},{"$f":"IF('Step 1 Toxicity_Values'!D19=\"--\",\"--\",'Step 1 Toxicity_Values'!D19)","v":"--"},{"$f":"IF('Step 1 Toxicity_Values'!E19=\"--\",\"--\",'Step 1 Toxicity_Values'!E19)","v":2.9999999999999997E-4},null,"--","RBCcancer","Risk-based tissue concentration - cancer endpoint"]
["50-29-3","DDT","--","--","--","--","--",null,{"$f":"'Step 2 Chemical_Parameters'!A20","v":"50-29-3"},{"$f":"'Step 2 Chemical_Parameters'!B20","v":"DDT"},{"$f":"IF('Step 1 Toxicity_Values'!D20=\"--\",\"--\",'Step 1 Toxicity_Values'!D20)","v":0.34},{"$f":"IF('Step 1 Toxicity_Values'!E20=\"--\",\"--\",'Step 1 Toxicity_Values'!E20)","v":5.0000000000000001E-4},null,"--","RBCnoncancer","Risk-based tissue concentration - noncancer endpoint"]
["71-43-2","BENZENE","--","--","--","--","--",null,{"$f":"'Step 2 Chemical_Parameters'!A21","v":"71-43-2"},{"$f":"'Step 2 Chemical_Parameters'!B21","v":"BENZENE"},{"$f":"IF('Step 1 Toxicity_Values'!D21=\"--\",\"--\",'Step 1 Toxicity_Values'!D21)","v":5.5E-2},{"$f":"IF('Step 1 Toxicity_Values'!E21=\"--\",\"--\",'Step 1 Toxicity_Values'!E21)","v":4.0000000000000001E-3},null,"--"]
["--","--","--","--","--","--","--",null,{"$f":"'Step 2 Chemical_Parameters'!A22","v":"--"},{"$f":"'Step 2 Chemical_Parameters'!B22","v":"--"},{"$f":"IF('Step 1 Toxicity_Values'!D22=\"--\",\"--\",'Step 1 Toxicity_Values'!D22)","v":"--"},{"$f":"IF('Step 1 Toxicity_Values'!E22=\"--\",\"--\",'Step 1 Toxicity_Values'!E22)","v":"--"},null,"--"]
["--","--","--","--","--","--","--",null,{"$f":"'Step 2 Chemical_Parameters'!A23","v":"--"},{"$f":"'Step 2 Chemical_Parameters'!B23","v":"--"},{"$f":"IF('Step 1 Toxicity_Values'!D23=\"--\",\"--\",'Step 1 Toxicity_Values'!D23)","v":"--"},{"$f":"IF('Step 1 Toxicity_Values'!E23=\"--\",\"--\",'Step 1 Toxicity_Values'!E23)","v":"--"},null,"--"]
["--","--","--","--","--","--","--",null,{"$f":"'Step 2 Chemical_Parameters'!A24","v":"--"},{"$f":"'Step 2 Chemical_Parameters'!B24","v":"--"},{"$f":"IF('Step 1 Toxicity_Values'!D24=\"--\",\"--\",'Step 1 Toxicity_Values'!D24)","v":"--"},{"$f":"IF('Step 1 Toxicity_Values'!E24=\"--\",\"--\",'Step 1 Toxicity_Values'!E24)","v":"--"},null,"--"]
["--","--","--","--","--","--","--",null,{"$f":"'Step 2 Chemical_Parameters'!A25","v":"--"},{"$f":"'Step 2 Chemical_Parameters'!B25","v":"--"},{"$f":"IF('Step 1 Toxicity_Values'!D25=\"--\",\"--\",'Step 1 Toxicity_Values'!D25)","v":"--"},{"$f":"IF('Step 1 Toxicity_Values'!E25=\"--\",\"--\",'Step 1 Toxicity_Values'!E25)","v":"--"},null,"--"]
["--","--","--","--","--","--","--",null,{"$f":"'Step 2 Chemical_Parameters'!A26","v":"--"},{"$f":"'Step 2 Chemical_Parameters'!B26","v":"--"},{"$f":"IF('Step 1 Toxicity_Values'!D26=\"--\",\"--\",'Step 1 Toxicity_Values'!D26)","v":"--"},{"$f":"IF('Step 1 Toxicity_Values'!E26=\"--\",\"--\",'Step 1 Toxicity_Values'!E26)","v":"--"},null,"--"]
["--","--","--","--","--","--","--",null,{"$f":"'Step 2 Chemical_Parameters'!A27","v":"--"},{"$f":"'Step 2 Chemical_Parameters'!B27","v":"--"},{"$f":"IF('Step 1 Toxicity_Values'!D27=\"--\",\"--\",'Step 1 Toxicity_Values'!D27)","v":"--"},{"$f":"IF('Step 1 Toxicity_Values'!E27=\"--\",\"--\",'Step 1 Toxicity_Values'!E27)","v":"--"},null,"--"]
["--","--","--","--","--","--","--",null,{"$f":"'Step 2 Chemical_Parameters'!A28","v":"--"},{"$f":"'Step 2 Chemical_Parameters'!B28","v":"--"},{"$f":"IF('Step 1 Toxicity_Values'!D28=\"--\",\"--\",'Step 1 Toxicity_Values'!D28)","v":"--"},{"$f":"IF('Step 1 Toxicity_Values'!E28=\"--\",\"--\",'Step 1 Toxicity_Values'!E28)","v":"--"},null,"--"]
["--","--","--","--","--","--","--",null,{"$f":"'Step 2 Chemical_Parameters'!A29","v":"--"},{"$f":"'Step 2 Chemical_Parameters'!B29","v":"--"},{"$f":"IF('Step 1 Toxicity_Values'!D29=\"--\",\"--\",'Step 1 Toxicity_Values'!D29)","v":"--"},{"$f":"IF('Step 1 Toxicity_Values'!E29=\"--\",\"--\",'Step 1 Toxicity_Values'!E29)","v":"--"},null,"--"]
["--","--","--","--","--","--","--",null,{"$f":"'Step 2 Chemical_Parameters'!A30","v":"--"},{"$f":"'Step 2 Chemical_Parameters'!B30","v":"--"},{"$f":"IF('Step 1 Toxicity_Values'!D30=\"--\",\"--\",'Step 1 Toxicity_Values'!D30)","v":"--"},{"$f":"IF('Step 1 Toxicity_Values'!E30=\"--\",\"--\",'Step 1 Toxicity_Values'!E30)","v":"--"},null,"--"]
["--","--","--","--","--","--","--",null,{"$f":"'Step 2 Chemical_Parameters'!A31","v":"--"},{"$f":"'Step 2 Chemical_Parameters'!B31","v":"--"},{"$f":"IF('Step 1 Toxicity_Values'!D31=\"--\",\"--\",'Step 1 Toxicity_Values'!D31)","v":"--"},{"$f":"IF('Step 1 Toxicity_Values'!E31=\"--\",\"--\",'Step 1 Toxicity_Values'!E31)","v":"--"},null,"--"]
["--","--","--","--","--","--","--",null,{"$f":"'Step 2 Chemical_Parameters'!A32","v":"--"},{"$f":"'Step 2 Chemical_Parameters'!B32","v":"--"},{"$f":"IF('Step 1 Toxicity_Values'!D32=\"--\",\"--\",'Step 1 Toxicity_Values'!D32)","v":"--"},{"$f":"IF('Step 1 Toxicity_Values'!E32=\"--\",\"--\",'Step 1 Toxicity_Values'!E32)","v":"--"},null,"--"]
["--","--","--","--","--","--","--",null,{"$f":"'Step 2 Chemical_Parameters'!A33","v":"--"},{"$f":"'Step 2 Chemical_Parameters'!B33","v":"--"},{"$f":"IF('Step 1 Toxicity_Values'!D33=\"--\",\"--\",'Step 1 Toxicity_Values'!D33)","v":"--"},{"$f":"IF('Step 1 Toxicity_Values'!E33=\"--\",\"--\",'Step 1 Toxicity_Values'!E33)","v":"--"},null,"--"]
["--","--","--","--","--","--","--",null,{"$f":"'Step 2 Chemical_Parameters'!A34","v":"--"},{"$f":"'Step 2 Chemical_Parameters'!B34","v":"--"},{"$f":"IF('Step 1 Toxicity_Values'!D34=\"--\",\"--\",'Step 1 Toxicity_Values'!D34)","v":"--"},{"$f":"IF('Step 1 Toxicity_Values'!E34=\"--\",\"--\",'Step 1 Toxicity_Values'!E34)","v":"--"},null,"--"]
["--","--","--","--","--","--","--",null,{"$f":"'Step 2 Chemical_Parameters'!A35","v":"--"},{"$f":"'Step 2 Chemical_Parameters'!B35","v":"--"},{"$f":"IF('Step 1 Toxicity_Values'!D35=\"--\",\"--\",'Step 1 Toxicity_Values'!D35)","v":"--"},{"$f":"IF('Step 1 Toxicity_Values'!E35=\"--\",\"--\",'Step 1 Toxicity_Values'!E35)","v":"--"},null,"--"]
["--","--","--","--","--","--","--",null,{"$f":"'Step 2 Chemical_Parameters'!A36","v":"--"},{"$f":"'Step 2 Chemical_Parameters'!B36","v":"--"},{"$f":"IF('Step 1 Toxicity_Values'!D36=\"--\",\"--\",'Step 1 Toxicity_Values'!D36)","v":"--"},{"$f":"IF('Step 1 Toxicity_Values'!E36=\"--\",\"--\",'Step 1 Toxicity_Values'!E36)","v":"--"},null,"--"]
["--","--","--","--","--","--","--",null,{"$f":"'Step 2 Chemical_Parameters'!A37","v":"--"},{"$f":"'Step 2 Chemical_Parameters'!B37","v":"--"},{"$f":"IF('Step 1 Toxicity_Values'!D37=\"--\",\"--\",'Step 1 Toxicity_Values'!D37)","v":"--"},{"$f":"IF('Step 1 Toxicity_Values'!E37=\"--\",\"--\",'Step 1 Toxicity_Values'!E37)","v":"--"},null,"--"]
["--","--","--","--","--","--","--",null,{"$f":"'Step 2 Chemical_Parameters'!A38","v":"--"},{"$f":"'Step 2 Chemical_Parameters'!B38","v":"--"},{"$f":"IF('Step 1 Toxicity_Values'!D38=\"--\",\"--\",'Step 1 Toxicity_Values'!D38)","v":"--"},{"$f":"IF('Step 1 Toxicity_Values'!E38=\"--\",\"--\",'Step 1 Toxicity_Values'!E38)","v":"--"},null,"--"]
["--","--","--","--","--","--","--",null,{"$f":"'Step 2 Chemical_Parameters'!A39","v":"--"},{"$f":"'Step 2 Chemical_Parameters'!B39","v":"--"},{"$f":"IF('Step 1 Toxicity_Values'!D39=\"--\",\"--\",'Step 1 Toxicity_Values'!D39)","v":"--"},{"$f":"IF('Step 1 Toxicity_Values'!E39=\"--\",\"--\",'Step 1 Toxicity_Values'!E39)","v":"--"},null,"--"]
["--","--","--","--","--","--","--",null,{"$f":"'Step 2 Chemical_Parameters'!A40","v":"--"},{"$f":"'Step 2 Chemical_Parameters'!B40","v":"--"},{"$f":"IF('Step 1 Toxicity_Values'!D40=\"--\",\"--\",'Step 1 Toxicity_Values'!D40)","v":"--"},{"$f":"IF('Step 1 Toxicity_Values'!E40=\"--\",\"--\",'Step 1 Toxicity_Values'!E40)","v":"--"},null,"--"]
["--","--","--","--","--","--","--",null,{"$f":"'Step 2 Chemical_Parameters'!A41","v":"--"},{"$f":"'Step 2 Chemical_Parameters'!B41","v":"--"},{"$f":"IF('Step 1 Toxicity_Values'!D41=\"--\",\"--\",'Step 1 Toxicity_Values'!D41)","v":"--"},{"$f":"IF('Step 1 Toxicity_Values'!E41=\"--\",\"--\",'Step 1 Toxicity_Values'!E41)","v":"--"},null,"--"]
["--","--","--","--","--","--","--",null,{"$f":"'Step 2 Chemical_Parameters'!A42","v":"--"},{"$f":"'Step 2 Chemical_Parameters'!B42","v":"--"},{"$f":"IF('Step 1 Toxicity_Values'!D42=\"--\",\"--\",'Step 1 Toxicity_Values'!D42)","v":"--"},{"$f":"IF('Step 1 Toxicity_Values'!E42=\"--\",\"--\",'Step 1 Toxicity_Values'!E42)","v":"--"},null,"--"]
["--","--","--","--","--","--","--",null,{"$f":"'Step 2 Chemical_Parameters'!A43","v":"--"},{"$f":"'Step 2 Chemical_Parameters'!B43","v":"--"},{"$f":"IF('Step 1 Toxicity_Values'!D43=\"--\",\"--\",'Step 1 Toxicity_Values'!D43)","v":"--"},{"$f":"IF('Step 1 Toxicity_Values'!E43=\"--\",\"--\",'Step 1 Toxicity_Values'!E43)","v":"--"},null,"--"]
["--","--","--","--","--","--","--",null,{"$f":"'Step 2 Chemical_Parameters'!A44","v":"--"},{"$f":"'Step 2 Chemical_Parameters'!B44","v":"--"},{"$f":"IF('Step 1 Toxicity_Values'!D44=\"--\",\"--\",'Step 1 Toxicity_Values'!D44)","v":"--"},{"$f":"IF('Step 1 Toxicity_Values'!E44=\"--\",\"--\",'Step 1 Toxicity_Values'!E44)","v":"--"},null,"--"]

{"sheet":"Consumption_Eco_Tissue","index":6,"n_rows":69,"n_cols":18,"rows_kept":69,"cut":false,"hidden":false,"merged":[[3,5,4,5],[68,2,68,4],[40,2,40,4],[47,2,47,4],[54,2,54,4],[61,2,61,4]]}
[null,null,null,null,null,null,null,null,"hide column","hide column","hide column","hide column","hide column","hide column","hide column","hide column","hide column","hide column"]
[null,"SCUM Equation 9-9:  Higher Trophic Level Tissue Screening Levels for Mammals and Birds (Consumption of Fish/Shellfish):  "]
[]
[null,null,null,null,null,"or TRVis if available"]
[]
[]
[null,"SCUM Equation 9-10:  Higher Trophic Level Tissue Screening Levels Based on Eggshell Thinning:"]
[]
[]
[]
[null,"Tissue Risk-Based Concentrations for Protection of Higher Trophic Levels",null,null,null,null,null,null,"Data from Step 3 Worksheet"]
[null,null,null,"Consumption TRV","Eggshell TRV","Tissue Screening Level",null,null,null,null,"TRVis","TRVtest","FIRis","FIRtest","BWis","BWtest","TRVegg","BMFegg"]
[null,"Contaminant of Concern","Indicator Species","mg/kg","mg/kg","mg/kg",null,null,"Contaminant of Concern","Indicator Species","mg/kg","mg/kg","kg/day","kg/day","kg","kg","mg/kg","unitless"]
[null,{"$f":"I14","v":" "},{"$f":"J14","v":" "},{"$f":"IF(B14=\" \",\"--\",IF(C14=\" \",\"--\",IF(L14=0,IF(K14=0,\"--\",K14),((L14*N14*O14)/(P14*M14)))))","v":"--"},{"$f":"IF(B14=\" \",\"--\",IF(C14=\" \",\"--\",IF(Q14=0,\"--\",Q14/R14)))","v":"--"},{"$f":"IF(MIN(D14:E14)>0,MIN(D14:E14),\"--\")","v":"--"},null,null,{"$f":"IF(ISBLANK('Step 3 Exposure Parameters'!$B44),\" \",'Step 3 Exposure Parameters'!$B44)","v":" "},{"$f":"IF(ISBLANK('Step 3 Exposure Parameters'!$C44),\" \",'Step 3 Exposure Parameters'!$C44)","v":" "},{"$f":"IF(ISBLANK('Step 3 Exposure Parameters'!D44),0,'Step 3 Exposure Parameters'!D44)","v":0},{"$f":"IF(ISBLANK('Step 3 Exposure Parameters'!E44),0,'Step 3 Exposure Parameters'!E44)","v":0},{"$f":"IF(ISBLANK('Step 3 Exposure Parameters'!F44),\"  \",'Step 3 Exposure Parameters'!F44)","v":"  "},{"$f":"IF(ISBLANK('Step 3 Exposure Parameters'!G44),\"  \",'Step 3 Exposure Parameters'!G44)","v":"  "},{"$f":"IF(ISBLANK('Step 3 Exposure Parameters'!H44),\"  \",'Step 3 Exposure Parameters'!H44)","v":"  "},{"$f":"IF(ISBLANK('Step 3 Exposure Parameters'!I44),\"  \",'Step 3 Exposure Parameters'!I44)","v":"  "},{"$f":"IF(ISBLANK('Step 3 Exposure Parameters'!J44),0,'Step 3 Exposure Parameters'!J44)","v":0},{"$f":"IF(ISBLANK('Step 3 Exposure Parameters'!K44),0,'Step 3 Exposure Parameters'!K44)","v":0}]
[null,{"$f":"I15","v":" "},{"$f":"J15","v":" "},{"$f":"IF(B15=\" \",\"--\",IF(C15=\" \",\"--\",IF(L15=0,IF(K15=0,\"--\",K15),((L15*N15*O15)/(P15*M15)))))","v":"--"},{"$f":"IF(B15=\" \",\"--\",IF(C15=\" \",\"--\",IF(Q15=0,\"--\",Q15/R15)))","v":"--"},{"$f":"IF(MIN(D15:E15)>0,MIN(D15:E15),\"--\")","v":"--"},null,null,{"$f":"IF(ISBLANK('Step 3 Exposure Parameters'!$B45),\" \",'Step 3 Exposure Parameters'!$B45)","v":" "},{"$f":"IF(ISBLANK('Step 3 Exposure Parameters'!$C45),\" \",'Step 3 Exposure Parameters'!$C45)","v":" "},{"$f":"IF(ISBLANK('Step 3 Exposure Parameters'!D45),\"  \",'Step 3 Exposure Parameters'!D45)","v":"  "},{"$f":"IF(ISBLANK('Step 3 Exposure Parameters'!E45),\"  \",'Step 3 Exposure Parameters'!E45)","v":"  "},{"$f":"IF(ISBLANK('Step 3 Exposure Parameters'!F45),\"  \",'Step 3 Exposure Parameters'!F45)","v":"  "},{"$f":"IF(ISBLANK('Step 3 Exposure Parameters'!G45),\"  \",'Step 3 Exposure Parameters'!G45)","v":"  "},{"$f":"IF(ISBLANK('Step 3 Exposure Parameters'!H45),\"  \",'Step 3 Exposure Parameters'!H45)","v":"  "},{"$f":"IF(ISBLANK('Step 3 Exposure Parameters'!I45),\"  \",'Step 3 Exposure Parameters'!I45)","v":"  "},{"$f":"IF(ISBLANK('Step 3 Exposure Parameters'!J45),\"  \",'Step 3 Exposure Parameters'!J45)","v":"  "},{"$f":"IF(ISBLANK('Step 3 Exposure Parameters'!K45),\"  \",'Step 3 Exposure Parameters'!K45)","v":"  "}]
[null," "," ","--","--","--",null,null,{"$f":"IF(ISBLANK('Step 3 Exposure Parameters'!$B46),\" \",'Step 3 Exposure Parameters'!$B46)","v":" "},{"$f":"IF(ISBLANK('Step 3 Exposure Parameters'!$C46),\" \",'Step 3 Exposure Parameters'!$C46)","v":" "},{"$f":"IF(ISBLANK('Step 3 Exposure Parameters'!D46),\"  \",'Step 3 Exposure Parameters'!D46)","v":"  "},{"$f":"IF(ISBLANK('Step 3 Exposure Parameters'!E46),\"  \",'Step 3 Exposure Parameters'!E46)","v":"  "},{"$f":"IF(ISBLANK('Step 3 Exposure Parameters'!F46),\"  \",'Step 3 Exposure Parameters'!F46)","v":"  "},{"$f":"IF(ISBLANK('Step 3 Exposure Parameters'!G46),\"  \",'Step 3 Exposure Parameters'!G46)","v":"  "},{"$f":"IF(ISBLANK('Step 3 Exposure Parameters'!H46),\"  \",'Step 3 Exposure Parameters'!H46)","v":"  "},{"$f":"IF(ISBLANK('Step 3 Exposure Parameters'!I46),\"  \",'Step 3 Exposure Parameters'!I46)","v":"  "},{"$f":"IF(ISBLANK('Step 3 Exposure Parameters'!J46),\"  \",'Step 3 Exposure Parameters'!J46)","v":"  "},{"$f":"IF(ISBLANK('Step 3 Exposure Parameters'!K46),\"  \",'Step 3 Exposure Parameters'!K46)","v":"  "}]
[null," "," ","--",{"$f":"IF(B17=\" \",\"--\",IF(C17=\" \",\"--\",IF(Q17=0,\"--\",Q17/R17)))","v":"--"},"--",null,null,{"$f":"IF(ISBLANK('Step 3 Exposure Parameters'!$B47),\" \",'Step 3 Exposure Parameters'!$B47)","v":" "},{"$f":"IF(ISBLANK('Step 3 Exposure Parameters'!$C47),\" \",'Step 3 Exposure Parameters'!$C47)","v":" "},{"$f":"IF(ISBLANK('Step 3 Exposure Parameters'!D47),\"  \",'Step 3 Exposure Parameters'!D47)","v":"  "},{"$f":"IF(ISBLANK('Step 3 Exposure Parameters'!E47),\"  \",'Step 3 Exposure Parameters'!E47)","v":"  "},{"$f":"IF(ISBLANK('Step 3 Exposure Parameters'!F47),\"  \",'Step 3 Exposure Parameters'!F47)","v":"  "},{"$f":"IF(ISBLANK('Step 3 Exposure Parameters'!G47),\"  \",'Step 3 Exposure Parameters'!G47)","v":"  "},{"$f":"IF(ISBLANK('Step 3 Exposure Parameters'!H47),\"  \",'Step 3 Exposure Parameters'!H47)","v":"  "},{"$f":"IF(ISBLANK('Step 3 Exposure Parameters'!I47),\"  \",'Step 3 Exposure Parameters'!I47)","v":"  "},{"$f":"IF(ISBLANK('Step 3 Exposure Parameters'!J47),\"  \",'Step 3 Exposure Parameters'!J47)","v":"  "},{"$f":"IF(ISBLANK('Step 3 Exposure Parameters'!K47),\"  \",'Step 3 Exposure Parameters'!K47)","v":"  "}]
[null," "," ","--","--","--",null,null,{"$f":"IF(ISBLANK('Step 3 Exposure Parameters'!$B48),\" \",'Step 3 Exposure Parameters'!$B48)","v":" "},{"$f":"IF(ISBLANK('Step 3 Exposure Parameters'!$C48),\" \",'Step 3 Exposure Parameters'!$C48)","v":" "},{"$f":"IF(ISBLANK('Step 3 Exposure Parameters'!D48),\"  \",'Step 3 Exposure Parameters'!D48)","v":"  "},{"$f":"IF(ISBLANK('Step 3 Exposure Parameters'!E48),\"  \",'Step 3 Exposure Parameters'!E48)","v":"  "},{"$f":"IF(ISBLANK('Step 3 Exposure Parameters'!F48),\"  \",'Step 3 Exposure Parameters'!F48)","v":"  "},{"$f":"IF(ISBLANK('Step 3 Exposure Parameters'!G48),\"  \",'Step 3 Exposure Parameters'!G48)","v":"  "},{"$f":"IF(ISBLANK('Step 3 Exposure Parameters'!H48),\"  \",'Step 3 Exposure Parameters'!H48)","v":"  "},{"$f":"IF(ISBLANK('Step 3 Exposure Parameters'!I48),\"  \",'Step 3 Exposure Parameters'!I48)","v":"  "},{"$f":"IF(ISBLANK('Step 3 Exposure Parameters'!J48),\"  \",'Step 3 Exposure Parameters'!J48)","v":"  "},{"$f":"IF(ISBLANK('Step 3 Exposure Parameters'!K48),\"  \",'Step 3 Exposure Parameters'!K48)","v":"  "}]
[null," "," ","--","--","--",null,null,{"$f":"IF(ISBLANK('Step 3 Exposure Parameters'!$B49),\" \",'Step 3 Exposure Parameters'!$B49)","v":" "},{"$f":"IF(ISBLANK('Step 3 Exposure Parameters'!$C49),\" \",'Step 3 Exposure Parameters'!$C49)","v":" "},{"$f":"IF(ISBLANK('Step 3 Exposure Parameters'!D49),\"  \",'Step 3 Exposure Parameters'!D49)","v":"  "},{"$f":"IF(ISBLANK('Step 3 Exposure Parameters'!E49),\"  \",'Step 3 Exposure Parameters'!E49)","v":"  "},{"$f":"IF(ISBLANK('Step 3 Exposure Parameters'!F49),\"  \",'Step 3 Exposure Parameters'!F49)","v":"  "},{"$f":"IF(ISBLANK('Step 3 Exposure Parameters'!G49),\"  \",'Step 3 Exposure Parameters'!G49)","v":"  "},{"$f":"IF(ISBLANK('Step 3 Exposure Parameters'!H49),\"  \",'Step 3 Exposure Parameters'!H49)","v":"  "},{"$f":"IF(ISBLANK('Step 3 Exposure Parameters'!I49),\"  \",'Step 3 Exposure Parameters'!I49)","v":"  "},{"$f":"IF(ISBLANK('Step 3 Exposure Parameters'!J49),\"  \",'Step 3 Exposure Parameters'!J49)","v":"  "},{"$f":"IF(ISBLANK('Step 3 Exposure Parameters'!K49),\"  \",'Step 3 Exposure Parameters'!K49)","v":"  "}]
[null," ",null,null,"Lowest Tissue Screening Level:",{"$f":"IF(B14=\" \",\"--\",MIN(F14:F19))","v":"--"},null,null,{"$f":"IF(ISBLANK(I14),\" \",I14)","v":" "}]
[null," ",{"$f":"J21","v":" "},{"$f":"IF(B21=\" \",\"--\",IF(C21=\" \",\"--\",IF(L21=0,IF(K21=0,\"--\",K21),((L21*N21*O21)/(P21*M21)))))","v":"--"},{"$f":"IF(B21=\" \",\"--\",IF(C21=\" \",\"--\",IF(Q21=0,\"--\",Q21/R21)))","v":"--"},{"$f":"IF(MIN(D21:E21)>0,MIN(D21:E21),\"--\")","v":"--"},null,null,{"$f":"IF(ISBLANK('Step 3 Exposure Parameters'!$B50),\" \",'Step 3 Exposure Parameters'!$B50)","v":" "},{"$f":"IF(ISBLANK('Step 3 Exposure Parameters'!$C50),\" \",'Step 3 Exposure Parameters'!$C50)","v":" "},{"$f":"IF(ISBLANK('Step 3 Exposure Parameters'!D50),\"  \",'Step 3 Exposure Parameters'!D50)","v":"  "},{"$f":"IF(ISBLANK('Step 3 Exposure Parameters'!E50),\"  \",'Step 3 Exposure Parameters'!E50)","v":"  "},{"$f":"IF(ISBLANK('Step 3 Exposure Parameters'!F50),\"  \",'Step 3 Exposure Parameters'!F50)","v":" "},{"$f":"IF(ISBLANK('Step 3 Exposure Parameters'!G50),\"  \",'Step 3 Exposure Parameters'!G50)","v":" "},{"$f":"IF(ISBLANK('Step 3 Exposure Parameters'!H50),\"  \",'Step 3 Exposure Parameters'!H50)","v":" "},{"$f":"IF(ISBLANK('Step 3 Exposure Parameters'!I50),\"  \",'Step 3 Exposure Parameters'!I50)","v":" "},{"$f":"IF(ISBLANK('Step 3 Exposure Parameters'!J50),\"  \",'Step 3 Exposure Parameters'!J50)","v":"  "},{"$f":"IF(ISBLANK('Step 3 Exposure Parameters'!K50),\"  \",'Step 3 Exposure Parameters'!K50)","v":"  "}]
[null," ",{"$f":"J22","v":" "},{"$f":"IF(B22=\" \",\"--\",IF(C22=\" \",\"--\",IF(L22=0,IF(K22=0,\"--\",K22),((L22*N22*O22)/(P22*M22)))))","v":"--"},{"$f":"IF(B22=\" \",\"--\",IF(C22=\" \",\"--\",IF(Q22=0,\"--\",Q22/R22)))","v":"--"},{"$f":"IF(MIN(D22:E22)>0,MIN(D22:E22),\"--\")","v":"--"},null,null,{"$f":"IF(ISBLANK('Step 3 Exposure Parameters'!$B51),\" \",'Step 3 Exposure Parameters'!$B51)","v":" "},{"$f":"IF(ISBLANK('Step 3 Exposure Parameters'!$C51),\" \",'Step 3 Exposure Parameters'!$C51)","v":" "},{"$f":"IF(ISBLANK('Step 3 Exposure Parameters'!D51),\"  \",'Step 3 Exposure Parameters'!D51)","v":"  "},{"$f":"IF(ISBLANK('Step 3 Exposure Parameters'!E51),\"  \",'Step 3 Exposure Parameters'!E51)","v":"  "},{"$f":"IF(ISBLANK('Step 3 Exposure Parameters'!F51),\"  \",'Step 3 Exposure Parameters'!F51)","v":" "},{"$f":"IF(ISBLANK('Step 3 Exposure Parameters'!G51),\"  \",'Step 3 Exposure Parameters'!G51)","v":" "},{"$f":"IF(ISBLANK('Step 3 Exposure Parameters'!H51),\"  \",'Step 3 Exposure Parameters'!H51)","v":" "},{"$f":"IF(ISBLANK('Step 3 Exposure Parameters'!I51),\"  \",'Step 3 Exposure Parameters'!I51)","v":" "},{"$f":"IF(ISBLANK('Step 3 Exposure Parameters'!J51),\"  \",'Step 3 Exposure Parameters'!J51)","v":"  "},{"$f":"IF(ISBLANK('Step 3 Exposure Parameters'!K51),\"  \",'Step 3 Exposure Parameters'!K51)","v":"  "}]
[null," "," ","--","--","--",null,null,{"$f":"IF(ISBLANK('Step 3 Exposure Parameters'!$B52),\" \",'Step 3 Exposure Parameters'!$B52)","v":" "},{"$f":"IF(ISBLANK('Step 3 Exposure Parameters'!$C52),\" \",'Step 3 Exposure Parameters'!$C52)","v":" "},{"$f":"IF(ISBLANK('Step 3 Exposure Parameters'!D52),\"  \",'Step 3 Exposure Parameters'!D52)","v":"  "},{"$f":"IF(ISBLANK('Step 3 Exposure Parameters'!E52),\"  \",'Step 3 Exposure Parameters'!E52)","v":"  "},{"$f":"IF(ISBLANK('Step 3 Exposure Parameters'!F52),\"  \",'Step 3 Exposure Parameters'!F52)","v":" "},{"$f":"IF(ISBLANK('Step 3 Exposure Parameters'!G52),\"  \",'Step 3 Exposure Parameters'!G52)","v":" "},{"$f":"IF(ISBLANK('Step 3 Exposure Parameters'!H52),\"  \",'Step 3 Exposure Parameters'!H52)","v":" "},{"$f":"IF(ISBLANK('Step 3 Exposure Parameters'!I52),\"  \",'Step 3 Exposure Parameters'!I52)","v":" "},{"$f":"IF(ISBLANK('Step 3 Exposure Parameters'!J52),\"  \",'Step 3 Exposure Parameters'!J52)","v":"  "},{"$f":"IF(ISBLANK('Step 3 Exposure Parameters'!K52),\"  \",'Step 3 Exposure Parameters'!K52)","v":"  "}]
[null," "," ","--","--","--",null,null,{"$f":"IF(ISBLANK('Step 3 Exposure Parameters'!$B53),\" \",'Step 3 Exposure Parameters'!$B53)","v":" "},{"$f":"IF(ISBLANK('Step 3 Exposure Parameters'!$C53),\" \",'Step 3 Exposure Parameters'!$C53)","v":" "},{"$f":"IF(ISBLANK('Step 3 Exposure Parameters'!D53),\"  \",'Step 3 Exposure Parameters'!D53)","v":"  "},{"$f":"IF(ISBLANK('Step 3 Exposure Parameters'!E53),\"  \",'Step 3 Exposure Parameters'!E53)","v":"  "},{"$f":"IF(ISBLANK('Step 3 Exposure Parameters'!F53),\"  \",'Step 3 Exposure Parameters'!F53)","v":" "},{"$f":"IF(ISBLANK('Step 3 Exposure Parameters'!G53),\"  \",'Step 3 Exposure Parameters'!G53)","v":" "},{"$f":"IF(ISBLANK('Step 3 Exposure Parameters'!H53),\"  \",'Step 3 Exposure Parameters'!H53)","v":" "},{"$f":"IF(ISBLANK('Step 3 Exposure Parameters'!I53),\"  \",'Step 3 Exposure Parameters'!I53)","v":" "},{"$f":"IF(ISBLANK('Step 3 Exposure Parameters'!J53),\"  \",'Step 3 Exposure Parameters'!J53)","v":"  "},{"$f":"IF(ISBLANK('Step 3 Exposure Parameters'!K53),\"  \",'Step 3 Exposure Parameters'!K53)","v":"  "}]
[null," "," ","--","--","--",null,null,{"$f":"IF(ISBLANK('Step 3 Exposure Parameters'!$B54),\" \",'Step 3 Exposure Parameters'!$B54)","v":" "},{"$f":"IF(ISBLANK('Step 3 Exposure Parameters'!$C54),\" \",'Step 3 Exposure Parameters'!$C54)","v":" "},{"$f":"IF(ISBLANK('Step 3 Exposure Parameters'!D54),\"  \",'Step 3 Exposure Parameters'!D54)","v":"  "},{"$f":"IF(ISBLANK('Step 3 Exposure Parameters'!E54),\"  \",'Step 3 Exposure Parameters'!E54)","v":"  "},{"$f":"IF(ISBLANK('Step 3 Exposure Parameters'!F54),\"  \",'Step 3 Exposure Parameters'!F54)","v":" "},{"$f":"IF(ISBLANK('Step 3 Exposure Parameters'!G54),\"  \",'Step 3 Exposure Parameters'!G54)","v":" "},{"$f":"IF(ISBLANK('Step 3 Exposure Parameters'!H54),\"  \",'Step 3 Exposure Parameters'!H54)","v":" "},{"$f":"IF(ISBLANK('Step 3 Exposure Parameters'!I54),\"  \",'Step 3 Exposure Parameters'!I54)","v":" "},{"$f":"IF(ISBLANK('Step 3 Exposure Parameters'!J54),\"  \",'Step 3 Exposure Parameters'!J54)","v":"  "},{"$f":"IF(ISBLANK('Step 3 Exposure Parameters'!K54),\"  \",'Step 3 Exposure Parameters'!K54)","v":"  "}]
[null," "," ","--","--","--",null,null,{"$f":"IF(ISBLANK('Step 3 Exposure Parameters'!$B55),\" \",'Step 3 Exposure Parameters'!$B55)","v":" "},{"$f":"IF(ISBLANK('Step 3 Exposure Parameters'!$C55),\" \",'Step 3 Exposure Parameters'!$C55)","v":" "},{"$f":"IF(ISBLANK('Step 3 Exposure Parameters'!D55),\"  \",'Step 3 Exposure Parameters'!D55)","v":"  "},{"$f":"IF(ISBLANK('Step 3 Exposure Parameters'!E55),\"  \",'Step 3 Exposure Parameters'!E55)","v":"  "},{"$f":"IF(ISBLANK('Step 3 Exposure Parameters'!F55),\"  \",'Step 3 Exposure Parameters'!F55)","v":" "},{"$f":"IF(ISBLANK('Step 3 Exposure Parameters'!G55),\"  \",'Step 3 Exposure Parameters'!G55)","v":" "},{"$f":"IF(ISBLANK('Step 3 Exposure Parameters'!H55),\"  \",'Step 3 Exposure Parameters'!H55)","v":" "},{"$f":"IF(ISBLANK('Step 3 Exposure Parameters'!I55),\"  \",'Step 3 Exposure Parameters'!I55)","v":" "},{"$f":"IF(ISBLANK('Step 3 Exposure Parameters'!J55),\"  \",'Step 3 Exposure Parameters'!J55)","v":"  "},{"$f":"IF(ISBLANK('Step 3 Exposure Parameters'!K55),\"  \",'Step 3 Exposure Parameters'!K55)","v":"  "}]
[null," ",null,null,"Lowest Tissue Screening Level:",{"$f":"IF(B21=\" \",\"--\",MIN(F21:F26))","v":"--"},null,null,{"$f":"IF(ISBLANK(I21),\" \",I21)","v":" "}]
[null," ",{"$f":"J28","v":" "},{"$f":"IF(B28=\" \",\"--\",IF(C28=\" \",\"--\",IF(L28=0,IF(K28=0,\"--\",K28),((L28*N28*O28)/(P28*M28)))))","v":"--"},{"$f":"IF(B28=\" \",\"--\",IF(C28=\" \",\"--\",IF(Q28=0,\"--\",Q28/R28)))","v":"--"},{"$f":"IF(MIN(D28:E28)>0,MIN(D28:E28),\"--\")","v":"--"},null,null,{"$f":"IF(ISBLANK('Step 3 Exposure Parameters'!$B56),\" \",'Step 3 Exposure Parameters'!$B56)","v":" "},{"$f":"IF(ISBLANK('Step 3 Exposure Parameters'!$C56),\" \",'Step 3 Exposure Parameters'!$C56)","v":" "},{"$f":"IF(ISBLANK('Step 3 Exposure Parameters'!D56),\"  \",'Step 3 Exposure Parameters'!D56)","v":"  "},{"$f":"IF(ISBLANK('Step 3 Exposure Parameters'!E56),\"  \",'Step 3 Exposure Parameters'!E56)","v":"  "},{"$f":"IF(ISBLANK('Step 3 Exposure Parameters'!F56),\"  \",'Step 3 Exposure Parameters'!F56)","v":" "},{"$f":"IF(ISBLANK('Step 3 Exposure Parameters'!G56),\"  \",'Step 3 Exposure Parameters'!G56)","v":" "},{"$f":"IF(ISBLANK('Step 3 Exposure Parameters'!H56),\"  \",'Step 3 Exposure Parameters'!H56)","v":" "},{"$f":"IF(ISBLANK('Step 3 Exposure Parameters'!I56),\"  \",'Step 3 Exposure Parameters'!I56)","v":" "},{"$f":"IF(ISBLANK('Step 3 Exposure Parameters'!J56),\"  \",'Step 3 Exposure Parameters'!J56)","v":"  "},{"$f":"IF(ISBLANK('Step 3 Exposure Parameters'!K56),\"  \",'Step 3 Exposure Parameters'!K56)","v":"  "}]
[null," ",{"$f":"J29","v":" "},{"$f":"IF(B29=\" \",\"--\",IF(C29=\" \",\"--\",IF(L29=0,IF(K29=0,\"--\",K29),((L29*N29*O29)/(P29*M29)))))","v":"--"},{"$f":"IF(B29=\" \",\"--\",IF(C29=\" \",\"--\",IF(Q29=0,\"--\",Q29/R29)))","v":"--"},{"$f":"IF(MIN(D29:E29)>0,MIN(D29:E29),\"--\")","v":"--"},null,null,{"$f":"IF(ISBLANK('Step 3 Exposure Parameters'!$B57),\" \",'Step 3 Exposure Parameters'!$B57)","v":" "},{"$f":"IF(ISBLANK('Step 3 Exposure Parameters'!$C57),\" \",'Step 3 Exposure Parameters'!$C57)","v":" "},{"$f":"IF(ISBLANK('Step 3 Exposure Parameters'!D57),\"  \",'Step 3 Exposure Parameters'!D57)","v":"  "},{"$f":"IF(ISBLANK('Step 3 Exposure Parameters'!E57),\"  \",'Step 3 Exposure Parameters'!E57)","v":"  "},{"$f":"IF(ISBLANK('Step 3 Exposure Parameters'!F57),\"  \",'Step 3 Exposure Parameters'!F57)","v":" "},{"$f":"IF(ISBLANK('Step 3 Exposure Parameters'!G57),\"  \",'Step 3 Exposure Parameters'!G57)","v":" "},{"$f":"IF(ISBLANK('Step 3 Exposure Parameters'!H57),\"  \",'Step 3 Exposure Parameters'!H57)","v":" "},{"$f":"IF(ISBLANK('Step 3 Exposure Parameters'!I57),\"  \",'Step 3 Exposure Parameters'!I57)","v":" "},{"$f":"IF(ISBLANK('Step 3 Exposure Parameters'!J57),\"  \",'Step 3 Exposure Parameters'!J57)","v":"  "},{"$f":"IF(ISBLANK('Step 3 Exposure Parameters'!K57),\"  \",'Step 3 Exposure Parameters'!K57)","v":"  "}]
[null," "," ","--","--","--",null,null,{"$f":"IF(ISBLANK('Step 3 Exposure Parameters'!$B58),\" \",'Step 3 Exposure Parameters'!$B58)","v":" "},{"$f":"IF(ISBLANK('Step 3 Exposure Parameters'!$C58),\" \",'Step 3 Exposure Parameters'!$C58)","v":" "},{"$f":"IF(ISBLANK('Step 3 Exposure Parameters'!D58),\"  \",'Step 3 Exposure Parameters'!D58)","v":"  "},{"$f":"IF(ISBLANK('Step 3 Exposure Parameters'!E58),\"  \",'Step 3 Exposure Parameters'!E58)","v":"  "},{"$f":"IF(ISBLANK('Step 3 Exposure Parameters'!F58),\"  \",'Step 3 Exposure Parameters'!F58)","v":" "},{"$f":"IF(ISBLANK('Step 3 Exposure Parameters'!G58),\"  \",'Step 3 Exposure Parameters'!G58)","v":" "},{"$f":"IF(ISBLANK('Step 3 Exposure Parameters'!H58),\"  \",'Step 3 Exposure Parameters'!H58)","v":" "},{"$f":"IF(ISBLANK('Step 3 Exposure Parameters'!I58),\"  \",'Step 3 Exposure Parameters'!I58)","v":" "},{"$f":"IF(ISBLANK('Step 3 Exposure Parameters'!J58),\"  \",'Step 3 Exposure Parameters'!J58)","v":"  "},{"$f":"IF(ISBLANK('Step 3 Exposure Parameters'!K58),\"  \",'Step 3 Exposure Parameters'!K58)","v":"  "}]
[null," "," ","--","--","--",null,null,{"$f":"IF(ISBLANK('Step 3 Exposure Parameters'!$B59),\" \",'Step 3 Exposure Parameters'!$B59)","v":" "},{"$f":"IF(ISBLANK('Step 3 Exposure Parameters'!$C59),\" \",'Step 3 Exposure Parameters'!$C59)","v":" "},{"$f":"IF(ISBLANK('Step 3 Exposure Parameters'!D59),\"  \",'Step 3 Exposure Parameters'!D59)","v":"  "},{"$f":"IF(ISBLANK('Step 3 Exposure Parameters'!E59),\"  \",'Step 3 Exposure Parameters'!E59)","v":"  "},{"$f":"IF(ISBLANK('Step 3 Exposure Parameters'!F59),\"  \",'Step 3 Exposure Parameters'!F59)","v":" "},{"$f":"IF(ISBLANK('Step 3 Exposure Parameters'!G59),\"  \",'Step 3 Exposure Parameters'!G59)","v":" "},{"$f":"IF(ISBLANK('Step 3 Exposure Parameters'!H59),\"  \",'Step 3 Exposure Parameters'!H59)","v":" "},{"$f":"IF(ISBLANK('Step 3 Exposure Parameters'!I59),\"  \",'Step 3 Exposure Parameters'!I59)","v":" "},{"$f":"IF(ISBLANK('Step 3 Exposure Parameters'!J59),\"  \",'Step 3 Exposure Parameters'!J59)","v":"  "},{"$f":"IF(ISBLANK('Step 3 Exposure Parameters'!K59),\"  \",'Step 3 Exposure Parameters'!K59)","v":"  "}]
[null," "," ","--","--","--",null,null,{"$f":"IF(ISBLANK('Step 3 Exposure Parameters'!$B60),\" \",'Step 3 Exposure Parameters'!$B60)","v":" "},{"$f":"IF(ISBLANK('Step 3 Exposure Parameters'!$C60),\" \",'Step 3 Exposure Parameters'!$C60)","v":" "},{"$f":"IF(ISBLANK('Step 3 Exposure Parameters'!D60),\"  \",'Step 3 Exposure Parameters'!D60)","v":"  "},{"$f":"IF(ISBLANK('Step 3 Exposure Parameters'!E60),\"  \",'Step 3 Exposure Parameters'!E60)","v":"  "},{"$f":"IF(ISBLANK('Step 3 Exposure Parameters'!F60),\"  \",'Step 3 Exposure Parameters'!F60)","v":" "},{"$f":"IF(ISBLANK('Step 3 Exposure Parameters'!G60),\"  \",'Step 3 Exposure Parameters'!G60)","v":" "},{"$f":"IF(ISBLANK('Step 3 Exposure Parameters'!H60),\"  \",'Step 3 Exposure Parameters'!H60)","v":" "},{"$f":"IF(ISBLANK('Step 3 Exposure Parameters'!I60),\"  \",'Step 3 Exposure Parameters'!I60)","v":" "},{"$f":"IF(ISBLANK('Step 3 Exposure Parameters'!J60),\"  \",'Step 3 Exposure Parameters'!J60)","v":"  "},{"$f":"IF(ISBLANK('Step 3 Exposure Parameters'!K60),\"  \",'Step 3 Exposure Parameters'!K60)","v":"  "}]
[null," "," ","--","--","--",null,null,{"$f":"IF(ISBLANK('Step 3 Exposure Parameters'!$B61),\" \",'Step 3 Exposure Parameters'!$B61)","v":" "},{"$f":"IF(ISBLANK('Step 3 Exposure Parameters'!$C61),\" \",'Step 3 Exposure Parameters'!$C61)","v":" "},{"$f":"IF(ISBLANK('Step 3 Exposure Parameters'!D61),\"  \",'Step 3 Exposure Parameters'!D61)","v":"  "},{"$f":"IF(ISBLANK('Step 3 Exposure Parameters'!E61),\"  \",'Step 3 Exposure Parameters'!E61)","v":"  "},{"$f":"IF(ISBLANK('Step 3 Exposure Parameters'!F61),\"  \",'Step 3 Exposure Parameters'!F61)","v":" "},{"$f":"IF(ISBLANK('Step 3 Exposure Parameters'!G61),\"  \",'Step 3 Exposure Parameters'!G61)","v":" "},{"$f":"IF(ISBLANK('Step 3 Exposure Parameters'!H61),\"  \",'Step 3 Exposure Parameters'!H61)","v":" "},{"$f":"IF(ISBLANK('Step 3 Exposure Parameters'!I61),\"  \",'Step 3 Exposure Parameters'!I61)","v":" "},{"$f":"IF(ISBLANK('Step 3 Exposure Parameters'!J61),\"  \",'Step 3 Exposure Parameters'!J61)","v":"  "},{"$f":"IF(ISBLANK('Step 3 Exposure Parameters'!K61),\"  \",'Step 3 Exposure Parameters'!K61)","v":"  "}]
[null," ",null,null,"Lowest Tissue Screening Level:",{"$f":"IF(B28=\" \",\"--\",MIN(F28:F33))","v":"--"},null,null,{"$f":"IF(ISBLANK(I28),\" \",I28)","v":" "}]
[null," ",{"$f":"J35","v":" "},{"$f":"IF(B35=\" \",\"--\",IF(C35=\" \",\"--\",IF(L35=0,IF(K35=0,\"--\",K35),((L35*N35*O35)/(P35*M35)))))","v":"--"},{"$f":"IF(B35=\" \",\"--\",IF(C35=\" \",\"--\",IF(Q35=0,\"--\",Q35/R35)))","v":"--"},{"$f":"IF(MIN(D35:E35)>0,MIN(D35:E35),\"--\")","v":"--"},null,null,{"$f":"IF(ISBLANK('Step 3 Exposure Parameters'!$B62),\" \",'Step 3 Exposure Parameters'!$B62)","v":" "},{"$f":"IF(ISBLANK('Step 3 Exposure Parameters'!$C62),\" \",'Step 3 Exposure Parameters'!$C62)","v":" "},{"$f":"IF(ISBLANK('Step 3 Exposure Parameters'!D62),\"  \",'Step 3 Exposure Parameters'!D62)","v":"  "},{"$f":"IF(ISBLANK('Step 3 Exposure Parameters'!E62),\"  \",'Step 3 Exposure Parameters'!E62)","v":"  "},{"$f":"IF(ISBLANK('Step 3 Exposure Parameters'!F62),\"  \",'Step 3 Exposure Parameters'!F62)","v":" "},{"$f":"IF(ISBLANK('Step 3 Exposure Parameters'!G62),\"  \",'Step 3 Exposure Parameters'!G62)","v":" "},{"$f":"IF(ISBLANK('Step 3 Exposure Parameters'!H62),\"  \",'Step 3 Exposure Parameters'!H62)","v":" "},{"$f":"IF(ISBLANK('Step 3 Exposure Parameters'!I62),\"  \",'Step 3 Exposure Parameters'!I62)","v":" "},{"$f":"IF(ISBLANK('Step 3 Exposure Parameters'!J62),\"  \",'Step 3 Exposure Parameters'!J62)","v":"  "},{"$f":"IF(ISBLANK('Step 3 Exposure Parameters'!K62),\"  \",'Step 3 Exposure Parameters'!K62)","v":"  "}]
[null," ",{"$f":"J36","v":" "},{"$f":"IF(B36=\" \",\"--\",IF(C36=\" \",\"--\",IF(L36=0,IF(K36=0,\"--\",K36),((L36*N36*O36)/(P36*M36)))))","v":"--"},{"$f":"IF(B36=\" \",\"--\",IF(C36=\" \",\"--\",IF(Q36=0,\"--\",Q36/R36)))","v":"--"},{"$f":"IF(MIN(D36:E36)>0,MIN(D36:E36),\"--\")","v":"--"},null,null,{"$f":"IF(ISBLANK('Step 3 Exposure Parameters'!$B63),\" \",'Step 3 Exposure Parameters'!$B63)","v":" "},{"$f":"IF(ISBLANK('Step 3 Exposure Parameters'!$C63),\" \",'Step 3 Exposure Parameters'!$C63)","v":" "},{"$f":"IF(ISBLANK('Step 3 Exposure Parameters'!D63),\"  \",'Step 3 Exposure Parameters'!D63)","v":"  "},{"$f":"IF(ISBLANK('Step 3 Exposure Parameters'!E63),\"  \",'Step 3 Exposure Parameters'!E63)","v":"  "},{"$f":"IF(ISBLANK('Step 3 Exposure Parameters'!F63),\"  \",'Step 3 Exposure Parameters'!F63)","v":" "},{"$f":"IF(ISBLANK('Step 3 Exposure Parameters'!G63),\"  \",'Step 3 Exposure Parameters'!G63)","v":" "},{"$f":"IF(ISBLANK('Step 3 Exposure Parameters'!H63),\"  \",'Step 3 Exposure Parameters'!H63)","v":" "},{"$f":"IF(ISBLANK('Step 3 Exposure Parameters'!I63),\"  \",'Step 3 Exposure Parameters'!I63)","v":" "},{"$f":"IF(ISBLANK('Step 3 Exposure Parameters'!J63),\"  \",'Step 3 Exposure Parameters'!J63)","v":"  "},{"$f":"IF(ISBLANK('Step 3 Exposure Parameters'!K63),\"  \",'Step 3 Exposure Parameters'!K63)","v":"  "}]
[null," "," ","--","--","--",null,null,{"$f":"IF(ISBLANK('Step 3 Exposure Parameters'!$B64),\" \",'Step 3 Exposure Parameters'!$B64)","v":" "},{"$f":"IF(ISBLANK('Step 3 Exposure Parameters'!$C64),\" \",'Step 3 Exposure Parameters'!$C64)","v":" "},{"$f":"IF(ISBLANK('Step 3 Exposure Parameters'!D64),\"  \",'Step 3 Exposure Parameters'!D64)","v":"  "},{"$f":"IF(ISBLANK('Step 3 Exposure Parameters'!E64),\"  \",'Step 3 Exposure Parameters'!E64)","v":"  "},{"$f":"IF(ISBLANK('Step 3 Exposure Parameters'!F64),\"  \",'Step 3 Exposure Parameters'!F64)","v":" "},{"$f":"IF(ISBLANK('Step 3 Exposure Parameters'!G64),\"  \",'Step 3 Exposure Parameters'!G64)","v":" "},{"$f":"IF(ISBLANK('Step 3 Exposure Parameters'!H64),\"  \",'Step 3 Exposure Parameters'!H64)","v":" "},{"$f":"IF(ISBLANK('Step 3 Exposure Parameters'!I64),\"  \",'Step 3 Exposure Parameters'!I64)","v":" "},{"$f":"IF(ISBLANK('Step 3 Exposure Parameters'!J64),\"  \",'Step 3 Exposure Parameters'!J64)","v":"  "},{"$f":"IF(ISBLANK('Step 3 Exposure Parameters'!K64),\"  \",'Step 3 Exposure Parameters'!K64)","v":"  "}]
[null," "," ","--","--","--",null,null,{"$f":"IF(ISBLANK('Step 3 Exposure Parameters'!$B65),\" \",'Step 3 Exposure Parameters'!$B65)","v":" "},{"$f":"IF(ISBLANK('Step 3 Exposure Parameters'!$C65),\" \",'Step 3 Exposure Parameters'!$C65)","v":" "},{"$f":"IF(ISBLANK('Step 3 Exposure Parameters'!D65),\"  \",'Step 3 Exposure Parameters'!D65)","v":"  "},{"$f":"IF(ISBLANK('Step 3 Exposure Parameters'!E65),\"  \",'Step 3 Exposure Parameters'!E65)","v":"  "},{"$f":"IF(ISBLANK('Step 3 Exposure Parameters'!F65),\"  \",'Step 3 Exposure Parameters'!F65)","v":" "},{"$f":"IF(ISBLANK('Step 3 Exposure Parameters'!G65),\"  \",'Step 3 Exposure Parameters'!G65)","v":" "},{"$f":"IF(ISBLANK('Step 3 Exposure Parameters'!H65),\"  \",'Step 3 Exposure Parameters'!H65)","v":" "},{"$f":"IF(ISBLANK('Step 3 Exposure Parameters'!I65),\"  \",'Step 3 Exposure Parameters'!I65)","v":" "},{"$f":"IF(ISBLANK('Step 3 Exposure Parameters'!J65),\"  \",'Step 3 Exposure Parameters'!J65)","v":"  "},{"$f":"IF(ISBLANK('Step 3 Exposure Parameters'!K65),\"  \",'Step 3 Exposure Parameters'!K65)","v":"  "}]
[null," "," ","--","--","--",null,null,{"$f":"IF(ISBLANK('Step 3 Exposure Parameters'!$B66),\" \",'Step 3 Exposure Parameters'!$B66)","v":" "},{"$f":"IF(ISBLANK('Step 3 Exposure Parameters'!$C66),\" \",'Step 3 Exposure Parameters'!$C66)","v":" "},{"$f":"IF(ISBLANK('Step 3 Exposure Parameters'!D66),\"  \",'Step 3 Exposure Parameters'!D66)","v":"  "},{"$f":"IF(ISBLANK('Step 3 Exposure Parameters'!E66),\"  \",'Step 3 Exposure Parameters'!E66)","v":"  "},{"$f":"IF(ISBLANK('Step 3 Exposure Parameters'!F66),\"  \",'Step 3 Exposure Parameters'!F66)","v":" "},{"$f":"IF(ISBLANK('Step 3 Exposure Parameters'!G66),\"  \",'Step 3 Exposure Parameters'!G66)","v":" "},{"$f":"IF(ISBLANK('Step 3 Exposure Parameters'!H66),\"  \",'Step 3 Exposure Parameters'!H66)","v":" "},{"$f":"IF(ISBLANK('Step 3 Exposure Parameters'!I66),\"  \",'Step 3 Exposure Parameters'!I66)","v":" "},{"$f":"IF(ISBLANK('Step 3 Exposure Parameters'!J66),\"  \",'Step 3 Exposure Parameters'!J66)","v":"  "},{"$f":"IF(ISBLANK('Step 3 Exposure Parameters'!K66),\"  \",'Step 3 Exposure Parameters'!K66)","v":"  "}]
[null," "," ","--","--","--",null,null,{"$f":"IF(ISBLANK('Step 3 Exposure Parameters'!$B67),\" \",'Step 3 Exposure Parameters'!$B67)","v":" "},{"$f":"IF(ISBLANK('Step 3 Exposure Parameters'!$C67),\" \",'Step 3 Exposure Parameters'!$C67)","v":" "},{"$f":"IF(ISBLANK('Step 3 Exposure Parameters'!D67),\"  \",'Step 3 Exposure Parameters'!D67)","v":"  "},{"$f":"IF(ISBLANK('Step 3 Exposure Parameters'!E67),\"  \",'Step 3 Exposure Parameters'!E67)","v":"  "},{"$f":"IF(ISBLANK('Step 3 Exposure Parameters'!F67),\"  \",'Step 3 Exposure Parameters'!F67)","v":" "},{"$f":"IF(ISBLANK('Step 3 Exposure Parameters'!G67),\"  \",'Step 3 Exposure Parameters'!G67)","v":" "},{"$f":"IF(ISBLANK('Step 3 Exposure Parameters'!H67),\"  \",'Step 3 Exposure Parameters'!H67)","v":" "},{"$f":"IF(ISBLANK('Step 3 Exposure Parameters'!I67),\"  \",'Step 3 Exposure Parameters'!I67)","v":" "},{"$f":"IF(ISBLANK('Step 3 Exposure Parameters'!J67),\"  \",'Step 3 Exposure Parameters'!J67)","v":"  "},{"$f":"IF(ISBLANK('Step 3 Exposure Parameters'!K67),\"  \",'Step 3 Exposure Parameters'!K67)","v":"  "}]
[null," ","Lowest Tissue Screening Level:",null,null,{"$f":"IF(B35=\" \",\"--\",MIN(F35:F40))","v":"--"},null,null,{"$f":"IF(ISBLANK(I35),\" \",I35)","v":" "}]
[null," ",{"$f":"J42","v":" "},{"$f":"IF(B42=\" \",\"--\",IF(C42=\" \",\"--\",IF(L42=0,IF(K42=0,\"--\",K42),((L42*N42*O42)/(P42*M42)))))","v":"--"},{"$f":"IF(B42=\" \",\"--\",IF(C42=\" \",\"--\",IF(Q42=0,\"--\",Q42/R42)))","v":"--"},{"$f":"IF(MIN(D42:E42)>0,MIN(D42:E42),\"--\")","v":"--"},null,null,{"$f":"IF(ISBLANK('Step 3 Exposure Parameters'!$B68),\" \",'Step 3 Exposure Parameters'!$B68)","v":" "},{"$f":"IF(ISBLANK('Step 3 Exposure Parameters'!$C68),\" \",'Step 3 Exposure Parameters'!$C68)","v":" "},{"$f":"IF(ISBLANK('Step 3 Exposure Parameters'!D68),\"  \",'Step 3 Exposure Parameters'!D68)","v":"  "},{"$f":"IF(ISBLANK('Step 3 Exposure Parameters'!E68),\"  \",'Step 3 Exposure Parameters'!E68)","v":"  "},{"$f":"IF(ISBLANK('Step 3 Exposure Parameters'!F68),\"  \",'Step 3 Exposure Parameters'!F68)","v":" "},{"$f":"IF(ISBLANK('Step 3 Exposure Parameters'!G68),\"  \",'Step 3 Exposure Parameters'!G68)","v":" "},{"$f":"IF(ISBLANK('Step 3 Exposure Parameters'!H68),\"  \",'Step 3 Exposure Parameters'!H68)","v":" "},{"$f":"IF(ISBLANK('Step 3 Exposure Parameters'!I68),\"  \",'Step 3 Exposure Parameters'!I68)","v":" "},{"$f":"IF(ISBLANK('Step 3 Exposure Parameters'!J68),\"  \",'Step 3 Exposure Parameters'!J68)","v":"  "},{"$f":"IF(ISBLANK('Step 3 Exposure Parameters'!K68),\"  \",'Step 3 Exposure Parameters'!K68)","v":"  "}]
[null," ",{"$f":"J43","v":" "},{"$f":"IF(B43=\" \",\"--\",IF(C43=\" \",\"--\",IF(L43=0,IF(K43=0,\"--\",K43),((L43*N43*O43)/(P43*M43)))))","v":"--"},{"$f":"IF(B43=\" \",\"--\",IF(C43=\" \",\"--\",IF(Q43=0,\"--\",Q43/R43)))","v":"--"},{"$f":"IF(MIN(D43:E43)>0,MIN(D43:E43),\"--\")","v":"--"},null,null,{"$f":"IF(ISBLANK('Step 3 Exposure Parameters'!$B69),\" \",'Step 3 Exposure Parameters'!$B69)","v":" "},{"$f":"IF(ISBLANK('Step 3 Exposure Parameters'!$C69),\" \",'Step 3 Exposure Parameters'!$C69)","v":" "},{"$f":"IF(ISBLANK('Step 3 Exposure Parameters'!D69),\"  \",'Step 3 Exposure Parameters'!D69)","v":"  "},{"$f":"IF(ISBLANK('Step 3 Exposure Parameters'!E69),\"  \",'Step 3 Exposure Parameters'!E69)","v":"  "},{"$f":"IF(ISBLANK('Step 3 Exposure Parameters'!F69),\"  \",'Step 3 Exposure Parameters'!F69)","v":" "},{"$f":"IF(ISBLANK('Step 3 Exposure Parameters'!G69),\"  \",'Step 3 Exposure Parameters'!G69)","v":" "},{"$f":"IF(ISBLANK('Step 3 Exposure Parameters'!H69),\"  \",'Step 3 Exposure Parameters'!H69)","v":" "},{"$f":"IF(ISBLANK('Step 3 Exposure Parameters'!I69),\"  \",'Step 3 Exposure Parameters'!I69)","v":" "},{"$f":"IF(ISBLANK('Step 3 Exposure Parameters'!J69),\"  \",'Step 3 Exposure Parameters'!J69)","v":"  "},{"$f":"IF(ISBLANK('Step 3 Exposure Parameters'!K69),\"  \",'Step 3 Exposure Parameters'!K69)","v":"  "}]
[null," "," ","--","--","--",null,null,{"$f":"IF(ISBLANK('Step 3 Exposure Parameters'!$B70),\" \",'Step 3 Exposure Parameters'!$B70)","v":" "},{"$f":"IF(ISBLANK('Step 3 Exposure Parameters'!$C70),\" \",'Step 3 Exposure Parameters'!$C70)","v":" "},{"$f":"IF(ISBLANK('Step 3 Exposure Parameters'!D70),\"  \",'Step 3 Exposure Parameters'!D70)","v":"  "},{"$f":"IF(ISBLANK('Step 3 Exposure Parameters'!E70),\"  \",'Step 3 Exposure Parameters'!E70)","v":"  "},{"$f":"IF(ISBLANK('Step 3 Exposure Parameters'!F70),\"  \",'Step 3 Exposure Parameters'!F70)","v":" "},{"$f":"IF(ISBLANK('Step 3 Exposure Parameters'!G70),\"  \",'Step 3 Exposure Parameters'!G70)","v":" "},{"$f":"IF(ISBLANK('Step 3 Exposure Parameters'!H70),\"  \",'Step 3 Exposure Parameters'!H70)","v":" "},{"$f":"IF(ISBLANK('Step 3 Exposure Parameters'!I70),\"  \",'Step 3 Exposure Parameters'!I70)","v":" "},{"$f":"IF(ISBLANK('Step 3 Exposure Parameters'!J70),\"  \",'Step 3 Exposure Parameters'!J70)","v":"  "},{"$f":"IF(ISBLANK('Step 3 Exposure Parameters'!K70),\"  \",'Step 3 Exposure Parameters'!K70)","v":"  "}]
[null," "," ","--","--","--",null,null,{"$f":"IF(ISBLANK('Step 3 Exposure Parameters'!$B71),\" \",'Step 3 Exposure Parameters'!$B71)","v":" "},{"$f":"IF(ISBLANK('Step 3 Exposure Parameters'!$C71),\" \",'Step 3 Exposure Parameters'!$C71)","v":" "},{"$f":"IF(ISBLANK('Step 3 Exposure Parameters'!D71),\"  \",'Step 3 Exposure Parameters'!D71)","v":"  "},{"$f":"IF(ISBLANK('Step 3 Exposure Parameters'!E71),\"  \",'Step 3 Exposure Parameters'!E71)","v":"  "},{"$f":"IF(ISBLANK('Step 3 Exposure Parameters'!F71),\"  \",'Step 3 Exposure Parameters'!F71)","v":" "},{"$f":"IF(ISBLANK('Step 3 Exposure Parameters'!G71),\"  \",'Step 3 Exposure Parameters'!G71)","v":" "},{"$f":"IF(ISBLANK('Step 3 Exposure Parameters'!H71),\"  \",'Step 3 Exposure Parameters'!H71)","v":" "},{"$f":"IF(ISBLANK('Step 3 Exposure Parameters'!I71),\"  \",'Step 3 Exposure Parameters'!I71)","v":" "},{"$f":"IF(ISBLANK('Step 3 Exposure Parameters'!J71),\"  \",'Step 3 Exposure Parameters'!J71)","v":"  "},{"$f":"IF(ISBLANK('Step 3 Exposure Parameters'!K71),\"  \",'Step 3 Exposure Parameters'!K71)","v":"  "}]
[null," "," ","--","--","--",null,null,{"$f":"IF(ISBLANK('Step 3 Exposure Parameters'!$B72),\" \",'Step 3 Exposure Parameters'!$B72)","v":" "},{"$f":"IF(ISBLANK('Step 3 Exposure Parameters'!$C72),\" \",'Step 3 Exposure Parameters'!$C72)","v":" "},{"$f":"IF(ISBLANK('Step 3 Exposure Parameters'!D72),\"  \",'Step 3 Exposure Parameters'!D72)","v":"  "},{"$f":"IF(ISBLANK('Step 3 Exposure Parameters'!E72),\"  \",'Step 3 Exposure Parameters'!E72)","v":"  "},{"$f":"IF(ISBLANK('Step 3 Exposure Parameters'!F72),\"  \",'Step 3 Exposure Parameters'!F72)","v":" "},{"$f":"IF(ISBLANK('Step 3 Exposure Parameters'!G72),\"  \",'Step 3 Exposure Parameters'!G72)","v":" "},{"$f":"IF(ISBLANK('Step 3 Exposure Parameters'!H72),\"  \",'Step 3 Exposure Parameters'!H72)","v":" "},{"$f":"IF(ISBLANK('Step 3 Exposure Parameters'!I72),\"  \",'Step 3 Exposure Parameters'!I72)","v":" "},{"$f":"IF(ISBLANK('Step 3 Exposure Parameters'!J72),\"  \",'Step 3 Exposure Parameters'!J72)","v":"  "},{"$f":"IF(ISBLANK('Step 3 Exposure Parameters'!K72),\"  \",'Step 3 Exposure Parameters'!K72)","v":"  "}]
[null," "," ","--","--","--",null,null,{"$f":"IF(ISBLANK('Step 3 Exposure Parameters'!$B73),\" \",'Step 3 Exposure Parameters'!$B73)","v":" "},{"$f":"IF(ISBLANK('Step 3 Exposure Parameters'!$C73),\" \",'Step 3 Exposure Parameters'!$C73)","v":" "},{"$f":"IF(ISBLANK('Step 3 Exposure Parameters'!D73),\"  \",'Step 3 Exposure Parameters'!D73)","v":"  "},{"$f":"IF(ISBLANK('Step 3 Exposure Parameters'!E73),\"  \",'Step 3 Exposure Parameters'!E73)","v":"  "},{"$f":"IF(ISBLANK('Step 3 Exposure Parameters'!F73),\"  \",'Step 3 Exposure Parameters'!F73)","v":" "},{"$f":"IF(ISBLANK('Step 3 Exposure Parameters'!G73),\"  \",'Step 3 Exposure Parameters'!G73)","v":" "},{"$f":"IF(ISBLANK('Step 3 Exposure Parameters'!H73),\"  \",'Step 3 Exposure Parameters'!H73)","v":" "},{"$f":"IF(ISBLANK('Step 3 Exposure Parameters'!I73),\"  \",'Step 3 Exposure Parameters'!I73)","v":" "},{"$f":"IF(ISBLANK('Step 3 Exposure Parameters'!J73),\"  \",'Step 3 Exposure Parameters'!J73)","v":"  "},{"$f":"IF(ISBLANK('Step 3 Exposure Parameters'!K73),\"  \",'Step 3 Exposure Parameters'!K73)","v":"  "}]
[null," ","Lowest Tissue Screening Level:",null,null,{"$f":"IF(B42=\" \",\"--\",MIN(F42:F47))","v":"--"},null,null,{"$f":"IF(ISBLANK(I42),\" \",I42)","v":" "}]
[null," ",{"$f":"J49","v":" "},{"$f":"IF(B49=\" \",\"--\",IF(C49=\" \",\"--\",IF(L49=0,IF(K49=0,\"--\",K49),((L49*N49*O49)/(P49*M49)))))","v":"--"},{"$f":"IF(B49=\" \",\"--\",IF(C49=\" \",\"--\",IF(Q49=0,\"--\",Q49/R49)))","v":"--"},{"$f":"IF(MIN(D49:E49)>0,MIN(D49:E49),\"--\")","v":"--"},null,null,{"$f":"IF(ISBLANK('Step 3 Exposure Parameters'!$B74),\" \",'Step 3 Exposure Parameters'!$B74)","v":" "},{"$f":"IF(ISBLANK('Step 3 Exposure Parameters'!$C74),\" \",'Step 3 Exposure Parameters'!$C74)","v":" "},{"$f":"IF(ISBLANK('Step 3 Exposure Parameters'!D74),\"  \",'Step 3 Exposure Parameters'!D74)","v":"  "},{"$f":"IF(ISBLANK('Step 3 Exposure Parameters'!E74),\"  \",'Step 3 Exposure Parameters'!E74)","v":"  "},{"$f":"IF(ISBLANK('Step 3 Exposure Parameters'!F74),\"  \",'Step 3 Exposure Parameters'!F74)","v":" "},{"$f":"IF(ISBLANK('Step 3 Exposure Parameters'!G74),\"  \",'Step 3 Exposure Parameters'!G74)","v":" "},{"$f":"IF(ISBLANK('Step 3 Exposure Parameters'!H74),\"  \",'Step 3 Exposure Parameters'!H74)","v":" "},{"$f":"IF(ISBLANK('Step 3 Exposure Parameters'!I74),\"  \",'Step 3 Exposure Parameters'!I74)","v":" "},{"$f":"IF(ISBLANK('Step 3 Exposure Parameters'!J74),\"  \",'Step 3 Exposure Parameters'!J74)","v":"  "},{"$f":"IF(ISBLANK('Step 3 Exposure Parameters'!K74),\"  \",'Step 3 Exposure Parameters'!K74)","v":"  "}]
[null," ",{"$f":"J50","v":" "},{"$f":"IF(B50=\" \",\"--\",IF(C50=\" \",\"--\",IF(L50=0,IF(K50=0,\"--\",K50),((L50*N50*O50)/(P50*M50)))))","v":"--"},{"$f":"IF(B50=\" \",\"--\",IF(C50=\" \",\"--\",IF(Q50=0,\"--\",Q50/R50)))","v":"--"},{"$f":"IF(MIN(D50:E50)>0,MIN(D50:E50),\"--\")","v":"--"},null,null,{"$f":"IF(ISBLANK('Step 3 Exposure Parameters'!$B75),\" \",'Step 3 Exposure Parameters'!$B75)","v":" "},{"$f":"IF(ISBLANK('Step 3 Exposure Parameters'!$C75),\" \",'Step 3 Exposure Parameters'!$C75)","v":" "},{"$f":"IF(ISBLANK('Step 3 Exposure Parameters'!D75),\"  \",'Step 3 Exposure Parameters'!D75)","v":"  "},{"$f":"IF(ISBLANK('Step 3 Exposure Parameters'!E75),\"  \",'Step 3 Exposure Parameters'!E75)","v":"  "},{"$f":"IF(ISBLANK('Step 3 Exposure Parameters'!F75),\"  \",'Step 3 Exposure Parameters'!F75)","v":" "},{"$f":"IF(ISBLANK('Step 3 Exposure Parameters'!G75),\"  \",'Step 3 Exposure Parameters'!G75)","v":" "},{"$f":"IF(ISBLANK('Step 3 Exposure Parameters'!H75),\"  \",'Step 3 Exposure Parameters'!H75)","v":" "},{"$f":"IF(ISBLANK('Step 3 Exposure Parameters'!I75),\"  \",'Step 3 Exposure Parameters'!I75)","v":" "},{"$f":"IF(ISBLANK('Step 3 Exposure Parameters'!J75),\"  \",'Step 3 Exposure Parameters'!J75)","v":"  "},{"$f":"IF(ISBLANK('Step 3 Exposure Parameters'!K75),\"  \",'Step 3 Exposure Parameters'!K75)","v":"  "}]
[null," "," ","--","--","--",null,null,{"$f":"IF(ISBLANK('Step 3 Exposure Parameters'!$B76),\" \",'Step 3 Exposure Parameters'!$B76)","v":" "},{"$f":"IF(ISBLANK('Step 3 Exposure Parameters'!$C76),\" \",'Step 3 Exposure Parameters'!$C76)","v":" "},{"$f":"IF(ISBLANK('Step 3 Exposure Parameters'!D76),\"  \",'Step 3 Exposure Parameters'!D76)","v":"  "},{"$f":"IF(ISBLANK('Step 3 Exposure Parameters'!E76),\"  \",'Step 3 Exposure Parameters'!E76)","v":"  "},{"$f":"IF(ISBLANK('Step 3 Exposure Parameters'!F76),\"  \",'Step 3 Exposure Parameters'!F76)","v":" "},{"$f":"IF(ISBLANK('Step 3 Exposure Parameters'!G76),\"  \",'Step 3 Exposure Parameters'!G76)","v":" "},{"$f":"IF(ISBLANK('Step 3 Exposure Parameters'!H76),\"  \",'Step 3 Exposure Parameters'!H76)","v":" "},{"$f":"IF(ISBLANK('Step 3 Exposure Parameters'!I76),\"  \",'Step 3 Exposure Parameters'!I76)","v":" "},{"$f":"IF(ISBLANK('Step 3 Exposure Parameters'!J76),\"  \",'Step 3 Exposure Parameters'!J76)","v":"  "},{"$f":"IF(ISBLANK('Step 3 Exposure Parameters'!K76),\"  \",'Step 3 Exposure Parameters'!K76)","v":"  "}]
[null," "," ","--","--","--",null,null,{"$f":"IF(ISBLANK('Step 3 Exposure Parameters'!$B77),\" \",'Step 3 Exposure Parameters'!$B77)","v":" "},{"$f":"IF(ISBLANK('Step 3 Exposure Parameters'!$C77),\" \",'Step 3 Exposure Parameters'!$C77)","v":" "},{"$f":"IF(ISBLANK('Step 3 Exposure Parameters'!D77),\"  \",'Step 3 Exposure Parameters'!D77)","v":"  "},{"$f":"IF(ISBLANK('Step 3 Exposure Parameters'!E77),\"  \",'Step 3 Exposure Parameters'!E77)","v":"  "},{"$f":"IF(ISBLANK('Step 3 Exposure Parameters'!F77),\"  \",'Step 3 Exposure Parameters'!F77)","v":" "},{"$f":"IF(ISBLANK('Step 3 Exposure Parameters'!G77),\"  \",'Step 3 Exposure Parameters'!G77)","v":" "},{"$f":"IF(ISBLANK('Step 3 Exposure Parameters'!H77),\"  \",'Step 3 Exposure Parameters'!H77)","v":" "},{"$f":"IF(ISBLANK('Step 3 Exposure Parameters'!I77),\"  \",'Step 3 Exposure Parameters'!I77)","v":" "},{"$f":"IF(ISBLANK('Step 3 Exposure Parameters'!J77),\"  \",'Step 3 Exposure Parameters'!J77)","v":"  "},{"$f":"IF(ISBLANK('Step 3 Exposure Parameters'!K77),\"  \",'Step 3 Exposure Parameters'!K77)","v":"  "}]
[null," "," ","--","--","--",null,null,{"$f":"IF(ISBLANK('Step 3 Exposure Parameters'!$B78),\" \",'Step 3 Exposure Parameters'!$B78)","v":" "},{"$f":"IF(ISBLANK('Step 3 Exposure Parameters'!$C78),\" \",'Step 3 Exposure Parameters'!$C78)","v":" "},{"$f":"IF(ISBLANK('Step 3 Exposure Parameters'!D78),\"  \",'Step 3 Exposure Parameters'!D78)","v":"  "},{"$f":"IF(ISBLANK('Step 3 Exposure Parameters'!E78),\"  \",'Step 3 Exposure Parameters'!E78)","v":"  "},{"$f":"IF(ISBLANK('Step 3 Exposure Parameters'!F78),\"  \",'Step 3 Exposure Parameters'!F78)","v":" "},{"$f":"IF(ISBLANK('Step 3 Exposure Parameters'!G78),\"  \",'Step 3 Exposure Parameters'!G78)","v":" "},{"$f":"IF(ISBLANK('Step 3 Exposure Parameters'!H78),\"  \",'Step 3 Exposure Parameters'!H78)","v":" "},{"$f":"IF(ISBLANK('Step 3 Exposure Parameters'!I78),\"  \",'Step 3 Exposure Parameters'!I78)","v":" "},{"$f":"IF(ISBLANK('Step 3 Exposure Parameters'!J78),\"  \",'Step 3 Exposure Parameters'!J78)","v":"  "},{"$f":"IF(ISBLANK('Step 3 Exposure Parameters'!K78),\"  \",'Step 3 Exposure Parameters'!K78)","v":"  "}]
[null," "," ","--","--","--",null,null,{"$f":"IF(ISBLANK('Step 3 Exposure Parameters'!$B79),\" \",'Step 3 Exposure Parameters'!$B79)","v":" "},{"$f":"IF(ISBLANK('Step 3 Exposure Parameters'!$C79),\" \",'Step 3 Exposure Parameters'!$C79)","v":" "},{"$f":"IF(ISBLANK('Step 3 Exposure Parameters'!D79),\"  \",'Step 3 Exposure Parameters'!D79)","v":"  "},{"$f":"IF(ISBLANK('Step 3 Exposure Parameters'!E79),\"  \",'Step 3 Exposure Parameters'!E79)","v":"  "},{"$f":"IF(ISBLANK('Step 3 Exposure Parameters'!F79),\"  \",'Step 3 Exposure Parameters'!F79)","v":" "},{"$f":"IF(ISBLANK('Step 3 Exposure Parameters'!G79),\"  \",'Step 3 Exposure Parameters'!G79)","v":" "},{"$f":"IF(ISBLANK('Step 3 Exposure Parameters'!H79),\"  \",'Step 3 Exposure Parameters'!H79)","v":" "},{"$f":"IF(ISBLANK('Step 3 Exposure Parameters'!I79),\"  \",'Step 3 Exposure Parameters'!I79)","v":" "},{"$f":"IF(ISBLANK('Step 3 Exposure Parameters'!J79),\"  \",'Step 3 Exposure Parameters'!J79)","v":"  "},{"$f":"IF(ISBLANK('Step 3 Exposure Parameters'!K79),\"  \",'Step 3 Exposure Parameters'!K79)","v":"  "}]
[null," ","Lowest Tissue Screening Level:",null,null,{"$f":"IF(B49=\" \",\"--\",MIN(F49:F54))","v":"--"},null,null,{"$f":"IF(ISBLANK(I49),\" \",I49)","v":" "}]
[null," ",{"$f":"J56","v":" "},{"$f":"IF(B56=\" \",\"--\",IF(C56=\" \",\"--\",IF(L56=0,IF(K56=0,\"--\",K56),((L56*N56*O56)/(P56*M56)))))","v":"--"},{"$f":"IF(B56=\" \",\"--\",IF(C56=\" \",\"--\",IF(Q56=0,\"--\",Q56/R56)))","v":"--"},{"$f":"IF(MIN(D56:E56)>0,MIN(D56:E56),\"--\")","v":"--"},null,null,{"$f":"IF(ISBLANK('Step 3 Exposure Parameters'!$B80),\" \",'Step 3 Exposure Parameters'!$B80)","v":" "},{"$f":"IF(ISBLANK('Step 3 Exposure Parameters'!$C80),\" \",'Step 3 Exposure Parameters'!$C80)","v":" "},{"$f":"IF(ISBLANK('Step 3 Exposure Parameters'!D80),\"  \",'Step 3 Exposure Parameters'!D80)","v":"  "},{"$f":"IF(ISBLANK('Step 3 Exposure Parameters'!E80),\"  \",'Step 3 Exposure Parameters'!E80)","v":"  "},{"$f":"IF(ISBLANK('Step 3 Exposure Parameters'!F80),\"  \",'Step 3 Exposure Parameters'!F80)","v":" "},{"$f":"IF(ISBLANK('Step 3 Exposure Parameters'!G80),\"  \",'Step 3 Exposure Parameters'!G80)","v":" "},{"$f":"IF(ISBLANK('Step 3 Exposure Parameters'!H80),\"  \",'Step 3 Exposure Parameters'!H80)","v":" "},{"$f":"IF(ISBLANK('Step 3 Exposure Parameters'!I80),\"  \",'Step 3 Exposure Parameters'!I80)","v":" "},{"$f":"IF(ISBLANK('Step 3 Exposure Parameters'!J80),\"  \",'Step 3 Exposure Parameters'!J80)","v":"  "},{"$f":"IF(ISBLANK('Step 3 Exposure Parameters'!K80),\"  \",'Step 3 Exposure Parameters'!K80)","v":"  "}]
[null," ",{"$f":"J57","v":" "},{"$f":"IF(B57=\" \",\"--\",IF(C57=\" \",\"--\",IF(L57=0,IF(K57=0,\"--\",K57),((L57*N57*O57)/(P57*M57)))))","v":"--"},{"$f":"IF(B57=\" \",\"--\",IF(C57=\" \",\"--\",IF(Q57=0,\"--\",Q57/R57)))","v":"--"},{"$f":"IF(MIN(D57:E57)>0,MIN(D57:E57),\"--\")","v":"--"},null,null,{"$f":"IF(ISBLANK('Step 3 Exposure Parameters'!$B81),\" \",'Step 3 Exposure Parameters'!$B81)","v":" "},{"$f":"IF(ISBLANK('Step 3 Exposure Parameters'!$C81),\" \",'Step 3 Exposure Parameters'!$C81)","v":" "},{"$f":"IF(ISBLANK('Step 3 Exposure Parameters'!D81),\"  \",'Step 3 Exposure Parameters'!D81)","v":"  "},{"$f":"IF(ISBLANK('Step 3 Exposure Parameters'!E81),\"  \",'Step 3 Exposure Parameters'!E81)","v":"  "},{"$f":"IF(ISBLANK('Step 3 Exposure Parameters'!F81),\"  \",'Step 3 Exposure Parameters'!F81)","v":" "},{"$f":"IF(ISBLANK('Step 3 Exposure Parameters'!G81),\"  \",'Step 3 Exposure Parameters'!G81)","v":" "},{"$f":"IF(ISBLANK('Step 3 Exposure Parameters'!H81),\"  \",'Step 3 Exposure Parameters'!H81)","v":" "},{"$f":"IF(ISBLANK('Step 3 Exposure Parameters'!I81),\"  \",'Step 3 Exposure Parameters'!I81)","v":" "},{"$f":"IF(ISBLANK('Step 3 Exposure Parameters'!J81),\"  \",'Step 3 Exposure Parameters'!J81)","v":"  "},{"$f":"IF(ISBLANK('Step 3 Exposure Parameters'!K81),\"  \",'Step 3 Exposure Parameters'!K81)","v":"  "}]
[null," "," ","--","--","--",null,null,{"$f":"IF(ISBLANK('Step 3 Exposure Parameters'!$B82),\" \",'Step 3 Exposure Parameters'!$B82)","v":" "},{"$f":"IF(ISBLANK('Step 3 Exposure Parameters'!$C82),\" \",'Step 3 Exposure Parameters'!$C82)","v":" "},{"$f":"IF(ISBLANK('Step 3 Exposure Parameters'!D82),\"  \",'Step 3 Exposure Parameters'!D82)","v":"  "},{"$f":"IF(ISBLANK('Step 3 Exposure Parameters'!E82),\"  \",'Step 3 Exposure Parameters'!E82)","v":"  "},{"$f":"IF(ISBLANK('Step 3 Exposure Parameters'!F82),\"  \",'Step 3 Exposure Parameters'!F82)","v":" "},{"$f":"IF(ISBLANK('Step 3 Exposure Parameters'!G82),\"  \",'Step 3 Exposure Parameters'!G82)","v":" "},{"$f":"IF(ISBLANK('Step 3 Exposure Parameters'!H82),\"  \",'Step 3 Exposure Parameters'!H82)","v":" "},{"$f":"IF(ISBLANK('Step 3 Exposure Parameters'!I82),\"  \",'Step 3 Exposure Parameters'!I82)","v":" "},{"$f":"IF(ISBLANK('Step 3 Exposure Parameters'!J82),\"  \",'Step 3 Exposure Parameters'!J82)","v":"  "},{"$f":"IF(ISBLANK('Step 3 Exposure Parameters'!K82),\"  \",'Step 3 Exposure Parameters'!K82)","v":"  "}]
[null," "," ","--","--","--",null,null,{"$f":"IF(ISBLANK('Step 3 Exposure Parameters'!$B83),\" \",'Step 3 Exposure Parameters'!$B83)","v":" "},{"$f":"IF(ISBLANK('Step 3 Exposure Parameters'!$C83),\" \",'Step 3 Exposure Parameters'!$C83)","v":" "},{"$f":"IF(ISBLANK('Step 3 Exposure Parameters'!D83),\"  \",'Step 3 Exposure Parameters'!D83)","v":"  "},{"$f":"IF(ISBLANK('Step 3 Exposure Parameters'!E83),\"  \",'Step 3 Exposure Parameters'!E83)","v":"  "},{"$f":"IF(ISBLANK('Step 3 Exposure Parameters'!F83),\"  \",'Step 3 Exposure Parameters'!F83)","v":" "},{"$f":"IF(ISBLANK('Step 3 Exposure Parameters'!G83),\"  \",'Step 3 Exposure Parameters'!G83)","v":" "},{"$f":"IF(ISBLANK('Step 3 Exposure Parameters'!H83),\"  \",'Step 3 Exposure Parameters'!H83)","v":" "},{"$f":"IF(ISBLANK('Step 3 Exposure Parameters'!I83),\"  \",'Step 3 Exposure Parameters'!I83)","v":" "},{"$f":"IF(ISBLANK('Step 3 Exposure Parameters'!J83),\"  \",'Step 3 Exposure Parameters'!J83)","v":"  "},{"$f":"IF(ISBLANK('Step 3 Exposure Parameters'!K83),\"  \",'Step 3 Exposure Parameters'!K83)","v":"  "}]
[null," "," ","--","--","--",null,null,{"$f":"IF(ISBLANK('Step 3 Exposure Parameters'!$B84),\" \",'Step 3 Exposure Parameters'!$B84)","v":" "},{"$f":"IF(ISBLANK('Step 3 Exposure Parameters'!$C84),\" \",'Step 3 Exposure Parameters'!$C84)","v":" "},{"$f":"IF(ISBLANK('Step 3 Exposure Parameters'!D84),\"  \",'Step 3 Exposure Parameters'!D84)","v":"  "},{"$f":"IF(ISBLANK('Step 3 Exposure Parameters'!E84),\"  \",'Step 3 Exposure Parameters'!E84)","v":"  "},{"$f":"IF(ISBLANK('Step 3 Exposure Parameters'!F84),\"  \",'Step 3 Exposure Parameters'!F84)","v":" "},{"$f":"IF(ISBLANK('Step 3 Exposure Parameters'!G84),\"  \",'Step 3 Exposure Parameters'!G84)","v":" "},{"$f":"IF(ISBLANK('Step 3 Exposure Parameters'!H84),\"  \",'Step 3 Exposure Parameters'!H84)","v":" "},{"$f":"IF(ISBLANK('Step 3 Exposure Parameters'!I84),\"  \",'Step 3 Exposure Parameters'!I84)","v":" "},{"$f":"IF(ISBLANK('Step 3 Exposure Parameters'!J84),\"  \",'Step 3 Exposure Parameters'!J84)","v":"  "},{"$f":"IF(ISBLANK('Step 3 Exposure Parameters'!K84),\"  \",'Step 3 Exposure Parameters'!K84)","v":"  "}]
[null," "," ","--","--","--",null,null,{"$f":"IF(ISBLANK('Step 3 Exposure Parameters'!$B85),\" \",'Step 3 Exposure Parameters'!$B85)","v":" "},{"$f":"IF(ISBLANK('Step 3 Exposure Parameters'!$C85),\" \",'Step 3 Exposure Parameters'!$C85)","v":" "},{"$f":"IF(ISBLANK('Step 3 Exposure Parameters'!D85),\"  \",'Step 3 Exposure Parameters'!D85)","v":"  "},{"$f":"IF(ISBLANK('Step 3 Exposure Parameters'!E85),\"  \",'Step 3 Exposure Parameters'!E85)","v":"  "},{"$f":"IF(ISBLANK('Step 3 Exposure Parameters'!F85),\"  \",'Step 3 Exposure Parameters'!F85)","v":" "},{"$f":"IF(ISBLANK('Step 3 Exposure Parameters'!G85),\"  \",'Step 3 Exposure Parameters'!G85)","v":" "},{"$f":"IF(ISBLANK('Step 3 Exposure Parameters'!H85),\"  \",'Step 3 Exposure Parameters'!H85)","v":" "},{"$f":"IF(ISBLANK('Step 3 Exposure Parameters'!I85),\"  \",'Step 3 Exposure Parameters'!I85)","v":" "},{"$f":"IF(ISBLANK('Step 3 Exposure Parameters'!J85),\"  \",'Step 3 Exposure Parameters'!J85)","v":"  "},{"$f":"IF(ISBLANK('Step 3 Exposure Parameters'!K85),\"  \",'Step 3 Exposure Parameters'!K85)","v":"  "}]
[null," ","Lowest Tissue Screening Level:",null,null,{"$f":"IF(B56=\" \",\"--\",MIN(F56:F61))","v":"--"},null,null,{"$f":"IF(ISBLANK(I56),\" \",I56)","v":" "}]
[null," ",{"$f":"J63","v":" "},{"$f":"IF(B63=\" \",\"--\",IF(C63=\" \",\"--\",IF(L63=0,IF(K63=0,\"--\",K63),((L63*N63*O63)/(P63*M63)))))","v":"--"},{"$f":"IF(B63=\" \",\"--\",IF(C63=\" \",\"--\",IF(Q63=0,\"--\",Q63/R63)))","v":"--"},{"$f":"IF(MIN(D63:E63)>0,MIN(D63:E63),\"--\")","v":"--"},null,null,{"$f":"IF(ISBLANK('Step 3 Exposure Parameters'!$B86),\" \",'Step 3 Exposure Parameters'!$B86)","v":" "},{"$f":"IF(ISBLANK('Step 3 Exposure Parameters'!$C86),\" \",'Step 3 Exposure Parameters'!$C86)","v":" "},{"$f":"IF(ISBLANK('Step 3 Exposure Parameters'!D86),\"  \",'Step 3 Exposure Parameters'!D86)","v":"  "},{"$f":"IF(ISBLANK('Step 3 Exposure Parameters'!E86),\"  \",'Step 3 Exposure Parameters'!E86)","v":"  "},{"$f":"IF(ISBLANK('Step 3 Exposure Parameters'!F86),\"  \",'Step 3 Exposure Parameters'!F86)","v":" "},{"$f":"IF(ISBLANK('Step 3 Exposure Parameters'!G86),\"  \",'Step 3 Exposure Parameters'!G86)","v":" "},{"$f":"IF(ISBLANK('Step 3 Exposure Parameters'!H86),\"  \",'Step 3 Exposure Parameters'!H86)","v":" "},{"$f":"IF(ISBLANK('Step 3 Exposure Parameters'!I86),\"  \",'Step 3 Exposure Parameters'!I86)","v":" "},{"$f":"IF(ISBLANK('Step 3 Exposure Parameters'!J86),\"  \",'Step 3 Exposure Parameters'!J86)","v":"  "},{"$f":"IF(ISBLANK('Step 3 Exposure Parameters'!K86),\"  \",'Step 3 Exposure Parameters'!K86)","v":"  "}]
[null," ",{"$f":"J64","v":" "},{"$f":"IF(B64=\" \",\"--\",IF(C64=\" \",\"--\",IF(L64=0,IF(K64=0,\"--\",K64),((L64*N64*O64)/(P64*M64)))))","v":"--"},{"$f":"IF(B64=\" \",\"--\",IF(C64=\" \",\"--\",IF(Q64=0,\"--\",Q64/R64)))","v":"--"},{"$f":"IF(MIN(D64:E64)>0,MIN(D64:E64),\"--\")","v":"--"},null,null,{"$f":"IF(ISBLANK('Step 3 Exposure Parameters'!$B87),\" \",'Step 3 Exposure Parameters'!$B87)","v":" "},{"$f":"IF(ISBLANK('Step 3 Exposure Parameters'!$C87),\" \",'Step 3 Exposure Parameters'!$C87)","v":" "},{"$f":"IF(ISBLANK('Step 3 Exposure Parameters'!D87),\"  \",'Step 3 Exposure Parameters'!D87)","v":"  "},{"$f":"IF(ISBLANK('Step 3 Exposure Parameters'!E87),\"  \",'Step 3 Exposure Parameters'!E87)","v":"  "},{"$f":"IF(ISBLANK('Step 3 Exposure Parameters'!F87),\"  \",'Step 3 Exposure Parameters'!F87)","v":" "},{"$f":"IF(ISBLANK('Step 3 Exposure Parameters'!G87),\"  \",'Step 3 Exposure Parameters'!G87)","v":" "},{"$f":"IF(ISBLANK('Step 3 Exposure Parameters'!H87),\"  \",'Step 3 Exposure Parameters'!H87)","v":" "},{"$f":"IF(ISBLANK('Step 3 Exposure Parameters'!I87),\"  \",'Step 3 Exposure Parameters'!I87)","v":" "},{"$f":"IF(ISBLANK('Step 3 Exposure Parameters'!J87),\"  \",'Step 3 Exposure Parameters'!J87)","v":"  "},{"$f":"IF(ISBLANK('Step 3 Exposure Parameters'!K87),\"  \",'Step 3 Exposure Parameters'!K87)","v":"  "}]
[null," "," ","--","--","--",null,null,{"$f":"IF(ISBLANK('Step 3 Exposure Parameters'!$B88),\" \",'Step 3 Exposure Parameters'!$B88)","v":" "},{"$f":"IF(ISBLANK('Step 3 Exposure Parameters'!$C88),\" \",'Step 3 Exposure Parameters'!$C88)","v":" "},{"$f":"IF(ISBLANK('Step 3 Exposure Parameters'!D88),\"  \",'Step 3 Exposure Parameters'!D88)","v":"  "},{"$f":"IF(ISBLANK('Step 3 Exposure Parameters'!E88),\"  \",'Step 3 Exposure Parameters'!E88)","v":"  "},{"$f":"IF(ISBLANK('Step 3 Exposure Parameters'!F88),\"  \",'Step 3 Exposure Parameters'!F88)","v":" "},{"$f":"IF(ISBLANK('Step 3 Exposure Parameters'!G88),\"  \",'Step 3 Exposure Parameters'!G88)","v":" "},{"$f":"IF(ISBLANK('Step 3 Exposure Parameters'!H88),\"  \",'Step 3 Exposure Parameters'!H88)","v":" "},{"$f":"IF(ISBLANK('Step 3 Exposure Parameters'!I88),\"  \",'Step 3 Exposure Parameters'!I88)","v":" "},{"$f":"IF(ISBLANK('Step 3 Exposure Parameters'!J88),\"  \",'Step 3 Exposure Parameters'!J88)","v":"  "},{"$f":"IF(ISBLANK('Step 3 Exposure Parameters'!K88),\"  \",'Step 3 Exposure Parameters'!K88)","v":"  "}]
[null," "," ","--","--","--",null,null,{"$f":"IF(ISBLANK('Step 3 Exposure Parameters'!$B89),\" \",'Step 3 Exposure Parameters'!$B89)","v":" "},{"$f":"IF(ISBLANK('Step 3 Exposure Parameters'!$C89),\" \",'Step 3 Exposure Parameters'!$C89)","v":" "},{"$f":"IF(ISBLANK('Step 3 Exposure Parameters'!D89),\"  \",'Step 3 Exposure Parameters'!D89)","v":"  "},{"$f":"IF(ISBLANK('Step 3 Exposure Parameters'!E89),\"  \",'Step 3 Exposure Parameters'!E89)","v":"  "},{"$f":"IF(ISBLANK('Step 3 Exposure Parameters'!F89),\"  \",'Step 3 Exposure Parameters'!F89)","v":" "},{"$f":"IF(ISBLANK('Step 3 Exposure Parameters'!G89),\"  \",'Step 3 Exposure Parameters'!G89)","v":" "},{"$f":"IF(ISBLANK('Step 3 Exposure Parameters'!H89),\"  \",'Step 3 Exposure Parameters'!H89)","v":" "},{"$f":"IF(ISBLANK('Step 3 Exposure Parameters'!I89),\"  \",'Step 3 Exposure Parameters'!I89)","v":" "},{"$f":"IF(ISBLANK('Step 3 Exposure Parameters'!J89),\"  \",'Step 3 Exposure Parameters'!J89)","v":"  "},{"$f":"IF(ISBLANK('Step 3 Exposure Parameters'!K89),\"  \",'Step 3 Exposure Parameters'!K89)","v":"  "}]
[null," "," ","--","--","--",null,null,{"$f":"IF(ISBLANK('Step 3 Exposure Parameters'!$B90),\" \",'Step 3 Exposure Parameters'!$B90)","v":" "},{"$f":"IF(ISBLANK('Step 3 Exposure Parameters'!$C90),\" \",'Step 3 Exposure Parameters'!$C90)","v":" "},{"$f":"IF(ISBLANK('Step 3 Exposure Parameters'!D90),\"  \",'Step 3 Exposure Parameters'!D90)","v":"  "},{"$f":"IF(ISBLANK('Step 3 Exposure Parameters'!E90),\"  \",'Step 3 Exposure Parameters'!E90)","v":"  "},{"$f":"IF(ISBLANK('Step 3 Exposure Parameters'!F90),\"  \",'Step 3 Exposure Parameters'!F90)","v":" "},{"$f":"IF(ISBLANK('Step 3 Exposure Parameters'!G90),\"  \",'Step 3 Exposure Parameters'!G90)","v":" "},{"$f":"IF(ISBLANK('Step 3 Exposure Parameters'!H90),\"  \",'Step 3 Exposure Parameters'!H90)","v":" "},{"$f":"IF(ISBLANK('Step 3 Exposure Parameters'!I90),\"  \",'Step 3 Exposure Parameters'!I90)","v":" "},{"$f":"IF(ISBLANK('Step 3 Exposure Parameters'!J90),\"  \",'Step 3 Exposure Parameters'!J90)","v":"  "},{"$f":"IF(ISBLANK('Step 3 Exposure Parameters'!K90),\"  \",'Step 3 Exposure Parameters'!K90)","v":"  "}]
[null," "," ","--","--","--",null,null,{"$f":"IF(ISBLANK('Step 3 Exposure Parameters'!$B91),\" \",'Step 3 Exposure Parameters'!$B91)","v":" "},{"$f":"IF(ISBLANK('Step 3 Exposure Parameters'!$C91),\" \",'Step 3 Exposure Parameters'!$C91)","v":" "},{"$f":"IF(ISBLANK('Step 3 Exposure Parameters'!D91),\"  \",'Step 3 Exposure Parameters'!D91)","v":"  "},{"$f":"IF(ISBLANK('Step 3 Exposure Parameters'!E91),\"  \",'Step 3 Exposure Parameters'!E91)","v":"  "},{"$f":"IF(ISBLANK('Step 3 Exposure Parameters'!F91),\"  \",'Step 3 Exposure Parameters'!F91)","v":" "},{"$f":"IF(ISBLANK('Step 3 Exposure Parameters'!G91),\"  \",'Step 3 Exposure Parameters'!G91)","v":" "},{"$f":"IF(ISBLANK('Step 3 Exposure Parameters'!H91),\"  \",'Step 3 Exposure Parameters'!H91)","v":" "},{"$f":"IF(ISBLANK('Step 3 Exposure Parameters'!I91),\"  \",'Step 3 Exposure Parameters'!I91)","v":" "},{"$f":"IF(ISBLANK('Step 3 Exposure Parameters'!J91),\"  \",'Step 3 Exposure Parameters'!J91)","v":"  "},{"$f":"IF(ISBLANK('Step 3 Exposure Parameters'!K91),\"  \",'Step 3 Exposure Parameters'!K91)","v":"  "}]
[null," ","Lowest Tissue Screening Level:",null,null,{"$f":"IF(B63=\" \",\"--\",MIN(F63:F68))","v":"--"},null,null,{"$f":"IF(ISBLANK(I63),\" \",I63)","v":" "}]

{"sheet":"Consumption_Sediment","index":7,"n_rows":43,"n_cols":17,"rows_kept":43,"cut":false,"hidden":false,"merged":[[20,9,21,9],[23,9,24,9]]}
[null,"SCUM Equation 9-11:  Equation for Calculating Risk-Based Sediment Concentrations from Risk-Based Tissue Concentrations:  ",null,null,null,null,null,null,null,null,null,null,"hide","hide","hide","hide","hide"]
[]
[null,"For metals and polar organics","For nonpolar organics and organometals"]
[]
[]
[]
[]
[null,"Risk-Based Sediment Concentrations Based on Fish/Shellfish Consumption by Humans and Higher Trophic Levels",null,null,null,null,null,null,null,null,null,null,"Data from Other Worksheets"]
[null,null,null,"Lowest Higher Tropic Level",null,null,"Sediment Risk-Based"]
["CAS Number","Contaminant of Concern","Human Health Tissue Concentration","Tissue Concentration*","Lowest Tissue Concentration","Class**","Concentration",null,null,null,null,null,"CAS Number","Contaminant of Concern","Human Health Tissue Concentration","BSAF","SUF"]
[{"$f":"M11","v":"7440-38-2"},{"$f":"N11","v":"arsenic, inorganic"},{"$f":"IF(ISNUMBER(O11),O11,\"--\")","v":"--"},null,{"$f":"IF(MIN(C11:D11)>0,MIN(C11:D11),\"--\")","v":"--"},"Metal",{"$f":"IF(F11=\"\",\"--\",IF(ISERROR(IF(E11=\"--\",\"--\",IF(F11=\"Metal\",E11/(P11*Q11),IF(F11=\"Polar Organic\",E11/(P11*Q11),IF(F11=\"Nonpolar Organic\",(E11*('Step 3 Exposure Parameters'!$D$15/100))/(P11*('Step 3 Exposure Parameters'!$D$14/100)*Q11),IF(F11=\"Organometal\",(E11*('Step 3 Exposure Parameters'!$D$15/100))/(P11*('Step 3 Exposure Parameters'!$D$14/100)*Q11))))))),\"--\",IF(E11=\"--\",\"--\",IF(F11=\"Metal\",E11/(P11*Q11),IF(F11=\"Polar Organic\",E11/(P11*Q11),IF(F11=\"Nonpolar Organic\",(E11*('Step 3 Exposure Parameters'!$D$15/100))/(P11*('Step 3 Exposure Parameters'!$D$14/100)*Q11),IF(F11=\"Organometal\",(E11*('Step 3 Exposure Parameters'!$D$15/100))/(P11*('Step 3 Exposure Parameters'!$D$14/100)*Q11))))))))","v":"--"},null,"Abbrev","Definition",null,null,{"$f":"'Step 2 Chemical_Parameters'!A12","v":"7440-38-2"},{"$f":"'Step 2 Chemical_Parameters'!B12","v":"arsenic, inorganic"},{"$f":"IF(ISNUMBER(Consumption_HH_Tissue!F34),Consumption_HH_Tissue!F34,\" --\")","v":" --"},{"$f":"IF(ISBLANK('Step 2 Chemical_Parameters'!D12),\" \",'Step 2 Chemical_Parameters'!D12)","v":" "},{"$f":"IF(M11=\"--\",\" \",IF(ISBLANK('Step 3 Exposure Parameters'!$D$11),1,'Step 3 Exposure Parameters'!$D$11))","v":1}]
[{"$f":"M12","v":"7440-43-9"},"Cadmium",{"$f":"IF(ISNUMBER(O12),O12,\"--\")","v":"--"},null,{"$f":"IF(MIN(C12:D12)>0,MIN(C12:D12),\"--\")","v":"--"},"Metal",{"$f":"IF(F12=\"\",\"--\",IF(ISERROR(IF(E12=\"--\",\"--\",IF(F12=\"Metal\",E12/(P12*Q12),IF(F12=\"Polar Organic\",E12/(P12*Q12),IF(F12=\"Nonpolar Organic\",(E12*('Step 3 Exposure Parameters'!$D$15/100))/(P12*('Step 3 Exposure Parameters'!$D$14/100)*Q12),IF(F12=\"Organometal\",(E12*('Step 3 Exposure Parameters'!$D$15/100))/(P12*('Step 3 Exposure Parameters'!$D$14/100)*Q12))))))),\"--\",IF(E12=\"--\",\"--\",IF(F12=\"Metal\",E12/(P12*Q12),IF(F12=\"Polar Organic\",E12/(P12*Q12),IF(F12=\"Nonpolar Organic\",(E12*('Step 3 Exposure Parameters'!$D$15/100))/(P12*('Step 3 Exposure Parameters'!$D$14/100)*Q12),IF(F12=\"Organometal\",(E12*('Step 3 Exposure Parameters'!$D$15/100))/(P12*('Step 3 Exposure Parameters'!$D$14/100)*Q12))))))))","v":"--"},null,"2,3,7,8-TCDD","2,3,7,8-Tetrachlorodibenzo-p-dioxin ",null,null,{"$f":"'Step 2 Chemical_Parameters'!A13","v":"7440-43-9"},{"$f":"'Step 2 Chemical_Parameters'!B13","v":"Cadmium"},{"$f":"IF(ISNUMBER(Consumption_HH_Tissue!F35),Consumption_HH_Tissue!F35,\" --\")","v":" --"},{"$f":"IF(ISBLANK('Step 2 Chemical_Parameters'!D13),\" \",'Step 2 Chemical_Parameters'!D13)","v":" "},{"$f":"IF(M12=\"--\",\" \",IF(ISBLANK('Step 3 Exposure Parameters'!$D$11),1,'Step 3 Exposure Parameters'!$D$11))","v":1}]
["50-32-8","BENZO[a]PYRENE",{"$f":"IF(ISNUMBER(O13),O13,\"--\")","v":"--"},null,"--","Nonpolar Organic",{"$f":"IF(F13=\"\",\"--\",IF(ISERROR(IF(E13=\"--\",\"--\",IF(F13=\"Metal\",E13/(P13*Q13),IF(F13=\"Polar Organic\",E13/(P13*Q13),IF(F13=\"Nonpolar Organic\",(E13*('Step 3 Exposure Parameters'!$D$15/100))/(P13*('Step 3 Exposure Parameters'!$D$14/100)*Q13),IF(F13=\"Organometal\",(E13*('Step 3 Exposure Parameters'!$D$15/100))/(P13*('Step 3 Exposure Parameters'!$D$14/100)*Q13))))))),\"--\",IF(E13=\"--\",\"--\",IF(F13=\"Metal\",E13/(P13*Q13),IF(F13=\"Polar Organic\",E13/(P13*Q13),IF(F13=\"Nonpolar Organic\",(E13*('Step 3 Exposure Parameters'!$D$15/100))/(P13*('Step 3 Exposure Parameters'!$D$14/100)*Q13),IF(F13=\"Organometal\",(E13*('Step 3 Exposure Parameters'!$D$15/100))/(P13*('Step 3 Exposure Parameters'!$D$14/100)*Q13))))))))","v":"--"},null,"BSAF","Biota-Sediment Accumulation Factor",null,null,{"$f":"'Step 2 Chemical_Parameters'!A14","v":"50-32-8"},{"$f":"'Step 2 Chemical_Parameters'!B14","v":"BENZO[a]PYRENE"},{"$f":"IF(ISNUMBER(Consumption_HH_Tissue!F36),Consumption_HH_Tissue!F36,\" --\")","v":" --"},{"$f":"IF(ISBLANK('Step 2 Chemical_Parameters'!D14),\" \",'Step 2 Chemical_Parameters'!D14)","v":" "},{"$f":"IF(M13=\"--\",\" \",IF(ISBLANK('Step 3 Exposure Parameters'!$D$11),1,'Step 3 Exposure Parameters'!$D$11))","v":1}]
["1746-01-6","TCDD;2,3,7,8 (DIOXIN)","--",null,"--","Nonpolar Organic",{"$f":"IF(F14=\"\",\"--\",IF(ISERROR(IF(E14=\"--\",\"--\",IF(F14=\"Metal\",E14/(P14*Q14),IF(F14=\"Polar Organic\",E14/(P14*Q14),IF(F14=\"Nonpolar Organic\",(E14*('Step 3 Exposure Parameters'!$D$15/100))/(P14*('Step 3 Exposure Parameters'!$D$14/100)*Q14),IF(F14=\"Organometal\",(E14*('Step 3 Exposure Parameters'!$D$15/100))/(P14*('Step 3 Exposure Parameters'!$D$14/100)*Q14))))))),\"--\",IF(E14=\"--\",\"--\",IF(F14=\"Metal\",E14/(P14*Q14),IF(F14=\"Polar Organic\",E14/(P14*Q14),IF(F14=\"Nonpolar Organic\",(E14*('Step 3 Exposure Parameters'!$D$15/100))/(P14*('Step 3 Exposure Parameters'!$D$14/100)*Q14),IF(F14=\"Organometal\",(E14*('Step 3 Exposure Parameters'!$D$15/100))/(P14*('Step 3 Exposure Parameters'!$D$14/100)*Q14))))))))","v":"--"},null,"cPAHs","Carcinogenic PAHs",null,null,{"$f":"'Step 2 Chemical_Parameters'!A15","v":"1746-01-6"},{"$f":"'Step 2 Chemical_Parameters'!B15","v":"TCDD;2,3,7,8 (DIOXIN)"},{"$f":"IF(ISNUMBER(Consumption_HH_Tissue!F37),Consumption_HH_Tissue!F37,\" --\")","v":" --"},{"$f":"IF(ISBLANK('Step 2 Chemical_Parameters'!D15),\" \",'Step 2 Chemical_Parameters'!D15)","v":" "},{"$f":"IF(M14=\"--\",\" \",IF(ISBLANK('Step 3 Exposure Parameters'!$D$11),1,'Step 3 Exposure Parameters'!$D$11))","v":1}]
["7439-92-1","LEAD","--",null,{"$f":"IF(MIN(C15:D15)>0,MIN(C15:D15),\"--\")","v":"--"},"Metal",{"$f":"IF(F15=\"\",\"--\",IF(ISERROR(IF(E15=\"--\",\"--\",IF(F15=\"Metal\",E15/(P15*Q15),IF(F15=\"Polar Organic\",E15/(P15*Q15),IF(F15=\"Nonpolar Organic\",(E15*('Step 3 Exposure Parameters'!$D$15/100))/(P15*('Step 3 Exposure Parameters'!$D$14/100)*Q15),IF(F15=\"Organometal\",(E15*('Step 3 Exposure Parameters'!$D$15/100))/(P15*('Step 3 Exposure Parameters'!$D$14/100)*Q15))))))),\"--\",IF(E15=\"--\",\"--\",IF(F15=\"Metal\",E15/(P15*Q15),IF(F15=\"Polar Organic\",E15/(P15*Q15),IF(F15=\"Nonpolar Organic\",(E15*('Step 3 Exposure Parameters'!$D$15/100))/(P15*('Step 3 Exposure Parameters'!$D$14/100)*Q15),IF(F15=\"Organometal\",(E15*('Step 3 Exposure Parameters'!$D$15/100))/(P15*('Step 3 Exposure Parameters'!$D$14/100)*Q15))))))))","v":"--"},null,"PCB","Polychlorinated Biphenyls",null,null,{"$f":"'Step 2 Chemical_Parameters'!A16","v":"7439-92-1"},{"$f":"'Step 2 Chemical_Parameters'!B16","v":"LEAD"},{"$f":"IF(ISNUMBER(Consumption_HH_Tissue!F38),Consumption_HH_Tissue!F38,\" --\")","v":" --"},{"$f":"IF(ISBLANK('Step 2 Chemical_Parameters'!D16),\" \",'Step 2 Chemical_Parameters'!D16)","v":" "},{"$f":"IF(M15=\"--\",\" \",IF(ISBLANK('Step 3 Exposure Parameters'!$D$11),1,'Step 3 Exposure Parameters'!$D$11))","v":1}]
["22967-92-6","METHYL MERCURY","--",null,"--","Organometal",{"$f":"IF(F16=\"\",\"--\",IF(ISERROR(IF(E16=\"--\",\"--\",IF(F16=\"Metal\",E16/(P16*Q16),IF(F16=\"Polar Organic\",E16/(P16*Q16),IF(F16=\"Nonpolar Organic\",(E16*('Step 3 Exposure Parameters'!$D$15/100))/(P16*('Step 3 Exposure Parameters'!$D$14/100)*Q16),IF(F16=\"Organometal\",(E16*('Step 3 Exposure Parameters'!$D$15/100))/(P16*('Step 3 Exposure Parameters'!$D$14/100)*Q16))))))),\"--\",IF(E16=\"--\",\"--\",IF(F16=\"Metal\",E16/(P16*Q16),IF(F16=\"Polar Organic\",E16/(P16*Q16),IF(F16=\"Nonpolar Organic\",(E16*('Step 3 Exposure Parameters'!$D$15/100))/(P16*('Step 3 Exposure Parameters'!$D$14/100)*Q16),IF(F16=\"Organometal\",(E16*('Step 3 Exposure Parameters'!$D$15/100))/(P16*('Step 3 Exposure Parameters'!$D$14/100)*Q16))))))))","v":"--"},null,"RBC","Risk-Based Concentration",null,null,{"$f":"'Step 2 Chemical_Parameters'!A17","v":"22967-92-6"},{"$f":"'Step 2 Chemical_Parameters'!B17","v":"METHYL MERCURY"},{"$f":"IF(ISNUMBER(Consumption_HH_Tissue!F39),Consumption_HH_Tissue!F39,\" --\")","v":" --"},{"$f":"IF(ISBLANK('Step 2 Chemical_Parameters'!D17),\" \",'Step 2 Chemical_Parameters'!D17)","v":" "},{"$f":"IF(M16=\"--\",\" \",IF(ISBLANK('Step 3 Exposure Parameters'!$D$11),1,'Step 3 Exposure Parameters'!$D$11))","v":1}]
["1336-36-3a","Dioxin-like PCBs","--",null,"--","Nonpolar Organic",{"$f":"IF(F17=\"\",\"--\",IF(ISERROR(IF(E17=\"--\",\"--\",IF(F17=\"Metal\",E17/(P17*Q17),IF(F17=\"Polar Organic\",E17/(P17*Q17),IF(F17=\"Nonpolar Organic\",(E17*('Step 3 Exposure Parameters'!$D$15/100))/(P17*('Step 3 Exposure Parameters'!$D$14/100)*Q17),IF(F17=\"Organometal\",(E17*('Step 3 Exposure Parameters'!$D$15/100))/(P17*('Step 3 Exposure Parameters'!$D$14/100)*Q17))))))),\"--\",IF(E17=\"--\",\"--\",IF(F17=\"Metal\",E17/(P17*Q17),IF(F17=\"Polar Organic\",E17/(P17*Q17),IF(F17=\"Nonpolar Organic\",(E17*('Step 3 Exposure Parameters'!$D$15/100))/(P17*('Step 3 Exposure Parameters'!$D$14/100)*Q17),IF(F17=\"Organometal\",(E17*('Step 3 Exposure Parameters'!$D$15/100))/(P17*('Step 3 Exposure Parameters'!$D$14/100)*Q17))))))))","v":"--"},null,"SUF","Site use factor",null,null,{"$f":"'Step 2 Chemical_Parameters'!A18","v":"1336-36-3a"},{"$f":"'Step 2 Chemical_Parameters'!B18","v":"Dioxin-like PCBs"},{"$f":"IF(ISNUMBER(Consumption_HH_Tissue!F40),Consumption_HH_Tissue!F40,\" --\")","v":" --"},{"$f":"IF(ISBLANK('Step 2 Chemical_Parameters'!D18),\" \",'Step 2 Chemical_Parameters'!D18)","v":" "},{"$f":"IF(M17=\"--\",\" \",IF(ISBLANK('Step 3 Exposure Parameters'!$D$11),1,'Step 3 Exposure Parameters'!$D$11))","v":1}]
["56-35-9","tributyltin oxide","--",null,"--","Nonpolar Organic",{"$f":"IF(F18=\"\",\"--\",IF(ISERROR(IF(E18=\"--\",\"--\",IF(F18=\"Metal\",E18/(P18*Q18),IF(F18=\"Polar Organic\",E18/(P18*Q18),IF(F18=\"Nonpolar Organic\",(E18*('Step 3 Exposure Parameters'!$D$15/100))/(P18*('Step 3 Exposure Parameters'!$D$14/100)*Q18),IF(F18=\"Organometal\",(E18*('Step 3 Exposure Parameters'!$D$15/100))/(P18*('Step 3 Exposure Parameters'!$D$14/100)*Q18))))))),\"--\",IF(E18=\"--\",\"--\",IF(F18=\"Metal\",E18/(P18*Q18),IF(F18=\"Polar Organic\",E18/(P18*Q18),IF(F18=\"Nonpolar Organic\",(E18*('Step 3 Exposure Parameters'!$D$15/100))/(P18*('Step 3 Exposure Parameters'!$D$14/100)*Q18),IF(F18=\"Organometal\",(E18*('Step 3 Exposure Parameters'!$D$15/100))/(P18*('Step 3 Exposure Parameters'!$D$14/100)*Q18))))))))","v":"--"},null,"Tissue SL","Tissue Screening Level",null,null,{"$f":"'Step 2 Chemical_Parameters'!A19","v":"56-35-9"},{"$f":"'Step 2 Chemical_Parameters'!B19","v":"tributyltin oxide"},{"$f":"IF(ISNUMBER(Consumption_HH_Tissue!F41),Consumption_HH_Tissue!F41,\" --\")","v":" --"},{"$f":"IF(ISBLANK('Step 2 Chemical_Parameters'!D19),\" \",'Step 2 Chemical_Parameters'!D19)","v":" "},{"$f":"IF(M18=\"--\",\" \",IF(ISBLANK('Step 3 Exposure Parameters'!$D$11),1,'Step 3 Exposure Parameters'!$D$11))","v":1}]
["50-29-3","DDT","--",null,"--","Nonpolar Organic",{"$f":"IF(F19=\"\",\"--\",IF(ISERROR(IF(E19=\"--\",\"--\",IF(F19=\"Metal\",E19/(P19*Q19),IF(F19=\"Polar Organic\",E19/(P19*Q19),IF(F19=\"Nonpolar Organic\",(E19*('Step 3 Exposure Parameters'!$D$15/100))/(P19*('Step 3 Exposure Parameters'!$D$14/100)*Q19),IF(F19=\"Organometal\",(E19*('Step 3 Exposure Parameters'!$D$15/100))/(P19*('Step 3 Exposure Parameters'!$D$14/100)*Q19))))))),\"--\",IF(E19=\"--\",\"--\",IF(F19=\"Metal\",E19/(P19*Q19),IF(F19=\"Polar Organic\",E19/(P19*Q19),IF(F19=\"Nonpolar Organic\",(E19*('Step 3 Exposure Parameters'!$D$15/100))/(P19*('Step 3 Exposure Parameters'!$D$14/100)*Q19),IF(F19=\"Organometal\",(E19*('Step 3 Exposure Parameters'!$D$15/100))/(P19*('Step 3 Exposure Parameters'!$D$14/100)*Q19))))))))","v":"--"},null,"TOC","Total organic carbon",null,null,{"$f":"'Step 2 Chemical_Parameters'!A20","v":"50-29-3"},{"$f":"'Step 2 Chemical_Parameters'!B20","v":"DDT"},{"$f":"IF(ISNUMBER(Consumption_HH_Tissue!F42),Consumption_HH_Tissue!F42,\" --\")","v":" --"},{"$f":"IF(ISBLANK('Step 2 Chemical_Parameters'!D20),\" \",'Step 2 Chemical_Parameters'!D20)","v":" "},{"$f":"IF(M19=\"--\",\" \",IF(ISBLANK('Step 3 Exposure Parameters'!$D$11),1,'Step 3 Exposure Parameters'!$D$11))","v":1}]
["71-43-2","BENZENE","--",null,"--","Nonpolar Organic",{"$f":"IF(F20=\"\",\"--\",IF(ISERROR(IF(E20=\"--\",\"--\",IF(F20=\"Metal\",E20/(P20*Q20),IF(F20=\"Polar Organic\",E20/(P20*Q20),IF(F20=\"Nonpolar Organic\",(E20*('Step 3 Exposure Parameters'!$D$15/100))/(P20*('Step 3 Exposure Parameters'!$D$14/100)*Q20),IF(F20=\"Organometal\",(E20*('Step 3 Exposure Parameters'!$D$15/100))/(P20*('Step 3 Exposure Parameters'!$D$14/100)*Q20))))))),\"--\",IF(E20=\"--\",\"--\",IF(F20=\"Metal\",E20/(P20*Q20),IF(F20=\"Polar Organic\",E20/(P20*Q20),IF(F20=\"Nonpolar Organic\",(E20*('Step 3 Exposure Parameters'!$D$15/100))/(P20*('Step 3 Exposure Parameters'!$D$14/100)*Q20),IF(F20=\"Organometal\",(E20*('Step 3 Exposure Parameters'!$D$15/100))/(P20*('Step 3 Exposure Parameters'!$D$14/100)*Q20))))))))","v":"--"},null,null,null,null,null,{"$f":"'Step 2 Chemical_Parameters'!A21","v":"71-43-2"},{"$f":"'Step 2 Chemical_Parameters'!B21","v":"BENZENE"},{"$f":"IF(ISNUMBER(Consumption_HH_Tissue!F43),Consumption_HH_Tissue!F43,\" --\")","v":" --"},{"$f":"IF(ISBLANK('Step 2 Chemical_Parameters'!D21),\" \",'Step 2 Chemical_Parameters'!D21)","v":" "},{"$f":"IF(M20=\"--\",\" \",IF(ISBLANK('Step 3 Exposure Parameters'!$D$11),1,'Step 3 Exposure Parameters'!$D$11))","v":1}]
["--","--","--",null,"--",null,{"$f":"IF(F21=\"\",\"--\",IF(ISERROR(IF(E21=\"--\",\"--\",IF(F21=\"Metal\",E21/(P21*Q21),IF(F21=\"Polar Organic\",E21/(P21*Q21),IF(F21=\"Nonpolar Organic\",(E21*('Step 3 Exposure Parameters'!$D$15/100))/(P21*('Step 3 Exposure Parameters'!$D$14/100)*Q21),IF(F21=\"Organometal\",(E21*('Step 3 Exposure Parameters'!$D$15/100))/(P21*('Step 3 Exposure Parameters'!$D$14/100)*Q21))))))),\"--\",IF(E21=\"--\",\"--\",IF(F21=\"Metal\",E21/(P21*Q21),IF(F21=\"Polar Organic\",E21/(P21*Q21),IF(F21=\"Nonpolar Organic\",(E21*('Step 3 Exposure Parameters'!$D$15/100))/(P21*('Step 3 Exposure Parameters'!$D$14/100)*Q21),IF(F21=\"Organometal\",(E21*('Step 3 Exposure Parameters'!$D$15/100))/(P21*('Step 3 Exposure Parameters'!$D$14/100)*Q21))))))))","v":"--"},null,"*","Enter higher trophic level concentrations by hand from the previous worksheet.",null,null,{"$f":"'Step 2 Chemical_Parameters'!A22","v":"--"},{"$f":"'Step 2 Chemical_Parameters'!B22","v":"--"},{"$f":"IF(ISNUMBER(Consumption_HH_Tissue!F44),Consumption_HH_Tissue!F44,\" --\")","v":" --"},{"$f":"IF(ISBLANK('Step 2 Chemical_Parameters'!D22),\" \",'Step 2 Chemical_Parameters'!D22)","v":" "},{"$f":"IF(M21=\"--\",\" \",IF(ISBLANK('Step 3 Exposure Parameters'!$D$11),1,'Step 3 Exposure Parameters'!$D$11))","v":" "}]
["--","--","--",null,"--",null,{"$f":"IF(F22=\"\",\"--\",IF(ISERROR(IF(E22=\"--\",\"--\",IF(F22=\"Metal\",E22/(P22*Q22),IF(F22=\"Polar Organic\",E22/(P22*Q22),IF(F22=\"Nonpolar Organic\",(E22*('Step 3 Exposure Parameters'!$D$15/100))/(P22*('Step 3 Exposure Parameters'!$D$14/100)*Q22),IF(F22=\"Organometal\",(E22*('Step 3 Exposure Parameters'!$D$15/100))/(P22*('Step 3 Exposure Parameters'!$D$14/100)*Q22))))))),\"--\",IF(E22=\"--\",\"--\",IF(F22=\"Metal\",E22/(P22*Q22),IF(F22=\"Polar Organic\",E22/(P22*Q22),IF(F22=\"Nonpolar Organic\",(E22*('Step 3 Exposure Parameters'!$D$15/100))/(P22*('Step 3 Exposure Parameters'!$D$14/100)*Q22),IF(F22=\"Organometal\",(E22*('Step 3 Exposure Parameters'!$D$15/100))/(P22*('Step 3 Exposure Parameters'!$D$14/100)*Q22))))))))","v":"--"},null,null,null,null,null,{"$f":"'Step 2 Chemical_Parameters'!A23","v":"--"},{"$f":"'Step 2 Chemical_Parameters'!B23","v":"--"},{"$f":"IF(ISNUMBER(Consumption_HH_Tissue!F45),Consumption_HH_Tissue!F45,\" --\")","v":" --"},{"$f":"IF(ISBLANK('Step 2 Chemical_Parameters'!D23),\" \",'Step 2 Chemical_Parameters'!D23)","v":" "},{"$f":"IF(M22=\"--\",\" \",IF(ISBLANK('Step 3 Exposure Parameters'!$D$11),1,'Step 3 Exposure Parameters'!$D$11))","v":" "}]
["--","--","--",null,"--",null,{"$f":"IF(F23=\"\",\"--\",IF(ISERROR(IF(E23=\"--\",\"--\",IF(F23=\"Metal\",E23/(P23*Q23),IF(F23=\"Polar Organic\",E23/(P23*Q23),IF(F23=\"Nonpolar Organic\",(E23*('Step 3 Exposure Parameters'!$D$15/100))/(P23*('Step 3 Exposure Parameters'!$D$14/100)*Q23),IF(F23=\"Organometal\",(E23*('Step 3 Exposure Parameters'!$D$15/100))/(P23*('Step 3 Exposure Parameters'!$D$14/100)*Q23))))))),\"--\",IF(E23=\"--\",\"--\",IF(F23=\"Metal\",E23/(P23*Q23),IF(F23=\"Polar Organic\",E23/(P23*Q23),IF(F23=\"Nonpolar Organic\",(E23*('Step 3 Exposure Parameters'!$D$15/100))/(P23*('Step 3 Exposure Parameters'!$D$14/100)*Q23),IF(F23=\"Organometal\",(E23*('Step 3 Exposure Parameters'!$D$15/100))/(P23*('Step 3 Exposure Parameters'!$D$14/100)*Q23))))))))","v":"--"},null,null,null,null,null,{"$f":"'Step 2 Chemical_Parameters'!A24","v":"--"},{"$f":"'Step 2 Chemical_Parameters'!B24","v":"--"},{"$f":"IF(ISNUMBER(Consumption_HH_Tissue!F46),Consumption_HH_Tissue!F46,\" --\")","v":" --"},{"$f":"IF(ISBLANK('Step 2 Chemical_Parameters'!D24),\" \",'Step 2 Chemical_Parameters'!D24)","v":" "},{"$f":"IF(M23=\"--\",\" \",IF(ISBLANK('Step 3 Exposure Parameters'!$D$11),1,'Step 3 Exposure Parameters'!$D$11))","v":" "}]
["--","--","--",null,"--",null,{"$f":"IF(F24=\"\",\"--\",IF(ISERROR(IF(E24=\"--\",\"--\",IF(F24=\"Metal\",E24/(P24*Q24),IF(F24=\"Polar Organic\",E24/(P24*Q24),IF(F24=\"Nonpolar Organic\",(E24*('Step 3 Exposure Parameters'!$D$15/100))/(P24*('Step 3 Exposure Parameters'!$D$14/100)*Q24),IF(F24=\"Organometal\",(E24*('Step 3 Exposure Parameters'!$D$15/100))/(P24*('Step 3 Exposure Parameters'!$D$14/100)*Q24))))))),\"--\",IF(E24=\"--\",\"--\",IF(F24=\"Metal\",E24/(P24*Q24),IF(F24=\"Polar Organic\",E24/(P24*Q24),IF(F24=\"Nonpolar Organic\",(E24*('Step 3 Exposure Parameters'!$D$15/100))/(P24*('Step 3 Exposure Parameters'!$D$14/100)*Q24),IF(F24=\"Organometal\",(E24*('Step 3 Exposure Parameters'!$D$15/100))/(P24*('Step 3 Exposure Parameters'!$D$14/100)*Q24))))))))","v":"--"},null,"**","Enter chemical class from the drop down excel menu.",null,null,{"$f":"'Step 2 Chemical_Parameters'!A25","v":"--"},{"$f":"'Step 2 Chemical_Parameters'!B25","v":"--"},{"$f":"IF(ISNUMBER(Consumption_HH_Tissue!F47),Consumption_HH_Tissue!F47,\" --\")","v":" --"},{"$f":"IF(ISBLANK('Step 2 Chemical_Parameters'!D25),\" \",'Step 2 Chemical_Parameters'!D25)","v":" "},{"$f":"IF(M24=\"--\",\" \",IF(ISBLANK('Step 3 Exposure Parameters'!$D$11),1,'Step 3 Exposure Parameters'!$D$11))","v":" "}]
["--","--","--",null,"--",null,{"$f":"IF(F25=\"\",\"--\",IF(ISERROR(IF(E25=\"--\",\"--\",IF(F25=\"Metal\",E25/(P25*Q25),IF(F25=\"Polar Organic\",E25/(P25*Q25),IF(F25=\"Nonpolar Organic\",(E25*('Step 3 Exposure Parameters'!$D$15/100))/(P25*('Step 3 Exposure Parameters'!$D$14/100)*Q25),IF(F25=\"Organometal\",(E25*('Step 3 Exposure Parameters'!$D$15/100))/(P25*('Step 3 Exposure Parameters'!$D$14/100)*Q25))))))),\"--\",IF(E25=\"--\",\"--\",IF(F25=\"Metal\",E25/(P25*Q25),IF(F25=\"Polar Organic\",E25/(P25*Q25),IF(F25=\"Nonpolar Organic\",(E25*('Step 3 Exposure Parameters'!$D$15/100))/(P25*('Step 3 Exposure Parameters'!$D$14/100)*Q25),IF(F25=\"Organometal\",(E25*('Step 3 Exposure Parameters'!$D$15/100))/(P25*('Step 3 Exposure Parameters'!$D$14/100)*Q25))))))))","v":"--"},null,null,null,null,null,{"$f":"'Step 2 Chemical_Parameters'!A26","v":"--"},{"$f":"'Step 2 Chemical_Parameters'!B26","v":"--"},{"$f":"IF(ISNUMBER(Consumption_HH_Tissue!F48),Consumption_HH_Tissue!F48,\" --\")","v":" --"},{"$f":"IF(ISBLANK('Step 2 Chemical_Parameters'!D26),\" \",'Step 2 Chemical_Parameters'!D26)","v":" "},{"$f":"IF(M25=\"--\",\" \",IF(ISBLANK('Step 3 Exposure Parameters'!$D$11),1,'Step 3 Exposure Parameters'!$D$11))","v":" "}]
["--","--","--",null,"--",null,{"$f":"IF(F26=\"\",\"--\",IF(ISERROR(IF(E26=\"--\",\"--\",IF(F26=\"Metal\",E26/(P26*Q26),IF(F26=\"Polar Organic\",E26/(P26*Q26),IF(F26=\"Nonpolar Organic\",(E26*('Step 3 Exposure Parameters'!$D$15/100))/(P26*('Step 3 Exposure Parameters'!$D$14/100)*Q26),IF(F26=\"Organometal\",(E26*('Step 3 Exposure Parameters'!$D$15/100))/(P26*('Step 3 Exposure Parameters'!$D$14/100)*Q26))))))),\"--\",IF(E26=\"--\",\"--\",IF(F26=\"Metal\",E26/(P26*Q26),IF(F26=\"Polar Organic\",E26/(P26*Q26),IF(F26=\"Nonpolar Organic\",(E26*('Step 3 Exposure Parameters'!$D$15/100))/(P26*('Step 3 Exposure Parameters'!$D$14/100)*Q26),IF(F26=\"Organometal\",(E26*('Step 3 Exposure Parameters'!$D$15/100))/(P26*('Step 3 Exposure Parameters'!$D$14/100)*Q26))))))))","v":"--"},null,null,null,null,null,{"$f":"'Step 2 Chemical_Parameters'!A27","v":"--"},{"$f":"'Step 2 Chemical_Parameters'!B27","v":"--"},{"$f":"IF(ISNUMBER(Consumption_HH_Tissue!F49),Consumption_HH_Tissue!F49,\" --\")","v":" --"},{"$f":"IF(ISBLANK('Step 2 Chemical_Parameters'!D27),\" \",'Step 2 Chemical_Parameters'!D27)","v":" "},{"$f":"IF(M26=\"--\",\" \",IF(ISBLANK('Step 3 Exposure Parameters'!$D$11),1,'Step 3 Exposure Parameters'!$D$11))","v":" "}]
["--","--","--",null,"--",null,{"$f":"IF(F27=\"\",\"--\",IF(ISERROR(IF(E27=\"--\",\"--\",IF(F27=\"Metal\",E27/(P27*Q27),IF(F27=\"Polar Organic\",E27/(P27*Q27),IF(F27=\"Nonpolar Organic\",(E27*('Step 3 Exposure Parameters'!$D$15/100))/(P27*('Step 3 Exposure Parameters'!$D$14/100)*Q27),IF(F27=\"Organometal\",(E27*('Step 3 Exposure Parameters'!$D$15/100))/(P27*('Step 3 Exposure Parameters'!$D$14/100)*Q27))))))),\"--\",IF(E27=\"--\",\"--\",IF(F27=\"Metal\",E27/(P27*Q27),IF(F27=\"Polar Organic\",E27/(P27*Q27),IF(F27=\"Nonpolar Organic\",(E27*('Step 3 Exposure Parameters'!$D$15/100))/(P27*('Step 3 Exposure Parameters'!$D$14/100)*Q27),IF(F27=\"Organometal\",(E27*('Step 3 Exposure Parameters'!$D$15/100))/(P27*('Step 3 Exposure Parameters'!$D$14/100)*Q27))))))))","v":"--"},null,null,null,null,null,{"$f":"'Step 2 Chemical_Parameters'!A28","v":"--"},{"$f":"'Step 2 Chemical_Parameters'!B28","v":"--"},{"$f":"IF(ISNUMBER(Consumption_HH_Tissue!F50),Consumption_HH_Tissue!F50,\" --\")","v":" --"},{"$f":"IF(ISBLANK('Step 2 Chemical_Parameters'!D28),\" \",'Step 2 Chemical_Parameters'!D28)","v":" "},{"$f":"IF(M27=\"--\",\" \",IF(ISBLANK('Step 3 Exposure Parameters'!$D$11),1,'Step 3 Exposure Parameters'!$D$11))","v":" "}]
["--","--","--",null,"--",null,{"$f":"IF(F28=\"\",\"--\",IF(ISERROR(IF(E28=\"--\",\"--\",IF(F28=\"Metal\",E28/(P28*Q28),IF(F28=\"Polar Organic\",E28/(P28*Q28),IF(F28=\"Nonpolar Organic\",(E28*('Step 3 Exposure Parameters'!$D$15/100))/(P28*('Step 3 Exposure Parameters'!$D$14/100)*Q28),IF(F28=\"Organometal\",(E28*('Step 3 Exposure Parameters'!$D$15/100))/(P28*('Step 3 Exposure Parameters'!$D$14/100)*Q28))))))),\"--\",IF(E28=\"--\",\"--\",IF(F28=\"Metal\",E28/(P28*Q28),IF(F28=\"Polar Organic\",E28/(P28*Q28),IF(F28=\"Nonpolar Organic\",(E28*('Step 3 Exposure Parameters'!$D$15/100))/(P28*('Step 3 Exposure Parameters'!$D$14/100)*Q28),IF(F28=\"Organometal\",(E28*('Step 3 Exposure Parameters'!$D$15/100))/(P28*('Step 3 Exposure Parameters'!$D$14/100)*Q28))))))))","v":"--"},null,null,null,null,null,{"$f":"'Step 2 Chemical_Parameters'!A29","v":"--"},{"$f":"'Step 2 Chemical_Parameters'!B29","v":"--"},{"$f":"IF(ISNUMBER(Consumption_HH_Tissue!F51),Consumption_HH_Tissue!F51,\" --\")","v":" --"},{"$f":"IF(ISBLANK('Step 2 Chemical_Parameters'!D29),\" \",'Step 2 Chemical_Parameters'!D29)","v":" "},{"$f":"IF(M28=\"--\",\" \",IF(ISBLANK('Step 3 Exposure Parameters'!$D$11),1,'Step 3 Exposure Parameters'!$D$11))","v":" "}]
["--","--","--",null,"--",null,{"$f":"IF(F29=\"\",\"--\",IF(ISERROR(IF(E29=\"--\",\"--\",IF(F29=\"Metal\",E29/(P29*Q29),IF(F29=\"Polar Organic\",E29/(P29*Q29),IF(F29=\"Nonpolar Organic\",(E29*('Step 3 Exposure Parameters'!$D$15/100))/(P29*('Step 3 Exposure Parameters'!$D$14/100)*Q29),IF(F29=\"Organometal\",(E29*('Step 3 Exposure Parameters'!$D$15/100))/(P29*('Step 3 Exposure Parameters'!$D$14/100)*Q29))))))),\"--\",IF(E29=\"--\",\"--\",IF(F29=\"Metal\",E29/(P29*Q29),IF(F29=\"Polar Organic\",E29/(P29*Q29),IF(F29=\"Nonpolar Organic\",(E29*('Step 3 Exposure Parameters'!$D$15/100))/(P29*('Step 3 Exposure Parameters'!$D$14/100)*Q29),IF(F29=\"Organometal\",(E29*('Step 3 Exposure Parameters'!$D$15/100))/(P29*('Step 3 Exposure Parameters'!$D$14/100)*Q29))))))))","v":"--"},null,null,null,null,null,{"$f":"'Step 2 Chemical_Parameters'!A30","v":"--"},{"$f":"'Step 2 Chemical_Parameters'!B30","v":"--"},{"$f":"IF(ISNUMBER(Consumption_HH_Tissue!F52),Consumption_HH_Tissue!F52,\" --\")","v":" --"},{"$f":"IF(ISBLANK('Step 2 Chemical_Parameters'!D30),\" \",'Step 2 Chemical_Parameters'!D30)","v":" "},{"$f":"IF(M29=\"--\",\" \",IF(ISBLANK('Step 3 Exposure Parameters'!$D$11),1,'Step 3 Exposure Parameters'!$D$11))","v":" "}]
["--","--","--",null,"--",null,{"$f":"IF(F30=\"\",\"--\",IF(ISERROR(IF(E30=\"--\",\"--\",IF(F30=\"Metal\",E30/(P30*Q30),IF(F30=\"Polar Organic\",E30/(P30*Q30),IF(F30=\"Nonpolar Organic\",(E30*('Step 3 Exposure Parameters'!$D$15/100))/(P30*('Step 3 Exposure Parameters'!$D$14/100)*Q30),IF(F30=\"Organometal\",(E30*('Step 3 Exposure Parameters'!$D$15/100))/(P30*('Step 3 Exposure Parameters'!$D$14/100)*Q30))))))),\"--\",IF(E30=\"--\",\"--\",IF(F30=\"Metal\",E30/(P30*Q30),IF(F30=\"Polar Organic\",E30/(P30*Q30),IF(F30=\"Nonpolar Organic\",(E30*('Step 3 Exposure Parameters'!$D$15/100))/(P30*('Step 3 Exposure Parameters'!$D$14/100)*Q30),IF(F30=\"Organometal\",(E30*('Step 3 Exposure Parameters'!$D$15/100))/(P30*('Step 3 Exposure Parameters'!$D$14/100)*Q30))))))))","v":"--"},null,null,null,null,null,{"$f":"'Step 2 Chemical_Parameters'!A31","v":"--"},{"$f":"'Step 2 Chemical_Parameters'!B31","v":"--"},{"$f":"IF(ISNUMBER(Consumption_HH_Tissue!F53),Consumption_HH_Tissue!F53,\" --\")","v":" --"},{"$f":"IF(ISBLANK('Step 2 Chemical_Parameters'!D31),\" \",'Step 2 Chemical_Parameters'!D31)","v":" "},{"$f":"IF(M30=\"--\",\" \",IF(ISBLANK('Step 3 Exposure Parameters'!$D$11),1,'Step 3 Exposure Parameters'!$D$11))","v":" "}]
["--","--","--",null,"--",null,{"$f":"IF(F31=\"\",\"--\",IF(ISERROR(IF(E31=\"--\",\"--\",IF(F31=\"Metal\",E31/(P31*Q31),IF(F31=\"Polar Organic\",E31/(P31*Q31),IF(F31=\"Nonpolar Organic\",(E31*('Step 3 Exposure Parameters'!$D$15/100))/(P31*('Step 3 Exposure Parameters'!$D$14/100)*Q31),IF(F31=\"Organometal\",(E31*('Step 3 Exposure Parameters'!$D$15/100))/(P31*('Step 3 Exposure Parameters'!$D$14/100)*Q31))))))),\"--\",IF(E31=\"--\",\"--\",IF(F31=\"Metal\",E31/(P31*Q31),IF(F31=\"Polar Organic\",E31/(P31*Q31),IF(F31=\"Nonpolar Organic\",(E31*('Step 3 Exposure Parameters'!$D$15/100))/(P31*('Step 3 Exposure Parameters'!$D$14/100)*Q31),IF(F31=\"Organometal\",(E31*('Step 3 Exposure Parameters'!$D$15/100))/(P31*('Step 3 Exposure Parameters'!$D$14/100)*Q31))))))))","v":"--"},null,null,null,null,null,{"$f":"'Step 2 Chemical_Parameters'!A32","v":"--"},{"$f":"'Step 2 Chemical_Parameters'!B32","v":"--"},{"$f":"IF(ISNUMBER(Consumption_HH_Tissue!F54),Consumption_HH_Tissue!F54,\" --\")","v":" --"},{"$f":"IF(ISBLANK('Step 2 Chemical_Parameters'!D32),\" \",'Step 2 Chemical_Parameters'!D32)","v":" "},{"$f":"IF(M31=\"--\",\" \",IF(ISBLANK('Step 3 Exposure Parameters'!$D$11),1,'Step 3 Exposure Parameters'!$D$11))","v":" "}]
["--","--","--",null,"--",null,{"$f":"IF(F32=\"\",\"--\",IF(ISERROR(IF(E32=\"--\",\"--\",IF(F32=\"Metal\",E32/(P32*Q32),IF(F32=\"Polar Organic\",E32/(P32*Q32),IF(F32=\"Nonpolar Organic\",(E32*('Step 3 Exposure Parameters'!$D$15/100))/(P32*('Step 3 Exposure Parameters'!$D$14/100)*Q32),IF(F32=\"Organometal\",(E32*('Step 3 Exposure Parameters'!$D$15/100))/(P32*('Step 3 Exposure Parameters'!$D$14/100)*Q32))))))),\"--\",IF(E32=\"--\",\"--\",IF(F32=\"Metal\",E32/(P32*Q32),IF(F32=\"Polar Organic\",E32/(P32*Q32),IF(F32=\"Nonpolar Organic\",(E32*('Step 3 Exposure Parameters'!$D$15/100))/(P32*('Step 3 Exposure Parameters'!$D$14/100)*Q32),IF(F32=\"Organometal\",(E32*('Step 3 Exposure Parameters'!$D$15/100))/(P32*('Step 3 Exposure Parameters'!$D$14/100)*Q32))))))))","v":"--"},null,null,null,null,null,{"$f":"'Step 2 Chemical_Parameters'!A33","v":"--"},{"$f":"'Step 2 Chemical_Parameters'!B33","v":"--"},{"$f":"IF(ISNUMBER(Consumption_HH_Tissue!F55),Consumption_HH_Tissue!F55,\" --\")","v":" --"},{"$f":"IF(ISBLANK('Step 2 Chemical_Parameters'!D33),\" \",'Step 2 Chemical_Parameters'!D33)","v":" "},{"$f":"IF(M32=\"--\",\" \",IF(ISBLANK('Step 3 Exposure Parameters'!$D$11),1,'Step 3 Exposure Parameters'!$D$11))","v":" "}]
["--","--","--",null,"--",null,{"$f":"IF(F33=\"\",\"--\",IF(ISERROR(IF(E33=\"--\",\"--\",IF(F33=\"Metal\",E33/(P33*Q33),IF(F33=\"Polar Organic\",E33/(P33*Q33),IF(F33=\"Nonpolar Organic\",(E33*('Step 3 Exposure Parameters'!$D$15/100))/(P33*('Step 3 Exposure Parameters'!$D$14/100)*Q33),IF(F33=\"Organometal\",(E33*('Step 3 Exposure Parameters'!$D$15/100))/(P33*('Step 3 Exposure Parameters'!$D$14/100)*Q33))))))),\"--\",IF(E33=\"--\",\"--\",IF(F33=\"Metal\",E33/(P33*Q33),IF(F33=\"Polar Organic\",E33/(P33*Q33),IF(F33=\"Nonpolar Organic\",(E33*('Step 3 Exposure Parameters'!$D$15/100))/(P33*('Step 3 Exposure Parameters'!$D$14/100)*Q33),IF(F33=\"Organometal\",(E33*('Step 3 Exposure Parameters'!$D$15/100))/(P33*('Step 3 Exposure Parameters'!$D$14/100)*Q33))))))))","v":"--"},null,null,null,null,null,{"$f":"'Step 2 Chemical_Parameters'!A34","v":"--"},{"$f":"'Step 2 Chemical_Parameters'!B34","v":"--"},{"$f":"IF(ISNUMBER(Consumption_HH_Tissue!F56),Consumption_HH_Tissue!F56,\" --\")","v":" --"},{"$f":"IF(ISBLANK('Step 2 Chemical_Parameters'!D34),\" \",'Step 2 Chemical_Parameters'!D34)","v":" "},{"$f":"IF(M33=\"--\",\" \",IF(ISBLANK('Step 3 Exposure Parameters'!$D$11),1,'Step 3 Exposure Parameters'!$D$11))","v":" "}]
["--","--","--",null,"--",null,{"$f":"IF(F34=\"\",\"--\",IF(ISERROR(IF(E34=\"--\",\"--\",IF(F34=\"Metal\",E34/(P34*Q34),IF(F34=\"Polar Organic\",E34/(P34*Q34),IF(F34=\"Nonpolar Organic\",(E34*('Step 3 Exposure Parameters'!$D$15/100))/(P34*('Step 3 Exposure Parameters'!$D$14/100)*Q34),IF(F34=\"Organometal\",(E34*('Step 3 Exposure Parameters'!$D$15/100))/(P34*('Step 3 Exposure Parameters'!$D$14/100)*Q34))))))),\"--\",IF(E34=\"--\",\"--\",IF(F34=\"Metal\",E34/(P34*Q34),IF(F34=\"Polar Organic\",E34/(P34*Q34),IF(F34=\"Nonpolar Organic\",(E34*('Step 3 Exposure Parameters'!$D$15/100))/(P34*('Step 3 Exposure Parameters'!$D$14/100)*Q34),IF(F34=\"Organometal\",(E34*('Step 3 Exposure Parameters'!$D$15/100))/(P34*('Step 3 Exposure Parameters'!$D$14/100)*Q34))))))))","v":"--"},null,null,null,null,null,{"$f":"'Step 2 Chemical_Parameters'!A35","v":"--"},{"$f":"'Step 2 Chemical_Parameters'!B35","v":"--"},{"$f":"IF(ISNUMBER(Consumption_HH_Tissue!F57),Consumption_HH_Tissue!F57,\" --\")","v":" --"},{"$f":"IF(ISBLANK('Step 2 Chemical_Parameters'!D35),\" \",'Step 2 Chemical_Parameters'!D35)","v":" "},{"$f":"IF(M34=\"--\",\" \",IF(ISBLANK('Step 3 Exposure Parameters'!$D$11),1,'Step 3 Exposure Parameters'!$D$11))","v":" "}]
["--","--","--",null,"--",null,{"$f":"IF(F35=\"\",\"--\",IF(ISERROR(IF(E35=\"--\",\"--\",IF(F35=\"Metal\",E35/(P35*Q35),IF(F35=\"Polar Organic\",E35/(P35*Q35),IF(F35=\"Nonpolar Organic\",(E35*('Step 3 Exposure Parameters'!$D$15/100))/(P35*('Step 3 Exposure Parameters'!$D$14/100)*Q35),IF(F35=\"Organometal\",(E35*('Step 3 Exposure Parameters'!$D$15/100))/(P35*('Step 3 Exposure Parameters'!$D$14/100)*Q35))))))),\"--\",IF(E35=\"--\",\"--\",IF(F35=\"Metal\",E35/(P35*Q35),IF(F35=\"Polar Organic\",E35/(P35*Q35),IF(F35=\"Nonpolar Organic\",(E35*('Step 3 Exposure Parameters'!$D$15/100))/(P35*('Step 3 Exposure Parameters'!$D$14/100)*Q35),IF(F35=\"Organometal\",(E35*('Step 3 Exposure Parameters'!$D$15/100))/(P35*('Step 3 Exposure Parameters'!$D$14/100)*Q35))))))))","v":"--"},null,null,null,null,null,{"$f":"'Step 2 Chemical_Parameters'!A36","v":"--"},{"$f":"'Step 2 Chemical_Parameters'!B36","v":"--"},{"$f":"IF(ISNUMBER(Consumption_HH_Tissue!F58),Consumption_HH_Tissue!F58,\" --\")","v":" --"},{"$f":"IF(ISBLANK('Step 2 Chemical_Parameters'!D36),\" \",'Step 2 Chemical_Parameters'!D36)","v":" "},{"$f":"IF(M35=\"--\",\" \",IF(ISBLANK('Step 3 Exposure Parameters'!$D$11),1,'Step 3 Exposure Parameters'!$D$11))","v":" "}]
["--","--","--",null,"--",null,{"$f":"IF(F36=\"\",\"--\",IF(ISERROR(IF(E36=\"--\",\"--\",IF(F36=\"Metal\",E36/(P36*Q36),IF(F36=\"Polar Organic\",E36/(P36*Q36),IF(F36=\"Nonpolar Organic\",(E36*('Step 3 Exposure Parameters'!$D$15/100))/(P36*('Step 3 Exposure Parameters'!$D$14/100)*Q36),IF(F36=\"Organometal\",(E36*('Step 3 Exposure Parameters'!$D$15/100))/(P36*('Step 3 Exposure Parameters'!$D$14/100)*Q36))))))),\"--\",IF(E36=\"--\",\"--\",IF(F36=\"Metal\",E36/(P36*Q36),IF(F36=\"Polar Organic\",E36/(P36*Q36),IF(F36=\"Nonpolar Organic\",(E36*('Step 3 Exposure Parameters'!$D$15/100))/(P36*('Step 3 Exposure Parameters'!$D$14/100)*Q36),IF(F36=\"Organometal\",(E36*('Step 3 Exposure Parameters'!$D$15/100))/(P36*('Step 3 Exposure Parameters'!$D$14/100)*Q36))))))))","v":"--"},null,null,null,null,null,{"$f":"'Step 2 Chemical_Parameters'!A37","v":"--"},{"$f":"'Step 2 Chemical_Parameters'!B37","v":"--"},{"$f":"IF(ISNUMBER(Consumption_HH_Tissue!F59),Consumption_HH_Tissue!F59,\" --\")","v":" --"},{"$f":"IF(ISBLANK('Step 2 Chemical_Parameters'!D37),\" \",'Step 2 Chemical_Parameters'!D37)","v":" "},{"$f":"IF(M36=\"--\",\" \",IF(ISBLANK('Step 3 Exposure Parameters'!$D$11),1,'Step 3 Exposure Parameters'!$D$11))","v":" "}]
["--","--","--",null,"--",null,{"$f":"IF(F37=\"\",\"--\",IF(ISERROR(IF(E37=\"--\",\"--\",IF(F37=\"Metal\",E37/(P37*Q37),IF(F37=\"Polar Organic\",E37/(P37*Q37),IF(F37=\"Nonpolar Organic\",(E37*('Step 3 Exposure Parameters'!$D$15/100))/(P37*('Step 3 Exposure Parameters'!$D$14/100)*Q37),IF(F37=\"Organometal\",(E37*('Step 3 Exposure Parameters'!$D$15/100))/(P37*('Step 3 Exposure Parameters'!$D$14/100)*Q37))))))),\"--\",IF(E37=\"--\",\"--\",IF(F37=\"Metal\",E37/(P37*Q37),IF(F37=\"Polar Organic\",E37/(P37*Q37),IF(F37=\"Nonpolar Organic\",(E37*('Step 3 Exposure Parameters'!$D$15/100))/(P37*('Step 3 Exposure Parameters'!$D$14/100)*Q37),IF(F37=\"Organometal\",(E37*('Step 3 Exposure Parameters'!$D$15/100))/(P37*('Step 3 Exposure Parameters'!$D$14/100)*Q37))))))))","v":"--"},null,null,null,null,null,{"$f":"'Step 2 Chemical_Parameters'!A38","v":"--"},{"$f":"'Step 2 Chemical_Parameters'!B38","v":"--"},{"$f":"IF(ISNUMBER(Consumption_HH_Tissue!F60),Consumption_HH_Tissue!F60,\" --\")","v":" --"},{"$f":"IF(ISBLANK('Step 2 Chemical_Parameters'!D38),\" \",'Step 2 Chemical_Parameters'!D38)","v":" "},{"$f":"IF(M37=\"--\",\" \",IF(ISBLANK('Step 3 Exposure Parameters'!$D$11),1,'Step 3 Exposure Parameters'!$D$11))","v":" "}]
["--","--","--",null,"--",null,{"$f":"IF(F38=\"\",\"--\",IF(ISERROR(IF(E38=\"--\",\"--\",IF(F38=\"Metal\",E38/(P38*Q38),IF(F38=\"Polar Organic\",E38/(P38*Q38),IF(F38=\"Nonpolar Organic\",(E38*('Step 3 Exposure Parameters'!$D$15/100))/(P38*('Step 3 Exposure Parameters'!$D$14/100)*Q38),IF(F38=\"Organometal\",(E38*('Step 3 Exposure Parameters'!$D$15/100))/(P38*('Step 3 Exposure Parameters'!$D$14/100)*Q38))))))),\"--\",IF(E38=\"--\",\"--\",IF(F38=\"Metal\",E38/(P38*Q38),IF(F38=\"Polar Organic\",E38/(P38*Q38),IF(F38=\"Nonpolar Organic\",(E38*('Step 3 Exposure Parameters'!$D$15/100))/(P38*('Step 3 Exposure Parameters'!$D$14/100)*Q38),IF(F38=\"Organometal\",(E38*('Step 3 Exposure Parameters'!$D$15/100))/(P38*('Step 3 Exposure Parameters'!$D$14/100)*Q38))))))))","v":"--"},null,null,null,null,null,{"$f":"'Step 2 Chemical_Parameters'!A39","v":"--"},{"$f":"'Step 2 Chemical_Parameters'!B39","v":"--"},{"$f":"IF(ISNUMBER(Consumption_HH_Tissue!F61),Consumption_HH_Tissue!F61,\" --\")","v":" --"},{"$f":"IF(ISBLANK('Step 2 Chemical_Parameters'!D39),\" \",'Step 2 Chemical_Parameters'!D39)","v":" "},{"$f":"IF(M38=\"--\",\" \",IF(ISBLANK('Step 3 Exposure Parameters'!$D$11),1,'Step 3 Exposure Parameters'!$D$11))","v":" "}]
["--","--","--",null,"--",null,{"$f":"IF(F39=\"\",\"--\",IF(ISERROR(IF(E39=\"--\",\"--\",IF(F39=\"Metal\",E39/(P39*Q39),IF(F39=\"Polar Organic\",E39/(P39*Q39),IF(F39=\"Nonpolar Organic\",(E39*('Step 3 Exposure Parameters'!$D$15/100))/(P39*('Step 3 Exposure Parameters'!$D$14/100)*Q39),IF(F39=\"Organometal\",(E39*('Step 3 Exposure Parameters'!$D$15/100))/(P39*('Step 3 Exposure Parameters'!$D$14/100)*Q39))))))),\"--\",IF(E39=\"--\",\"--\",IF(F39=\"Metal\",E39/(P39*Q39),IF(F39=\"Polar Organic\",E39/(P39*Q39),IF(F39=\"Nonpolar Organic\",(E39*('Step 3 Exposure Parameters'!$D$15/100))/(P39*('Step 3 Exposure Parameters'!$D$14/100)*Q39),IF(F39=\"Organometal\",(E39*('Step 3 Exposure Parameters'!$D$15/100))/(P39*('Step 3 Exposure Parameters'!$D$14/100)*Q39))))))))","v":"--"},null,null,null,null,null,{"$f":"'Step 2 Chemical_Parameters'!A40","v":"--"},{"$f":"'Step 2 Chemical_Parameters'!B40","v":"--"},{"$f":"IF(ISNUMBER(Consumption_HH_Tissue!F62),Consumption_HH_Tissue!F62,\" --\")","v":" --"},{"$f":"IF(ISBLANK('Step 2 Chemical_Parameters'!D40),\" \",'Step 2 Chemical_Parameters'!D40)","v":" "},{"$f":"IF(M39=\"--\",\" \",IF(ISBLANK('Step 3 Exposure Parameters'!$D$11),1,'Step 3 Exposure Parameters'!$D$11))","v":" "}]
["--","--","--",null,"--",null,{"$f":"IF(F40=\"\",\"--\",IF(ISERROR(IF(E40=\"--\",\"--\",IF(F40=\"Metal\",E40/(P40*Q40),IF(F40=\"Polar Organic\",E40/(P40*Q40),IF(F40=\"Nonpolar Organic\",(E40*('Step 3 Exposure Parameters'!$D$15/100))/(P40*('Step 3 Exposure Parameters'!$D$14/100)*Q40),IF(F40=\"Organometal\",(E40*('Step 3 Exposure Parameters'!$D$15/100))/(P40*('Step 3 Exposure Parameters'!$D$14/100)*Q40))))))),\"--\",IF(E40=\"--\",\"--\",IF(F40=\"Metal\",E40/(P40*Q40),IF(F40=\"Polar Organic\",E40/(P40*Q40),IF(F40=\"Nonpolar Organic\",(E40*('Step 3 Exposure Parameters'!$D$15/100))/(P40*('Step 3 Exposure Parameters'!$D$14/100)*Q40),IF(F40=\"Organometal\",(E40*('Step 3 Exposure Parameters'!$D$15/100))/(P40*('Step 3 Exposure Parameters'!$D$14/100)*Q40))))))))","v":"--"},null,null,null,null,null,{"$f":"'Step 2 Chemical_Parameters'!A41","v":"--"},{"$f":"'Step 2 Chemical_Parameters'!B41","v":"--"},{"$f":"IF(ISNUMBER(Consumption_HH_Tissue!F63),Consumption_HH_Tissue!F63,\" --\")","v":" --"},{"$f":"IF(ISBLANK('Step 2 Chemical_Parameters'!D41),\" \",'Step 2 Chemical_Parameters'!D41)","v":" "},{"$f":"IF(M40=\"--\",\" \",IF(ISBLANK('Step 3 Exposure Parameters'!$D$11),1,'Step 3 Exposure Parameters'!$D$11))","v":" "}]
["--","--","--",null,"--",null,{"$f":"IF(F41=\"\",\"--\",IF(ISERROR(IF(E41=\"--\",\"--\",IF(F41=\"Metal\",E41/(P41*Q41),IF(F41=\"Polar Organic\",E41/(P41*Q41),IF(F41=\"Nonpolar Organic\",(E41*('Step 3 Exposure Parameters'!$D$15/100))/(P41*('Step 3 Exposure Parameters'!$D$14/100)*Q41),IF(F41=\"Organometal\",(E41*('Step 3 Exposure Parameters'!$D$15/100))/(P41*('Step 3 Exposure Parameters'!$D$14/100)*Q41))))))),\"--\",IF(E41=\"--\",\"--\",IF(F41=\"Metal\",E41/(P41*Q41),IF(F41=\"Polar Organic\",E41/(P41*Q41),IF(F41=\"Nonpolar Organic\",(E41*('Step 3 Exposure Parameters'!$D$15/100))/(P41*('Step 3 Exposure Parameters'!$D$14/100)*Q41),IF(F41=\"Organometal\",(E41*('Step 3 Exposure Parameters'!$D$15/100))/(P41*('Step 3 Exposure Parameters'!$D$14/100)*Q41))))))))","v":"--"},null,null,null,null,null,{"$f":"'Step 2 Chemical_Parameters'!A42","v":"--"},{"$f":"'Step 2 Chemical_Parameters'!B42","v":"--"},{"$f":"IF(ISNUMBER(Consumption_HH_Tissue!F64),Consumption_HH_Tissue!F64,\" --\")","v":" --"},{"$f":"IF(ISBLANK('Step 2 Chemical_Parameters'!D42),\" \",'Step 2 Chemical_Parameters'!D42)","v":" "},{"$f":"IF(M41=\"--\",\" \",IF(ISBLANK('Step 3 Exposure Parameters'!$D$11),1,'Step 3 Exposure Parameters'!$D$11))","v":" "}]
["--","--","--",null,"--",null,{"$f":"IF(F42=\"\",\"--\",IF(ISERROR(IF(E42=\"--\",\"--\",IF(F42=\"Metal\",E42/(P42*Q42),IF(F42=\"Polar Organic\",E42/(P42*Q42),IF(F42=\"Nonpolar Organic\",(E42*('Step 3 Exposure Parameters'!$D$15/100))/(P42*('Step 3 Exposure Parameters'!$D$14/100)*Q42),IF(F42=\"Organometal\",(E42*('Step 3 Exposure Parameters'!$D$15/100))/(P42*('Step 3 Exposure Parameters'!$D$14/100)*Q42))))))),\"--\",IF(E42=\"--\",\"--\",IF(F42=\"Metal\",E42/(P42*Q42),IF(F42=\"Polar Organic\",E42/(P42*Q42),IF(F42=\"Nonpolar Organic\",(E42*('Step 3 Exposure Parameters'!$D$15/100))/(P42*('Step 3 Exposure Parameters'!$D$14/100)*Q42),IF(F42=\"Organometal\",(E42*('Step 3 Exposure Parameters'!$D$15/100))/(P42*('Step 3 Exposure Parameters'!$D$14/100)*Q42))))))))","v":"--"},null,null,null,null,null,{"$f":"'Step 2 Chemical_Parameters'!A43","v":"--"},{"$f":"'Step 2 Chemical_Parameters'!B43","v":"--"},{"$f":"IF(ISNUMBER(Consumption_HH_Tissue!F65),Consumption_HH_Tissue!F65,\" --\")","v":" --"},{"$f":"IF(ISBLANK('Step 2 Chemical_Parameters'!D43),\" \",'Step 2 Chemical_Parameters'!D43)","v":" "},{"$f":"IF(M42=\"--\",\" \",IF(ISBLANK('Step 3 Exposure Parameters'!$D$11),1,'Step 3 Exposure Parameters'!$D$11))","v":" "}]
["--","--","--",null,"--",null,{"$f":"IF(F43=\"\",\"--\",IF(ISERROR(IF(E43=\"--\",\"--\",IF(F43=\"Metal\",E43/(P43*Q43),IF(F43=\"Polar Organic\",E43/(P43*Q43),IF(F43=\"Nonpolar Organic\",(E43*('Step 3 Exposure Parameters'!$D$15/100))/(P43*('Step 3 Exposure Parameters'!$D$14/100)*Q43),IF(F43=\"Organometal\",(E43*('Step 3 Exposure Parameters'!$D$15/100))/(P43*('Step 3 Exposure Parameters'!$D$14/100)*Q43))))))),\"--\",IF(E43=\"--\",\"--\",IF(F43=\"Metal\",E43/(P43*Q43),IF(F43=\"Polar Organic\",E43/(P43*Q43),IF(F43=\"Nonpolar Organic\",(E43*('Step 3 Exposure Parameters'!$D$15/100))/(P43*('Step 3 Exposure Parameters'!$D$14/100)*Q43),IF(F43=\"Organometal\",(E43*('Step 3 Exposure Parameters'!$D$15/100))/(P43*('Step 3 Exposure Parameters'!$D$14/100)*Q43))))))))","v":"--"},null,null,null,null,null,{"$f":"'Step 2 Chemical_Parameters'!A44","v":"--"},{"$f":"'Step 2 Chemical_Parameters'!B44","v":"--"},{"$f":"IF(ISNUMBER(Consumption_HH_Tissue!F66),Consumption_HH_Tissue!F66,\" --\")","v":" --"},{"$f":"IF(ISBLANK('Step 2 Chemical_Parameters'!D44),\" \",'Step 2 Chemical_Parameters'!D44)","v":" "},{"$f":"IF(M43=\"--\",\" \",IF(ISBLANK('Step 3 Exposure Parameters'!$D$11),1,'Step 3 Exposure Parameters'!$D$11))","v":" "}]

{"sheet":"IngestionDermal_Sediment","index":8,"n_rows":66,"n_cols":29,"rows_kept":66,"cut":false,"hidden":false,"merged":[[30,2,31,2],[30,10,30,12],[30,15,30,17],[30,5,30,7],[2,7,2,10],[2,5,2,6],[2,11,2,12],[30,3,30,4],[30,8,30,9],[31,24,31,26],[1,18,1,21],[2,18,2,21],[30,24,30,26],[30,13,30,14],[1,23,1,26],[2,23,2,26],[30,19,32,19]]}
["Data from Worksheet Step 3 Exposure_Parameters",null,null,null,null,null,null,null,null,null,null,null,null,null,null,"Hide Row",null,null,null,null,null,"Hide Column","Hide Column","Hide Column","Hide Column","Hide Column","Hide Column"]
["Reference Data for Calculated Fields (Equations 2-5 and 2-6)",null,null,null,null,null,null,null,null,null,null,null,null,null,null,"Hide Row",null,null,"Selected ELS RME Values (Child Beach Play/Adult Clam Digging)",null,null,null,null,"Selected ELS RME Values (Child Beach Play/Adult Net Fishing)"]
[null,null,null,null,null,"Beach Play Child (Data)",null,"Subs. Clam Digging Adult (Data)",null,null,null,"Subs. Net Fishing Adult (Data)",null,null,null,"Hide Row",null,null,"Early Life stages (cPAH cancer only)",null,null,null,null,"Early Life stages (cPAH cancer only)"]
["Abbrev","Parameter Name","Units",null,null,"CULcancer","CULnoncancer",{"$f":"F4","v":"CULcancer"},null,null,{"$f":"G4","v":"CULnoncancer"},{"$f":"H4","v":"CULcancer"},{"$f":"K4","v":"CULnoncancer"},null,null,"Hide Row","Exposure Parameter","Units","AGE: 0-<2","AGE: 2-<6","AGE: 6-<16","AGE: 16-70",null,"AGE: 0-<2","AGE: 2-<6","AGE: 6-<16","AGE: 16-70"]
["CR / HQ","Cancer (CR) / Hazard Quotient (HQ)","unitless",null,null,{"$f":"'Step 3 Exposure Parameters'!D24","v":9.9999999999999995E-7},{"$f":"'Step 3 Exposure Parameters'!E24","v":1},{"$f":"'Step 3 Exposure Parameters'!F24","v":9.9999999999999995E-7},null,null,{"$f":"'Step 3 Exposure Parameters'!G24","v":1},{"$f":"'Step 3 Exposure Parameters'!H24","v":9.9999999999999995E-7},{"$f":"'Step 3 Exposure Parameters'!I24","v":1},null,null,"Hide Row","Cancer (CR) / Hazard Quotient (HQ)","unitless",{"$f":"'Step 3 Exposure Parameters'!$P24","v":9.9999999999999995E-7},{"$f":"'Step 3 Exposure Parameters'!$Q24","v":9.9999999999999995E-7},{"$f":"'Step 3 Exposure Parameters'!$R24","v":9.9999999999999995E-7},{"$f":"'Step 3 Exposure Parameters'!$S24","v":9.9999999999999995E-7},null,{"$f":"'Step 3 Exposure Parameters'!$P24","v":9.9999999999999995E-7},{"$f":"'Step 3 Exposure Parameters'!$Q24","v":9.9999999999999995E-7},{"$f":"'Step 3 Exposure Parameters'!$T24","v":9.9999999999999995E-7},{"$f":"'Step 3 Exposure Parameters'!$U24","v":9.9999999999999995E-7}]
["BW","Body Weight","kg",null,null,{"$f":"'Step 3 Exposure Parameters'!D25","v":15},{"$f":"'Step 3 Exposure Parameters'!E25","v":15},{"$f":"'Step 3 Exposure Parameters'!F25","v":75},null,null,{"$f":"'Step 3 Exposure Parameters'!G25","v":75},{"$f":"'Step 3 Exposure Parameters'!H25","v":75},{"$f":"'Step 3 Exposure Parameters'!I25","v":75},null,null,"Hide Row","Body Weight","kg",{"$f":"'Step 3 Exposure Parameters'!$P25","v":10},{"$f":"'Step 3 Exposure Parameters'!$Q25","v":17},{"$f":"'Step 3 Exposure Parameters'!$R25","v":44},{"$f":"'Step 3 Exposure Parameters'!$S25","v":81},null,{"$f":"'Step 3 Exposure Parameters'!$P25","v":10},{"$f":"'Step 3 Exposure Parameters'!$Q25","v":17},{"$f":"'Step 3 Exposure Parameters'!$T25","v":44},{"$f":"'Step 3 Exposure Parameters'!$U25","v":81}]
["AT","Averaging Time","days",null,null,{"$f":"'Step 3 Exposure Parameters'!D26","v":25550},{"$f":"'Step 3 Exposure Parameters'!E26","v":2190},{"$f":"'Step 3 Exposure Parameters'!F26","v":25550},null,null,{"$f":"'Step 3 Exposure Parameters'!G26","v":25550},{"$f":"'Step 3 Exposure Parameters'!H26","v":25550},{"$f":"'Step 3 Exposure Parameters'!I26","v":25550},null,null,"Hide Row","Averaging Time","days",{"$f":"'Step 3 Exposure Parameters'!$P26","v":25550},{"$f":"'Step 3 Exposure Parameters'!$Q26","v":25550},{"$f":"'Step 3 Exposure Parameters'!$R26","v":25550},{"$f":"'Step 3 Exposure Parameters'!$S26","v":25550},null,{"$f":"'Step 3 Exposure Parameters'!$P26","v":25550},{"$f":"'Step 3 Exposure Parameters'!$Q26","v":25550},{"$f":"'Step 3 Exposure Parameters'!$T26","v":25550},{"$f":"'Step 3 Exposure Parameters'!$U26","v":25550}]
["UCF","Unit Conversion Factor","mg/kg",null,null,{"$f":"'Step 3 Exposure Parameters'!D27","v":1000000},{"$f":"'Step 3 Exposure Parameters'!E27","v":1000000},{"$f":"'Step 3 Exposure Parameters'!F27","v":1000000},null,null,{"$f":"'Step 3 Exposure Parameters'!G27","v":1000000},{"$f":"'Step 3 Exposure Parameters'!H27","v":1000000},{"$f":"'Step 3 Exposure Parameters'!I27","v":1000000},null,null,"Hide Row","Unit Conversion Factor","mg/kg",{"$f":"'Step 3 Exposure Parameters'!$P27","v":1000000},{"$f":"'Step 3 Exposure Parameters'!$Q27","v":1000000},{"$f":"'Step 3 Exposure Parameters'!$R27","v":1000000},{"$f":"'Step 3 Exposure Parameters'!$S27","v":1000000},null,{"$f":"'Step 3 Exposure Parameters'!$P27","v":1000000},{"$f":"'Step 3 Exposure Parameters'!$Q27","v":1000000},{"$f":"'Step 3 Exposure Parameters'!$T27","v":1000000},{"$f":"'Step 3 Exposure Parameters'!$U27","v":1000000}]
["EF","Exposure Frequency","days/year",null,null,{"$f":"'Step 3 Exposure Parameters'!D28","v":41},{"$f":"'Step 3 Exposure Parameters'!E28","v":41},{"$f":"'Step 3 Exposure Parameters'!F28","v":120},null,null,{"$f":"'Step 3 Exposure Parameters'!G28","v":120},{"$f":"'Step 3 Exposure Parameters'!H28","v":119},{"$f":"'Step 3 Exposure Parameters'!I28","v":119},null,null,"Hide Row","Exposure Frequency","days/year",{"$f":"'Step 3 Exposure Parameters'!$P28","v":41},{"$f":"'Step 3 Exposure Parameters'!$Q28","v":41},{"$f":"'Step 3 Exposure Parameters'!$R28","v":120},{"$f":"'Step 3 Exposure Parameters'!S28","v":120},null,{"$f":"'Step 3 Exposure Parameters'!$P28","v":41},{"$f":"'Step 3 Exposure Parameters'!$Q28","v":41},{"$f":"'Step 3 Exposure Parameters'!$T28","v":119},{"$f":"'Step 3 Exposure Parameters'!$U28","v":119}]
["ED","Exposure Duration","years",null,null,{"$f":"'Step 3 Exposure Parameters'!D29","v":6},{"$f":"'Step 3 Exposure Parameters'!E29","v":6},{"$f":"'Step 3 Exposure Parameters'!F29","v":70},null,null,{"$f":"'Step 3 Exposure Parameters'!G29","v":70},{"$f":"'Step 3 Exposure Parameters'!H29","v":70},{"$f":"'Step 3 Exposure Parameters'!I29","v":70},null,null,"Hide Row","Exposure Duration","years",{"$f":"'Step 3 Exposure Parameters'!$P29","v":2},{"$f":"'Step 3 Exposure Parameters'!$Q29","v":4},{"$f":"'Step 3 Exposure Parameters'!$R29","v":10},{"$f":"'Step 3 Exposure Parameters'!$S29","v":54},null,{"$f":"'Step 3 Exposure Parameters'!$P29","v":2},{"$f":"'Step 3 Exposure Parameters'!$Q29","v":4},{"$f":"'Step 3 Exposure Parameters'!$T29","v":10},{"$f":"'Step 3 Exposure Parameters'!$U29","v":54}]
["IR","Ingestion Rate","mg/day",null,null,{"$f":"'Step 3 Exposure Parameters'!D30","v":200},{"$f":"'Step 3 Exposure Parameters'!E30","v":200},{"$f":"'Step 3 Exposure Parameters'!F30","v":100},null,null,{"$f":"'Step 3 Exposure Parameters'!G30","v":100},{"$f":"'Step 3 Exposure Parameters'!H30","v":50},{"$f":"'Step 3 Exposure Parameters'!I30","v":50},null,null,"Hide Row","Ingestion Rate","mg/day",{"$f":"'Step 3 Exposure Parameters'!$P30","v":200},{"$f":"'Step 3 Exposure Parameters'!$Q30","v":200},{"$f":"'Step 3 Exposure Parameters'!$R30","v":100},{"$f":"'Step 3 Exposure Parameters'!$S30","v":100},null,{"$f":"'Step 3 Exposure Parameters'!$P30","v":200},{"$f":"'Step 3 Exposure Parameters'!$Q30","v":200},{"$f":"'Step 3 Exposure Parameters'!$T30","v":50},{"$f":"'Step 3 Exposure Parameters'!$U30","v":50}]
["SA","Dermal Surface Area","cm2",null,null,{"$f":"'Step 3 Exposure Parameters'!D31","v":3835},{"$f":"'Step 3 Exposure Parameters'!E31","v":3835},{"$f":"'Step 3 Exposure Parameters'!F31","v":11813},null,null,{"$f":"'Step 3 Exposure Parameters'!G31","v":11813},{"$f":"'Step 3 Exposure Parameters'!H31","v":5590},{"$f":"'Step 3 Exposure Parameters'!I31","v":5590},null,null,"Hide Row","Dermal Surface Area","cm2",{"$f":"'Step 3 Exposure Parameters'!$P31","v":2989},{"$f":"'Step 3 Exposure Parameters'!$Q31","v":4258},{"$f":"'Step 3 Exposure Parameters'!$R31","v":8060},{"$f":"'Step 3 Exposure Parameters'!$S31","v":12508},null,{"$f":"'Step 3 Exposure Parameters'!$P31","v":2989},{"$f":"'Step 3 Exposure Parameters'!$Q31","v":4258},{"$f":"'Step 3 Exposure Parameters'!$T31","v":3749},{"$f":"'Step 3 Exposure Parameters'!$U31","v":5931}]
["AF","Sediment to Skin Adherence Factor","mg/cm2-day",null,null,{"$f":"'Step 3 Exposure Parameters'!D32","v":2.6},{"$f":"'Step 3 Exposure Parameters'!E32","v":2.6},{"$f":"'Step 3 Exposure Parameters'!F32","v":0.24},null,null,{"$f":"'Step 3 Exposure Parameters'!G32","v":0.24},{"$f":"'Step 3 Exposure Parameters'!H32","v":0.19},{"$f":"'Step 3 Exposure Parameters'!I32","v":0.19},null,null,"Hide Row","Sediment to Skin Adherence Factor","mg/cm2-day",{"$f":"'Step 3 Exposure Parameters'!$P32","v":2.6},{"$f":"'Step 3 Exposure Parameters'!$Q32","v":2.6},{"$f":"'Step 3 Exposure Parameters'!$R32","v":0.24},{"$f":"'Step 3 Exposure Parameters'!$S32","v":0.24},null,{"$f":"'Step 3 Exposure Parameters'!$P32","v":2.6},{"$f":"'Step 3 Exposure Parameters'!$Q32","v":2.6},{"$f":"'Step 3 Exposure Parameters'!$T32","v":0.19},{"$f":"'Step 3 Exposure Parameters'!$U32","v":0.19}]
[null,null,null,null,null,null,null,null,null,null,null,null,null,null,null,"Hide Row","Age-Dependent Adjuatment Factor","unitless",{"$f":"'Step 3 Exposure Parameters'!$P33","v":10},{"$f":"'Step 3 Exposure Parameters'!$Q33","v":3},{"$f":"'Step 3 Exposure Parameters'!$R33","v":3},{"$f":"'Step 3 Exposure Parameters'!$S33","v":1},null,{"$f":"'Step 3 Exposure Parameters'!$P33","v":10},{"$f":"'Step 3 Exposure Parameters'!$Q33","v":3},{"$f":"'Step 3 Exposure Parameters'!$T33","v":3},{"$f":"'Step 3 Exposure Parameters'!$U33","v":1}]
[null,null,null,null,null,null,null,null,null,null,null,null,null,null,null,"Hide Row",null,"age-dependent calculations, beach play and clam digging"]
[null,null,null,null,null,null,null,null,null,null,null,null,null,null,null,"Hide Row",null,"IRF",{"$f":"(S11*S10*S9*S14)/S6","v":16400},{"$f":"(T11*T10*T9*T14)/T6","v":5788.2352941176468},{"$f":"(U11*U10*U9*U14)/U6","v":8181.818181818182},{"$f":"(V11*V10*V9*V14)/V6","v":8000},"IRF",{"$f":"(X11*X10*X9*X14)/X6","v":16400},{"$f":"(Y11*Y10*Y9*Y14)/Y6","v":5788.2352941176468},{"$f":"(Z11*Z10*Z9*Z14)/Z6","v":4056.818181818182},{"$f":"(AA11*AA10*AA9*AA14)/AA6","v":3966.6666666666665}]
[null,null,null,null,null,null,null,null,null,null,null,null,null,null,null,"Hide Row",null,"DF",{"$f":"(S12*S10*S9*S13*S14)/S6","v":637254.80000000005},{"$f":"(T12*T10*T9*T13*T14)/T6","v":320401.97647058824},{"$f":"(U12*U10*U9*U13*U14)/U6","v":158269.09090909091},{"$f":"(V12*V10*V9*V13*V14)/V6","v":240153.59999999998},"DF",{"$f":"(X12*X10*X9*X13*X14)/X6","v":637254.80000000005},{"$f":"(Y12*Y10*Y9*Y13*Y14)/Y6","v":320401.97647058824},{"$f":"(Z12*Z10*Z9*Z13*Z14)/Z6","v":57794.243181818187},{"$f":"(AA12*AA10*AA9*AA13*AA14)/AA6","v":89399.94}]
[null,null,null,null,null,null,null,null,null,null,null,null,null,null,null,"Hide Row"]
[null,null,null,"hide col","hide col",null,null,null,"hide col","hide col",null,null,null,"hide col","hide col","Hide Row"]
[null,null,"Equation 9-1:  Risk-Based Sediment Concentrations Based on Ingestion and Dermal Contact with Sediment (Cancer):"]
[]
[]
[]
[null,null,"Equation 9-3:  Risk-Based Sediment Concentrations Based on Ingestion and Dermal Contact with Sediment (Noncancer):"]
[]
[]
[]
[]
[null,null,"See SCUM Chapter 9 (Equation 9-2) for Early Life Stage (ELS) calculation formulas. Applicable for mutagens (e.g., cPAHS)."]
[]
[null,null,null,"Beach Play Child",null,"Beach Play Child",null,null,"Tribal Clam Adult",null,"Subs. Clam Digging Adult",null,null,"Tribal Net Fish Adult",null,"Subs. Net Fishing Adult",null,null,"All Pathways","Mutagen (M)"]
[null,null,null,"Equation 9-1","Equation 9-3","Cancer","Noncancer","Sediment Concentration","Equation 9-1","Equation 9-3","Cancer","Noncancer","Sediment Concentration","Equation 9-1","Equation 9-3","Cancer","Noncancer","Sediment Concentration","Lowest Risk-Based Sediment Concentration",null,null,"Data from Worksheet Step 1",null,null,"Early Life Stage incorporation"]
[null,"CAS Number","Contaminant of Concern",null,null,"mg/kg","mg/kg","mg/kg",null,null,{"$f":"F33","v":"mg/kg"},{"$f":"G33","v":"mg/kg"},"mg/kg",null,null,"mg/kg","mg/kg","mg/kg","mg/kg",null,null,"CAS Number","Contaminant of Concern",null,"Child Beach","Child Beach/Adult Clam","Child Beach/Adult Net Fish"]
[null,{"$f":"V34","v":"7440-38-2"},{"$f":"W34","v":"arsenic, inorganic"},{"$f":"IF(ISERROR(($F$5*$F$6*$F$7)/($F$9*$F$10*(($F$11*'Step 2 Chemical_Parameters'!E12*'Step 1 Toxicity_Values'!$D12/$F$8)+($F$12*$F$13*'Step 2 Chemical_Parameters'!F12*'Step 1 Toxicity_Values'!G12/$F$8)))),\"--\",($F$5*$F$6*$F$7)/($F$9*$F$10*(($F$11*'Step 2 Chemical_Parameters'!E12*'Step 1 Toxicity_Values'!$D12/$F$8)+($F$12*$F$13*'Step 2 Chemical_Parameters'!F12*'Step 1 Toxicity_Values'!G12/$F$8))))","v":9.7540146684499326E-2},{"$f":"IF(ISERROR(($G$5*$G$6*$G$7)/($G$9*$G$10*(((1/'Step 1 Toxicity_Values'!$E12)*($G$11*'Step 2 Chemical_Parameters'!$E12/$G$8))+((1/'Step 1 Toxicity_Values'!$I12)*($G$12*$G$13*'Step 2 Chemical_Parameters'!$F12/$G$8))))),\"--\",($G$5*$G$6*$G$7)/($G$9*$G$10*(((1/'Step 1 Toxicity_Values'!$E12)*($G$11*'Step 2 Chemical_Parameters'!$E12/$G$8))+((1/'Step 1 Toxicity_Values'!$I12)*($G$12*$G$13*'Step 2 Chemical_Parameters'!$F12/$G$8)))))","v":16.052321282934745},{"$f":"IF(T34=\"M\",Y34,D34)","v":9.7540146684499326E-2},{"$f":"IF(E34=\"--\",\"--\",E34)","v":16.052321282934745},{"$f":"IF(MIN(F34:G34)>0,MIN(F34:G34),\"--\")","v":9.7540146684499326E-2},{"$f":"IF(ISERROR(($H$5*$H$6*$H$7)/($H$9*$H$10*(($H$11*'Step 2 Chemical_Parameters'!$E12*'Step 1 Toxicity_Values'!$D12/$H$8)+($H$12*$H$13*'Step 2 Chemical_Parameters'!$F12*'Step 1 Toxicity_Values'!$G12/$H$8)))),\"--\",($H$5*$H$6*$H$7)/($H$9*$H$10*(($H$11*'Step 2 Chemical_Parameters'!$E12*'Step 1 Toxicity_Values'!$D12/$H$8)+($H$12*$H$13*'Step 2 Chemical_Parameters'!$F12*'Step 1 Toxicity_Values'!$G12/$H$8))))","v":3.8523466984700647E-2},{"$f":"IF(ISERROR(($K$5*$K$6*$K$7)/($K$9*$K$10*(((1/'Step 1 Toxicity_Values'!$E12)*$K$11*'Step 2 Chemical_Parameters'!$E12/$K$8)+((1/'Step 1 Toxicity_Values'!$I12)*$K$12*$K$13*'Step 2 Chemical_Parameters'!$F12/$K$8)))),\"--\",($K$5*$K$6*$K$7)/($K$9*$K$10*(((1/'Step 1 Toxicity_Values'!$E12)*$K$11*'Step 2 Chemical_Parameters'!$E12/$K$8)+((1/'Step 1 Toxicity_Values'!$I12)*$K$12*$K$13*'Step 2 Chemical_Parameters'!$F12/$K$8))))","v":73.96505661062524},{"$f":"IF(T34=\"M\",Z34,I34)","v":3.8523466984700647E-2},{"$f":"IF(J34=\"--\",\"--\",J34)","v":73.96505661062524},{"$f":"IF(MIN(K34:L34)>0, MIN(K34:L34), \"--\")","v":3.8523466984700647E-2},{"$f":"IF(ISERROR(($L$5*$L$6*$L$7)/($L$9*$L$10*(($L$11*'Step 2 Chemical_Parameters'!$E12*'Step 1 Toxicity_Values'!$D12/$L$8)+($L$12*$L$13*'Step 2 Chemical_Parameters'!$F12*'Step 1 Toxicity_Values'!$G12/$L$8)))),\"--\",($L$5*$L$6*$L$7)/($L$9*$L$10*(($L$11*'Step 2 Chemical_Parameters'!$E12*'Step 1 Toxicity_Values'!$D12/$L$8)+($L$12*$L$13*'Step 2 Chemical_Parameters'!$F12*'Step 1 Toxicity_Values'!$G12/$L$8))))","v":8.7815167111027978E-2},{"$f":"IF(ISERROR(($M$5*$M$6*$M$7)/($M$9*$M$10*(((1/'Step 1 Toxicity_Values'!$E12)*$M$11*'Step 2 Chemical_Parameters'!$E12/$M$8)+((1/'Step 1 Toxicity_Values'!$I12)*$M$12*$M$13*'Step 2 Chemical_Parameters'!$F12/$M$8)))),\"--\",($M$5*$M$6*$M$7)/($M$9*$M$10*(((1/'Step 1 Toxicity_Values'!$E12)*$M$11*'Step 2 Chemical_Parameters'!$E12/$M$8)+((1/'Step 1 Toxicity_Values'!$I12)*$M$12*$M$13*'Step 2 Chemical_Parameters'!$F12/$M$8))))","v":168.6051208531737},{"$f":"IF(T34=\"M\",AA34,N34)","v":8.7815167111027978E-2},{"$f":"IF(O34=\"--\",\"--\",O34)","v":168.6051208531737},{"$f":"IF(MIN(P34:Q34)>0, MIN(P34:Q34), \"--\")","v":8.7815167111027978E-2},{"$f":"IF(MIN(H34,M34,R34)>0,MIN(H34,M34,R34),\"--\")","v":3.8523466984700647E-2},{"$f":"IF(B34=\"--\",\"--\",IF(VLOOKUP(B34,chemical,8,FALSE)=\"\",\"--\",VLOOKUP(B34,chemical,8,FALSE)))","v":"--"},null,{"$f":"'Step 2 Chemical_Parameters'!A12","v":"7440-38-2"},{"$f":"'Step 2 Chemical_Parameters'!B12","v":"arsenic, inorganic"},null,{"$f":"IF(B34=\"--\",\"--\",IF(VLOOKUP(B34,chemical,8,FALSE)=\"M\",IF(ISERROR(($S$5*$S$7*$S$8)/((($S$16+$T$16)*'Step 2 Chemical_Parameters'!E12*'Step 1 Toxicity_Values'!D12)+(($S$17+$T$17)*'Step 2 Chemical_Parameters'!F12*'Step 1 Toxicity_Values'!G12))),\"--\",($S$5*$S$7*$S$8)/((($S$16+$T$16)*'Step 2 Chemical_Parameters'!E12*'Step 1 Toxicity_Values'!D12)+(($S$17+$T$17)*'Step 2 Chemical_Parameters'!F12*'Step 1 Toxicity_Values'!G12))),\"--\"))","v":"--"},{"$f":"IF(B34=\"--\",\"--\",IF(VLOOKUP(B34,chemical,8,FALSE)=\"M\",IF(ISERROR(($S$5*$S$7*$S$8)/((($S$16+$T$16+$U$16+$V$16)*'Step 2 Chemical_Parameters'!E12*'Step 1 Toxicity_Values'!D12)+(($S$17+$T$17+$U$17+$V$17)*'Step 2 Chemical_Parameters'!F12*'Step 1 Toxicity_Values'!G12))),\"--\",($S$5*$S$7*$S$8)/((($S$16+$T$16+$U$16+$V$16)*'Step 2 Chemical_Parameters'!E12*'Step 1 Toxicity_Values'!D12)+(($S$17+$T$17+$U$17+$V$17)*'Step 2 Chemical_Parameters'!F12*'Step 1 Toxicity_Values'!G12))),\"--\"))","v":"--"},{"$f":"IF(B34=\"--\",\"--\",IF(VLOOKUP(B34,chemical,8,FALSE)=\"M\",IF(ISERROR(($X$5*$X$7*$X$8)/((($X$16+$Y$16+$Z$16+$AA$16)*'Step 2 Chemical_Parameters'!E12*'Step 1 Toxicity_Values'!D12)+(($X$17+$Y$17+$Z$17+$AA$17)*'Step 2 Chemical_Parameters'!F12*'Step 1 Toxicity_Values'!G12))),\"--\",($X$5*$X$7*$X$8)/((($X$16+$Y$16+$Z$16+$AA$16)*'Step 2 Chemical_Parameters'!E12*'Step 1 Toxicity_Values'!D12)+(($X$17+$Y$17+$Z$17+$AA$17)*'Step 2 Chemical_Parameters'!F12*'Step 1 Toxicity_Values'!G12))),\"--\"))","v":"--"},"Abbrev","Definition"]
[null,{"$f":"V35","v":"7440-43-9"},"Cadmium",{"$f":"IF(ISERROR(($F$5*$F$6*$F$7)/($F$9*$F$10*(($F$11*'Step 2 Chemical_Parameters'!E13*'Step 1 Toxicity_Values'!$D13/$F$8)+($F$12*$F$13*'Step 2 Chemical_Parameters'!F13*'Step 1 Toxicity_Values'!G13/$F$8)))),\"--\",($F$5*$F$6*$F$7)/($F$9*$F$10*(($F$11*'Step 2 Chemical_Parameters'!E13*'Step 1 Toxicity_Values'!$D13/$F$8)+($F$12*$F$13*'Step 2 Chemical_Parameters'!F13*'Step 1 Toxicity_Values'!G13/$F$8))))","v":"--"},{"$f":"IF(ISERROR(($G$5*$G$6*$G$7)/($G$9*$G$10*(((1/'Step 1 Toxicity_Values'!$E13)*($G$11*'Step 2 Chemical_Parameters'!$E13/$G$8))+((1/'Step 1 Toxicity_Values'!$I13)*($G$12*$G$13*'Step 2 Chemical_Parameters'!$F13/$G$8))))),\"--\",($G$5*$G$6*$G$7)/($G$9*$G$10*(((1/'Step 1 Toxicity_Values'!$E13)*($G$11*'Step 2 Chemical_Parameters'!$E13/$G$8))+((1/'Step 1 Toxicity_Values'!$I13)*($G$12*$G$13*'Step 2 Chemical_Parameters'!$F13/$G$8)))))","v":222.99209365749391},{"$f":"IF(T35=\"M\",Y35,D35)","v":"--"},222.99209365749391,{"$f":"IF(MIN(F35:G35)>0,MIN(F35:G35),\"--\")","v":222.99209365749391},{"$f":"IF(ISERROR(($H$5*$H$6*$H$7)/($H$9*$H$10*(($H$11*'Step 2 Chemical_Parameters'!$E13*'Step 1 Toxicity_Values'!$D13/$H$8)+($H$12*$H$13*'Step 2 Chemical_Parameters'!$F13*'Step 1 Toxicity_Values'!$G13/$H$8)))),\"--\",($H$5*$H$6*$H$7)/($H$9*$H$10*(($H$11*'Step 2 Chemical_Parameters'!$E13*'Step 1 Toxicity_Values'!$D13/$H$8)+($H$12*$H$13*'Step 2 Chemical_Parameters'!$F13*'Step 1 Toxicity_Values'!$G13/$H$8))))","v":"--"},{"$f":"IF(ISERROR(($K$5*$K$6*$K$7)/($K$9*$K$10*(((1/'Step 1 Toxicity_Values'!$E13)*$K$11*'Step 2 Chemical_Parameters'!$E13/$K$8)+((1/'Step 1 Toxicity_Values'!$I13)*$K$12*$K$13*'Step 2 Chemical_Parameters'!$F13/$K$8)))),\"--\",($K$5*$K$6*$K$7)/($K$9*$K$10*(((1/'Step 1 Toxicity_Values'!$E13)*$K$11*'Step 2 Chemical_Parameters'!$E13/$K$8)+((1/'Step 1 Toxicity_Values'!$I13)*$K$12*$K$13*'Step 2 Chemical_Parameters'!$F13/$K$8))))","v":1068.9778299269744},{"$f":"IF(T35=\"M\",Z35,I35)","v":"--"},1068.9778299269744,1068.9778299269744,{"$f":"IF(ISERROR(($L$5*$L$6*$L$7)/($L$9*$L$10*(($L$11*'Step 2 Chemical_Parameters'!$E13*'Step 1 Toxicity_Values'!$D13/$L$8)+($L$12*$L$13*'Step 2 Chemical_Parameters'!$F13*'Step 1 Toxicity_Values'!$G13/$L$8)))),\"--\",($L$5*$L$6*$L$7)/($L$9*$L$10*(($L$11*'Step 2 Chemical_Parameters'!$E13*'Step 1 Toxicity_Values'!$D13/$L$8)+($L$12*$L$13*'Step 2 Chemical_Parameters'!$F13*'Step 1 Toxicity_Values'!$G13/$L$8))))","v":"--"},{"$f":"IF(ISERROR(($M$5*$M$6*$M$7)/($M$9*$M$10*(((1/'Step 1 Toxicity_Values'!$E13)*$M$11*'Step 2 Chemical_Parameters'!$E13/$M$8)+((1/'Step 1 Toxicity_Values'!$I13)*$M$12*$M$13*'Step 2 Chemical_Parameters'!$F13/$M$8)))),\"--\",($M$5*$M$6*$M$7)/($M$9*$M$10*(((1/'Step 1 Toxicity_Values'!$E13)*$M$11*'Step 2 Chemical_Parameters'!$E13/$M$8)+((1/'Step 1 Toxicity_Values'!$I13)*$M$12*$M$13*'Step 2 Chemical_Parameters'!$F13/$M$8))))","v":2487.3709701864395},{"$f":"IF(T35=\"M\",AA35,N35)","v":"--"},2487.3709701864395,2487.3709701864395,{"$f":"IF(MIN(H35,M35,R35)>0,MIN(H35,M35,R35),\"--\")","v":222.99209365749391},"--",null,{"$f":"'Step 2 Chemical_Parameters'!A13","v":"7440-43-9"},{"$f":"'Step 2 Chemical_Parameters'!B13","v":"Cadmium"},null,{"$f":"IF(B35=\"--\",\"--\",IF(VLOOKUP(B35,chemical,8,FALSE)=\"M\",IF(ISERROR(($S$5*$S$7*$S$8)/((($S$16+$T$16)*'Step 2 Chemical_Parameters'!E13*'Step 1 Toxicity_Values'!D13)+(($S$17+$T$17)*'Step 2 Chemical_Parameters'!F13*'Step 1 Toxicity_Values'!G13))),\"--\",($S$5*$S$7*$S$8)/((($S$16+$T$16)*'Step 2 Chemical_Parameters'!E13*'Step 1 Toxicity_Values'!D13)+(($S$17+$T$17)*'Step 2 Chemical_Parameters'!F13*'Step 1 Toxicity_Values'!G13))),\"--\"))","v":"--"},{"$f":"IF(B35=\"--\",\"--\",IF(VLOOKUP(B35,chemical,8,FALSE)=\"M\",IF(ISERROR(($S$5*$S$7*$S$8)/((($S$16+$T$16+$U$16+$V$16)*'Step 2 Chemical_Parameters'!E13*'Step 1 Toxicity_Values'!D13)+(($S$17+$T$17+$U$17+$V$17)*'Step 2 Chemical_Parameters'!F13*'Step 1 Toxicity_Values'!G13))),\"--\",($S$5*$S$7*$S$8)/((($S$16+$T$16+$U$16+$V$16)*'Step 2 Chemical_Parameters'!E13*'Step 1 Toxicity_Values'!D13)+(($S$17+$T$17+$U$17+$V$17)*'Step 2 Chemical_Parameters'!F13*'Step 1 Toxicity_Values'!G13))),\"--\"))","v":"--"},{"$f":"IF(B35=\"--\",\"--\",IF(VLOOKUP(B35,chemical,8,FALSE)=\"M\",IF(ISERROR(($X$5*$X$7*$X$8)/((($X$16+$Y$16+$Z$16+$AA$16)*'Step 2 Chemical_Parameters'!E13*'Step 1 Toxicity_Values'!D13)+(($X$17+$Y$17+$Z$17+$AA$17)*'Step 2 Chemical_Parameters'!F13*'Step 1 Toxicity_Values'!G13))),\"--\",($X$5*$X$7*$X$8)/((($X$16+$Y$16+$Z$16+$AA$16)*'Step 2 Chemical_Parameters'!E13*'Step 1 Toxicity_Values'!D13)+(($X$17+$Y$17+$Z$17+$AA$17)*'Step 2 Chemical_Parameters'!F13*'Step 1 Toxicity_Values'!G13))),\"--\"))","v":"--"},"2,3,7,8-TCDD","2,3,7,8-Tetrachlorodibenzo-p-dioxin "]
[null,"50-32-8","BENZO[a]PYRENE",{"$f":"IF(ISERROR(($F$5*$F$6*$F$7)/($F$9*$F$10*(($F$11*'Step 2 Chemical_Parameters'!E14*'Step 1 Toxicity_Values'!$D14/$F$8)+($F$12*$F$13*'Step 2 Chemical_Parameters'!F14*'Step 1 Toxicity_Values'!G14/$F$8)))),\"--\",($F$5*$F$6*$F$7)/($F$9*$F$10*(($F$11*'Step 2 Chemical_Parameters'!E14*'Step 1 Toxicity_Values'!$D14/$F$8)+($F$12*$F$13*'Step 2 Chemical_Parameters'!F14*'Step 1 Toxicity_Values'!G14/$F$8))))","v":1.0412348564514096},{"$f":"IF(ISERROR(($G$5*$G$6*$G$7)/($G$9*$G$10*(((1/'Step 1 Toxicity_Values'!$E14)*($G$11*'Step 2 Chemical_Parameters'!$E14/$G$8))+((1/'Step 1 Toxicity_Values'!$I14)*($G$12*$G$13*'Step 2 Chemical_Parameters'!$F14/$G$8))))),\"--\",($G$5*$G$6*$G$7)/($G$9*$G$10*(((1/'Step 1 Toxicity_Values'!$E14)*($G$11*'Step 2 Chemical_Parameters'!$E14/$G$8))+((1/'Step 1 Toxicity_Values'!$I14)*($G$12*$G$13*'Step 2 Chemical_Parameters'!$F14/$G$8)))))","v":26.774610594464821},{"$f":"IF(T36=\"M\",Y36,D36)","v":0.17418441579061858},26.774610594464821,0.17418441579061858,{"$f":"IF(ISERROR(($H$5*$H$6*$H$7)/($H$9*$H$10*(($H$11*'Step 2 Chemical_Parameters'!$E14*'Step 1 Toxicity_Values'!$D14/$H$8)+($H$12*$H$13*'Step 2 Chemical_Parameters'!$F14*'Step 1 Toxicity_Values'!$G14/$H$8)))),\"--\",($H$5*$H$6*$H$7)/($H$9*$H$10*(($H$11*'Step 2 Chemical_Parameters'!$E14*'Step 1 Toxicity_Values'!$D14/$H$8)+($H$12*$H$13*'Step 2 Chemical_Parameters'!$F14*'Step 1 Toxicity_Values'!$G14/$H$8))))","v":0.48685819018724374},{"$f":"IF(ISERROR(($K$5*$K$6*$K$7)/($K$9*$K$10*(((1/'Step 1 Toxicity_Values'!$E14)*$K$11*'Step 2 Chemical_Parameters'!$E14/$K$8)+((1/'Step 1 Toxicity_Values'!$I14)*$K$12*$K$13*'Step 2 Chemical_Parameters'!$F14/$K$8)))),\"--\",($K$5*$K$6*$K$7)/($K$9*$K$10*(((1/'Step 1 Toxicity_Values'!$E14)*$K$11*'Step 2 Chemical_Parameters'!$E14/$K$8)+((1/'Step 1 Toxicity_Values'!$I14)*$K$12*$K$13*'Step 2 Chemical_Parameters'!$F14/$K$8))))","v":146.05745705617312},{"$f":"IF(T36=\"M\",Z36,I36)","v":0.11902522252077061},146.05745705617312,0.11902522252077061,{"$f":"IF(ISERROR(($L$5*$L$6*$L$7)/($L$9*$L$10*(($L$11*'Step 2 Chemical_Parameters'!$E14*'Step 1 Toxicity_Values'!$D14/$L$8)+($L$12*$L$13*'Step 2 Chemical_Parameters'!$F14*'Step 1 Toxicity_Values'!$G14/$L$8)))),\"--\",($L$5*$L$6*$L$7)/($L$9*$L$10*(($L$11*'Step 2 Chemical_Parameters'!$E14*'Step 1 Toxicity_Values'!$D14/$L$8)+($L$12*$L$13*'Step 2 Chemical_Parameters'!$F14*'Step 1 Toxicity_Values'!$G14/$L$8))))","v":1.2231528013416211},{"$f":"IF(ISERROR(($M$5*$M$6*$M$7)/($M$9*$M$10*(((1/'Step 1 Toxicity_Values'!$E14)*$M$11*'Step 2 Chemical_Parameters'!$E14/$M$8)+((1/'Step 1 Toxicity_Values'!$I14)*$M$12*$M$13*'Step 2 Chemical_Parameters'!$F14/$M$8)))),\"--\",($M$5*$M$6*$M$7)/($M$9*$M$10*(((1/'Step 1 Toxicity_Values'!$E14)*$M$11*'Step 2 Chemical_Parameters'!$E14/$M$8)+((1/'Step 1 Toxicity_Values'!$I14)*$M$12*$M$13*'Step 2 Chemical_Parameters'!$F14/$M$8))))","v":366.94584040248628},{"$f":"IF(T36=\"M\",AA36,N36)","v":0.14697224669327316},366.94584040248628,0.14697224669327316,0.11902522252077061,"M",null,{"$f":"'Step 2 Chemical_Parameters'!A14","v":"50-32-8"},{"$f":"'Step 2 Chemical_Parameters'!B14","v":"BENZO[a]PYRENE"},null,{"$f":"IF(B36=\"--\",\"--\",IF(VLOOKUP(B36,chemical,8,FALSE)=\"M\",IF(ISERROR(($S$5*$S$7*$S$8)/((($S$16+$T$16)*'Step 2 Chemical_Parameters'!E14*'Step 1 Toxicity_Values'!D14)+(($S$17+$T$17)*'Step 2 Chemical_Parameters'!F14*'Step 1 Toxicity_Values'!G14))),\"--\",($S$5*$S$7*$S$8)/((($S$16+$T$16)*'Step 2 Chemical_Parameters'!E14*'Step 1 Toxicity_Values'!D14)+(($S$17+$T$17)*'Step 2 Chemical_Parameters'!F14*'Step 1 Toxicity_Values'!G14))),\"--\"))","v":0.17418441579061858},{"$f":"IF(B36=\"--\",\"--\",IF(VLOOKUP(B36,chemical,8,FALSE)=\"M\",IF(ISERROR(($S$5*$S$7*$S$8)/((($S$16+$T$16+$U$16+$V$16)*'Step 2 Chemical_Parameters'!E14*'Step 1 Toxicity_Values'!D14)+(($S$17+$T$17+$U$17+$V$17)*'Step 2 Chemical_Parameters'!F14*'Step 1 Toxicity_Values'!G14))),\"--\",($S$5*$S$7*$S$8)/((($S$16+$T$16+$U$16+$V$16)*'Step 2 Chemical_Parameters'!E14*'Step 1 Toxicity_Values'!D14)+(($S$17+$T$17+$U$17+$V$17)*'Step 2 Chemical_Parameters'!F14*'Step 1 Toxicity_Values'!G14))),\"--\"))","v":0.11902522252077061},{"$f":"IF(B36=\"--\",\"--\",IF(VLOOKUP(B36,chemical,8,FALSE)=\"M\",IF(ISERROR(($X$5*$X$7*$X$8)/((($X$16+$Y$16+$Z$16+$AA$16)*'Step 2 Chemical_Parameters'!E14*'Step 1 Toxicity_Values'!D14)+(($X$17+$Y$17+$Z$17+$AA$17)*'Step 2 Chemical_Parameters'!F14*'Step 1 Toxicity_Values'!G14))),\"--\",($X$5*$X$7*$X$8)/((($X$16+$Y$16+$Z$16+$AA$16)*'Step 2 Chemical_Parameters'!E14*'Step 1 Toxicity_Values'!D14)+(($X$17+$Y$17+$Z$17+$AA$17)*'Step 2 Chemical_Parameters'!F14*'Step 1 Toxicity_Values'!G14))),\"--\"))","v":0.14697224669327316},"cPAHs","Carcinogenic PAHs"]
[null,"1746-01-6","TCDD;2,3,7,8 (DIOXIN)",{"$f":"IF(ISERROR(($F$5*$F$6*$F$7)/($F$9*$F$10*(($F$11*'Step 2 Chemical_Parameters'!E15*'Step 1 Toxicity_Values'!$D15/$F$8)+($F$12*$F$13*'Step 2 Chemical_Parameters'!F15*'Step 1 Toxicity_Values'!G15/$F$8)))),\"--\",($F$5*$F$6*$F$7)/($F$9*$F$10*(($F$11*'Step 2 Chemical_Parameters'!E15*'Step 1 Toxicity_Values'!$D15/$F$8)+($F$12*$F$13*'Step 2 Chemical_Parameters'!F15*'Step 1 Toxicity_Values'!G15/$F$8))))","v":2.8592686118466875E-5},{"$f":"IF(ISERROR(($G$5*$G$6*$G$7)/($G$9*$G$10*(((1/'Step 1 Toxicity_Values'!$E15)*($G$11*'Step 2 Chemical_Parameters'!$E15/$G$8))+((1/'Step 1 Toxicity_Values'!$I15)*($G$12*$G$13*'Step 2 Chemical_Parameters'!$F15/$G$8))))),\"--\",($G$5*$G$6*$G$7)/($G$9*$G$10*(((1/'Step 1 Toxicity_Values'!$E15)*($G$11*'Step 2 Chemical_Parameters'!$E15/$G$8))+((1/'Step 1 Toxicity_Values'!$I15)*($G$12*$G$13*'Step 2 Chemical_Parameters'!$F15/$G$8)))))","v":2.2302295172404164E-4},{"$f":"IF(T37=\"M\",Y37,D37)","v":2.8592686118466875E-5},2.2302295172404164E-4,2.8592686118466875E-5,{"$f":"IF(ISERROR(($H$5*$H$6*$H$7)/($H$9*$H$10*(($H$11*'Step 2 Chemical_Parameters'!$E15*'Step 1 Toxicity_Values'!$D15/$H$8)+($H$12*$H$13*'Step 2 Chemical_Parameters'!$F15*'Step 1 Toxicity_Values'!$G15/$H$8)))),\"--\",($H$5*$H$6*$H$7)/($H$9*$H$10*(($H$11*'Step 2 Chemical_Parameters'!$E15*'Step 1 Toxicity_Values'!$D15/$H$8)+($H$12*$H$13*'Step 2 Chemical_Parameters'!$F15*'Step 1 Toxicity_Values'!$G15/$H$8))))","v":1.2097650056997497E-5},{"$f":"IF(ISERROR(($K$5*$K$6*$K$7)/($K$9*$K$10*(((1/'Step 1 Toxicity_Values'!$E15)*$K$11*'Step 2 Chemical_Parameters'!$E15/$K$8)+((1/'Step 1 Toxicity_Values'!$I15)*$K$12*$K$13*'Step 2 Chemical_Parameters'!$F15/$K$8)))),\"--\",($K$5*$K$6*$K$7)/($K$9*$K$10*(((1/'Step 1 Toxicity_Values'!$E15)*$K$11*'Step 2 Chemical_Parameters'!$E15/$K$8)+((1/'Step 1 Toxicity_Values'!$I15)*$K$12*$K$13*'Step 2 Chemical_Parameters'!$F15/$K$8))))","v":1.1008861551867724E-3},{"$f":"IF(T37=\"M\",Z37,I37)","v":1.2097650056997497E-5},1.1008861551867724E-3,1.2097650056997497E-5,{"$f":"IF(ISERROR(($L$5*$L$6*$L$7)/($L$9*$L$10*(($L$11*'Step 2 Chemical_Parameters'!$E15*'Step 1 Toxicity_Values'!$D15/$L$8)+($L$12*$L$13*'Step 2 Chemical_Parameters'!$F15*'Step 1 Toxicity_Values'!$G15/$L$8)))),\"--\",($L$5*$L$6*$L$7)/($L$9*$L$10*(($L$11*'Step 2 Chemical_Parameters'!$E15*'Step 1 Toxicity_Values'!$D15/$L$8)+($L$12*$L$13*'Step 2 Chemical_Parameters'!$F15*'Step 1 Toxicity_Values'!$G15/$L$8))))","v":2.860439964819566E-5},{"$f":"IF(ISERROR(($M$5*$M$6*$M$7)/($M$9*$M$10*(((1/'Step 1 Toxicity_Values'!$E15)*$M$11*'Step 2 Chemical_Parameters'!$E15/$M$8)+((1/'Step 1 Toxicity_Values'!$I15)*$M$12*$M$13*'Step 2 Chemical_Parameters'!$F15/$M$8)))),\"--\",($M$5*$M$6*$M$7)/($M$9*$M$10*(((1/'Step 1 Toxicity_Values'!$E15)*$M$11*'Step 2 Chemical_Parameters'!$E15/$M$8)+((1/'Step 1 Toxicity_Values'!$I15)*$M$12*$M$13*'Step 2 Chemical_Parameters'!$F15/$M$8))))","v":2.6030003679858057E-3},{"$f":"IF(T37=\"M\",AA37,N37)","v":2.860439964819566E-5},2.6030003679858057E-3,2.860439964819566E-5,1.2097650056997497E-5,"--",null,{"$f":"'Step 2 Chemical_Parameters'!A15","v":"1746-01-6"},{"$f":"'Step 2 Chemical_Parameters'!B15","v":"TCDD;2,3,7,8 (DIOXIN)"},null,{"$f":"IF(B37=\"--\",\"--\",IF(VLOOKUP(B37,chemical,8,FALSE)=\"M\",IF(ISERROR(($S$5*$S$7*$S$8)/((($S$16+$T$16)*'Step 2 Chemical_Parameters'!E15*'Step 1 Toxicity_Values'!D15)+(($S$17+$T$17)*'Step 2 Chemical_Parameters'!F15*'Step 1 Toxicity_Values'!G15))),\"--\",($S$5*$S$7*$S$8)/((($S$16+$T$16)*'Step 2 Chemical_Parameters'!E15*'Step 1 Toxicity_Values'!D15)+(($S$17+$T$17)*'Step 2 Chemical_Parameters'!F15*'Step 1 Toxicity_Values'!G15))),\"--\"))","v":"--"},{"$f":"IF(B37=\"--\",\"--\",IF(VLOOKUP(B37,chemical,8,FALSE)=\"M\",IF(ISERROR(($S$5*$S$7*$S$8)/((($S$16+$T$16+$U$16+$V$16)*'Step 2 Chemical_Parameters'!E15*'Step 1 Toxicity_Values'!D15)+(($S$17+$T$17+$U$17+$V$17)*'Step 2 Chemical_Parameters'!F15*'Step 1 Toxicity_Values'!G15))),\"--\",($S$5*$S$7*$S$8)/((($S$16+$T$16+$U$16+$V$16)*'Step 2 Chemical_Parameters'!E15*'Step 1 Toxicity_Values'!D15)+(($S$17+$T$17+$U$17+$V$17)*'Step 2 Chemical_Parameters'!F15*'Step 1 Toxicity_Values'!G15))),\"--\"))","v":"--"},{"$f":"IF(B37=\"--\",\"--\",IF(VLOOKUP(B37,chemical,8,FALSE)=\"M\",IF(ISERROR(($X$5*$X$7*$X$8)/((($X$16+$Y$16+$Z$16+$AA$16)*'Step 2 Chemical_Parameters'!E15*'Step 1 Toxicity_Values'!D15)+(($X$17+$Y$17+$Z$17+$AA$17)*'Step 2 Chemical_Parameters'!F15*'Step 1 Toxicity_Values'!G15))),\"--\",($X$5*$X$7*$X$8)/((($X$16+$Y$16+$Z$16+$AA$16)*'Step 2 Chemical_Parameters'!E15*'Step 1 Toxicity_Values'!D15)+(($X$17+$Y$17+$Z$17+$AA$17)*'Step 2 Chemical_Parameters'!F15*'Step 1 Toxicity_Values'!G15))),\"--\"))","v":"--"},"ELS","Early Life Stage"]
[null,"7439-92-1","LEAD",{"$f":"IF(ISERROR(($F$5*$F$6*$F$7)/($F$9*$F$10*(($F$11*'Step 2 Chemical_Parameters'!E16*'Step 1 Toxicity_Values'!$D16/$F$8)+($F$12*$F$13*'Step 2 Chemical_Parameters'!F16*'Step 1 Toxicity_Values'!G16/$F$8)))),\"--\",($F$5*$F$6*$F$7)/($F$9*$F$10*(($F$11*'Step 2 Chemical_Parameters'!E16*'Step 1 Toxicity_Values'!$D16/$F$8)+($F$12*$F$13*'Step 2 Chemical_Parameters'!F16*'Step 1 Toxicity_Values'!G16/$F$8))))","v":"--"},{"$f":"IF(ISERROR(($G$5*$G$6*$G$7)/($G$9*$G$10*(((1/'Step 1 Toxicity_Values'!$E16)*($G$11*'Step 2 Chemical_Parameters'!$E16/$G$8))+((1/'Step 1 Toxicity_Values'!$I16)*($G$12*$G$13*'Step 2 Chemical_Parameters'!$F16/$G$8))))),\"--\",($G$5*$G$6*$G$7)/($G$9*$G$10*(((1/'Step 1 Toxicity_Values'!$E16)*($G$11*'Step 2 Chemical_Parameters'!$E16/$G$8))+((1/'Step 1 Toxicity_Values'!$I16)*($G$12*$G$13*'Step 2 Chemical_Parameters'!$F16/$G$8)))))","v":"--"},{"$f":"IF(T38=\"M\",Y38,D38)","v":"--"},"--","--",{"$f":"IF(ISERROR(($H$5*$H$6*$H$7)/($H$9*$H$10*(($H$11*'Step 2 Chemical_Parameters'!$E16*'Step 1 Toxicity_Values'!$D16/$H$8)+($H$12*$H$13*'Step 2 Chemical_Parameters'!$F16*'Step 1 Toxicity_Values'!$G16/$H$8)))),\"--\",($H$5*$H$6*$H$7)/($H$9*$H$10*(($H$11*'Step 2 Chemical_Parameters'!$E16*'Step 1 Toxicity_Values'!$D16/$H$8)+($H$12*$H$13*'Step 2 Chemical_Parameters'!$F16*'Step 1 Toxicity_Values'!$G16/$H$8))))","v":"--"},{"$f":"IF(ISERROR(($K$5*$K$6*$K$7)/($K$9*$K$10*(((1/'Step 1 Toxicity_Values'!$E16)*$K$11*'Step 2 Chemical_Parameters'!$E16/$K$8)+((1/'Step 1 Toxicity_Values'!$I16)*$K$12*$K$13*'Step 2 Chemical_Parameters'!$F16/$K$8)))),\"--\",($K$5*$K$6*$K$7)/($K$9*$K$10*(((1/'Step 1 Toxicity_Values'!$E16)*$K$11*'Step 2 Chemical_Parameters'!$E16/$K$8)+((1/'Step 1 Toxicity_Values'!$I16)*$K$12*$K$13*'Step 2 Chemical_Parameters'!$F16/$K$8))))","v":"--"},{"$f":"IF(T38=\"M\",Z38,I38)","v":"--"},"--","--",{"$f":"IF(ISERROR(($L$5*$L$6*$L$7)/($L$9*$L$10*(($L$11*'Step 2 Chemical_Parameters'!$E16*'Step 1 Toxicity_Values'!$D16/$L$8)+($L$12*$L$13*'Step 2 Chemical_Parameters'!$F16*'Step 1 Toxicity_Values'!$G16/$L$8)))),\"--\",($L$5*$L$6*$L$7)/($L$9*$L$10*(($L$11*'Step 2 Chemical_Parameters'!$E16*'Step 1 Toxicity_Values'!$D16/$L$8)+($L$12*$L$13*'Step 2 Chemical_Parameters'!$F16*'Step 1 Toxicity_Values'!$G16/$L$8))))","v":"--"},{"$f":"IF(ISERROR(($M$5*$M$6*$M$7)/($M$9*$M$10*(((1/'Step 1 Toxicity_Values'!$E16)*$M$11*'Step 2 Chemical_Parameters'!$E16/$M$8)+((1/'Step 1 Toxicity_Values'!$I16)*$M$12*$M$13*'Step 2 Chemical_Parameters'!$F16/$M$8)))),\"--\",($M$5*$M$6*$M$7)/($M$9*$M$10*(((1/'Step 1 Toxicity_Values'!$E16)*$M$11*'Step 2 Chemical_Parameters'!$E16/$M$8)+((1/'Step 1 Toxicity_Values'!$I16)*$M$12*$M$13*'Step 2 Chemical_Parameters'!$F16/$M$8))))","v":"--"},{"$f":"IF(T38=\"M\",AA38,N38)","v":"--"},"--","--","--","--",null,{"$f":"'Step 2 Chemical_Parameters'!A16","v":"7439-92-1"},{"$f":"'Step 2 Chemical_Parameters'!B16","v":"LEAD"},null,{"$f":"IF(B38=\"--\",\"--\",IF(VLOOKUP(B38,chemical,8,FALSE)=\"M\",IF(ISERROR(($S$5*$S$7*$S$8)/((($S$16+$T$16)*'Step 2 Chemical_Parameters'!E16*'Step 1 Toxicity_Values'!D16)+(($S$17+$T$17)*'Step 2 Chemical_Parameters'!F16*'Step 1 Toxicity_Values'!G16))),\"--\",($S$5*$S$7*$S$8)/((($S$16+$T$16)*'Step 2 Chemical_Parameters'!E16*'Step 1 Toxicity_Values'!D16)+(($S$17+$T$17)*'Step 2 Chemical_Parameters'!F16*'Step 1 Toxicity_Values'!G16))),\"--\"))","v":"--"},{"$f":"IF(B38=\"--\",\"--\",IF(VLOOKUP(B38,chemical,8,FALSE)=\"M\",IF(ISERROR(($S$5*$S$7*$S$8)/((($S$16+$T$16+$U$16+$V$16)*'Step 2 Chemical_Parameters'!E16*'Step 1 Toxicity_Values'!D16)+(($S$17+$T$17+$U$17+$V$17)*'Step 2 Chemical_Parameters'!F16*'Step 1 Toxicity_Values'!G16))),\"--\",($S$5*$S$7*$S$8)/((($S$16+$T$16+$U$16+$V$16)*'Step 2 Chemical_Parameters'!E16*'Step 1 Toxicity_Values'!D16)+(($S$17+$T$17+$U$17+$V$17)*'Step 2 Chemical_Parameters'!F16*'Step 1 Toxicity_Values'!G16))),\"--\"))","v":"--"},{"$f":"IF(B38=\"--\",\"--\",IF(VLOOKUP(B38,chemical,8,FALSE)=\"M\",IF(ISERROR(($X$5*$X$7*$X$8)/((($X$16+$Y$16+$Z$16+$AA$16)*'Step 2 Chemical_Parameters'!E16*'Step 1 Toxicity_Values'!D16)+(($X$17+$Y$17+$Z$17+$AA$17)*'Step 2 Chemical_Parameters'!F16*'Step 1 Toxicity_Values'!G16))),\"--\",($X$5*$X$7*$X$8)/((($X$16+$Y$16+$Z$16+$AA$16)*'Step 2 Chemical_Parameters'!E16*'Step 1 Toxicity_Values'!D16)+(($X$17+$Y$17+$Z$17+$AA$17)*'Step 2 Chemical_Parameters'!F16*'Step 1 Toxicity_Values'!G16))),\"--\"))","v":"--"},"M","Carcinogen with a mutagenic mode of action"]
[null,"22967-92-6","METHYL MERCURY",{"$f":"IF(ISERROR(($F$5*$F$6*$F$7)/($F$9*$F$10*(($F$11*'Step 2 Chemical_Parameters'!E17*'Step 1 Toxicity_Values'!$D17/$F$8)+($F$12*$F$13*'Step 2 Chemical_Parameters'!F17*'Step 1 Toxicity_Values'!G17/$F$8)))),\"--\",($F$5*$F$6*$F$7)/($F$9*$F$10*(($F$11*'Step 2 Chemical_Parameters'!E17*'Step 1 Toxicity_Values'!$D17/$F$8)+($F$12*$F$13*'Step 2 Chemical_Parameters'!F17*'Step 1 Toxicity_Values'!G17/$F$8))))","v":"--"},{"$f":"IF(ISERROR(($G$5*$G$6*$G$7)/($G$9*$G$10*(((1/'Step 1 Toxicity_Values'!$E17)*($G$11*'Step 2 Chemical_Parameters'!$E17/$G$8))+((1/'Step 1 Toxicity_Values'!$I17)*($G$12*$G$13*'Step 2 Chemical_Parameters'!$F17/$G$8))))),\"--\",($G$5*$G$6*$G$7)/($G$9*$G$10*(((1/'Step 1 Toxicity_Values'!$E17)*($G$11*'Step 2 Chemical_Parameters'!$E17/$G$8))+((1/'Step 1 Toxicity_Values'!$I17)*($G$12*$G$13*'Step 2 Chemical_Parameters'!$F17/$G$8)))))","v":66.768292682926827},"--",66.768292682926827,66.768292682926827,{"$f":"IF(ISERROR(($H$5*$H$6*$H$7)/($H$9*$H$10*(($H$11*'Step 2 Chemical_Parameters'!$E17*'Step 1 Toxicity_Values'!$D17/$H$8)+($H$12*$H$13*'Step 2 Chemical_Parameters'!$F17*'Step 1 Toxicity_Values'!$G17/$H$8)))),\"--\",($H$5*$H$6*$H$7)/($H$9*$H$10*(($H$11*'Step 2 Chemical_Parameters'!$E17*'Step 1 Toxicity_Values'!$D17/$H$8)+($H$12*$H$13*'Step 2 Chemical_Parameters'!$F17*'Step 1 Toxicity_Values'!$G17/$H$8))))","v":"--"},{"$f":"IF(ISERROR(($K$5*$K$6*$K$7)/($K$9*$K$10*(((1/'Step 1 Toxicity_Values'!$E17)*$K$11*'Step 2 Chemical_Parameters'!$E17/$K$8)+((1/'Step 1 Toxicity_Values'!$I17)*$K$12*$K$13*'Step 2 Chemical_Parameters'!$F17/$K$8)))),\"--\",($K$5*$K$6*$K$7)/($K$9*$K$10*(((1/'Step 1 Toxicity_Values'!$E17)*$K$11*'Step 2 Chemical_Parameters'!$E17/$K$8)+((1/'Step 1 Toxicity_Values'!$I17)*$K$12*$K$13*'Step 2 Chemical_Parameters'!$F17/$K$8))))","v":228.125},"--",228.125,228.125,{"$f":"IF(ISERROR(($L$5*$L$6*$L$7)/($L$9*$L$10*(($L$11*'Step 2 Chemical_Parameters'!$E17*'Step 1 Toxicity_Values'!$D17/$L$8)+($L$12*$L$13*'Step 2 Chemical_Parameters'!$F17*'Step 1 Toxicity_Values'!$G17/$L$8)))),\"--\",($L$5*$L$6*$L$7)/($L$9*$L$10*(($L$11*'Step 2 Chemical_Parameters'!$E17*'Step 1 Toxicity_Values'!$D17/$L$8)+($L$12*$L$13*'Step 2 Chemical_Parameters'!$F17*'Step 1 Toxicity_Values'!$G17/$L$8))))","v":"--"},{"$f":"IF(ISERROR(($M$5*$M$6*$M$7)/($M$9*$M$10*(((1/'Step 1 Toxicity_Values'!$E17)*$M$11*'Step 2 Chemical_Parameters'!$E17/$M$8)+((1/'Step 1 Toxicity_Values'!$I17)*$M$12*$M$13*'Step 2 Chemical_Parameters'!$F17/$M$8)))),\"--\",($M$5*$M$6*$M$7)/($M$9*$M$10*(((1/'Step 1 Toxicity_Values'!$E17)*$M$11*'Step 2 Chemical_Parameters'!$E17/$M$8)+((1/'Step 1 Toxicity_Values'!$I17)*$M$12*$M$13*'Step 2 Chemical_Parameters'!$F17/$M$8))))","v":460.0840336134454},"--",460.0840336134454,460.0840336134454,66.768292682926827,"--",null,{"$f":"'Step 2 Chemical_Parameters'!A17","v":"22967-92-6"},{"$f":"'Step 2 Chemical_Parameters'!B17","v":"METHYL MERCURY"},null,{"$f":"IF(B39=\"--\",\"--\",IF(VLOOKUP(B39,chemical,8,FALSE)=\"M\",IF(ISERROR(($S$5*$S$7*$S$8)/((($S$16+$T$16)*'Step 2 Chemical_Parameters'!E17*'Step 1 Toxicity_Values'!D17)+(($S$17+$T$17)*'Step 2 Chemical_Parameters'!F17*'Step 1 Toxicity_Values'!G17))),\"--\",($S$5*$S$7*$S$8)/((($S$16+$T$16)*'Step 2 Chemical_Parameters'!E17*'Step 1 Toxicity_Values'!D17)+(($S$17+$T$17)*'Step 2 Chemical_Parameters'!F17*'Step 1 Toxicity_Values'!G17))),\"--\"))","v":"--"},{"$f":"IF(B39=\"--\",\"--\",IF(VLOOKUP(B39,chemical,8,FALSE)=\"M\",IF(ISERROR(($S$5*$S$7*$S$8)/((($S$16+$T$16+$U$16+$V$16)*'Step 2 Chemical_Parameters'!E17*'Step 1 Toxicity_Values'!D17)+(($S$17+$T$17+$U$17+$V$17)*'Step 2 Chemical_Parameters'!F17*'Step 1 Toxicity_Values'!G17))),\"--\",($S$5*$S$7*$S$8)/((($S$16+$T$16+$U$16+$V$16)*'Step 2 Chemical_Parameters'!E17*'Step 1 Toxicity_Values'!D17)+(($S$17+$T$17+$U$17+$V$17)*'Step 2 Chemical_Parameters'!F17*'Step 1 Toxicity_Values'!G17))),\"--\"))","v":"--"},{"$f":"IF(B39=\"--\",\"--\",IF(VLOOKUP(B39,chemical,8,FALSE)=\"M\",IF(ISERROR(($X$5*$X$7*$X$8)/((($X$16+$Y$16+$Z$16+$AA$16)*'Step 2 Chemical_Parameters'!E17*'Step 1 Toxicity_Values'!D17)+(($X$17+$Y$17+$Z$17+$AA$17)*'Step 2 Chemical_Parameters'!F17*'Step 1 Toxicity_Values'!G17))),\"--\",($X$5*$X$7*$X$8)/((($X$16+$Y$16+$Z$16+$AA$16)*'Step 2 Chemical_Parameters'!E17*'Step 1 Toxicity_Values'!D17)+(($X$17+$Y$17+$Z$17+$AA$17)*'Step 2 Chemical_Parameters'!F17*'Step 1 Toxicity_Values'!G17))),\"--\"))","v":"--"},"PCB","Polychlorinated Biphenyls"]
[null,"1336-36-3a","Dioxin-like PCBs",{"$f":"IF(ISERROR(($F$5*$F$6*$F$7)/($F$9*$F$10*(($F$11*'Step 2 Chemical_Parameters'!E18*'Step 1 Toxicity_Values'!$D18/$F$8)+($F$12*$F$13*'Step 2 Chemical_Parameters'!F18*'Step 1 Toxicity_Values'!G18/$F$8)))),\"--\",($F$5*$F$6*$F$7)/($F$9*$F$10*(($F$11*'Step 2 Chemical_Parameters'!E18*'Step 1 Toxicity_Values'!$D18/$F$8)+($F$12*$F$13*'Step 2 Chemical_Parameters'!F18*'Step 1 Toxicity_Values'!G18/$F$8))))","v":2.8592686118466875E-5},{"$f":"IF(ISERROR(($G$5*$G$6*$G$7)/($G$9*$G$10*(((1/'Step 1 Toxicity_Values'!$E18)*($G$11*'Step 2 Chemical_Parameters'!$E18/$G$8))+((1/'Step 1 Toxicity_Values'!$I18)*($G$12*$G$13*'Step 2 Chemical_Parameters'!$F18/$G$8))))),\"--\",($G$5*$G$6*$G$7)/($G$9*$G$10*(((1/'Step 1 Toxicity_Values'!$E18)*($G$11*'Step 2 Chemical_Parameters'!$E18/$G$8))+((1/'Step 1 Toxicity_Values'!$I18)*($G$12*$G$13*'Step 2 Chemical_Parameters'!$F18/$G$8)))))","v":2.2302295172404164E-4},2.8592686118466875E-5,2.2302295172404164E-4,2.8592686118466875E-5,{"$f":"IF(ISERROR(($H$5*$H$6*$H$7)/($H$9*$H$10*(($H$11*'Step 2 Chemical_Parameters'!$E18*'Step 1 Toxicity_Values'!$D18/$H$8)+($H$12*$H$13*'Step 2 Chemical_Parameters'!$F18*'Step 1 Toxicity_Values'!$G18/$H$8)))),\"--\",($H$5*$H$6*$H$7)/($H$9*$H$10*(($H$11*'Step 2 Chemical_Parameters'!$E18*'Step 1 Toxicity_Values'!$D18/$H$8)+($H$12*$H$13*'Step 2 Chemical_Parameters'!$F18*'Step 1 Toxicity_Values'!$G18/$H$8))))","v":1.2097650056997497E-5},{"$f":"IF(ISERROR(($K$5*$K$6*$K$7)/($K$9*$K$10*(((1/'Step 1 Toxicity_Values'!$E18)*$K$11*'Step 2 Chemical_Parameters'!$E18/$K$8)+((1/'Step 1 Toxicity_Values'!$I18)*$K$12*$K$13*'Step 2 Chemical_Parameters'!$F18/$K$8)))),\"--\",($K$5*$K$6*$K$7)/($K$9*$K$10*(((1/'Step 1 Toxicity_Values'!$E18)*$K$11*'Step 2 Chemical_Parameters'!$E18/$K$8)+((1/'Step 1 Toxicity_Values'!$I18)*$K$12*$K$13*'Step 2 Chemical_Parameters'!$F18/$K$8))))","v":1.1008861551867724E-3},1.2097650056997497E-5,1.1008861551867724E-3,1.2097650056997497E-5,{"$f":"IF(ISERROR(($L$5*$L$6*$L$7)/($L$9*$L$10*(($L$11*'Step 2 Chemical_Parameters'!$E18*'Step 1 Toxicity_Values'!$D18/$L$8)+($L$12*$L$13*'Step 2 Chemical_Parameters'!$F18*'Step 1 Toxicity_Values'!$G18/$L$8)))),\"--\",($L$5*$L$6*$L$7)/($L$9*$L$10*(($L$11*'Step 2 Chemical_Parameters'!$E18*'Step 1 Toxicity_Values'!$D18/$L$8)+($L$12*$L$13*'Step 2 Chemical_Parameters'!$F18*'Step 1 Toxicity_Values'!$G18/$L$8))))","v":2.860439964819566E-5},{"$f":"IF(ISERROR(($M$5*$M$6*$M$7)/($M$9*$M$10*(((1/'Step 1 Toxicity_Values'!$E18)*$M$11*'Step 2 Chemical_Parameters'!$E18/$M$8)+((1/'Step 1 Toxicity_Values'!$I18)*$M$12*$M$13*'Step 2 Chemical_Parameters'!$F18/$M$8)))),\"--\",($M$5*$M$6*$M$7)/($M$9*$M$10*(((1/'Step 1 Toxicity_Values'!$E18)*$M$11*'Step 2 Chemical_Parameters'!$E18/$M$8)+((1/'Step 1 Toxicity_Values'!$I18)*$M$12*$M$13*'Step 2 Chemical_Parameters'!$F18/$M$8))))","v":2.6030003679858057E-3},2.860439964819566E-5,2.6030003679858057E-3,2.860439964819566E-5,1.2097650056997497E-5,"--",null,{"$f":"'Step 2 Chemical_Parameters'!A18","v":"1336-36-3a"},{"$f":"'Step 2 Chemical_Parameters'!B18","v":"Dioxin-like PCBs"},null,{"$f":"IF(B40=\"--\",\"--\",IF(VLOOKUP(B40,chemical,8,FALSE)=\"M\",IF(ISERROR(($S$5*$S$7*$S$8)/((($S$16+$T$16)*'Step 2 Chemical_Parameters'!E18*'Step 1 Toxicity_Values'!D18)+(($S$17+$T$17)*'Step 2 Chemical_Parameters'!F18*'Step 1 Toxicity_Values'!G18))),\"--\",($S$5*$S$7*$S$8)/((($S$16+$T$16)*'Step 2 Chemical_Parameters'!E18*'Step 1 Toxicity_Values'!D18)+(($S$17+$T$17)*'Step 2 Chemical_Parameters'!F18*'Step 1 Toxicity_Values'!G18))),\"--\"))","v":"--"},{"$f":"IF(B40=\"--\",\"--\",IF(VLOOKUP(B40,chemical,8,FALSE)=\"M\",IF(ISERROR(($S$5*$S$7*$S$8)/((($S$16+$T$16+$U$16+$V$16)*'Step 2 Chemical_Parameters'!E18*'Step 1 Toxicity_Values'!D18)+(($S$17+$T$17+$U$17+$V$17)*'Step 2 Chemical_Parameters'!F18*'Step 1 Toxicity_Values'!G18))),\"--\",($S$5*$S$7*$S$8)/((($S$16+$T$16+$U$16+$V$16)*'Step 2 Chemical_Parameters'!E18*'Step 1 Toxicity_Values'!D18)+(($S$17+$T$17+$U$17+$V$17)*'Step 2 Chemical_Parameters'!F18*'Step 1 Toxicity_Values'!G18))),\"--\"))","v":"--"},{"$f":"IF(B40=\"--\",\"--\",IF(VLOOKUP(B40,chemical,8,FALSE)=\"M\",IF(ISERROR(($X$5*$X$7*$X$8)/((($X$16+$Y$16+$Z$16+$AA$16)*'Step 2 Chemical_Parameters'!E18*'Step 1 Toxicity_Values'!D18)+(($X$17+$Y$17+$Z$17+$AA$17)*'Step 2 Chemical_Parameters'!F18*'Step 1 Toxicity_Values'!G18))),\"--\",($X$5*$X$7*$X$8)/((($X$16+$Y$16+$Z$16+$AA$16)*'Step 2 Chemical_Parameters'!E18*'Step 1 Toxicity_Values'!D18)+(($X$17+$Y$17+$Z$17+$AA$17)*'Step 2 Chemical_Parameters'!F18*'Step 1 Toxicity_Values'!G18))),\"--\"))","v":"--"},"RBC","Risk-Based Concentration"]
[null,"56-35-9","tributyltin oxide",{"$f":"IF(ISERROR(($F$5*$F$6*$F$7)/($F$9*$F$10*(($F$11*'Step 2 Chemical_Parameters'!E19*'Step 1 Toxicity_Values'!$D19/$F$8)+($F$12*$F$13*'Step 2 Chemical_Parameters'!F19*'Step 1 Toxicity_Values'!G19/$F$8)))),\"--\",($F$5*$F$6*$F$7)/($F$9*$F$10*(($F$11*'Step 2 Chemical_Parameters'!E19*'Step 1 Toxicity_Values'!$D19/$F$8)+($F$12*$F$13*'Step 2 Chemical_Parameters'!F19*'Step 1 Toxicity_Values'!G19/$F$8))))","v":"--"},{"$f":"IF(ISERROR(($G$5*$G$6*$G$7)/($G$9*$G$10*(((1/'Step 1 Toxicity_Values'!$E19)*($G$11*'Step 2 Chemical_Parameters'!$E19/$G$8))+((1/'Step 1 Toxicity_Values'!$I19)*($G$12*$G$13*'Step 2 Chemical_Parameters'!$F19/$G$8))))),\"--\",($G$5*$G$6*$G$7)/($G$9*$G$10*(((1/'Step 1 Toxicity_Values'!$E19)*($G$11*'Step 2 Chemical_Parameters'!$E19/$G$8))+((1/'Step 1 Toxicity_Values'!$I19)*($G$12*$G$13*'Step 2 Chemical_Parameters'!$F19/$G$8)))))","v":33.465020140135401},"--",33.465020140135401,33.465020140135401,{"$f":"IF(ISERROR(($H$5*$H$6*$H$7)/($H$9*$H$10*(($H$11*'Step 2 Chemical_Parameters'!$E19*'Step 1 Toxicity_Values'!$D19/$H$8)+($H$12*$H$13*'Step 2 Chemical_Parameters'!$F19*'Step 1 Toxicity_Values'!$G19/$H$8)))),\"--\",($H$5*$H$6*$H$7)/($H$9*$H$10*(($H$11*'Step 2 Chemical_Parameters'!$E19*'Step 1 Toxicity_Values'!$D19/$H$8)+($H$12*$H$13*'Step 2 Chemical_Parameters'!$F19*'Step 1 Toxicity_Values'!$G19/$H$8))))","v":"--"},{"$f":"IF(ISERROR(($K$5*$K$6*$K$7)/($K$9*$K$10*(((1/'Step 1 Toxicity_Values'!$E19)*$K$11*'Step 2 Chemical_Parameters'!$E19/$K$8)+((1/'Step 1 Toxicity_Values'!$I19)*$K$12*$K$13*'Step 2 Chemical_Parameters'!$F19/$K$8)))),\"--\",($K$5*$K$6*$K$7)/($K$9*$K$10*(((1/'Step 1 Toxicity_Values'!$E19)*$K$11*'Step 2 Chemical_Parameters'!$E19/$K$8)+((1/'Step 1 Toxicity_Values'!$I19)*$K$12*$K$13*'Step 2 Chemical_Parameters'!$F19/$K$8))))","v":178.44943574125452},"--",178.44943574125452,178.44943574125452,{"$f":"IF(ISERROR(($L$5*$L$6*$L$7)/($L$9*$L$10*(($L$11*'Step 2 Chemical_Parameters'!$E19*'Step 1 Toxicity_Values'!$D19/$L$8)+($L$12*$L$13*'Step 2 Chemical_Parameters'!$F19*'Step 1 Toxicity_Values'!$G19/$L$8)))),\"--\",($L$5*$L$6*$L$7)/($L$9*$L$10*(($L$11*'Step 2 Chemical_Parameters'!$E19*'Step 1 Toxicity_Values'!$D19/$L$8)+($L$12*$L$13*'Step 2 Chemical_Parameters'!$F19*'Step 1 Toxicity_Values'!$G19/$L$8))))","v":"--"},{"$f":"IF(ISERROR(($M$5*$M$6*$M$7)/($M$9*$M$10*(((1/'Step 1 Toxicity_Values'!$E19)*$M$11*'Step 2 Chemical_Parameters'!$E19/$M$8)+((1/'Step 1 Toxicity_Values'!$I19)*$M$12*$M$13*'Step 2 Chemical_Parameters'!$F19/$M$8)))),\"--\",($M$5*$M$6*$M$7)/($M$9*$M$10*(((1/'Step 1 Toxicity_Values'!$E19)*$M$11*'Step 2 Chemical_Parameters'!$E19/$M$8)+((1/'Step 1 Toxicity_Values'!$I19)*$M$12*$M$13*'Step 2 Chemical_Parameters'!$F19/$M$8))))","v":441.79377147440488},"--",441.79377147440488,441.79377147440488,33.465020140135401,"--",null,{"$f":"'Step 2 Chemical_Parameters'!A19","v":"56-35-9"},{"$f":"'Step 2 Chemical_Parameters'!B19","v":"tributyltin oxide"},null,{"$f":"IF(B41=\"--\",\"--\",IF(VLOOKUP(B41,chemical,8,FALSE)=\"M\",IF(ISERROR(($S$5*$S$7*$S$8)/((($S$16+$T$16)*'Step 2 Chemical_Parameters'!E19*'Step 1 Toxicity_Values'!D19)+(($S$17+$T$17)*'Step 2 Chemical_Parameters'!F19*'Step 1 Toxicity_Values'!G19))),\"--\",($S$5*$S$7*$S$8)/((($S$16+$T$16)*'Step 2 Chemical_Parameters'!E19*'Step 1 Toxicity_Values'!D19)+(($S$17+$T$17)*'Step 2 Chemical_Parameters'!F19*'Step 1 Toxicity_Values'!G19))),\"--\"))","v":"--"},{"$f":"IF(B41=\"--\",\"--\",IF(VLOOKUP(B41,chemical,8,FALSE)=\"M\",IF(ISERROR(($S$5*$S$7*$S$8)/((($S$16+$T$16+$U$16+$V$16)*'Step 2 Chemical_Parameters'!E19*'Step 1 Toxicity_Values'!D19)+(($S$17+$T$17+$U$17+$V$17)*'Step 2 Chemical_Parameters'!F19*'Step 1 Toxicity_Values'!G19))),\"--\",($S$5*$S$7*$S$8)/((($S$16+$T$16+$U$16+$V$16)*'Step 2 Chemical_Parameters'!E19*'Step 1 Toxicity_Values'!D19)+(($S$17+$T$17+$U$17+$V$17)*'Step 2 Chemical_Parameters'!F19*'Step 1 Toxicity_Values'!G19))),\"--\"))","v":"--"},{"$f":"IF(B41=\"--\",\"--\",IF(VLOOKUP(B41,chemical,8,FALSE)=\"M\",IF(ISERROR(($X$5*$X$7*$X$8)/((($X$16+$Y$16+$Z$16+$AA$16)*'Step 2 Chemical_Parameters'!E19*'Step 1 Toxicity_Values'!D19)+(($X$17+$Y$17+$Z$17+$AA$17)*'Step 2 Chemical_Parameters'!F19*'Step 1 Toxicity_Values'!G19))),\"--\",($X$5*$X$7*$X$8)/((($X$16+$Y$16+$Z$16+$AA$16)*'Step 2 Chemical_Parameters'!E19*'Step 1 Toxicity_Values'!D19)+(($X$17+$Y$17+$Z$17+$AA$17)*'Step 2 Chemical_Parameters'!F19*'Step 1 Toxicity_Values'!G19))),\"--\"))","v":"--"},"RBCcancer","Risk-based sediment concentration - cancer endpoint"]
[null,"50-29-3","DDT",{"$f":"IF(ISERROR(($F$5*$F$6*$F$7)/($F$9*$F$10*(($F$11*'Step 2 Chemical_Parameters'!E20*'Step 1 Toxicity_Values'!$D20/$F$8)+($F$12*$F$13*'Step 2 Chemical_Parameters'!F20*'Step 1 Toxicity_Values'!G20/$F$8)))),\"--\",($F$5*$F$6*$F$7)/($F$9*$F$10*(($F$11*'Step 2 Chemical_Parameters'!E20*'Step 1 Toxicity_Values'!$D20/$F$8)+($F$12*$F$13*'Step 2 Chemical_Parameters'!F20*'Step 1 Toxicity_Values'!G20/$F$8))))","v":9.1802490997175834},{"$f":"IF(ISERROR(($G$5*$G$6*$G$7)/($G$9*$G$10*(((1/'Step 1 Toxicity_Values'!$E20)*($G$11*'Step 2 Chemical_Parameters'!$E20/$G$8))+((1/'Step 1 Toxicity_Values'!$I20)*($G$12*$G$13*'Step 2 Chemical_Parameters'!$F20/$G$8))))),\"--\",($G$5*$G$6*$G$7)/($G$9*$G$10*(((1/'Step 1 Toxicity_Values'!$E20)*($G$11*'Step 2 Chemical_Parameters'!$E20/$G$8))+((1/'Step 1 Toxicity_Values'!$I20)*($G$12*$G$13*'Step 2 Chemical_Parameters'!$F20/$G$8)))))","v":133.76934402445619},9.1802490997175834,133.76934402445619,9.1802490997175834,{"$f":"IF(ISERROR(($H$5*$H$6*$H$7)/($H$9*$H$10*(($H$11*'Step 2 Chemical_Parameters'!$E20*'Step 1 Toxicity_Values'!$D20/$H$8)+($H$12*$H$13*'Step 2 Chemical_Parameters'!$F20*'Step 1 Toxicity_Values'!$G20/$H$8)))),\"--\",($H$5*$H$6*$H$7)/($H$9*$H$10*(($H$11*'Step 2 Chemical_Parameters'!$E20*'Step 1 Toxicity_Values'!$D20/$H$8)+($H$12*$H$13*'Step 2 Chemical_Parameters'!$F20*'Step 1 Toxicity_Values'!$G20/$H$8))))","v":3.6257380691482961},{"$f":"IF(ISERROR(($K$5*$K$6*$K$7)/($K$9*$K$10*(((1/'Step 1 Toxicity_Values'!$E20)*$K$11*'Step 2 Chemical_Parameters'!$E20/$K$8)+((1/'Step 1 Toxicity_Values'!$I20)*$K$12*$K$13*'Step 2 Chemical_Parameters'!$F20/$K$8)))),\"--\",($K$5*$K$6*$K$7)/($K$9*$K$10*(((1/'Step 1 Toxicity_Values'!$E20)*$K$11*'Step 2 Chemical_Parameters'!$E20/$K$8)+((1/'Step 1 Toxicity_Values'!$I20)*$K$12*$K$13*'Step 2 Chemical_Parameters'!$F20/$K$8))))","v":616.37547175521047},3.6257380691482961,616.37547175521047,3.6257380691482961,{"$f":"IF(ISERROR(($L$5*$L$6*$L$7)/($L$9*$L$10*(($L$11*'Step 2 Chemical_Parameters'!$E20*'Step 1 Toxicity_Values'!$D20/$L$8)+($L$12*$L$13*'Step 2 Chemical_Parameters'!$F20*'Step 1 Toxicity_Values'!$G20/$L$8)))),\"--\",($L$5*$L$6*$L$7)/($L$9*$L$10*(($L$11*'Step 2 Chemical_Parameters'!$E20*'Step 1 Toxicity_Values'!$D20/$L$8)+($L$12*$L$13*'Step 2 Chemical_Parameters'!$F20*'Step 1 Toxicity_Values'!$G20/$L$8))))","v":8.2649569045673399},{"$f":"IF(ISERROR(($M$5*$M$6*$M$7)/($M$9*$M$10*(((1/'Step 1 Toxicity_Values'!$E20)*$M$11*'Step 2 Chemical_Parameters'!$E20/$M$8)+((1/'Step 1 Toxicity_Values'!$I20)*$M$12*$M$13*'Step 2 Chemical_Parameters'!$F20/$M$8)))),\"--\",($M$5*$M$6*$M$7)/($M$9*$M$10*(((1/'Step 1 Toxicity_Values'!$E20)*$M$11*'Step 2 Chemical_Parameters'!$E20/$M$8)+((1/'Step 1 Toxicity_Values'!$I20)*$M$12*$M$13*'Step 2 Chemical_Parameters'!$F20/$M$8))))","v":1405.0426737764476},8.2649569045673399,1405.0426737764476,8.2649569045673399,3.6257380691482961,"--",null,{"$f":"'Step 2 Chemical_Parameters'!A20","v":"50-29-3"},{"$f":"'Step 2 Chemical_Parameters'!B20","v":"DDT"},null,{"$f":"IF(B42=\"--\",\"--\",IF(VLOOKUP(B42,chemical,8,FALSE)=\"M\",IF(ISERROR(($S$5*$S$7*$S$8)/((($S$16+$T$16)*'Step 2 Chemical_Parameters'!E20*'Step 1 Toxicity_Values'!D20)+(($S$17+$T$17)*'Step 2 Chemical_Parameters'!F20*'Step 1 Toxicity_Values'!G20))),\"--\",($S$5*$S$7*$S$8)/((($S$16+$T$16)*'Step 2 Chemical_Parameters'!E20*'Step 1 Toxicity_Values'!D20)+(($S$17+$T$17)*'Step 2 Chemical_Parameters'!F20*'Step 1 Toxicity_Values'!G20))),\"--\"))","v":"--"},{"$f":"IF(B42=\"--\",\"--\",IF(VLOOKUP(B42,chemical,8,FALSE)=\"M\",IF(ISERROR(($S$5*$S$7*$S$8)/((($S$16+$T$16+$U$16+$V$16)*'Step 2 Chemical_Parameters'!E20*'Step 1 Toxicity_Values'!D20)+(($S$17+$T$17+$U$17+$V$17)*'Step 2 Chemical_Parameters'!F20*'Step 1 Toxicity_Values'!G20))),\"--\",($S$5*$S$7*$S$8)/((($S$16+$T$16+$U$16+$V$16)*'Step 2 Chemical_Parameters'!E20*'Step 1 Toxicity_Values'!D20)+(($S$17+$T$17+$U$17+$V$17)*'Step 2 Chemical_Parameters'!F20*'Step 1 Toxicity_Values'!G20))),\"--\"))","v":"--"},{"$f":"IF(B42=\"--\",\"--\",IF(VLOOKUP(B42,chemical,8,FALSE)=\"M\",IF(ISERROR(($X$5*$X$7*$X$8)/((($X$16+$Y$16+$Z$16+$AA$16)*'Step 2 Chemical_Parameters'!E20*'Step 1 Toxicity_Values'!D20)+(($X$17+$Y$17+$Z$17+$AA$17)*'Step 2 Chemical_Parameters'!F20*'Step 1 Toxicity_Values'!G20))),\"--\",($X$5*$X$7*$X$8)/((($X$16+$Y$16+$Z$16+$AA$16)*'Step 2 Chemical_Parameters'!E20*'Step 1 Toxicity_Values'!D20)+(($X$17+$Y$17+$Z$17+$AA$17)*'Step 2 Chemical_Parameters'!F20*'Step 1 Toxicity_Values'!G20))),\"--\"))","v":"--"},"RBCnoncancer","Risk-based sediment concentration - noncancer endpoint"]
[null,"71-43-2","BENZENE",{"$f":"IF(ISERROR(($F$5*$F$6*$F$7)/($F$9*$F$10*(($F$11*'Step 2 Chemical_Parameters'!E21*'Step 1 Toxicity_Values'!$D21/$F$8)+($F$12*$F$13*'Step 2 Chemical_Parameters'!F21*'Step 1 Toxicity_Values'!G21/$F$8)))),\"--\",($F$5*$F$6*$F$7)/($F$9*$F$10*(($F$11*'Step 2 Chemical_Parameters'!E21*'Step 1 Toxicity_Values'!$D21/$F$8)+($F$12*$F$13*'Step 2 Chemical_Parameters'!F21*'Step 1 Toxicity_Values'!G21/$F$8))))","v":141.62971175166297},{"$f":"IF(ISERROR(($G$5*$G$6*$G$7)/($G$9*$G$10*(((1/'Step 1 Toxicity_Values'!$E21)*($G$11*'Step 2 Chemical_Parameters'!$E21/$G$8))+((1/'Step 1 Toxicity_Values'!$I21)*($G$12*$G$13*'Step 2 Chemical_Parameters'!$F21/$G$8))))),\"--\",($G$5*$G$6*$G$7)/($G$9*$G$10*(((1/'Step 1 Toxicity_Values'!$E21)*($G$11*'Step 2 Chemical_Parameters'!$E21/$G$8))+((1/'Step 1 Toxicity_Values'!$I21)*($G$12*$G$13*'Step 2 Chemical_Parameters'!$F21/$G$8)))))","v":2670.731707317073},141.62971175166297,2670.731707317073,141.62971175166297,{"$f":"IF(ISERROR(($H$5*$H$6*$H$7)/($H$9*$H$10*(($H$11*'Step 2 Chemical_Parameters'!$E21*'Step 1 Toxicity_Values'!$D21/$H$8)+($H$12*$H$13*'Step 2 Chemical_Parameters'!$F21*'Step 1 Toxicity_Values'!$G21/$H$8)))),\"--\",($H$5*$H$6*$H$7)/($H$9*$H$10*(($H$11*'Step 2 Chemical_Parameters'!$E21*'Step 1 Toxicity_Values'!$D21/$H$8)+($H$12*$H$13*'Step 2 Chemical_Parameters'!$F21*'Step 1 Toxicity_Values'!$G21/$H$8))))","v":41.477272727272727},{"$f":"IF(ISERROR(($K$5*$K$6*$K$7)/($K$9*$K$10*(((1/'Step 1 Toxicity_Values'!$E21)*$K$11*'Step 2 Chemical_Parameters'!$E21/$K$8)+((1/'Step 1 Toxicity_Values'!$I21)*$K$12*$K$13*'Step 2 Chemical_Parameters'!$F21/$K$8)))),\"--\",($K$5*$K$6*$K$7)/($K$9*$K$10*(((1/'Step 1 Toxicity_Values'!$E21)*$K$11*'Step 2 Chemical_Parameters'!$E21/$K$8)+((1/'Step 1 Toxicity_Values'!$I21)*$K$12*$K$13*'Step 2 Chemical_Parameters'!$F21/$K$8))))","v":9125},41.477272727272727,9125,41.477272727272727,{"$f":"IF(ISERROR(($L$5*$L$6*$L$7)/($L$9*$L$10*(($L$11*'Step 2 Chemical_Parameters'!$E21*'Step 1 Toxicity_Values'!$D21/$L$8)+($L$12*$L$13*'Step 2 Chemical_Parameters'!$F21*'Step 1 Toxicity_Values'!$G21/$L$8)))),\"--\",($L$5*$L$6*$L$7)/($L$9*$L$10*(($L$11*'Step 2 Chemical_Parameters'!$E21*'Step 1 Toxicity_Values'!$D21/$L$8)+($L$12*$L$13*'Step 2 Chemical_Parameters'!$F21*'Step 1 Toxicity_Values'!$G21/$L$8))))","v":83.651642475171869},{"$f":"IF(ISERROR(($M$5*$M$6*$M$7)/($M$9*$M$10*(((1/'Step 1 Toxicity_Values'!$E21)*$M$11*'Step 2 Chemical_Parameters'!$E21/$M$8)+((1/'Step 1 Toxicity_Values'!$I21)*$M$12*$M$13*'Step 2 Chemical_Parameters'!$F21/$M$8)))),\"--\",($M$5*$M$6*$M$7)/($M$9*$M$10*(((1/'Step 1 Toxicity_Values'!$E21)*$M$11*'Step 2 Chemical_Parameters'!$E21/$M$8)+((1/'Step 1 Toxicity_Values'!$I21)*$M$12*$M$13*'Step 2 Chemical_Parameters'!$F21/$M$8))))","v":18403.361344537814},83.651642475171869,18403.361344537814,83.651642475171869,41.477272727272727,"--",null,{"$f":"'Step 2 Chemical_Parameters'!A21","v":"71-43-2"},{"$f":"'Step 2 Chemical_Parameters'!B21","v":"BENZENE"},null,{"$f":"IF(B43=\"--\",\"--\",IF(VLOOKUP(B43,chemical,8,FALSE)=\"M\",IF(ISERROR(($S$5*$S$7*$S$8)/((($S$16+$T$16)*'Step 2 Chemical_Parameters'!E21*'Step 1 Toxicity_Values'!D21)+(($S$17+$T$17)*'Step 2 Chemical_Parameters'!F21*'Step 1 Toxicity_Values'!G21))),\"--\",($S$5*$S$7*$S$8)/((($S$16+$T$16)*'Step 2 Chemical_Parameters'!E21*'Step 1 Toxicity_Values'!D21)+(($S$17+$T$17)*'Step 2 Chemical_Parameters'!F21*'Step 1 Toxicity_Values'!G21))),\"--\"))","v":"--"},{"$f":"IF(B43=\"--\",\"--\",IF(VLOOKUP(B43,chemical,8,FALSE)=\"M\",IF(ISERROR(($S$5*$S$7*$S$8)/((($S$16+$T$16+$U$16+$V$16)*'Step 2 Chemical_Parameters'!E21*'Step 1 Toxicity_Values'!D21)+(($S$17+$T$17+$U$17+$V$17)*'Step 2 Chemical_Parameters'!F21*'Step 1 Toxicity_Values'!G21))),\"--\",($S$5*$S$7*$S$8)/((($S$16+$T$16+$U$16+$V$16)*'Step 2 Chemical_Parameters'!E21*'Step 1 Toxicity_Values'!D21)+(($S$17+$T$17+$U$17+$V$17)*'Step 2 Chemical_Parameters'!F21*'Step 1 Toxicity_Values'!G21))),\"--\"))","v":"--"},{"$f":"IF(B43=\"--\",\"--\",IF(VLOOKUP(B43,chemical,8,FALSE)=\"M\",IF(ISERROR(($X$5*$X$7*$X$8)/((($X$16+$Y$16+$Z$16+$AA$16)*'Step 2 Chemical_Parameters'!E21*'Step 1 Toxicity_Values'!D21)+(($X$17+$Y$17+$Z$17+$AA$17)*'Step 2 Chemical_Parameters'!F21*'Step 1 Toxicity_Values'!G21))),\"--\",($X$5*$X$7*$X$8)/((($X$16+$Y$16+$Z$16+$AA$16)*'Step 2 Chemical_Parameters'!E21*'Step 1 Toxicity_Values'!D21)+(($X$17+$Y$17+$Z$17+$AA$17)*'Step 2 Chemical_Parameters'!F21*'Step 1 Toxicity_Values'!G21))),\"--\"))","v":"--"},"Subs.","Tribal substistence user"]
[null,"--","--",{"$f":"IF(ISERROR(($F$5*$F$6*$F$7)/($F$9*$F$10*(($F$11*'Step 2 Chemical_Parameters'!E22*'Step 1 Toxicity_Values'!$D22/$F$8)+($F$12*$F$13*'Step 2 Chemical_Parameters'!F22*'Step 1 Toxicity_Values'!G22/$F$8)))),\"--\",($F$5*$F$6*$F$7)/($F$9*$F$10*(($F$11*'Step 2 Chemical_Parameters'!E22*'Step 1 Toxicity_Values'!$D22/$F$8)+($F$12*$F$13*'Step 2 Chemical_Parameters'!F22*'Step 1 Toxicity_Values'!G22/$F$8))))","v":"--"},{"$f":"IF(ISERROR(($G$5*$G$6*$G$7)/($G$9*$G$10*(((1/'Step 1 Toxicity_Values'!$E22)*($G$11*'Step 2 Chemical_Parameters'!$E22/$G$8))+((1/'Step 1 Toxicity_Values'!$I22)*($G$12*$G$13*'Step 2 Chemical_Parameters'!$F22/$G$8))))),\"--\",($G$5*$G$6*$G$7)/($G$9*$G$10*(((1/'Step 1 Toxicity_Values'!$E22)*($G$11*'Step 2 Chemical_Parameters'!$E22/$G$8))+((1/'Step 1 Toxicity_Values'!$I22)*($G$12*$G$13*'Step 2 Chemical_Parameters'!$F22/$G$8)))))","v":"--"},"--","--","--",{"$f":"IF(ISERROR(($H$5*$H$6*$H$7)/($H$9*$H$10*(($H$11*'Step 2 Chemical_Parameters'!$E22*'Step 1 Toxicity_Values'!$D22/$H$8)+($H$12*$H$13*'Step 2 Chemical_Parameters'!$F22*'Step 1 Toxicity_Values'!$G22/$H$8)))),\"--\",($H$5*$H$6*$H$7)/($H$9*$H$10*(($H$11*'Step 2 Chemical_Parameters'!$E22*'Step 1 Toxicity_Values'!$D22/$H$8)+($H$12*$H$13*'Step 2 Chemical_Parameters'!$F22*'Step 1 Toxicity_Values'!$G22/$H$8))))","v":"--"},{"$f":"IF(ISERROR(($K$5*$K$6*$K$7)/($K$9*$K$10*(((1/'Step 1 Toxicity_Values'!$E22)*$K$11*'Step 2 Chemical_Parameters'!$E22/$K$8)+((1/'Step 1 Toxicity_Values'!$I22)*$K$12*$K$13*'Step 2 Chemical_Parameters'!$F22/$K$8)))),\"--\",($K$5*$K$6*$K$7)/($K$9*$K$10*(((1/'Step 1 Toxicity_Values'!$E22)*$K$11*'Step 2 Chemical_Parameters'!$E22/$K$8)+((1/'Step 1 Toxicity_Values'!$I22)*$K$12*$K$13*'Step 2 Chemical_Parameters'!$F22/$K$8))))","v":"--"},"--","--","--",{"$f":"IF(ISERROR(($L$5*$L$6*$L$7)/($L$9*$L$10*(($L$11*'Step 2 Chemical_Parameters'!$E22*'Step 1 Toxicity_Values'!$D22/$L$8)+($L$12*$L$13*'Step 2 Chemical_Parameters'!$F22*'Step 1 Toxicity_Values'!$G22/$L$8)))),\"--\",($L$5*$L$6*$L$7)/($L$9*$L$10*(($L$11*'Step 2 Chemical_Parameters'!$E22*'Step 1 Toxicity_Values'!$D22/$L$8)+($L$12*$L$13*'Step 2 Chemical_Parameters'!$F22*'Step 1 Toxicity_Values'!$G22/$L$8))))","v":"--"},{"$f":"IF(ISERROR(($M$5*$M$6*$M$7)/($M$9*$M$10*(((1/'Step 1 Toxicity_Values'!$E22)*$M$11*'Step 2 Chemical_Parameters'!$E22/$M$8)+((1/'Step 1 Toxicity_Values'!$I22)*$M$12*$M$13*'Step 2 Chemical_Parameters'!$F22/$M$8)))),\"--\",($M$5*$M$6*$M$7)/($M$9*$M$10*(((1/'Step 1 Toxicity_Values'!$E22)*$M$11*'Step 2 Chemical_Parameters'!$E22/$M$8)+((1/'Step 1 Toxicity_Values'!$I22)*$M$12*$M$13*'Step 2 Chemical_Parameters'!$F22/$M$8))))","v":"--"},"--","--","--","--","--",null,{"$f":"'Step 2 Chemical_Parameters'!A22","v":"--"},{"$f":"'Step 2 Chemical_Parameters'!B22","v":"--"},null,{"$f":"IF(B44=\"--\",\"--\",IF(VLOOKUP(B44,chemical,8,FALSE)=\"M\",IF(ISERROR(($S$5*$S$7*$S$8)/((($S$16+$T$16)*'Step 2 Chemical_Parameters'!E22*'Step 1 Toxicity_Values'!D22)+(($S$17+$T$17)*'Step 2 Chemical_Parameters'!F22*'Step 1 Toxicity_Values'!G22))),\"--\",($S$5*$S$7*$S$8)/((($S$16+$T$16)*'Step 2 Chemical_Parameters'!E22*'Step 1 Toxicity_Values'!D22)+(($S$17+$T$17)*'Step 2 Chemical_Parameters'!F22*'Step 1 Toxicity_Values'!G22))),\"--\"))","v":"--"},{"$f":"IF(B44=\"--\",\"--\",IF(VLOOKUP(B44,chemical,8,FALSE)=\"M\",IF(ISERROR(($S$5*$S$7*$S$8)/((($S$16+$T$16+$U$16+$V$16)*'Step 2 Chemical_Parameters'!E22*'Step 1 Toxicity_Values'!D22)+(($S$17+$T$17+$U$17+$V$17)*'Step 2 Chemical_Parameters'!F22*'Step 1 Toxicity_Values'!G22))),\"--\",($S$5*$S$7*$S$8)/((($S$16+$T$16+$U$16+$V$16)*'Step 2 Chemical_Parameters'!E22*'Step 1 Toxicity_Values'!D22)+(($S$17+$T$17+$U$17+$V$17)*'Step 2 Chemical_Parameters'!F22*'Step 1 Toxicity_Values'!G22))),\"--\"))","v":"--"},{"$f":"IF(B44=\"--\",\"--\",IF(VLOOKUP(B44,chemical,8,FALSE)=\"M\",IF(ISERROR(($X$5*$X$7*$X$8)/((($X$16+$Y$16+$Z$16+$AA$16)*'Step 2 Chemical_Parameters'!E22*'Step 1 Toxicity_Values'!D22)+(($X$17+$Y$17+$Z$17+$AA$17)*'Step 2 Chemical_Parameters'!F22*'Step 1 Toxicity_Values'!G22))),\"--\",($X$5*$X$7*$X$8)/((($X$16+$Y$16+$Z$16+$AA$16)*'Step 2 Chemical_Parameters'!E22*'Step 1 Toxicity_Values'!D22)+(($X$17+$Y$17+$Z$17+$AA$17)*'Step 2 Chemical_Parameters'!F22*'Step 1 Toxicity_Values'!G22))),\"--\"))","v":"--"}]
[null,"--","--",{"$f":"IF(ISERROR(($F$5*$F$6*$F$7)/($F$9*$F$10*(($F$11*'Step 2 Chemical_Parameters'!E23*'Step 1 Toxicity_Values'!$D23/$F$8)+($F$12*$F$13*'Step 2 Chemical_Parameters'!F23*'Step 1 Toxicity_Values'!G23/$F$8)))),\"--\",($F$5*$F$6*$F$7)/($F$9*$F$10*(($F$11*'Step 2 Chemical_Parameters'!E23*'Step 1 Toxicity_Values'!$D23/$F$8)+($F$12*$F$13*'Step 2 Chemical_Parameters'!F23*'Step 1 Toxicity_Values'!G23/$F$8))))","v":"--"},{"$f":"IF(ISERROR(($G$5*$G$6*$G$7)/($G$9*$G$10*(((1/'Step 1 Toxicity_Values'!$E23)*($G$11*'Step 2 Chemical_Parameters'!$E23/$G$8))+((1/'Step 1 Toxicity_Values'!$I23)*($G$12*$G$13*'Step 2 Chemical_Parameters'!$F23/$G$8))))),\"--\",($G$5*$G$6*$G$7)/($G$9*$G$10*(((1/'Step 1 Toxicity_Values'!$E23)*($G$11*'Step 2 Chemical_Parameters'!$E23/$G$8))+((1/'Step 1 Toxicity_Values'!$I23)*($G$12*$G$13*'Step 2 Chemical_Parameters'!$F23/$G$8)))))","v":"--"},{"$f":"IF(T45=\"M\",Y45,D45)","v":"--"},"--","--",{"$f":"IF(ISERROR(($H$5*$H$6*$H$7)/($H$9*$H$10*(($H$11*'Step 2 Chemical_Parameters'!$E23*'Step 1 Toxicity_Values'!$D23/$H$8)+($H$12*$H$13*'Step 2 Chemical_Parameters'!$F23*'Step 1 Toxicity_Values'!$G23/$H$8)))),\"--\",($H$5*$H$6*$H$7)/($H$9*$H$10*(($H$11*'Step 2 Chemical_Parameters'!$E23*'Step 1 Toxicity_Values'!$D23/$H$8)+($H$12*$H$13*'Step 2 Chemical_Parameters'!$F23*'Step 1 Toxicity_Values'!$G23/$H$8))))","v":"--"},{"$f":"IF(ISERROR(($K$5*$K$6*$K$7)/($K$9*$K$10*(((1/'Step 1 Toxicity_Values'!$E23)*$K$11*'Step 2 Chemical_Parameters'!$E23/$K$8)+((1/'Step 1 Toxicity_Values'!$I23)*$K$12*$K$13*'Step 2 Chemical_Parameters'!$F23/$K$8)))),\"--\",($K$5*$K$6*$K$7)/($K$9*$K$10*(((1/'Step 1 Toxicity_Values'!$E23)*$K$11*'Step 2 Chemical_Parameters'!$E23/$K$8)+((1/'Step 1 Toxicity_Values'!$I23)*$K$12*$K$13*'Step 2 Chemical_Parameters'!$F23/$K$8))))","v":"--"},"--",{"$f":"IF(J45=\"--\",\"--\",J45)","v":"--"},"--",{"$f":"IF(ISERROR(($L$5*$L$6*$L$7)/($L$9*$L$10*(($L$11*'Step 2 Chemical_Parameters'!$E23*'Step 1 Toxicity_Values'!$D23/$L$8)+($L$12*$L$13*'Step 2 Chemical_Parameters'!$F23*'Step 1 Toxicity_Values'!$G23/$L$8)))),\"--\",($L$5*$L$6*$L$7)/($L$9*$L$10*(($L$11*'Step 2 Chemical_Parameters'!$E23*'Step 1 Toxicity_Values'!$D23/$L$8)+($L$12*$L$13*'Step 2 Chemical_Parameters'!$F23*'Step 1 Toxicity_Values'!$G23/$L$8))))","v":"--"},{"$f":"IF(ISERROR(($M$5*$M$6*$M$7)/($M$9*$M$10*(((1/'Step 1 Toxicity_Values'!$E23)*$M$11*'Step 2 Chemical_Parameters'!$E23/$M$8)+((1/'Step 1 Toxicity_Values'!$I23)*$M$12*$M$13*'Step 2 Chemical_Parameters'!$F23/$M$8)))),\"--\",($M$5*$M$6*$M$7)/($M$9*$M$10*(((1/'Step 1 Toxicity_Values'!$E23)*$M$11*'Step 2 Chemical_Parameters'!$E23/$M$8)+((1/'Step 1 Toxicity_Values'!$I23)*$M$12*$M$13*'Step 2 Chemical_Parameters'!$F23/$M$8))))","v":"--"},"--",{"$f":"IF(O45=\"--\",\"--\",O45)","v":"--"},"--","--","--",null,{"$f":"'Step 2 Chemical_Parameters'!A23","v":"--"},{"$f":"'Step 2 Chemical_Parameters'!B23","v":"--"},null,{"$f":"IF(B45=\"--\",\"--\",IF(VLOOKUP(B45,chemical,8,FALSE)=\"M\",IF(ISERROR(($S$5*$S$7*$S$8)/((($S$16+$T$16)*'Step 2 Chemical_Parameters'!E23*'Step 1 Toxicity_Values'!D23)+(($S$17+$T$17)*'Step 2 Chemical_Parameters'!F23*'Step 1 Toxicity_Values'!G23))),\"--\",($S$5*$S$7*$S$8)/((($S$16+$T$16)*'Step 2 Chemical_Parameters'!E23*'Step 1 Toxicity_Values'!D23)+(($S$17+$T$17)*'Step 2 Chemical_Parameters'!F23*'Step 1 Toxicity_Values'!G23))),\"--\"))","v":"--"},{"$f":"IF(B45=\"--\",\"--\",IF(VLOOKUP(B45,chemical,8,FALSE)=\"M\",IF(ISERROR(($S$5*$S$7*$S$8)/((($S$16+$T$16+$U$16+$V$16)*'Step 2 Chemical_Parameters'!E23*'Step 1 Toxicity_Values'!D23)+(($S$17+$T$17+$U$17+$V$17)*'Step 2 Chemical_Parameters'!F23*'Step 1 Toxicity_Values'!G23))),\"--\",($S$5*$S$7*$S$8)/((($S$16+$T$16+$U$16+$V$16)*'Step 2 Chemical_Parameters'!E23*'Step 1 Toxicity_Values'!D23)+(($S$17+$T$17+$U$17+$V$17)*'Step 2 Chemical_Parameters'!F23*'Step 1 Toxicity_Values'!G23))),\"--\"))","v":"--"},{"$f":"IF(B45=\"--\",\"--\",IF(VLOOKUP(B45,chemical,8,FALSE)=\"M\",IF(ISERROR(($X$5*$X$7*$X$8)/((($X$16+$Y$16+$Z$16+$AA$16)*'Step 2 Chemical_Parameters'!E23*'Step 1 Toxicity_Values'!D23)+(($X$17+$Y$17+$Z$17+$AA$17)*'Step 2 Chemical_Parameters'!F23*'Step 1 Toxicity_Values'!G23))),\"--\",($X$5*$X$7*$X$8)/((($X$16+$Y$16+$Z$16+$AA$16)*'Step 2 Chemical_Parameters'!E23*'Step 1 Toxicity_Values'!D23)+(($X$17+$Y$17+$Z$17+$AA$17)*'Step 2 Chemical_Parameters'!F23*'Step 1 Toxicity_Values'!G23))),\"--\"))","v":"--"}]
[null,"--","--",{"$f":"IF(ISERROR(($F$5*$F$6*$F$7)/($F$9*$F$10*(($F$11*'Step 2 Chemical_Parameters'!E24*'Step 1 Toxicity_Values'!$D24/$F$8)+($F$12*$F$13*'Step 2 Chemical_Parameters'!F24*'Step 1 Toxicity_Values'!G24/$F$8)))),\"--\",($F$5*$F$6*$F$7)/($F$9*$F$10*(($F$11*'Step 2 Chemical_Parameters'!E24*'Step 1 Toxicity_Values'!$D24/$F$8)+($F$12*$F$13*'Step 2 Chemical_Parameters'!F24*'Step 1 Toxicity_Values'!G24/$F$8))))","v":"--"},{"$f":"IF(ISERROR(($G$5*$G$6*$G$7)/($G$9*$G$10*(((1/'Step 1 Toxicity_Values'!$E24)*($G$11*'Step 2 Chemical_Parameters'!$E24/$G$8))+((1/'Step 1 Toxicity_Values'!$I24)*($G$12*$G$13*'Step 2 Chemical_Parameters'!$F24/$G$8))))),\"--\",($G$5*$G$6*$G$7)/($G$9*$G$10*(((1/'Step 1 Toxicity_Values'!$E24)*($G$11*'Step 2 Chemical_Parameters'!$E24/$G$8))+((1/'Step 1 Toxicity_Values'!$I24)*($G$12*$G$13*'Step 2 Chemical_Parameters'!$F24/$G$8)))))","v":"--"},"--","--","--",{"$f":"IF(ISERROR(($H$5*$H$6*$H$7)/($H$9*$H$10*(($H$11*'Step 2 Chemical_Parameters'!$E24*'Step 1 Toxicity_Values'!$D24/$H$8)+($H$12*$H$13*'Step 2 Chemical_Parameters'!$F24*'Step 1 Toxicity_Values'!$G24/$H$8)))),\"--\",($H$5*$H$6*$H$7)/($H$9*$H$10*(($H$11*'Step 2 Chemical_Parameters'!$E24*'Step 1 Toxicity_Values'!$D24/$H$8)+($H$12*$H$13*'Step 2 Chemical_Parameters'!$F24*'Step 1 Toxicity_Values'!$G24/$H$8))))","v":"--"},{"$f":"IF(ISERROR(($K$5*$K$6*$K$7)/($K$9*$K$10*(((1/'Step 1 Toxicity_Values'!$E24)*$K$11*'Step 2 Chemical_Parameters'!$E24/$K$8)+((1/'Step 1 Toxicity_Values'!$I24)*$K$12*$K$13*'Step 2 Chemical_Parameters'!$F24/$K$8)))),\"--\",($K$5*$K$6*$K$7)/($K$9*$K$10*(((1/'Step 1 Toxicity_Values'!$E24)*$K$11*'Step 2 Chemical_Parameters'!$E24/$K$8)+((1/'Step 1 Toxicity_Values'!$I24)*$K$12*$K$13*'Step 2 Chemical_Parameters'!$F24/$K$8))))","v":"--"},"--","--","--",{"$f":"IF(ISERROR(($L$5*$L$6*$L$7)/($L$9*$L$10*(($L$11*'Step 2 Chemical_Parameters'!$E24*'Step 1 Toxicity_Values'!$D24/$L$8)+($L$12*$L$13*'Step 2 Chemical_Parameters'!$F24*'Step 1 Toxicity_Values'!$G24/$L$8)))),\"--\",($L$5*$L$6*$L$7)/($L$9*$L$10*(($L$11*'Step 2 Chemical_Parameters'!$E24*'Step 1 Toxicity_Values'!$D24/$L$8)+($L$12*$L$13*'Step 2 Chemical_Parameters'!$F24*'Step 1 Toxicity_Values'!$G24/$L$8))))","v":"--"},{"$f":"IF(ISERROR(($M$5*$M$6*$M$7)/($M$9*$M$10*(((1/'Step 1 Toxicity_Values'!$E24)*$M$11*'Step 2 Chemical_Parameters'!$E24/$M$8)+((1/'Step 1 Toxicity_Values'!$I24)*$M$12*$M$13*'Step 2 Chemical_Parameters'!$F24/$M$8)))),\"--\",($M$5*$M$6*$M$7)/($M$9*$M$10*(((1/'Step 1 Toxicity_Values'!$E24)*$M$11*'Step 2 Chemical_Parameters'!$E24/$M$8)+((1/'Step 1 Toxicity_Values'!$I24)*$M$12*$M$13*'Step 2 Chemical_Parameters'!$F24/$M$8))))","v":"--"},"--","--","--","--","--",null,{"$f":"'Step 2 Chemical_Parameters'!A24","v":"--"},{"$f":"'Step 2 Chemical_Parameters'!B24","v":"--"},null,{"$f":"IF(B46=\"--\",\"--\",IF(VLOOKUP(B46,chemical,8,FALSE)=\"M\",IF(ISERROR(($S$5*$S$7*$S$8)/((($S$16+$T$16)*'Step 2 Chemical_Parameters'!E24*'Step 1 Toxicity_Values'!D24)+(($S$17+$T$17)*'Step 2 Chemical_Parameters'!F24*'Step 1 Toxicity_Values'!G24))),\"--\",($S$5*$S$7*$S$8)/((($S$16+$T$16)*'Step 2 Chemical_Parameters'!E24*'Step 1 Toxicity_Values'!D24)+(($S$17+$T$17)*'Step 2 Chemical_Parameters'!F24*'Step 1 Toxicity_Values'!G24))),\"--\"))","v":"--"},{"$f":"IF(B46=\"--\",\"--\",IF(VLOOKUP(B46,chemical,8,FALSE)=\"M\",IF(ISERROR(($S$5*$S$7*$S$8)/((($S$16+$T$16+$U$16+$V$16)*'Step 2 Chemical_Parameters'!E24*'Step 1 Toxicity_Values'!D24)+(($S$17+$T$17+$U$17+$V$17)*'Step 2 Chemical_Parameters'!F24*'Step 1 Toxicity_Values'!G24))),\"--\",($S$5*$S$7*$S$8)/((($S$16+$T$16+$U$16+$V$16)*'Step 2 Chemical_Parameters'!E24*'Step 1 Toxicity_Values'!D24)+(($S$17+$T$17+$U$17+$V$17)*'Step 2 Chemical_Parameters'!F24*'Step 1 Toxicity_Values'!G24))),\"--\"))","v":"--"},{"$f":"IF(B46=\"--\",\"--\",IF(VLOOKUP(B46,chemical,8,FALSE)=\"M\",IF(ISERROR(($X$5*$X$7*$X$8)/((($X$16+$Y$16+$Z$16+$AA$16)*'Step 2 Chemical_Parameters'!E24*'Step 1 Toxicity_Values'!D24)+(($X$17+$Y$17+$Z$17+$AA$17)*'Step 2 Chemical_Parameters'!F24*'Step 1 Toxicity_Values'!G24))),\"--\",($X$5*$X$7*$X$8)/((($X$16+$Y$16+$Z$16+$AA$16)*'Step 2 Chemical_Parameters'!E24*'Step 1 Toxicity_Values'!D24)+(($X$17+$Y$17+$Z$17+$AA$17)*'Step 2 Chemical_Parameters'!F24*'Step 1 Toxicity_Values'!G24))),\"--\"))","v":"--"}]
[null,"--","--",{"$f":"IF(ISERROR(($F$5*$F$6*$F$7)/($F$9*$F$10*(($F$11*'Step 2 Chemical_Parameters'!E25*'Step 1 Toxicity_Values'!$D25/$F$8)+($F$12*$F$13*'Step 2 Chemical_Parameters'!F25*'Step 1 Toxicity_Values'!G25/$F$8)))),\"--\",($F$5*$F$6*$F$7)/($F$9*$F$10*(($F$11*'Step 2 Chemical_Parameters'!E25*'Step 1 Toxicity_Values'!$D25/$F$8)+($F$12*$F$13*'Step 2 Chemical_Parameters'!F25*'Step 1 Toxicity_Values'!G25/$F$8))))","v":"--"},{"$f":"IF(ISERROR(($G$5*$G$6*$G$7)/($G$9*$G$10*(((1/'Step 1 Toxicity_Values'!$E25)*($G$11*'Step 2 Chemical_Parameters'!$E25/$G$8))+((1/'Step 1 Toxicity_Values'!$I25)*($G$12*$G$13*'Step 2 Chemical_Parameters'!$F25/$G$8))))),\"--\",($G$5*$G$6*$G$7)/($G$9*$G$10*(((1/'Step 1 Toxicity_Values'!$E25)*($G$11*'Step 2 Chemical_Parameters'!$E25/$G$8))+((1/'Step 1 Toxicity_Values'!$I25)*($G$12*$G$13*'Step 2 Chemical_Parameters'!$F25/$G$8)))))","v":"--"},"--","--","--",{"$f":"IF(ISERROR(($H$5*$H$6*$H$7)/($H$9*$H$10*(($H$11*'Step 2 Chemical_Parameters'!$E25*'Step 1 Toxicity_Values'!$D25/$H$8)+($H$12*$H$13*'Step 2 Chemical_Parameters'!$F25*'Step 1 Toxicity_Values'!$G25/$H$8)))),\"--\",($H$5*$H$6*$H$7)/($H$9*$H$10*(($H$11*'Step 2 Chemical_Parameters'!$E25*'Step 1 Toxicity_Values'!$D25/$H$8)+($H$12*$H$13*'Step 2 Chemical_Parameters'!$F25*'Step 1 Toxicity_Values'!$G25/$H$8))))","v":"--"},{"$f":"IF(ISERROR(($K$5*$K$6*$K$7)/($K$9*$K$10*(((1/'Step 1 Toxicity_Values'!$E25)*$K$11*'Step 2 Chemical_Parameters'!$E25/$K$8)+((1/'Step 1 Toxicity_Values'!$I25)*$K$12*$K$13*'Step 2 Chemical_Parameters'!$F25/$K$8)))),\"--\",($K$5*$K$6*$K$7)/($K$9*$K$10*(((1/'Step 1 Toxicity_Values'!$E25)*$K$11*'Step 2 Chemical_Parameters'!$E25/$K$8)+((1/'Step 1 Toxicity_Values'!$I25)*$K$12*$K$13*'Step 2 Chemical_Parameters'!$F25/$K$8))))","v":"--"},"--","--","--",{"$f":"IF(ISERROR(($L$5*$L$6*$L$7)/($L$9*$L$10*(($L$11*'Step 2 Chemical_Parameters'!$E25*'Step 1 Toxicity_Values'!$D25/$L$8)+($L$12*$L$13*'Step 2 Chemical_Parameters'!$F25*'Step 1 Toxicity_Values'!$G25/$L$8)))),\"--\",($L$5*$L$6*$L$7)/($L$9*$L$10*(($L$11*'Step 2 Chemical_Parameters'!$E25*'Step 1 Toxicity_Values'!$D25/$L$8)+($L$12*$L$13*'Step 2 Chemical_Parameters'!$F25*'Step 1 Toxicity_Values'!$G25/$L$8))))","v":"--"},{"$f":"IF(ISERROR(($M$5*$M$6*$M$7)/($M$9*$M$10*(((1/'Step 1 Toxicity_Values'!$E25)*$M$11*'Step 2 Chemical_Parameters'!$E25/$M$8)+((1/'Step 1 Toxicity_Values'!$I25)*$M$12*$M$13*'Step 2 Chemical_Parameters'!$F25/$M$8)))),\"--\",($M$5*$M$6*$M$7)/($M$9*$M$10*(((1/'Step 1 Toxicity_Values'!$E25)*$M$11*'Step 2 Chemical_Parameters'!$E25/$M$8)+((1/'Step 1 Toxicity_Values'!$I25)*$M$12*$M$13*'Step 2 Chemical_Parameters'!$F25/$M$8))))","v":"--"},"--","--","--","--","--",null,{"$f":"'Step 2 Chemical_Parameters'!A25","v":"--"},{"$f":"'Step 2 Chemical_Parameters'!B25","v":"--"},null,{"$f":"IF(B47=\"--\",\"--\",IF(VLOOKUP(B47,chemical,8,FALSE)=\"M\",IF(ISERROR(($S$5*$S$7*$S$8)/((($S$16+$T$16)*'Step 2 Chemical_Parameters'!E25*'Step 1 Toxicity_Values'!D25)+(($S$17+$T$17)*'Step 2 Chemical_Parameters'!F25*'Step 1 Toxicity_Values'!G25))),\"--\",($S$5*$S$7*$S$8)/((($S$16+$T$16)*'Step 2 Chemical_Parameters'!E25*'Step 1 Toxicity_Values'!D25)+(($S$17+$T$17)*'Step 2 Chemical_Parameters'!F25*'Step 1 Toxicity_Values'!G25))),\"--\"))","v":"--"},{"$f":"IF(B47=\"--\",\"--\",IF(VLOOKUP(B47,chemical,8,FALSE)=\"M\",IF(ISERROR(($S$5*$S$7*$S$8)/((($S$16+$T$16+$U$16+$V$16)*'Step 2 Chemical_Parameters'!E25*'Step 1 Toxicity_Values'!D25)+(($S$17+$T$17+$U$17+$V$17)*'Step 2 Chemical_Parameters'!F25*'Step 1 Toxicity_Values'!G25))),\"--\",($S$5*$S$7*$S$8)/((($S$16+$T$16+$U$16+$V$16)*'Step 2 Chemical_Parameters'!E25*'Step 1 Toxicity_Values'!D25)+(($S$17+$T$17+$U$17+$V$17)*'Step 2 Chemical_Parameters'!F25*'Step 1 Toxicity_Values'!G25))),\"--\"))","v":"--"},{"$f":"IF(B47=\"--\",\"--\",IF(VLOOKUP(B47,chemical,8,FALSE)=\"M\",IF(ISERROR(($X$5*$X$7*$X$8)/((($X$16+$Y$16+$Z$16+$AA$16)*'Step 2 Chemical_Parameters'!E25*'Step 1 Toxicity_Values'!D25)+(($X$17+$Y$17+$Z$17+$AA$17)*'Step 2 Chemical_Parameters'!F25*'Step 1 Toxicity_Values'!G25))),\"--\",($X$5*$X$7*$X$8)/((($X$16+$Y$16+$Z$16+$AA$16)*'Step 2 Chemical_Parameters'!E25*'Step 1 Toxicity_Values'!D25)+(($X$17+$Y$17+$Z$17+$AA$17)*'Step 2 Chemical_Parameters'!F25*'Step 1 Toxicity_Values'!G25))),\"--\"))","v":"--"}]
[null,"--","--",{"$f":"IF(ISERROR(($F$5*$F$6*$F$7)/($F$9*$F$10*(($F$11*'Step 2 Chemical_Parameters'!E26*'Step 1 Toxicity_Values'!$D26/$F$8)+($F$12*$F$13*'Step 2 Chemical_Parameters'!F26*'Step 1 Toxicity_Values'!G26/$F$8)))),\"--\",($F$5*$F$6*$F$7)/($F$9*$F$10*(($F$11*'Step 2 Chemical_Parameters'!E26*'Step 1 Toxicity_Values'!$D26/$F$8)+($F$12*$F$13*'Step 2 Chemical_Parameters'!F26*'Step 1 Toxicity_Values'!G26/$F$8))))","v":"--"},{"$f":"IF(ISERROR(($G$5*$G$6*$G$7)/($G$9*$G$10*(((1/'Step 1 Toxicity_Values'!$E26)*($G$11*'Step 2 Chemical_Parameters'!$E26/$G$8))+((1/'Step 1 Toxicity_Values'!$I26)*($G$12*$G$13*'Step 2 Chemical_Parameters'!$F26/$G$8))))),\"--\",($G$5*$G$6*$G$7)/($G$9*$G$10*(((1/'Step 1 Toxicity_Values'!$E26)*($G$11*'Step 2 Chemical_Parameters'!$E26/$G$8))+((1/'Step 1 Toxicity_Values'!$I26)*($G$12*$G$13*'Step 2 Chemical_Parameters'!$F26/$G$8)))))","v":"--"},"--","--","--",{"$f":"IF(ISERROR(($H$5*$H$6*$H$7)/($H$9*$H$10*(($H$11*'Step 2 Chemical_Parameters'!$E26*'Step 1 Toxicity_Values'!$D26/$H$8)+($H$12*$H$13*'Step 2 Chemical_Parameters'!$F26*'Step 1 Toxicity_Values'!$G26/$H$8)))),\"--\",($H$5*$H$6*$H$7)/($H$9*$H$10*(($H$11*'Step 2 Chemical_Parameters'!$E26*'Step 1 Toxicity_Values'!$D26/$H$8)+($H$12*$H$13*'Step 2 Chemical_Parameters'!$F26*'Step 1 Toxicity_Values'!$G26/$H$8))))","v":"--"},{"$f":"IF(ISERROR(($K$5*$K$6*$K$7)/($K$9*$K$10*(((1/'Step 1 Toxicity_Values'!$E26)*$K$11*'Step 2 Chemical_Parameters'!$E26/$K$8)+((1/'Step 1 Toxicity_Values'!$I26)*$K$12*$K$13*'Step 2 Chemical_Parameters'!$F26/$K$8)))),\"--\",($K$5*$K$6*$K$7)/($K$9*$K$10*(((1/'Step 1 Toxicity_Values'!$E26)*$K$11*'Step 2 Chemical_Parameters'!$E26/$K$8)+((1/'Step 1 Toxicity_Values'!$I26)*$K$12*$K$13*'Step 2 Chemical_Parameters'!$F26/$K$8))))","v":"--"},"--","--","--",{"$f":"IF(ISERROR(($L$5*$L$6*$L$7)/($L$9*$L$10*(($L$11*'Step 2 Chemical_Parameters'!$E26*'Step 1 Toxicity_Values'!$D26/$L$8)+($L$12*$L$13*'Step 2 Chemical_Parameters'!$F26*'Step 1 Toxicity_Values'!$G26/$L$8)))),\"--\",($L$5*$L$6*$L$7)/($L$9*$L$10*(($L$11*'Step 2 Chemical_Parameters'!$E26*'Step 1 Toxicity_Values'!$D26/$L$8)+($L$12*$L$13*'Step 2 Chemical_Parameters'!$F26*'Step 1 Toxicity_Values'!$G26/$L$8))))","v":"--"},{"$f":"IF(ISERROR(($M$5*$M$6*$M$7)/($M$9*$M$10*(((1/'Step 1 Toxicity_Values'!$E26)*$M$11*'Step 2 Chemical_Parameters'!$E26/$M$8)+((1/'Step 1 Toxicity_Values'!$I26)*$M$12*$M$13*'Step 2 Chemical_Parameters'!$F26/$M$8)))),\"--\",($M$5*$M$6*$M$7)/($M$9*$M$10*(((1/'Step 1 Toxicity_Values'!$E26)*$M$11*'Step 2 Chemical_Parameters'!$E26/$M$8)+((1/'Step 1 Toxicity_Values'!$I26)*$M$12*$M$13*'Step 2 Chemical_Parameters'!$F26/$M$8))))","v":"--"},"--","--","--","--","--",null,{"$f":"'Step 2 Chemical_Parameters'!A26","v":"--"},{"$f":"'Step 2 Chemical_Parameters'!B26","v":"--"},null,{"$f":"IF(B48=\"--\",\"--\",IF(VLOOKUP(B48,chemical,8,FALSE)=\"M\",IF(ISERROR(($S$5*$S$7*$S$8)/((($S$16+$T$16)*'Step 2 Chemical_Parameters'!E26*'Step 1 Toxicity_Values'!D26)+(($S$17+$T$17)*'Step 2 Chemical_Parameters'!F26*'Step 1 Toxicity_Values'!G26))),\"--\",($S$5*$S$7*$S$8)/((($S$16+$T$16)*'Step 2 Chemical_Parameters'!E26*'Step 1 Toxicity_Values'!D26)+(($S$17+$T$17)*'Step 2 Chemical_Parameters'!F26*'Step 1 Toxicity_Values'!G26))),\"--\"))","v":"--"},{"$f":"IF(B48=\"--\",\"--\",IF(VLOOKUP(B48,chemical,8,FALSE)=\"M\",IF(ISERROR(($S$5*$S$7*$S$8)/((($S$16+$T$16+$U$16+$V$16)*'Step 2 Chemical_Parameters'!E26*'Step 1 Toxicity_Values'!D26)+(($S$17+$T$17+$U$17+$V$17)*'Step 2 Chemical_Parameters'!F26*'Step 1 Toxicity_Values'!G26))),\"--\",($S$5*$S$7*$S$8)/((($S$16+$T$16+$U$16+$V$16)*'Step 2 Chemical_Parameters'!E26*'Step 1 Toxicity_Values'!D26)+(($S$17+$T$17+$U$17+$V$17)*'Step 2 Chemical_Parameters'!F26*'Step 1 Toxicity_Values'!G26))),\"--\"))","v":"--"},{"$f":"IF(B48=\"--\",\"--\",IF(VLOOKUP(B48,chemical,8,FALSE)=\"M\",IF(ISERROR(($X$5*$X$7*$X$8)/((($X$16+$Y$16+$Z$16+$AA$16)*'Step 2 Chemical_Parameters'!E26*'Step 1 Toxicity_Values'!D26)+(($X$17+$Y$17+$Z$17+$AA$17)*'Step 2 Chemical_Parameters'!F26*'Step 1 Toxicity_Values'!G26))),\"--\",($X$5*$X$7*$X$8)/((($X$16+$Y$16+$Z$16+$AA$16)*'Step 2 Chemical_Parameters'!E26*'Step 1 Toxicity_Values'!D26)+(($X$17+$Y$17+$Z$17+$AA$17)*'Step 2 Chemical_Parameters'!F26*'Step 1 Toxicity_Values'!G26))),\"--\"))","v":"--"}]
[null,"--","--",{"$f":"IF(ISERROR(($F$5*$F$6*$F$7)/($F$9*$F$10*(($F$11*'Step 2 Chemical_Parameters'!E27*'Step 1 Toxicity_Values'!$D27/$F$8)+($F$12*$F$13*'Step 2 Chemical_Parameters'!F27*'Step 1 Toxicity_Values'!G27/$F$8)))),\"--\",($F$5*$F$6*$F$7)/($F$9*$F$10*(($F$11*'Step 2 Chemical_Parameters'!E27*'Step 1 Toxicity_Values'!$D27/$F$8)+($F$12*$F$13*'Step 2 Chemical_Parameters'!F27*'Step 1 Toxicity_Values'!G27/$F$8))))","v":"--"},{"$f":"IF(ISERROR(($G$5*$G$6*$G$7)/($G$9*$G$10*(((1/'Step 1 Toxicity_Values'!$E27)*($G$11*'Step 2 Chemical_Parameters'!$E27/$G$8))+((1/'Step 1 Toxicity_Values'!$I27)*($G$12*$G$13*'Step 2 Chemical_Parameters'!$F27/$G$8))))),\"--\",($G$5*$G$6*$G$7)/($G$9*$G$10*(((1/'Step 1 Toxicity_Values'!$E27)*($G$11*'Step 2 Chemical_Parameters'!$E27/$G$8))+((1/'Step 1 Toxicity_Values'!$I27)*($G$12*$G$13*'Step 2 Chemical_Parameters'!$F27/$G$8)))))","v":"--"},"--","--","--",{"$f":"IF(ISERROR(($H$5*$H$6*$H$7)/($H$9*$H$10*(($H$11*'Step 2 Chemical_Parameters'!$E27*'Step 1 Toxicity_Values'!$D27/$H$8)+($H$12*$H$13*'Step 2 Chemical_Parameters'!$F27*'Step 1 Toxicity_Values'!$G27/$H$8)))),\"--\",($H$5*$H$6*$H$7)/($H$9*$H$10*(($H$11*'Step 2 Chemical_Parameters'!$E27*'Step 1 Toxicity_Values'!$D27/$H$8)+($H$12*$H$13*'Step 2 Chemical_Parameters'!$F27*'Step 1 Toxicity_Values'!$G27/$H$8))))","v":"--"},{"$f":"IF(ISERROR(($K$5*$K$6*$K$7)/($K$9*$K$10*(((1/'Step 1 Toxicity_Values'!$E27)*$K$11*'Step 2 Chemical_Parameters'!$E27/$K$8)+((1/'Step 1 Toxicity_Values'!$I27)*$K$12*$K$13*'Step 2 Chemical_Parameters'!$F27/$K$8)))),\"--\",($K$5*$K$6*$K$7)/($K$9*$K$10*(((1/'Step 1 Toxicity_Values'!$E27)*$K$11*'Step 2 Chemical_Parameters'!$E27/$K$8)+((1/'Step 1 Toxicity_Values'!$I27)*$K$12*$K$13*'Step 2 Chemical_Parameters'!$F27/$K$8))))","v":"--"},"--","--","--",{"$f":"IF(ISERROR(($L$5*$L$6*$L$7)/($L$9*$L$10*(($L$11*'Step 2 Chemical_Parameters'!$E27*'Step 1 Toxicity_Values'!$D27/$L$8)+($L$12*$L$13*'Step 2 Chemical_Parameters'!$F27*'Step 1 Toxicity_Values'!$G27/$L$8)))),\"--\",($L$5*$L$6*$L$7)/($L$9*$L$10*(($L$11*'Step 2 Chemical_Parameters'!$E27*'Step 1 Toxicity_Values'!$D27/$L$8)+($L$12*$L$13*'Step 2 Chemical_Parameters'!$F27*'Step 1 Toxicity_Values'!$G27/$L$8))))","v":"--"},{"$f":"IF(ISERROR(($M$5*$M$6*$M$7)/($M$9*$M$10*(((1/'Step 1 Toxicity_Values'!$E27)*$M$11*'Step 2 Chemical_Parameters'!$E27/$M$8)+((1/'Step 1 Toxicity_Values'!$I27)*$M$12*$M$13*'Step 2 Chemical_Parameters'!$F27/$M$8)))),\"--\",($M$5*$M$6*$M$7)/($M$9*$M$10*(((1/'Step 1 Toxicity_Values'!$E27)*$M$11*'Step 2 Chemical_Parameters'!$E27/$M$8)+((1/'Step 1 Toxicity_Values'!$I27)*$M$12*$M$13*'Step 2 Chemical_Parameters'!$F27/$M$8))))","v":"--"},"--","--","--","--","--",null,{"$f":"'Step 2 Chemical_Parameters'!A27","v":"--"},{"$f":"'Step 2 Chemical_Parameters'!B27","v":"--"},null,{"$f":"IF(B49=\"--\",\"--\",IF(VLOOKUP(B49,chemical,8,FALSE)=\"M\",IF(ISERROR(($S$5*$S$7*$S$8)/((($S$16+$T$16)*'Step 2 Chemical_Parameters'!E27*'Step 1 Toxicity_Values'!D27)+(($S$17+$T$17)*'Step 2 Chemical_Parameters'!F27*'Step 1 Toxicity_Values'!G27))),\"--\",($S$5*$S$7*$S$8)/((($S$16+$T$16)*'Step 2 Chemical_Parameters'!E27*'Step 1 Toxicity_Values'!D27)+(($S$17+$T$17)*'Step 2 Chemical_Parameters'!F27*'Step 1 Toxicity_Values'!G27))),\"--\"))","v":"--"},{"$f":"IF(B49=\"--\",\"--\",IF(VLOOKUP(B49,chemical,8,FALSE)=\"M\",IF(ISERROR(($S$5*$S$7*$S$8)/((($S$16+$T$16+$U$16+$V$16)*'Step 2 Chemical_Parameters'!E27*'Step 1 Toxicity_Values'!D27)+(($S$17+$T$17+$U$17+$V$17)*'Step 2 Chemical_Parameters'!F27*'Step 1 Toxicity_Values'!G27))),\"--\",($S$5*$S$7*$S$8)/((($S$16+$T$16+$U$16+$V$16)*'Step 2 Chemical_Parameters'!E27*'Step 1 Toxicity_Values'!D27)+(($S$17+$T$17+$U$17+$V$17)*'Step 2 Chemical_Parameters'!F27*'Step 1 Toxicity_Values'!G27))),\"--\"))","v":"--"},{"$f":"IF(B49=\"--\",\"--\",IF(VLOOKUP(B49,chemical,8,FALSE)=\"M\",IF(ISERROR(($X$5*$X$7*$X$8)/((($X$16+$Y$16+$Z$16+$AA$16)*'Step 2 Chemical_Parameters'!E27*'Step 1 Toxicity_Values'!D27)+(($X$17+$Y$17+$Z$17+$AA$17)*'Step 2 Chemical_Parameters'!F27*'Step 1 Toxicity_Values'!G27))),\"--\",($X$5*$X$7*$X$8)/((($X$16+$Y$16+$Z$16+$AA$16)*'Step 2 Chemical_Parameters'!E27*'Step 1 Toxicity_Values'!D27)+(($X$17+$Y$17+$Z$17+$AA$17)*'Step 2 Chemical_Parameters'!F27*'Step 1 Toxicity_Values'!G27))),\"--\"))","v":"--"}]
[null,"--","--",{"$f":"IF(ISERROR(($F$5*$F$6*$F$7)/($F$9*$F$10*(($F$11*'Step 2 Chemical_Parameters'!E28*'Step 1 Toxicity_Values'!$D28/$F$8)+($F$12*$F$13*'Step 2 Chemical_Parameters'!F28*'Step 1 Toxicity_Values'!G28/$F$8)))),\"--\",($F$5*$F$6*$F$7)/($F$9*$F$10*(($F$11*'Step 2 Chemical_Parameters'!E28*'Step 1 Toxicity_Values'!$D28/$F$8)+($F$12*$F$13*'Step 2 Chemical_Parameters'!F28*'Step 1 Toxicity_Values'!G28/$F$8))))","v":"--"},{"$f":"IF(ISERROR(($G$5*$G$6*$G$7)/($G$9*$G$10*(((1/'Step 1 Toxicity_Values'!$E28)*($G$11*'Step 2 Chemical_Parameters'!$E28/$G$8))+((1/'Step 1 Toxicity_Values'!$I28)*($G$12*$G$13*'Step 2 Chemical_Parameters'!$F28/$G$8))))),\"--\",($G$5*$G$6*$G$7)/($G$9*$G$10*(((1/'Step 1 Toxicity_Values'!$E28)*($G$11*'Step 2 Chemical_Parameters'!$E28/$G$8))+((1/'Step 1 Toxicity_Values'!$I28)*($G$12*$G$13*'Step 2 Chemical_Parameters'!$F28/$G$8)))))","v":"--"},"--","--","--",{"$f":"IF(ISERROR(($H$5*$H$6*$H$7)/($H$9*$H$10*(($H$11*'Step 2 Chemical_Parameters'!$E28*'Step 1 Toxicity_Values'!$D28/$H$8)+($H$12*$H$13*'Step 2 Chemical_Parameters'!$F28*'Step 1 Toxicity_Values'!$G28/$H$8)))),\"--\",($H$5*$H$6*$H$7)/($H$9*$H$10*(($H$11*'Step 2 Chemical_Parameters'!$E28*'Step 1 Toxicity_Values'!$D28/$H$8)+($H$12*$H$13*'Step 2 Chemical_Parameters'!$F28*'Step 1 Toxicity_Values'!$G28/$H$8))))","v":"--"},{"$f":"IF(ISERROR(($K$5*$K$6*$K$7)/($K$9*$K$10*(((1/'Step 1 Toxicity_Values'!$E28)*$K$11*'Step 2 Chemical_Parameters'!$E28/$K$8)+((1/'Step 1 Toxicity_Values'!$I28)*$K$12*$K$13*'Step 2 Chemical_Parameters'!$F28/$K$8)))),\"--\",($K$5*$K$6*$K$7)/($K$9*$K$10*(((1/'Step 1 Toxicity_Values'!$E28)*$K$11*'Step 2 Chemical_Parameters'!$E28/$K$8)+((1/'Step 1 Toxicity_Values'!$I28)*$K$12*$K$13*'Step 2 Chemical_Parameters'!$F28/$K$8))))","v":"--"},"--","--","--",{"$f":"IF(ISERROR(($L$5*$L$6*$L$7)/($L$9*$L$10*(($L$11*'Step 2 Chemical_Parameters'!$E28*'Step 1 Toxicity_Values'!$D28/$L$8)+($L$12*$L$13*'Step 2 Chemical_Parameters'!$F28*'Step 1 Toxicity_Values'!$G28/$L$8)))),\"--\",($L$5*$L$6*$L$7)/($L$9*$L$10*(($L$11*'Step 2 Chemical_Parameters'!$E28*'Step 1 Toxicity_Values'!$D28/$L$8)+($L$12*$L$13*'Step 2 Chemical_Parameters'!$F28*'Step 1 Toxicity_Values'!$G28/$L$8))))","v":"--"},{"$f":"IF(ISERROR(($M$5*$M$6*$M$7)/($M$9*$M$10*(((1/'Step 1 Toxicity_Values'!$E28)*$M$11*'Step 2 Chemical_Parameters'!$E28/$M$8)+((1/'Step 1 Toxicity_Values'!$I28)*$M$12*$M$13*'Step 2 Chemical_Parameters'!$F28/$M$8)))),\"--\",($M$5*$M$6*$M$7)/($M$9*$M$10*(((1/'Step 1 Toxicity_Values'!$E28)*$M$11*'Step 2 Chemical_Parameters'!$E28/$M$8)+((1/'Step 1 Toxicity_Values'!$I28)*$M$12*$M$13*'Step 2 Chemical_Parameters'!$F28/$M$8))))","v":"--"},"--","--","--","--","--",null,{"$f":"'Step 2 Chemical_Parameters'!A28","v":"--"},{"$f":"'Step 2 Chemical_Parameters'!B28","v":"--"},null,{"$f":"IF(B50=\"--\",\"--\",IF(VLOOKUP(B50,chemical,8,FALSE)=\"M\",IF(ISERROR(($S$5*$S$7*$S$8)/((($S$16+$T$16)*'Step 2 Chemical_Parameters'!E28*'Step 1 Toxicity_Values'!D28)+(($S$17+$T$17)*'Step 2 Chemical_Parameters'!F28*'Step 1 Toxicity_Values'!G28))),\"--\",($S$5*$S$7*$S$8)/((($S$16+$T$16)*'Step 2 Chemical_Parameters'!E28*'Step 1 Toxicity_Values'!D28)+(($S$17+$T$17)*'Step 2 Chemical_Parameters'!F28*'Step 1 Toxicity_Values'!G28))),\"--\"))","v":"--"},{"$f":"IF(B50=\"--\",\"--\",IF(VLOOKUP(B50,chemical,8,FALSE)=\"M\",IF(ISERROR(($S$5*$S$7*$S$8)/((($S$16+$T$16+$U$16+$V$16)*'Step 2 Chemical_Parameters'!E28*'Step 1 Toxicity_Values'!D28)+(($S$17+$T$17+$U$17+$V$17)*'Step 2 Chemical_Parameters'!F28*'Step 1 Toxicity_Values'!G28))),\"--\",($S$5*$S$7*$S$8)/((($S$16+$T$16+$U$16+$V$16)*'Step 2 Chemical_Parameters'!E28*'Step 1 Toxicity_Values'!D28)+(($S$17+$T$17+$U$17+$V$17)*'Step 2 Chemical_Parameters'!F28*'Step 1 Toxicity_Values'!G28))),\"--\"))","v":"--"},{"$f":"IF(B50=\"--\",\"--\",IF(VLOOKUP(B50,chemical,8,FALSE)=\"M\",IF(ISERROR(($X$5*$X$7*$X$8)/((($X$16+$Y$16+$Z$16+$AA$16)*'Step 2 Chemical_Parameters'!E28*'Step 1 Toxicity_Values'!D28)+(($X$17+$Y$17+$Z$17+$AA$17)*'Step 2 Chemical_Parameters'!F28*'Step 1 Toxicity_Values'!G28))),\"--\",($X$5*$X$7*$X$8)/((($X$16+$Y$16+$Z$16+$AA$16)*'Step 2 Chemical_Parameters'!E28*'Step 1 Toxicity_Values'!D28)+(($X$17+$Y$17+$Z$17+$AA$17)*'Step 2 Chemical_Parameters'!F28*'Step 1 Toxicity_Values'!G28))),\"--\"))","v":"--"}]
[null,"--","--",{"$f":"IF(ISERROR(($F$5*$F$6*$F$7)/($F$9*$F$10*(($F$11*'Step 2 Chemical_Parameters'!E29*'Step 1 Toxicity_Values'!$D29/$F$8)+($F$12*$F$13*'Step 2 Chemical_Parameters'!F29*'Step 1 Toxicity_Values'!G29/$F$8)))),\"--\",($F$5*$F$6*$F$7)/($F$9*$F$10*(($F$11*'Step 2 Chemical_Parameters'!E29*'Step 1 Toxicity_Values'!$D29/$F$8)+($F$12*$F$13*'Step 2 Chemical_Parameters'!F29*'Step 1 Toxicity_Values'!G29/$F$8))))","v":"--"},{"$f":"IF(ISERROR(($G$5*$G$6*$G$7)/($G$9*$G$10*(((1/'Step 1 Toxicity_Values'!$E29)*($G$11*'Step 2 Chemical_Parameters'!$E29/$G$8))+((1/'Step 1 Toxicity_Values'!$I29)*($G$12*$G$13*'Step 2 Chemical_Parameters'!$F29/$G$8))))),\"--\",($G$5*$G$6*$G$7)/($G$9*$G$10*(((1/'Step 1 Toxicity_Values'!$E29)*($G$11*'Step 2 Chemical_Parameters'!$E29/$G$8))+((1/'Step 1 Toxicity_Values'!$I29)*($G$12*$G$13*'Step 2 Chemical_Parameters'!$F29/$G$8)))))","v":"--"},"--","--","--",{"$f":"IF(ISERROR(($H$5*$H$6*$H$7)/($H$9*$H$10*(($H$11*'Step 2 Chemical_Parameters'!$E29*'Step 1 Toxicity_Values'!$D29/$H$8)+($H$12*$H$13*'Step 2 Chemical_Parameters'!$F29*'Step 1 Toxicity_Values'!$G29/$H$8)))),\"--\",($H$5*$H$6*$H$7)/($H$9*$H$10*(($H$11*'Step 2 Chemical_Parameters'!$E29*'Step 1 Toxicity_Values'!$D29/$H$8)+($H$12*$H$13*'Step 2 Chemical_Parameters'!$F29*'Step 1 Toxicity_Values'!$G29/$H$8))))","v":"--"},{"$f":"IF(ISERROR(($K$5*$K$6*$K$7)/($K$9*$K$10*(((1/'Step 1 Toxicity_Values'!$E29)*$K$11*'Step 2 Chemical_Parameters'!$E29/$K$8)+((1/'Step 1 Toxicity_Values'!$I29)*$K$12*$K$13*'Step 2 Chemical_Parameters'!$F29/$K$8)))),\"--\",($K$5*$K$6*$K$7)/($K$9*$K$10*(((1/'Step 1 Toxicity_Values'!$E29)*$K$11*'Step 2 Chemical_Parameters'!$E29/$K$8)+((1/'Step 1 Toxicity_Values'!$I29)*$K$12*$K$13*'Step 2 Chemical_Parameters'!$F29/$K$8))))","v":"--"},"--","--","--",{"$f":"IF(ISERROR(($L$5*$L$6*$L$7)/($L$9*$L$10*(($L$11*'Step 2 Chemical_Parameters'!$E29*'Step 1 Toxicity_Values'!$D29/$L$8)+($L$12*$L$13*'Step 2 Chemical_Parameters'!$F29*'Step 1 Toxicity_Values'!$G29/$L$8)))),\"--\",($L$5*$L$6*$L$7)/($L$9*$L$10*(($L$11*'Step 2 Chemical_Parameters'!$E29*'Step 1 Toxicity_Values'!$D29/$L$8)+($L$12*$L$13*'Step 2 Chemical_Parameters'!$F29*'Step 1 Toxicity_Values'!$G29/$L$8))))","v":"--"},{"$f":"IF(ISERROR(($M$5*$M$6*$M$7)/($M$9*$M$10*(((1/'Step 1 Toxicity_Values'!$E29)*$M$11*'Step 2 Chemical_Parameters'!$E29/$M$8)+((1/'Step 1 Toxicity_Values'!$I29)*$M$12*$M$13*'Step 2 Chemical_Parameters'!$F29/$M$8)))),\"--\",($M$5*$M$6*$M$7)/($M$9*$M$10*(((1/'Step 1 Toxicity_Values'!$E29)*$M$11*'Step 2 Chemical_Parameters'!$E29/$M$8)+((1/'Step 1 Toxicity_Values'!$I29)*$M$12*$M$13*'Step 2 Chemical_Parameters'!$F29/$M$8))))","v":"--"},"--","--","--","--","--",null,{"$f":"'Step 2 Chemical_Parameters'!A29","v":"--"},{"$f":"'Step 2 Chemical_Parameters'!B29","v":"--"},null,{"$f":"IF(B51=\"--\",\"--\",IF(VLOOKUP(B51,chemical,8,FALSE)=\"M\",IF(ISERROR(($S$5*$S$7*$S$8)/((($S$16+$T$16)*'Step 2 Chemical_Parameters'!E29*'Step 1 Toxicity_Values'!D29)+(($S$17+$T$17)*'Step 2 Chemical_Parameters'!F29*'Step 1 Toxicity_Values'!G29))),\"--\",($S$5*$S$7*$S$8)/((($S$16+$T$16)*'Step 2 Chemical_Parameters'!E29*'Step 1 Toxicity_Values'!D29)+(($S$17+$T$17)*'Step 2 Chemical_Parameters'!F29*'Step 1 Toxicity_Values'!G29))),\"--\"))","v":"--"},{"$f":"IF(B51=\"--\",\"--\",IF(VLOOKUP(B51,chemical,8,FALSE)=\"M\",IF(ISERROR(($S$5*$S$7*$S$8)/((($S$16+$T$16+$U$16+$V$16)*'Step 2 Chemical_Parameters'!E29*'Step 1 Toxicity_Values'!D29)+(($S$17+$T$17+$U$17+$V$17)*'Step 2 Chemical_Parameters'!F29*'Step 1 Toxicity_Values'!G29))),\"--\",($S$5*$S$7*$S$8)/((($S$16+$T$16+$U$16+$V$16)*'Step 2 Chemical_Parameters'!E29*'Step 1 Toxicity_Values'!D29)+(($S$17+$T$17+$U$17+$V$17)*'Step 2 Chemical_Parameters'!F29*'Step 1 Toxicity_Values'!G29))),\"--\"))","v":"--"},{"$f":"IF(B51=\"--\",\"--\",IF(VLOOKUP(B51,chemical,8,FALSE)=\"M\",IF(ISERROR(($X$5*$X$7*$X$8)/((($X$16+$Y$16+$Z$16+$AA$16)*'Step 2 Chemical_Parameters'!E29*'Step 1 Toxicity_Values'!D29)+(($X$17+$Y$17+$Z$17+$AA$17)*'Step 2 Chemical_Parameters'!F29*'Step 1 Toxicity_Values'!G29))),\"--\",($X$5*$X$7*$X$8)/((($X$16+$Y$16+$Z$16+$AA$16)*'Step 2 Chemical_Parameters'!E29*'Step 1 Toxicity_Values'!D29)+(($X$17+$Y$17+$Z$17+$AA$17)*'Step 2 Chemical_Parameters'!F29*'Step 1 Toxicity_Values'!G29))),\"--\"))","v":"--"}]
[null,"--","--",{"$f":"IF(ISERROR(($F$5*$F$6*$F$7)/($F$9*$F$10*(($F$11*'Step 2 Chemical_Parameters'!E30*'Step 1 Toxicity_Values'!$D30/$F$8)+($F$12*$F$13*'Step 2 Chemical_Parameters'!F30*'Step 1 Toxicity_Values'!G30/$F$8)))),\"--\",($F$5*$F$6*$F$7)/($F$9*$F$10*(($F$11*'Step 2 Chemical_Parameters'!E30*'Step 1 Toxicity_Values'!$D30/$F$8)+($F$12*$F$13*'Step 2 Chemical_Parameters'!F30*'Step 1 Toxicity_Values'!G30/$F$8))))","v":"--"},{"$f":"IF(ISERROR(($G$5*$G$6*$G$7)/($G$9*$G$10*(((1/'Step 1 Toxicity_Values'!$E30)*($G$11*'Step 2 Chemical_Parameters'!$E30/$G$8))+((1/'Step 1 Toxicity_Values'!$I30)*($G$12*$G$13*'Step 2 Chemical_Parameters'!$F30/$G$8))))),\"--\",($G$5*$G$6*$G$7)/($G$9*$G$10*(((1/'Step 1 Toxicity_Values'!$E30)*($G$11*'Step 2 Chemical_Parameters'!$E30/$G$8))+((1/'Step 1 Toxicity_Values'!$I30)*($G$12*$G$13*'Step 2 Chemical_Parameters'!$F30/$G$8)))))","v":"--"},"--","--","--",{"$f":"IF(ISERROR(($H$5*$H$6*$H$7)/($H$9*$H$10*(($H$11*'Step 2 Chemical_Parameters'!$E30*'Step 1 Toxicity_Values'!$D30/$H$8)+($H$12*$H$13*'Step 2 Chemical_Parameters'!$F30*'Step 1 Toxicity_Values'!$G30/$H$8)))),\"--\",($H$5*$H$6*$H$7)/($H$9*$H$10*(($H$11*'Step 2 Chemical_Parameters'!$E30*'Step 1 Toxicity_Values'!$D30/$H$8)+($H$12*$H$13*'Step 2 Chemical_Parameters'!$F30*'Step 1 Toxicity_Values'!$G30/$H$8))))","v":"--"},{"$f":"IF(ISERROR(($K$5*$K$6*$K$7)/($K$9*$K$10*(((1/'Step 1 Toxicity_Values'!$E30)*$K$11*'Step 2 Chemical_Parameters'!$E30/$K$8)+((1/'Step 1 Toxicity_Values'!$I30)*$K$12*$K$13*'Step 2 Chemical_Parameters'!$F30/$K$8)))),\"--\",($K$5*$K$6*$K$7)/($K$9*$K$10*(((1/'Step 1 Toxicity_Values'!$E30)*$K$11*'Step 2 Chemical_Parameters'!$E30/$K$8)+((1/'Step 1 Toxicity_Values'!$I30)*$K$12*$K$13*'Step 2 Chemical_Parameters'!$F30/$K$8))))","v":"--"},"--","--","--",{"$f":"IF(ISERROR(($L$5*$L$6*$L$7)/($L$9*$L$10*(($L$11*'Step 2 Chemical_Parameters'!$E30*'Step 1 Toxicity_Values'!$D30/$L$8)+($L$12*$L$13*'Step 2 Chemical_Parameters'!$F30*'Step 1 Toxicity_Values'!$G30/$L$8)))),\"--\",($L$5*$L$6*$L$7)/($L$9*$L$10*(($L$11*'Step 2 Chemical_Parameters'!$E30*'Step 1 Toxicity_Values'!$D30/$L$8)+($L$12*$L$13*'Step 2 Chemical_Parameters'!$F30*'Step 1 Toxicity_Values'!$G30/$L$8))))","v":"--"},{"$f":"IF(ISERROR(($M$5*$M$6*$M$7)/($M$9*$M$10*(((1/'Step 1 Toxicity_Values'!$E30)*$M$11*'Step 2 Chemical_Parameters'!$E30/$M$8)+((1/'Step 1 Toxicity_Values'!$I30)*$M$12*$M$13*'Step 2 Chemical_Parameters'!$F30/$M$8)))),\"--\",($M$5*$M$6*$M$7)/($M$9*$M$10*(((1/'Step 1 Toxicity_Values'!$E30)*$M$11*'Step 2 Chemical_Parameters'!$E30/$M$8)+((1/'Step 1 Toxicity_Values'!$I30)*$M$12*$M$13*'Step 2 Chemical_Parameters'!$F30/$M$8))))","v":"--"},"--","--","--","--","--",null,{"$f":"'Step 2 Chemical_Parameters'!A30","v":"--"},{"$f":"'Step 2 Chemical_Parameters'!B30","v":"--"},null,{"$f":"IF(B52=\"--\",\"--\",IF(VLOOKUP(B52,chemical,8,FALSE)=\"M\",IF(ISERROR(($S$5*$S$7*$S$8)/((($S$16+$T$16)*'Step 2 Chemical_Parameters'!E30*'Step 1 Toxicity_Values'!D30)+(($S$17+$T$17)*'Step 2 Chemical_Parameters'!F30*'Step 1 Toxicity_Values'!G30))),\"--\",($S$5*$S$7*$S$8)/((($S$16+$T$16)*'Step 2 Chemical_Parameters'!E30*'Step 1 Toxicity_Values'!D30)+(($S$17+$T$17)*'Step 2 Chemical_Parameters'!F30*'Step 1 Toxicity_Values'!G30))),\"--\"))","v":"--"},{"$f":"IF(B52=\"--\",\"--\",IF(VLOOKUP(B52,chemical,8,FALSE)=\"M\",IF(ISERROR(($S$5*$S$7*$S$8)/((($S$16+$T$16+$U$16+$V$16)*'Step 2 Chemical_Parameters'!E30*'Step 1 Toxicity_Values'!D30)+(($S$17+$T$17+$U$17+$V$17)*'Step 2 Chemical_Parameters'!F30*'Step 1 Toxicity_Values'!G30))),\"--\",($S$5*$S$7*$S$8)/((($S$16+$T$16+$U$16+$V$16)*'Step 2 Chemical_Parameters'!E30*'Step 1 Toxicity_Values'!D30)+(($S$17+$T$17+$U$17+$V$17)*'Step 2 Chemical_Parameters'!F30*'Step 1 Toxicity_Values'!G30))),\"--\"))","v":"--"},{"$f":"IF(B52=\"--\",\"--\",IF(VLOOKUP(B52,chemical,8,FALSE)=\"M\",IF(ISERROR(($X$5*$X$7*$X$8)/((($X$16+$Y$16+$Z$16+$AA$16)*'Step 2 Chemical_Parameters'!E30*'Step 1 Toxicity_Values'!D30)+(($X$17+$Y$17+$Z$17+$AA$17)*'Step 2 Chemical_Parameters'!F30*'Step 1 Toxicity_Values'!G30))),\"--\",($X$5*$X$7*$X$8)/((($X$16+$Y$16+$Z$16+$AA$16)*'Step 2 Chemical_Parameters'!E30*'Step 1 Toxicity_Values'!D30)+(($X$17+$Y$17+$Z$17+$AA$17)*'Step 2 Chemical_Parameters'!F30*'Step 1 Toxicity_Values'!G30))),\"--\"))","v":"--"}]
[null,"--","--",{"$f":"IF(ISERROR(($F$5*$F$6*$F$7)/($F$9*$F$10*(($F$11*'Step 2 Chemical_Parameters'!E31*'Step 1 Toxicity_Values'!$D31/$F$8)+($F$12*$F$13*'Step 2 Chemical_Parameters'!F31*'Step 1 Toxicity_Values'!G31/$F$8)))),\"--\",($F$5*$F$6*$F$7)/($F$9*$F$10*(($F$11*'Step 2 Chemical_Parameters'!E31*'Step 1 Toxicity_Values'!$D31/$F$8)+($F$12*$F$13*'Step 2 Chemical_Parameters'!F31*'Step 1 Toxicity_Values'!G31/$F$8))))","v":"--"},{"$f":"IF(ISERROR(($G$5*$G$6*$G$7)/($G$9*$G$10*(((1/'Step 1 Toxicity_Values'!$E31)*($G$11*'Step 2 Chemical_Parameters'!$E31/$G$8))+((1/'Step 1 Toxicity_Values'!$I31)*($G$12*$G$13*'Step 2 Chemical_Parameters'!$F31/$G$8))))),\"--\",($G$5*$G$6*$G$7)/($G$9*$G$10*(((1/'Step 1 Toxicity_Values'!$E31)*($G$11*'Step 2 Chemical_Parameters'!$E31/$G$8))+((1/'Step 1 Toxicity_Values'!$I31)*($G$12*$G$13*'Step 2 Chemical_Parameters'!$F31/$G$8)))))","v":"--"},"--","--","--",{"$f":"IF(ISERROR(($H$5*$H$6*$H$7)/($H$9*$H$10*(($H$11*'Step 2 Chemical_Parameters'!$E31*'Step 1 Toxicity_Values'!$D31/$H$8)+($H$12*$H$13*'Step 2 Chemical_Parameters'!$F31*'Step 1 Toxicity_Values'!$G31/$H$8)))),\"--\",($H$5*$H$6*$H$7)/($H$9*$H$10*(($H$11*'Step 2 Chemical_Parameters'!$E31*'Step 1 Toxicity_Values'!$D31/$H$8)+($H$12*$H$13*'Step 2 Chemical_Parameters'!$F31*'Step 1 Toxicity_Values'!$G31/$H$8))))","v":"--"},{"$f":"IF(ISERROR(($K$5*$K$6*$K$7)/($K$9*$K$10*(((1/'Step 1 Toxicity_Values'!$E31)*$K$11*'Step 2 Chemical_Parameters'!$E31/$K$8)+((1/'Step 1 Toxicity_Values'!$I31)*$K$12*$K$13*'Step 2 Chemical_Parameters'!$F31/$K$8)))),\"--\",($K$5*$K$6*$K$7)/($K$9*$K$10*(((1/'Step 1 Toxicity_Values'!$E31)*$K$11*'Step 2 Chemical_Parameters'!$E31/$K$8)+((1/'Step 1 Toxicity_Values'!$I31)*$K$12*$K$13*'Step 2 Chemical_Parameters'!$F31/$K$8))))","v":"--"},"--","--","--",{"$f":"IF(ISERROR(($L$5*$L$6*$L$7)/($L$9*$L$10*(($L$11*'Step 2 Chemical_Parameters'!$E31*'Step 1 Toxicity_Values'!$D31/$L$8)+($L$12*$L$13*'Step 2 Chemical_Parameters'!$F31*'Step 1 Toxicity_Values'!$G31/$L$8)))),\"--\",($L$5*$L$6*$L$7)/($L$9*$L$10*(($L$11*'Step 2 Chemical_Parameters'!$E31*'Step 1 Toxicity_Values'!$D31/$L$8)+($L$12*$L$13*'Step 2 Chemical_Parameters'!$F31*'Step 1 Toxicity_Values'!$G31/$L$8))))","v":"--"},{"$f":"IF(ISERROR(($M$5*$M$6*$M$7)/($M$9*$M$10*(((1/'Step 1 Toxicity_Values'!$E31)*$M$11*'Step 2 Chemical_Parameters'!$E31/$M$8)+((1/'Step 1 Toxicity_Values'!$I31)*$M$12*$M$13*'Step 2 Chemical_Parameters'!$F31/$M$8)))),\"--\",($M$5*$M$6*$M$7)/($M$9*$M$10*(((1/'Step 1 Toxicity_Values'!$E31)*$M$11*'Step 2 Chemical_Parameters'!$E31/$M$8)+((1/'Step 1 Toxicity_Values'!$I31)*$M$12*$M$13*'Step 2 Chemical_Parameters'!$F31/$M$8))))","v":"--"},"--","--","--","--","--",null,{"$f":"'Step 2 Chemical_Parameters'!A31","v":"--"},{"$f":"'Step 2 Chemical_Parameters'!B31","v":"--"},null,{"$f":"IF(B53=\"--\",\"--\",IF(VLOOKUP(B53,chemical,8,FALSE)=\"M\",IF(ISERROR(($S$5*$S$7*$S$8)/((($S$16+$T$16)*'Step 2 Chemical_Parameters'!E31*'Step 1 Toxicity_Values'!D31)+(($S$17+$T$17)*'Step 2 Chemical_Parameters'!F31*'Step 1 Toxicity_Values'!G31))),\"--\",($S$5*$S$7*$S$8)/((($S$16+$T$16)*'Step 2 Chemical_Parameters'!E31*'Step 1 Toxicity_Values'!D31)+(($S$17+$T$17)*'Step 2 Chemical_Parameters'!F31*'Step 1 Toxicity_Values'!G31))),\"--\"))","v":"--"},{"$f":"IF(B53=\"--\",\"--\",IF(VLOOKUP(B53,chemical,8,FALSE)=\"M\",IF(ISERROR(($S$5*$S$7*$S$8)/((($S$16+$T$16+$U$16+$V$16)*'Step 2 Chemical_Parameters'!E31*'Step 1 Toxicity_Values'!D31)+(($S$17+$T$17+$U$17+$V$17)*'Step 2 Chemical_Parameters'!F31*'Step 1 Toxicity_Values'!G31))),\"--\",($S$5*$S$7*$S$8)/((($S$16+$T$16+$U$16+$V$16)*'Step 2 Chemical_Parameters'!E31*'Step 1 Toxicity_Values'!D31)+(($S$17+$T$17+$U$17+$V$17)*'Step 2 Chemical_Parameters'!F31*'Step 1 Toxicity_Values'!G31))),\"--\"))","v":"--"},{"$f":"IF(B53=\"--\",\"--\",IF(VLOOKUP(B53,chemical,8,FALSE)=\"M\",IF(ISERROR(($X$5*$X$7*$X$8)/((($X$16+$Y$16+$Z$16+$AA$16)*'Step 2 Chemical_Parameters'!E31*'Step 1 Toxicity_Values'!D31)+(($X$17+$Y$17+$Z$17+$AA$17)*'Step 2 Chemical_Parameters'!F31*'Step 1 Toxicity_Values'!G31))),\"--\",($X$5*$X$7*$X$8)/((($X$16+$Y$16+$Z$16+$AA$16)*'Step 2 Chemical_Parameters'!E31*'Step 1 Toxicity_Values'!D31)+(($X$17+$Y$17+$Z$17+$AA$17)*'Step 2 Chemical_Parameters'!F31*'Step 1 Toxicity_Values'!G31))),\"--\"))","v":"--"}]
[null,"--","--",{"$f":"IF(ISERROR(($F$5*$F$6*$F$7)/($F$9*$F$10*(($F$11*'Step 2 Chemical_Parameters'!E32*'Step 1 Toxicity_Values'!$D32/$F$8)+($F$12*$F$13*'Step 2 Chemical_Parameters'!F32*'Step 1 Toxicity_Values'!G32/$F$8)))),\"--\",($F$5*$F$6*$F$7)/($F$9*$F$10*(($F$11*'Step 2 Chemical_Parameters'!E32*'Step 1 Toxicity_Values'!$D32/$F$8)+($F$12*$F$13*'Step 2 Chemical_Parameters'!F32*'Step 1 Toxicity_Values'!G32/$F$8))))","v":"--"},{"$f":"IF(ISERROR(($G$5*$G$6*$G$7)/($G$9*$G$10*(((1/'Step 1 Toxicity_Values'!$E32)*($G$11*'Step 2 Chemical_Parameters'!$E32/$G$8))+((1/'Step 1 Toxicity_Values'!$I32)*($G$12*$G$13*'Step 2 Chemical_Parameters'!$F32/$G$8))))),\"--\",($G$5*$G$6*$G$7)/($G$9*$G$10*(((1/'Step 1 Toxicity_Values'!$E32)*($G$11*'Step 2 Chemical_Parameters'!$E32/$G$8))+((1/'Step 1 Toxicity_Values'!$I32)*($G$12*$G$13*'Step 2 Chemical_Parameters'!$F32/$G$8)))))","v":"--"},"--","--","--",{"$f":"IF(ISERROR(($H$5*$H$6*$H$7)/($H$9*$H$10*(($H$11*'Step 2 Chemical_Parameters'!$E32*'Step 1 Toxicity_Values'!$D32/$H$8)+($H$12*$H$13*'Step 2 Chemical_Parameters'!$F32*'Step 1 Toxicity_Values'!$G32/$H$8)))),\"--\",($H$5*$H$6*$H$7)/($H$9*$H$10*(($H$11*'Step 2 Chemical_Parameters'!$E32*'Step 1 Toxicity_Values'!$D32/$H$8)+($H$12*$H$13*'Step 2 Chemical_Parameters'!$F32*'Step 1 Toxicity_Values'!$G32/$H$8))))","v":"--"},{"$f":"IF(ISERROR(($K$5*$K$6*$K$7)/($K$9*$K$10*(((1/'Step 1 Toxicity_Values'!$E32)*$K$11*'Step 2 Chemical_Parameters'!$E32/$K$8)+((1/'Step 1 Toxicity_Values'!$I32)*$K$12*$K$13*'Step 2 Chemical_Parameters'!$F32/$K$8)))),\"--\",($K$5*$K$6*$K$7)/($K$9*$K$10*(((1/'Step 1 Toxicity_Values'!$E32)*$K$11*'Step 2 Chemical_Parameters'!$E32/$K$8)+((1/'Step 1 Toxicity_Values'!$I32)*$K$12*$K$13*'Step 2 Chemical_Parameters'!$F32/$K$8))))","v":"--"},"--","--","--",{"$f":"IF(ISERROR(($L$5*$L$6*$L$7)/($L$9*$L$10*(($L$11*'Step 2 Chemical_Parameters'!$E32*'Step 1 Toxicity_Values'!$D32/$L$8)+($L$12*$L$13*'Step 2 Chemical_Parameters'!$F32*'Step 1 Toxicity_Values'!$G32/$L$8)))),\"--\",($L$5*$L$6*$L$7)/($L$9*$L$10*(($L$11*'Step 2 Chemical_Parameters'!$E32*'Step 1 Toxicity_Values'!$D32/$L$8)+($L$12*$L$13*'Step 2 Chemical_Parameters'!$F32*'Step 1 Toxicity_Values'!$G32/$L$8))))","v":"--"},{"$f":"IF(ISERROR(($M$5*$M$6*$M$7)/($M$9*$M$10*(((1/'Step 1 Toxicity_Values'!$E32)*$M$11*'Step 2 Chemical_Parameters'!$E32/$M$8)+((1/'Step 1 Toxicity_Values'!$I32)*$M$12*$M$13*'Step 2 Chemical_Parameters'!$F32/$M$8)))),\"--\",($M$5*$M$6*$M$7)/($M$9*$M$10*(((1/'Step 1 Toxicity_Values'!$E32)*$M$11*'Step 2 Chemical_Parameters'!$E32/$M$8)+((1/'Step 1 Toxicity_Values'!$I32)*$M$12*$M$13*'Step 2 Chemical_Parameters'!$F32/$M$8))))","v":"--"},"--","--","--","--","--",null,{"$f":"'Step 2 Chemical_Parameters'!A32","v":"--"},{"$f":"'Step 2 Chemical_Parameters'!B32","v":"--"},null,{"$f":"IF(B54=\"--\",\"--\",IF(VLOOKUP(B54,chemical,8,FALSE)=\"M\",IF(ISERROR(($S$5*$S$7*$S$8)/((($S$16+$T$16)*'Step 2 Chemical_Parameters'!E32*'Step 1 Toxicity_Values'!D32)+(($S$17+$T$17)*'Step 2 Chemical_Parameters'!F32*'Step 1 Toxicity_Values'!G32))),\"--\",($S$5*$S$7*$S$8)/((($S$16+$T$16)*'Step 2 Chemical_Parameters'!E32*'Step 1 Toxicity_Values'!D32)+(($S$17+$T$17)*'Step 2 Chemical_Parameters'!F32*'Step 1 Toxicity_Values'!G32))),\"--\"))","v":"--"},{"$f":"IF(B54=\"--\",\"--\",IF(VLOOKUP(B54,chemical,8,FALSE)=\"M\",IF(ISERROR(($S$5*$S$7*$S$8)/((($S$16+$T$16+$U$16+$V$16)*'Step 2 Chemical_Parameters'!E32*'Step 1 Toxicity_Values'!D32)+(($S$17+$T$17+$U$17+$V$17)*'Step 2 Chemical_Parameters'!F32*'Step 1 Toxicity_Values'!G32))),\"--\",($S$5*$S$7*$S$8)/((($S$16+$T$16+$U$16+$V$16)*'Step 2 Chemical_Parameters'!E32*'Step 1 Toxicity_Values'!D32)+(($S$17+$T$17+$U$17+$V$17)*'Step 2 Chemical_Parameters'!F32*'Step 1 Toxicity_Values'!G32))),\"--\"))","v":"--"},{"$f":"IF(B54=\"--\",\"--\",IF(VLOOKUP(B54,chemical,8,FALSE)=\"M\",IF(ISERROR(($X$5*$X$7*$X$8)/((($X$16+$Y$16+$Z$16+$AA$16)*'Step 2 Chemical_Parameters'!E32*'Step 1 Toxicity_Values'!D32)+(($X$17+$Y$17+$Z$17+$AA$17)*'Step 2 Chemical_Parameters'!F32*'Step 1 Toxicity_Values'!G32))),\"--\",($X$5*$X$7*$X$8)/((($X$16+$Y$16+$Z$16+$AA$16)*'Step 2 Chemical_Parameters'!E32*'Step 1 Toxicity_Values'!D32)+(($X$17+$Y$17+$Z$17+$AA$17)*'Step 2 Chemical_Parameters'!F32*'Step 1 Toxicity_Values'!G32))),\"--\"))","v":"--"}]
[null,"--","--",{"$f":"IF(ISERROR(($F$5*$F$6*$F$7)/($F$9*$F$10*(($F$11*'Step 2 Chemical_Parameters'!E33*'Step 1 Toxicity_Values'!$D33/$F$8)+($F$12*$F$13*'Step 2 Chemical_Parameters'!F33*'Step 1 Toxicity_Values'!G33/$F$8)))),\"--\",($F$5*$F$6*$F$7)/($F$9*$F$10*(($F$11*'Step 2 Chemical_Parameters'!E33*'Step 1 Toxicity_Values'!$D33/$F$8)+($F$12*$F$13*'Step 2 Chemical_Parameters'!F33*'Step 1 Toxicity_Values'!G33/$F$8))))","v":"--"},{"$f":"IF(ISERROR(($G$5*$G$6*$G$7)/($G$9*$G$10*(((1/'Step 1 Toxicity_Values'!$E33)*($G$11*'Step 2 Chemical_Parameters'!$E33/$G$8))+((1/'Step 1 Toxicity_Values'!$I33)*($G$12*$G$13*'Step 2 Chemical_Parameters'!$F33/$G$8))))),\"--\",($G$5*$G$6*$G$7)/($G$9*$G$10*(((1/'Step 1 Toxicity_Values'!$E33)*($G$11*'Step 2 Chemical_Parameters'!$E33/$G$8))+((1/'Step 1 Toxicity_Values'!$I33)*($G$12*$G$13*'Step 2 Chemical_Parameters'!$F33/$G$8)))))","v":"--"},"--","--","--",{"$f":"IF(ISERROR(($H$5*$H$6*$H$7)/($H$9*$H$10*(($H$11*'Step 2 Chemical_Parameters'!$E33*'Step 1 Toxicity_Values'!$D33/$H$8)+($H$12*$H$13*'Step 2 Chemical_Parameters'!$F33*'Step 1 Toxicity_Values'!$G33/$H$8)))),\"--\",($H$5*$H$6*$H$7)/($H$9*$H$10*(($H$11*'Step 2 Chemical_Parameters'!$E33*'Step 1 Toxicity_Values'!$D33/$H$8)+($H$12*$H$13*'Step 2 Chemical_Parameters'!$F33*'Step 1 Toxicity_Values'!$G33/$H$8))))","v":"--"},{"$f":"IF(ISERROR(($K$5*$K$6*$K$7)/($K$9*$K$10*(((1/'Step 1 Toxicity_Values'!$E33)*$K$11*'Step 2 Chemical_Parameters'!$E33/$K$8)+((1/'Step 1 Toxicity_Values'!$I33)*$K$12*$K$13*'Step 2 Chemical_Parameters'!$F33/$K$8)))),\"--\",($K$5*$K$6*$K$7)/($K$9*$K$10*(((1/'Step 1 Toxicity_Values'!$E33)*$K$11*'Step 2 Chemical_Parameters'!$E33/$K$8)+((1/'Step 1 Toxicity_Values'!$I33)*$K$12*$K$13*'Step 2 Chemical_Parameters'!$F33/$K$8))))","v":"--"},"--","--","--",{"$f":"IF(ISERROR(($L$5*$L$6*$L$7)/($L$9*$L$10*(($L$11*'Step 2 Chemical_Parameters'!$E33*'Step 1 Toxicity_Values'!$D33/$L$8)+($L$12*$L$13*'Step 2 Chemical_Parameters'!$F33*'Step 1 Toxicity_Values'!$G33/$L$8)))),\"--\",($L$5*$L$6*$L$7)/($L$9*$L$10*(($L$11*'Step 2 Chemical_Parameters'!$E33*'Step 1 Toxicity_Values'!$D33/$L$8)+($L$12*$L$13*'Step 2 Chemical_Parameters'!$F33*'Step 1 Toxicity_Values'!$G33/$L$8))))","v":"--"},{"$f":"IF(ISERROR(($M$5*$M$6*$M$7)/($M$9*$M$10*(((1/'Step 1 Toxicity_Values'!$E33)*$M$11*'Step 2 Chemical_Parameters'!$E33/$M$8)+((1/'Step 1 Toxicity_Values'!$I33)*$M$12*$M$13*'Step 2 Chemical_Parameters'!$F33/$M$8)))),\"--\",($M$5*$M$6*$M$7)/($M$9*$M$10*(((1/'Step 1 Toxicity_Values'!$E33)*$M$11*'Step 2 Chemical_Parameters'!$E33/$M$8)+((1/'Step 1 Toxicity_Values'!$I33)*$M$12*$M$13*'Step 2 Chemical_Parameters'!$F33/$M$8))))","v":"--"},"--","--","--","--","--",null,{"$f":"'Step 2 Chemical_Parameters'!A33","v":"--"},{"$f":"'Step 2 Chemical_Parameters'!B33","v":"--"},null,{"$f":"IF(B55=\"--\",\"--\",IF(VLOOKUP(B55,chemical,8,FALSE)=\"M\",IF(ISERROR(($S$5*$S$7*$S$8)/((($S$16+$T$16)*'Step 2 Chemical_Parameters'!E33*'Step 1 Toxicity_Values'!D33)+(($S$17+$T$17)*'Step 2 Chemical_Parameters'!F33*'Step 1 Toxicity_Values'!G33))),\"--\",($S$5*$S$7*$S$8)/((($S$16+$T$16)*'Step 2 Chemical_Parameters'!E33*'Step 1 Toxicity_Values'!D33)+(($S$17+$T$17)*'Step 2 Chemical_Parameters'!F33*'Step 1 Toxicity_Values'!G33))),\"--\"))","v":"--"},{"$f":"IF(B55=\"--\",\"--\",IF(VLOOKUP(B55,chemical,8,FALSE)=\"M\",IF(ISERROR(($S$5*$S$7*$S$8)/((($S$16+$T$16+$U$16+$V$16)*'Step 2 Chemical_Parameters'!E33*'Step 1 Toxicity_Values'!D33)+(($S$17+$T$17+$U$17+$V$17)*'Step 2 Chemical_Parameters'!F33*'Step 1 Toxicity_Values'!G33))),\"--\",($S$5*$S$7*$S$8)/((($S$16+$T$16+$U$16+$V$16)*'Step 2 Chemical_Parameters'!E33*'Step 1 Toxicity_Values'!D33)+(($S$17+$T$17+$U$17+$V$17)*'Step 2 Chemical_Parameters'!F33*'Step 1 Toxicity_Values'!G33))),\"--\"))","v":"--"},{"$f":"IF(B55=\"--\",\"--\",IF(VLOOKUP(B55,chemical,8,FALSE)=\"M\",IF(ISERROR(($X$5*$X$7*$X$8)/((($X$16+$Y$16+$Z$16+$AA$16)*'Step 2 Chemical_Parameters'!E33*'Step 1 Toxicity_Values'!D33)+(($X$17+$Y$17+$Z$17+$AA$17)*'Step 2 Chemical_Parameters'!F33*'Step 1 Toxicity_Values'!G33))),\"--\",($X$5*$X$7*$X$8)/((($X$16+$Y$16+$Z$16+$AA$16)*'Step 2 Chemical_Parameters'!E33*'Step 1 Toxicity_Values'!D33)+(($X$17+$Y$17+$Z$17+$AA$17)*'Step 2 Chemical_Parameters'!F33*'Step 1 Toxicity_Values'!G33))),\"--\"))","v":"--"}]
[null,"--","--",{"$f":"IF(ISERROR(($F$5*$F$6*$F$7)/($F$9*$F$10*(($F$11*'Step 2 Chemical_Parameters'!E34*'Step 1 Toxicity_Values'!$D34/$F$8)+($F$12*$F$13*'Step 2 Chemical_Parameters'!F34*'Step 1 Toxicity_Values'!G34/$F$8)))),\"--\",($F$5*$F$6*$F$7)/($F$9*$F$10*(($F$11*'Step 2 Chemical_Parameters'!E34*'Step 1 Toxicity_Values'!$D34/$F$8)+($F$12*$F$13*'Step 2 Chemical_Parameters'!F34*'Step 1 Toxicity_Values'!G34/$F$8))))","v":"--"},{"$f":"IF(ISERROR(($G$5*$G$6*$G$7)/($G$9*$G$10*(((1/'Step 1 Toxicity_Values'!$E34)*($G$11*'Step 2 Chemical_Parameters'!$E34/$G$8))+((1/'Step 1 Toxicity_Values'!$I34)*($G$12*$G$13*'Step 2 Chemical_Parameters'!$F34/$G$8))))),\"--\",($G$5*$G$6*$G$7)/($G$9*$G$10*(((1/'Step 1 Toxicity_Values'!$E34)*($G$11*'Step 2 Chemical_Parameters'!$E34/$G$8))+((1/'Step 1 Toxicity_Values'!$I34)*($G$12*$G$13*'Step 2 Chemical_Parameters'!$F34/$G$8)))))","v":"--"},"--","--","--",{"$f":"IF(ISERROR(($H$5*$H$6*$H$7)/($H$9*$H$10*(($H$11*'Step 2 Chemical_Parameters'!$E34*'Step 1 Toxicity_Values'!$D34/$H$8)+($H$12*$H$13*'Step 2 Chemical_Parameters'!$F34*'Step 1 Toxicity_Values'!$G34/$H$8)))),\"--\",($H$5*$H$6*$H$7)/($H$9*$H$10*(($H$11*'Step 2 Chemical_Parameters'!$E34*'Step 1 Toxicity_Values'!$D34/$H$8)+($H$12*$H$13*'Step 2 Chemical_Parameters'!$F34*'Step 1 Toxicity_Values'!$G34/$H$8))))","v":"--"},{"$f":"IF(ISERROR(($K$5*$K$6*$K$7)/($K$9*$K$10*(((1/'Step 1 Toxicity_Values'!$E34)*$K$11*'Step 2 Chemical_Parameters'!$E34/$K$8)+((1/'Step 1 Toxicity_Values'!$I34)*$K$12*$K$13*'Step 2 Chemical_Parameters'!$F34/$K$8)))),\"--\",($K$5*$K$6*$K$7)/($K$9*$K$10*(((1/'Step 1 Toxicity_Values'!$E34)*$K$11*'Step 2 Chemical_Parameters'!$E34/$K$8)+((1/'Step 1 Toxicity_Values'!$I34)*$K$12*$K$13*'Step 2 Chemical_Parameters'!$F34/$K$8))))","v":"--"},"--","--","--",{"$f":"IF(ISERROR(($L$5*$L$6*$L$7)/($L$9*$L$10*(($L$11*'Step 2 Chemical_Parameters'!$E34*'Step 1 Toxicity_Values'!$D34/$L$8)+($L$12*$L$13*'Step 2 Chemical_Parameters'!$F34*'Step 1 Toxicity_Values'!$G34/$L$8)))),\"--\",($L$5*$L$6*$L$7)/($L$9*$L$10*(($L$11*'Step 2 Chemical_Parameters'!$E34*'Step 1 Toxicity_Values'!$D34/$L$8)+($L$12*$L$13*'Step 2 Chemical_Parameters'!$F34*'Step 1 Toxicity_Values'!$G34/$L$8))))","v":"--"},{"$f":"IF(ISERROR(($M$5*$M$6*$M$7)/($M$9*$M$10*(((1/'Step 1 Toxicity_Values'!$E34)*$M$11*'Step 2 Chemical_Parameters'!$E34/$M$8)+((1/'Step 1 Toxicity_Values'!$I34)*$M$12*$M$13*'Step 2 Chemical_Parameters'!$F34/$M$8)))),\"--\",($M$5*$M$6*$M$7)/($M$9*$M$10*(((1/'Step 1 Toxicity_Values'!$E34)*$M$11*'Step 2 Chemical_Parameters'!$E34/$M$8)+((1/'Step 1 Toxicity_Values'!$I34)*$M$12*$M$13*'Step 2 Chemical_Parameters'!$F34/$M$8))))","v":"--"},"--","--","--","--","--",null,{"$f":"'Step 2 Chemical_Parameters'!A34","v":"--"},{"$f":"'Step 2 Chemical_Parameters'!B34","v":"--"},null,{"$f":"IF(B56=\"--\",\"--\",IF(VLOOKUP(B56,chemical,8,FALSE)=\"M\",IF(ISERROR(($S$5*$S$7*$S$8)/((($S$16+$T$16)*'Step 2 Chemical_Parameters'!E34*'Step 1 Toxicity_Values'!D34)+(($S$17+$T$17)*'Step 2 Chemical_Parameters'!F34*'Step 1 Toxicity_Values'!G34))),\"--\",($S$5*$S$7*$S$8)/((($S$16+$T$16)*'Step 2 Chemical_Parameters'!E34*'Step 1 Toxicity_Values'!D34)+(($S$17+$T$17)*'Step 2 Chemical_Parameters'!F34*'Step 1 Toxicity_Values'!G34))),\"--\"))","v":"--"},{"$f":"IF(B56=\"--\",\"--\",IF(VLOOKUP(B56,chemical,8,FALSE)=\"M\",IF(ISERROR(($S$5*$S$7*$S$8)/((($S$16+$T$16+$U$16+$V$16)*'Step 2 Chemical_Parameters'!E34*'Step 1 Toxicity_Values'!D34)+(($S$17+$T$17+$U$17+$V$17)*'Step 2 Chemical_Parameters'!F34*'Step 1 Toxicity_Values'!G34))),\"--\",($S$5*$S$7*$S$8)/((($S$16+$T$16+$U$16+$V$16)*'Step 2 Chemical_Parameters'!E34*'Step 1 Toxicity_Values'!D34)+(($S$17+$T$17+$U$17+$V$17)*'Step 2 Chemical_Parameters'!F34*'Step 1 Toxicity_Values'!G34))),\"--\"))","v":"--"},{"$f":"IF(B56=\"--\",\"--\",IF(VLOOKUP(B56,chemical,8,FALSE)=\"M\",IF(ISERROR(($X$5*$X$7*$X$8)/((($X$16+$Y$16+$Z$16+$AA$16)*'Step 2 Chemical_Parameters'!E34*'Step 1 Toxicity_Values'!D34)+(($X$17+$Y$17+$Z$17+$AA$17)*'Step 2 Chemical_Parameters'!F34*'Step 1 Toxicity_Values'!G34))),\"--\",($X$5*$X$7*$X$8)/((($X$16+$Y$16+$Z$16+$AA$16)*'Step 2 Chemical_Parameters'!E34*'Step 1 Toxicity_Values'!D34)+(($X$17+$Y$17+$Z$17+$AA$17)*'Step 2 Chemical_Parameters'!F34*'Step 1 Toxicity_Values'!G34))),\"--\"))","v":"--"}]
[null,"--","--",{"$f":"IF(ISERROR(($F$5*$F$6*$F$7)/($F$9*$F$10*(($F$11*'Step 2 Chemical_Parameters'!E35*'Step 1 Toxicity_Values'!$D35/$F$8)+($F$12*$F$13*'Step 2 Chemical_Parameters'!F35*'Step 1 Toxicity_Values'!G35/$F$8)))),\"--\",($F$5*$F$6*$F$7)/($F$9*$F$10*(($F$11*'Step 2 Chemical_Parameters'!E35*'Step 1 Toxicity_Values'!$D35/$F$8)+($F$12*$F$13*'Step 2 Chemical_Parameters'!F35*'Step 1 Toxicity_Values'!G35/$F$8))))","v":"--"},{"$f":"IF(ISERROR(($G$5*$G$6*$G$7)/($G$9*$G$10*(((1/'Step 1 Toxicity_Values'!$E35)*($G$11*'Step 2 Chemical_Parameters'!$E35/$G$8))+((1/'Step 1 Toxicity_Values'!$I35)*($G$12*$G$13*'Step 2 Chemical_Parameters'!$F35/$G$8))))),\"--\",($G$5*$G$6*$G$7)/($G$9*$G$10*(((1/'Step 1 Toxicity_Values'!$E35)*($G$11*'Step 2 Chemical_Parameters'!$E35/$G$8))+((1/'Step 1 Toxicity_Values'!$I35)*($G$12*$G$13*'Step 2 Chemical_Parameters'!$F35/$G$8)))))","v":"--"},"--","--","--",{"$f":"IF(ISERROR(($H$5*$H$6*$H$7)/($H$9*$H$10*(($H$11*'Step 2 Chemical_Parameters'!$E35*'Step 1 Toxicity_Values'!$D35/$H$8)+($H$12*$H$13*'Step 2 Chemical_Parameters'!$F35*'Step 1 Toxicity_Values'!$G35/$H$8)))),\"--\",($H$5*$H$6*$H$7)/($H$9*$H$10*(($H$11*'Step 2 Chemical_Parameters'!$E35*'Step 1 Toxicity_Values'!$D35/$H$8)+($H$12*$H$13*'Step 2 Chemical_Parameters'!$F35*'Step 1 Toxicity_Values'!$G35/$H$8))))","v":"--"},{"$f":"IF(ISERROR(($K$5*$K$6*$K$7)/($K$9*$K$10*(((1/'Step 1 Toxicity_Values'!$E35)*$K$11*'Step 2 Chemical_Parameters'!$E35/$K$8)+((1/'Step 1 Toxicity_Values'!$I35)*$K$12*$K$13*'Step 2 Chemical_Parameters'!$F35/$K$8)))),\"--\",($K$5*$K$6*$K$7)/($K$9*$K$10*(((1/'Step 1 Toxicity_Values'!$E35)*$K$11*'Step 2 Chemical_Parameters'!$E35/$K$8)+((1/'Step 1 Toxicity_Values'!$I35)*$K$12*$K$13*'Step 2 Chemical_Parameters'!$F35/$K$8))))","v":"--"},"--","--","--",{"$f":"IF(ISERROR(($L$5*$L$6*$L$7)/($L$9*$L$10*(($L$11*'Step 2 Chemical_Parameters'!$E35*'Step 1 Toxicity_Values'!$D35/$L$8)+($L$12*$L$13*'Step 2 Chemical_Parameters'!$F35*'Step 1 Toxicity_Values'!$G35/$L$8)))),\"--\",($L$5*$L$6*$L$7)/($L$9*$L$10*(($L$11*'Step 2 Chemical_Parameters'!$E35*'Step 1 Toxicity_Values'!$D35/$L$8)+($L$12*$L$13*'Step 2 Chemical_Parameters'!$F35*'Step 1 Toxicity_Values'!$G35/$L$8))))","v":"--"},{"$f":"IF(ISERROR(($M$5*$M$6*$M$7)/($M$9*$M$10*(((1/'Step 1 Toxicity_Values'!$E35)*$M$11*'Step 2 Chemical_Parameters'!$E35/$M$8)+((1/'Step 1 Toxicity_Values'!$I35)*$M$12*$M$13*'Step 2 Chemical_Parameters'!$F35/$M$8)))),\"--\",($M$5*$M$6*$M$7)/($M$9*$M$10*(((1/'Step 1 Toxicity_Values'!$E35)*$M$11*'Step 2 Chemical_Parameters'!$E35/$M$8)+((1/'Step 1 Toxicity_Values'!$I35)*$M$12*$M$13*'Step 2 Chemical_Parameters'!$F35/$M$8))))","v":"--"},"--","--","--","--","--",null,{"$f":"'Step 2 Chemical_Parameters'!A35","v":"--"},{"$f":"'Step 2 Chemical_Parameters'!B35","v":"--"},null,{"$f":"IF(B57=\"--\",\"--\",IF(VLOOKUP(B57,chemical,8,FALSE)=\"M\",IF(ISERROR(($S$5*$S$7*$S$8)/((($S$16+$T$16)*'Step 2 Chemical_Parameters'!E35*'Step 1 Toxicity_Values'!D35)+(($S$17+$T$17)*'Step 2 Chemical_Parameters'!F35*'Step 1 Toxicity_Values'!G35))),\"--\",($S$5*$S$7*$S$8)/((($S$16+$T$16)*'Step 2 Chemical_Parameters'!E35*'Step 1 Toxicity_Values'!D35)+(($S$17+$T$17)*'Step 2 Chemical_Parameters'!F35*'Step 1 Toxicity_Values'!G35))),\"--\"))","v":"--"},{"$f":"IF(B57=\"--\",\"--\",IF(VLOOKUP(B57,chemical,8,FALSE)=\"M\",IF(ISERROR(($S$5*$S$7*$S$8)/((($S$16+$T$16+$U$16+$V$16)*'Step 2 Chemical_Parameters'!E35*'Step 1 Toxicity_Values'!D35)+(($S$17+$T$17+$U$17+$V$17)*'Step 2 Chemical_Parameters'!F35*'Step 1 Toxicity_Values'!G35))),\"--\",($S$5*$S$7*$S$8)/((($S$16+$T$16+$U$16+$V$16)*'Step 2 Chemical_Parameters'!E35*'Step 1 Toxicity_Values'!D35)+(($S$17+$T$17+$U$17+$V$17)*'Step 2 Chemical_Parameters'!F35*'Step 1 Toxicity_Values'!G35))),\"--\"))","v":"--"},{"$f":"IF(B57=\"--\",\"--\",IF(VLOOKUP(B57,chemical,8,FALSE)=\"M\",IF(ISERROR(($X$5*$X$7*$X$8)/((($X$16+$Y$16+$Z$16+$AA$16)*'Step 2 Chemical_Parameters'!E35*'Step 1 Toxicity_Values'!D35)+(($X$17+$Y$17+$Z$17+$AA$17)*'Step 2 Chemical_Parameters'!F35*'Step 1 Toxicity_Values'!G35))),\"--\",($X$5*$X$7*$X$8)/((($X$16+$Y$16+$Z$16+$AA$16)*'Step 2 Chemical_Parameters'!E35*'Step 1 Toxicity_Values'!D35)+(($X$17+$Y$17+$Z$17+$AA$17)*'Step 2 Chemical_Parameters'!F35*'Step 1 Toxicity_Values'!G35))),\"--\"))","v":"--"}]
[null,"--","--",{"$f":"IF(ISERROR(($F$5*$F$6*$F$7)/($F$9*$F$10*(($F$11*'Step 2 Chemical_Parameters'!E36*'Step 1 Toxicity_Values'!$D36/$F$8)+($F$12*$F$13*'Step 2 Chemical_Parameters'!F36*'Step 1 Toxicity_Values'!G36/$F$8)))),\"--\",($F$5*$F$6*$F$7)/($F$9*$F$10*(($F$11*'Step 2 Chemical_Parameters'!E36*'Step 1 Toxicity_Values'!$D36/$F$8)+($F$12*$F$13*'Step 2 Chemical_Parameters'!F36*'Step 1 Toxicity_Values'!G36/$F$8))))","v":"--"},{"$f":"IF(ISERROR(($G$5*$G$6*$G$7)/($G$9*$G$10*(((1/'Step 1 Toxicity_Values'!$E36)*($G$11*'Step 2 Chemical_Parameters'!$E36/$G$8))+((1/'Step 1 Toxicity_Values'!$I36)*($G$12*$G$13*'Step 2 Chemical_Parameters'!$F36/$G$8))))),\"--\",($G$5*$G$6*$G$7)/($G$9*$G$10*(((1/'Step 1 Toxicity_Values'!$E36)*($G$11*'Step 2 Chemical_Parameters'!$E36/$G$8))+((1/'Step 1 Toxicity_Values'!$I36)*($G$12*$G$13*'Step 2 Chemical_Parameters'!$F36/$G$8)))))","v":"--"},"--","--","--",{"$f":"IF(ISERROR(($H$5*$H$6*$H$7)/($H$9*$H$10*(($H$11*'Step 2 Chemical_Parameters'!$E36*'Step 1 Toxicity_Values'!$D36/$H$8)+($H$12*$H$13*'Step 2 Chemical_Parameters'!$F36*'Step 1 Toxicity_Values'!$G36/$H$8)))),\"--\",($H$5*$H$6*$H$7)/($H$9*$H$10*(($H$11*'Step 2 Chemical_Parameters'!$E36*'Step 1 Toxicity_Values'!$D36/$H$8)+($H$12*$H$13*'Step 2 Chemical_Parameters'!$F36*'Step 1 Toxicity_Values'!$G36/$H$8))))","v":"--"},{"$f":"IF(ISERROR(($K$5*$K$6*$K$7)/($K$9*$K$10*(((1/'Step 1 Toxicity_Values'!$E36)*$K$11*'Step 2 Chemical_Parameters'!$E36/$K$8)+((1/'Step 1 Toxicity_Values'!$I36)*$K$12*$K$13*'Step 2 Chemical_Parameters'!$F36/$K$8)))),\"--\",($K$5*$K$6*$K$7)/($K$9*$K$10*(((1/'Step 1 Toxicity_Values'!$E36)*$K$11*'Step 2 Chemical_Parameters'!$E36/$K$8)+((1/'Step 1 Toxicity_Values'!$I36)*$K$12*$K$13*'Step 2 Chemical_Parameters'!$F36/$K$8))))","v":"--"},"--","--","--",{"$f":"IF(ISERROR(($L$5*$L$6*$L$7)/($L$9*$L$10*(($L$11*'Step 2 Chemical_Parameters'!$E36*'Step 1 Toxicity_Values'!$D36/$L$8)+($L$12*$L$13*'Step 2 Chemical_Parameters'!$F36*'Step 1 Toxicity_Values'!$G36/$L$8)))),\"--\",($L$5*$L$6*$L$7)/($L$9*$L$10*(($L$11*'Step 2 Chemical_Parameters'!$E36*'Step 1 Toxicity_Values'!$D36/$L$8)+($L$12*$L$13*'Step 2 Chemical_Parameters'!$F36*'Step 1 Toxicity_Values'!$G36/$L$8))))","v":"--"},{"$f":"IF(ISERROR(($M$5*$M$6*$M$7)/($M$9*$M$10*(((1/'Step 1 Toxicity_Values'!$E36)*$M$11*'Step 2 Chemical_Parameters'!$E36/$M$8)+((1/'Step 1 Toxicity_Values'!$I36)*$M$12*$M$13*'Step 2 Chemical_Parameters'!$F36/$M$8)))),\"--\",($M$5*$M$6*$M$7)/($M$9*$M$10*(((1/'Step 1 Toxicity_Values'!$E36)*$M$11*'Step 2 Chemical_Parameters'!$E36/$M$8)+((1/'Step 1 Toxicity_Values'!$I36)*$M$12*$M$13*'Step 2 Chemical_Parameters'!$F36/$M$8))))","v":"--"},"--","--","--","--","--",null,{"$f":"'Step 2 Chemical_Parameters'!A36","v":"--"},{"$f":"'Step 2 Chemical_Parameters'!B36","v":"--"},null,{"$f":"IF(B58=\"--\",\"--\",IF(VLOOKUP(B58,chemical,8,FALSE)=\"M\",IF(ISERROR(($S$5*$S$7*$S$8)/((($S$16+$T$16)*'Step 2 Chemical_Parameters'!E36*'Step 1 Toxicity_Values'!D36)+(($S$17+$T$17)*'Step 2 Chemical_Parameters'!F36*'Step 1 Toxicity_Values'!G36))),\"--\",($S$5*$S$7*$S$8)/((($S$16+$T$16)*'Step 2 Chemical_Parameters'!E36*'Step 1 Toxicity_Values'!D36)+(($S$17+$T$17)*'Step 2 Chemical_Parameters'!F36*'Step 1 Toxicity_Values'!G36))),\"--\"))","v":"--"},{"$f":"IF(B58=\"--\",\"--\",IF(VLOOKUP(B58,chemical,8,FALSE)=\"M\",IF(ISERROR(($S$5*$S$7*$S$8)/((($S$16+$T$16+$U$16+$V$16)*'Step 2 Chemical_Parameters'!E36*'Step 1 Toxicity_Values'!D36)+(($S$17+$T$17+$U$17+$V$17)*'Step 2 Chemical_Parameters'!F36*'Step 1 Toxicity_Values'!G36))),\"--\",($S$5*$S$7*$S$8)/((($S$16+$T$16+$U$16+$V$16)*'Step 2 Chemical_Parameters'!E36*'Step 1 Toxicity_Values'!D36)+(($S$17+$T$17+$U$17+$V$17)*'Step 2 Chemical_Parameters'!F36*'Step 1 Toxicity_Values'!G36))),\"--\"))","v":"--"},{"$f":"IF(B58=\"--\",\"--\",IF(VLOOKUP(B58,chemical,8,FALSE)=\"M\",IF(ISERROR(($X$5*$X$7*$X$8)/((($X$16+$Y$16+$Z$16+$AA$16)*'Step 2 Chemical_Parameters'!E36*'Step 1 Toxicity_Values'!D36)+(($X$17+$Y$17+$Z$17+$AA$17)*'Step 2 Chemical_Parameters'!F36*'Step 1 Toxicity_Values'!G36))),\"--\",($X$5*$X$7*$X$8)/((($X$16+$Y$16+$Z$16+$AA$16)*'Step 2 Chemical_Parameters'!E36*'Step 1 Toxicity_Values'!D36)+(($X$17+$Y$17+$Z$17+$AA$17)*'Step 2 Chemical_Parameters'!F36*'Step 1 Toxicity_Values'!G36))),\"--\"))","v":"--"}]
[null,"--","--",{"$f":"IF(ISERROR(($F$5*$F$6*$F$7)/($F$9*$F$10*(($F$11*'Step 2 Chemical_Parameters'!E37*'Step 1 Toxicity_Values'!$D37/$F$8)+($F$12*$F$13*'Step 2 Chemical_Parameters'!F37*'Step 1 Toxicity_Values'!G37/$F$8)))),\"--\",($F$5*$F$6*$F$7)/($F$9*$F$10*(($F$11*'Step 2 Chemical_Parameters'!E37*'Step 1 Toxicity_Values'!$D37/$F$8)+($F$12*$F$13*'Step 2 Chemical_Parameters'!F37*'Step 1 Toxicity_Values'!G37/$F$8))))","v":"--"},{"$f":"IF(ISERROR(($G$5*$G$6*$G$7)/($G$9*$G$10*(((1/'Step 1 Toxicity_Values'!$E37)*($G$11*'Step 2 Chemical_Parameters'!$E37/$G$8))+((1/'Step 1 Toxicity_Values'!$I37)*($G$12*$G$13*'Step 2 Chemical_Parameters'!$F37/$G$8))))),\"--\",($G$5*$G$6*$G$7)/($G$9*$G$10*(((1/'Step 1 Toxicity_Values'!$E37)*($G$11*'Step 2 Chemical_Parameters'!$E37/$G$8))+((1/'Step 1 Toxicity_Values'!$I37)*($G$12*$G$13*'Step 2 Chemical_Parameters'!$F37/$G$8)))))","v":"--"},"--","--","--",{"$f":"IF(ISERROR(($H$5*$H$6*$H$7)/($H$9*$H$10*(($H$11*'Step 2 Chemical_Parameters'!$E37*'Step 1 Toxicity_Values'!$D37/$H$8)+($H$12*$H$13*'Step 2 Chemical_Parameters'!$F37*'Step 1 Toxicity_Values'!$G37/$H$8)))),\"--\",($H$5*$H$6*$H$7)/($H$9*$H$10*(($H$11*'Step 2 Chemical_Parameters'!$E37*'Step 1 Toxicity_Values'!$D37/$H$8)+($H$12*$H$13*'Step 2 Chemical_Parameters'!$F37*'Step 1 Toxicity_Values'!$G37/$H$8))))","v":"--"},{"$f":"IF(ISERROR(($K$5*$K$6*$K$7)/($K$9*$K$10*(((1/'Step 1 Toxicity_Values'!$E37)*$K$11*'Step 2 Chemical_Parameters'!$E37/$K$8)+((1/'Step 1 Toxicity_Values'!$I37)*$K$12*$K$13*'Step 2 Chemical_Parameters'!$F37/$K$8)))),\"--\",($K$5*$K$6*$K$7)/($K$9*$K$10*(((1/'Step 1 Toxicity_Values'!$E37)*$K$11*'Step 2 Chemical_Parameters'!$E37/$K$8)+((1/'Step 1 Toxicity_Values'!$I37)*$K$12*$K$13*'Step 2 Chemical_Parameters'!$F37/$K$8))))","v":"--"},"--","--","--",{"$f":"IF(ISERROR(($L$5*$L$6*$L$7)/($L$9*$L$10*(($L$11*'Step 2 Chemical_Parameters'!$E37*'Step 1 Toxicity_Values'!$D37/$L$8)+($L$12*$L$13*'Step 2 Chemical_Parameters'!$F37*'Step 1 Toxicity_Values'!$G37/$L$8)))),\"--\",($L$5*$L$6*$L$7)/($L$9*$L$10*(($L$11*'Step 2 Chemical_Parameters'!$E37*'Step 1 Toxicity_Values'!$D37/$L$8)+($L$12*$L$13*'Step 2 Chemical_Parameters'!$F37*'Step 1 Toxicity_Values'!$G37/$L$8))))","v":"--"},{"$f":"IF(ISERROR(($M$5*$M$6*$M$7)/($M$9*$M$10*(((1/'Step 1 Toxicity_Values'!$E37)*$M$11*'Step 2 Chemical_Parameters'!$E37/$M$8)+((1/'Step 1 Toxicity_Values'!$I37)*$M$12*$M$13*'Step 2 Chemical_Parameters'!$F37/$M$8)))),\"--\",($M$5*$M$6*$M$7)/($M$9*$M$10*(((1/'Step 1 Toxicity_Values'!$E37)*$M$11*'Step 2 Chemical_Parameters'!$E37/$M$8)+((1/'Step 1 Toxicity_Values'!$I37)*$M$12*$M$13*'Step 2 Chemical_Parameters'!$F37/$M$8))))","v":"--"},"--","--","--","--","--",null,{"$f":"'Step 2 Chemical_Parameters'!A37","v":"--"},{"$f":"'Step 2 Chemical_Parameters'!B37","v":"--"},null,{"$f":"IF(B59=\"--\",\"--\",IF(VLOOKUP(B59,chemical,8,FALSE)=\"M\",IF(ISERROR(($S$5*$S$7*$S$8)/((($S$16+$T$16)*'Step 2 Chemical_Parameters'!E37*'Step 1 Toxicity_Values'!D37)+(($S$17+$T$17)*'Step 2 Chemical_Parameters'!F37*'Step 1 Toxicity_Values'!G37))),\"--\",($S$5*$S$7*$S$8)/((($S$16+$T$16)*'Step 2 Chemical_Parameters'!E37*'Step 1 Toxicity_Values'!D37)+(($S$17+$T$17)*'Step 2 Chemical_Parameters'!F37*'Step 1 Toxicity_Values'!G37))),\"--\"))","v":"--"},{"$f":"IF(B59=\"--\",\"--\",IF(VLOOKUP(B59,chemical,8,FALSE)=\"M\",IF(ISERROR(($S$5*$S$7*$S$8)/((($S$16+$T$16+$U$16+$V$16)*'Step 2 Chemical_Parameters'!E37*'Step 1 Toxicity_Values'!D37)+(($S$17+$T$17+$U$17+$V$17)*'Step 2 Chemical_Parameters'!F37*'Step 1 Toxicity_Values'!G37))),\"--\",($S$5*$S$7*$S$8)/((($S$16+$T$16+$U$16+$V$16)*'Step 2 Chemical_Parameters'!E37*'Step 1 Toxicity_Values'!D37)+(($S$17+$T$17+$U$17+$V$17)*'Step 2 Chemical_Parameters'!F37*'Step 1 Toxicity_Values'!G37))),\"--\"))","v":"--"},{"$f":"IF(B59=\"--\",\"--\",IF(VLOOKUP(B59,chemical,8,FALSE)=\"M\",IF(ISERROR(($X$5*$X$7*$X$8)/((($X$16+$Y$16+$Z$16+$AA$16)*'Step 2 Chemical_Parameters'!E37*'Step 1 Toxicity_Values'!D37)+(($X$17+$Y$17+$Z$17+$AA$17)*'Step 2 Chemical_Parameters'!F37*'Step 1 Toxicity_Values'!G37))),\"--\",($X$5*$X$7*$X$8)/((($X$16+$Y$16+$Z$16+$AA$16)*'Step 2 Chemical_Parameters'!E37*'Step 1 Toxicity_Values'!D37)+(($X$17+$Y$17+$Z$17+$AA$17)*'Step 2 Chemical_Parameters'!F37*'Step 1 Toxicity_Values'!G37))),\"--\"))","v":"--"}]
[null,"--","--",{"$f":"IF(ISERROR(($F$5*$F$6*$F$7)/($F$9*$F$10*(($F$11*'Step 2 Chemical_Parameters'!E38*'Step 1 Toxicity_Values'!$D38/$F$8)+($F$12*$F$13*'Step 2 Chemical_Parameters'!F38*'Step 1 Toxicity_Values'!G38/$F$8)))),\"--\",($F$5*$F$6*$F$7)/($F$9*$F$10*(($F$11*'Step 2 Chemical_Parameters'!E38*'Step 1 Toxicity_Values'!$D38/$F$8)+($F$12*$F$13*'Step 2 Chemical_Parameters'!F38*'Step 1 Toxicity_Values'!G38/$F$8))))","v":"--"},{"$f":"IF(ISERROR(($G$5*$G$6*$G$7)/($G$9*$G$10*(((1/'Step 1 Toxicity_Values'!$E38)*($G$11*'Step 2 Chemical_Parameters'!$E38/$G$8))+((1/'Step 1 Toxicity_Values'!$I38)*($G$12*$G$13*'Step 2 Chemical_Parameters'!$F38/$G$8))))),\"--\",($G$5*$G$6*$G$7)/($G$9*$G$10*(((1/'Step 1 Toxicity_Values'!$E38)*($G$11*'Step 2 Chemical_Parameters'!$E38/$G$8))+((1/'Step 1 Toxicity_Values'!$I38)*($G$12*$G$13*'Step 2 Chemical_Parameters'!$F38/$G$8)))))","v":"--"},"--","--","--",{"$f":"IF(ISERROR(($H$5*$H$6*$H$7)/($H$9*$H$10*(($H$11*'Step 2 Chemical_Parameters'!$E38*'Step 1 Toxicity_Values'!$D38/$H$8)+($H$12*$H$13*'Step 2 Chemical_Parameters'!$F38*'Step 1 Toxicity_Values'!$G38/$H$8)))),\"--\",($H$5*$H$6*$H$7)/($H$9*$H$10*(($H$11*'Step 2 Chemical_Parameters'!$E38*'Step 1 Toxicity_Values'!$D38/$H$8)+($H$12*$H$13*'Step 2 Chemical_Parameters'!$F38*'Step 1 Toxicity_Values'!$G38/$H$8))))","v":"--"},{"$f":"IF(ISERROR(($K$5*$K$6*$K$7)/($K$9*$K$10*(((1/'Step 1 Toxicity_Values'!$E38)*$K$11*'Step 2 Chemical_Parameters'!$E38/$K$8)+((1/'Step 1 Toxicity_Values'!$I38)*$K$12*$K$13*'Step 2 Chemical_Parameters'!$F38/$K$8)))),\"--\",($K$5*$K$6*$K$7)/($K$9*$K$10*(((1/'Step 1 Toxicity_Values'!$E38)*$K$11*'Step 2 Chemical_Parameters'!$E38/$K$8)+((1/'Step 1 Toxicity_Values'!$I38)*$K$12*$K$13*'Step 2 Chemical_Parameters'!$F38/$K$8))))","v":"--"},"--","--","--",{"$f":"IF(ISERROR(($L$5*$L$6*$L$7)/($L$9*$L$10*(($L$11*'Step 2 Chemical_Parameters'!$E38*'Step 1 Toxicity_Values'!$D38/$L$8)+($L$12*$L$13*'Step 2 Chemical_Parameters'!$F38*'Step 1 Toxicity_Values'!$G38/$L$8)))),\"--\",($L$5*$L$6*$L$7)/($L$9*$L$10*(($L$11*'Step 2 Chemical_Parameters'!$E38*'Step 1 Toxicity_Values'!$D38/$L$8)+($L$12*$L$13*'Step 2 Chemical_Parameters'!$F38*'Step 1 Toxicity_Values'!$G38/$L$8))))","v":"--"},{"$f":"IF(ISERROR(($M$5*$M$6*$M$7)/($M$9*$M$10*(((1/'Step 1 Toxicity_Values'!$E38)*$M$11*'Step 2 Chemical_Parameters'!$E38/$M$8)+((1/'Step 1 Toxicity_Values'!$I38)*$M$12*$M$13*'Step 2 Chemical_Parameters'!$F38/$M$8)))),\"--\",($M$5*$M$6*$M$7)/($M$9*$M$10*(((1/'Step 1 Toxicity_Values'!$E38)*$M$11*'Step 2 Chemical_Parameters'!$E38/$M$8)+((1/'Step 1 Toxicity_Values'!$I38)*$M$12*$M$13*'Step 2 Chemical_Parameters'!$F38/$M$8))))","v":"--"},"--","--","--","--","--",null,{"$f":"'Step 2 Chemical_Parameters'!A38","v":"--"},{"$f":"'Step 2 Chemical_Parameters'!B38","v":"--"},null,{"$f":"IF(B60=\"--\",\"--\",IF(VLOOKUP(B60,chemical,8,FALSE)=\"M\",IF(ISERROR(($S$5*$S$7*$S$8)/((($S$16+$T$16)*'Step 2 Chemical_Parameters'!E38*'Step 1 Toxicity_Values'!D38)+(($S$17+$T$17)*'Step 2 Chemical_Parameters'!F38*'Step 1 Toxicity_Values'!G38))),\"--\",($S$5*$S$7*$S$8)/((($S$16+$T$16)*'Step 2 Chemical_Parameters'!E38*'Step 1 Toxicity_Values'!D38)+(($S$17+$T$17)*'Step 2 Chemical_Parameters'!F38*'Step 1 Toxicity_Values'!G38))),\"--\"))","v":"--"},{"$f":"IF(B60=\"--\",\"--\",IF(VLOOKUP(B60,chemical,8,FALSE)=\"M\",IF(ISERROR(($S$5*$S$7*$S$8)/((($S$16+$T$16+$U$16+$V$16)*'Step 2 Chemical_Parameters'!E38*'Step 1 Toxicity_Values'!D38)+(($S$17+$T$17+$U$17+$V$17)*'Step 2 Chemical_Parameters'!F38*'Step 1 Toxicity_Values'!G38))),\"--\",($S$5*$S$7*$S$8)/((($S$16+$T$16+$U$16+$V$16)*'Step 2 Chemical_Parameters'!E38*'Step 1 Toxicity_Values'!D38)+(($S$17+$T$17+$U$17+$V$17)*'Step 2 Chemical_Parameters'!F38*'Step 1 Toxicity_Values'!G38))),\"--\"))","v":"--"},{"$f":"IF(B60=\"--\",\"--\",IF(VLOOKUP(B60,chemical,8,FALSE)=\"M\",IF(ISERROR(($X$5*$X$7*$X$8)/((($X$16+$Y$16+$Z$16+$AA$16)*'Step 2 Chemical_Parameters'!E38*'Step 1 Toxicity_Values'!D38)+(($X$17+$Y$17+$Z$17+$AA$17)*'Step 2 Chemical_Parameters'!F38*'Step 1 Toxicity_Values'!G38))),\"--\",($X$5*$X$7*$X$8)/((($X$16+$Y$16+$Z$16+$AA$16)*'Step 2 Chemical_Parameters'!E38*'Step 1 Toxicity_Values'!D38)+(($X$17+$Y$17+$Z$17+$AA$17)*'Step 2 Chemical_Parameters'!F38*'Step 1 Toxicity_Values'!G38))),\"--\"))","v":"--"}]
[null,"--","--",{"$f":"IF(ISERROR(($F$5*$F$6*$F$7)/($F$9*$F$10*(($F$11*'Step 2 Chemical_Parameters'!E39*'Step 1 Toxicity_Values'!$D39/$F$8)+($F$12*$F$13*'Step 2 Chemical_Parameters'!F39*'Step 1 Toxicity_Values'!G39/$F$8)))),\"--\",($F$5*$F$6*$F$7)/($F$9*$F$10*(($F$11*'Step 2 Chemical_Parameters'!E39*'Step 1 Toxicity_Values'!$D39/$F$8)+($F$12*$F$13*'Step 2 Chemical_Parameters'!F39*'Step 1 Toxicity_Values'!G39/$F$8))))","v":"--"},{"$f":"IF(ISERROR(($G$5*$G$6*$G$7)/($G$9*$G$10*(((1/'Step 1 Toxicity_Values'!$E39)*($G$11*'Step 2 Chemical_Parameters'!$E39/$G$8))+((1/'Step 1 Toxicity_Values'!$I39)*($G$12*$G$13*'Step 2 Chemical_Parameters'!$F39/$G$8))))),\"--\",($G$5*$G$6*$G$7)/($G$9*$G$10*(((1/'Step 1 Toxicity_Values'!$E39)*($G$11*'Step 2 Chemical_Parameters'!$E39/$G$8))+((1/'Step 1 Toxicity_Values'!$I39)*($G$12*$G$13*'Step 2 Chemical_Parameters'!$F39/$G$8)))))","v":"--"},"--","--","--",{"$f":"IF(ISERROR(($H$5*$H$6*$H$7)/($H$9*$H$10*(($H$11*'Step 2 Chemical_Parameters'!$E39*'Step 1 Toxicity_Values'!$D39/$H$8)+($H$12*$H$13*'Step 2 Chemical_Parameters'!$F39*'Step 1 Toxicity_Values'!$G39/$H$8)))),\"--\",($H$5*$H$6*$H$7)/($H$9*$H$10*(($H$11*'Step 2 Chemical_Parameters'!$E39*'Step 1 Toxicity_Values'!$D39/$H$8)+($H$12*$H$13*'Step 2 Chemical_Parameters'!$F39*'Step 1 Toxicity_Values'!$G39/$H$8))))","v":"--"},{"$f":"IF(ISERROR(($K$5*$K$6*$K$7)/($K$9*$K$10*(((1/'Step 1 Toxicity_Values'!$E39)*$K$11*'Step 2 Chemical_Parameters'!$E39/$K$8)+((1/'Step 1 Toxicity_Values'!$I39)*$K$12*$K$13*'Step 2 Chemical_Parameters'!$F39/$K$8)))),\"--\",($K$5*$K$6*$K$7)/($K$9*$K$10*(((1/'Step 1 Toxicity_Values'!$E39)*$K$11*'Step 2 Chemical_Parameters'!$E39/$K$8)+((1/'Step 1 Toxicity_Values'!$I39)*$K$12*$K$13*'Step 2 Chemical_Parameters'!$F39/$K$8))))","v":"--"},"--","--","--",{"$f":"IF(ISERROR(($L$5*$L$6*$L$7)/($L$9*$L$10*(($L$11*'Step 2 Chemical_Parameters'!$E39*'Step 1 Toxicity_Values'!$D39/$L$8)+($L$12*$L$13*'Step 2 Chemical_Parameters'!$F39*'Step 1 Toxicity_Values'!$G39/$L$8)))),\"--\",($L$5*$L$6*$L$7)/($L$9*$L$10*(($L$11*'Step 2 Chemical_Parameters'!$E39*'Step 1 Toxicity_Values'!$D39/$L$8)+($L$12*$L$13*'Step 2 Chemical_Parameters'!$F39*'Step 1 Toxicity_Values'!$G39/$L$8))))","v":"--"},{"$f":"IF(ISERROR(($M$5*$M$6*$M$7)/($M$9*$M$10*(((1/'Step 1 Toxicity_Values'!$E39)*$M$11*'Step 2 Chemical_Parameters'!$E39/$M$8)+((1/'Step 1 Toxicity_Values'!$I39)*$M$12*$M$13*'Step 2 Chemical_Parameters'!$F39/$M$8)))),\"--\",($M$5*$M$6*$M$7)/($M$9*$M$10*(((1/'Step 1 Toxicity_Values'!$E39)*$M$11*'Step 2 Chemical_Parameters'!$E39/$M$8)+((1/'Step 1 Toxicity_Values'!$I39)*$M$12*$M$13*'Step 2 Chemical_Parameters'!$F39/$M$8))))","v":"--"},"--","--","--","--","--",null,{"$f":"'Step 2 Chemical_Parameters'!A39","v":"--"},{"$f":"'Step 2 Chemical_Parameters'!B39","v":"--"},null,{"$f":"IF(B61=\"--\",\"--\",IF(VLOOKUP(B61,chemical,8,FALSE)=\"M\",IF(ISERROR(($S$5*$S$7*$S$8)/((($S$16+$T$16)*'Step 2 Chemical_Parameters'!E39*'Step 1 Toxicity_Values'!D39)+(($S$17+$T$17)*'Step 2 Chemical_Parameters'!F39*'Step 1 Toxicity_Values'!G39))),\"--\",($S$5*$S$7*$S$8)/((($S$16+$T$16)*'Step 2 Chemical_Parameters'!E39*'Step 1 Toxicity_Values'!D39)+(($S$17+$T$17)*'Step 2 Chemical_Parameters'!F39*'Step 1 Toxicity_Values'!G39))),\"--\"))","v":"--"},{"$f":"IF(B61=\"--\",\"--\",IF(VLOOKUP(B61,chemical,8,FALSE)=\"M\",IF(ISERROR(($S$5*$S$7*$S$8)/((($S$16+$T$16+$U$16+$V$16)*'Step 2 Chemical_Parameters'!E39*'Step 1 Toxicity_Values'!D39)+(($S$17+$T$17+$U$17+$V$17)*'Step 2 Chemical_Parameters'!F39*'Step 1 Toxicity_Values'!G39))),\"--\",($S$5*$S$7*$S$8)/((($S$16+$T$16+$U$16+$V$16)*'Step 2 Chemical_Parameters'!E39*'Step 1 Toxicity_Values'!D39)+(($S$17+$T$17+$U$17+$V$17)*'Step 2 Chemical_Parameters'!F39*'Step 1 Toxicity_Values'!G39))),\"--\"))","v":"--"},{"$f":"IF(B61=\"--\",\"--\",IF(VLOOKUP(B61,chemical,8,FALSE)=\"M\",IF(ISERROR(($X$5*$X$7*$X$8)/((($X$16+$Y$16+$Z$16+$AA$16)*'Step 2 Chemical_Parameters'!E39*'Step 1 Toxicity_Values'!D39)+(($X$17+$Y$17+$Z$17+$AA$17)*'Step 2 Chemical_Parameters'!F39*'Step 1 Toxicity_Values'!G39))),\"--\",($X$5*$X$7*$X$8)/((($X$16+$Y$16+$Z$16+$AA$16)*'Step 2 Chemical_Parameters'!E39*'Step 1 Toxicity_Values'!D39)+(($X$17+$Y$17+$Z$17+$AA$17)*'Step 2 Chemical_Parameters'!F39*'Step 1 Toxicity_Values'!G39))),\"--\"))","v":"--"}]
[null,"--","--",{"$f":"IF(ISERROR(($F$5*$F$6*$F$7)/($F$9*$F$10*(($F$11*'Step 2 Chemical_Parameters'!E40*'Step 1 Toxicity_Values'!$D40/$F$8)+($F$12*$F$13*'Step 2 Chemical_Parameters'!F40*'Step 1 Toxicity_Values'!G40/$F$8)))),\"--\",($F$5*$F$6*$F$7)/($F$9*$F$10*(($F$11*'Step 2 Chemical_Parameters'!E40*'Step 1 Toxicity_Values'!$D40/$F$8)+($F$12*$F$13*'Step 2 Chemical_Parameters'!F40*'Step 1 Toxicity_Values'!G40/$F$8))))","v":"--"},{"$f":"IF(ISERROR(($G$5*$G$6*$G$7)/($G$9*$G$10*(((1/'Step 1 Toxicity_Values'!$E40)*($G$11*'Step 2 Chemical_Parameters'!$E40/$G$8))+((1/'Step 1 Toxicity_Values'!$I40)*($G$12*$G$13*'Step 2 Chemical_Parameters'!$F40/$G$8))))),\"--\",($G$5*$G$6*$G$7)/($G$9*$G$10*(((1/'Step 1 Toxicity_Values'!$E40)*($G$11*'Step 2 Chemical_Parameters'!$E40/$G$8))+((1/'Step 1 Toxicity_Values'!$I40)*($G$12*$G$13*'Step 2 Chemical_Parameters'!$F40/$G$8)))))","v":"--"},"--","--","--",{"$f":"IF(ISERROR(($H$5*$H$6*$H$7)/($H$9*$H$10*(($H$11*'Step 2 Chemical_Parameters'!$E40*'Step 1 Toxicity_Values'!$D40/$H$8)+($H$12*$H$13*'Step 2 Chemical_Parameters'!$F40*'Step 1 Toxicity_Values'!$G40/$H$8)))),\"--\",($H$5*$H$6*$H$7)/($H$9*$H$10*(($H$11*'Step 2 Chemical_Parameters'!$E40*'Step 1 Toxicity_Values'!$D40/$H$8)+($H$12*$H$13*'Step 2 Chemical_Parameters'!$F40*'Step 1 Toxicity_Values'!$G40/$H$8))))","v":"--"},{"$f":"IF(ISERROR(($K$5*$K$6*$K$7)/($K$9*$K$10*(((1/'Step 1 Toxicity_Values'!$E40)*$K$11*'Step 2 Chemical_Parameters'!$E40/$K$8)+((1/'Step 1 Toxicity_Values'!$I40)*$K$12*$K$13*'Step 2 Chemical_Parameters'!$F40/$K$8)))),\"--\",($K$5*$K$6*$K$7)/($K$9*$K$10*(((1/'Step 1 Toxicity_Values'!$E40)*$K$11*'Step 2 Chemical_Parameters'!$E40/$K$8)+((1/'Step 1 Toxicity_Values'!$I40)*$K$12*$K$13*'Step 2 Chemical_Parameters'!$F40/$K$8))))","v":"--"},"--","--","--",{"$f":"IF(ISERROR(($L$5*$L$6*$L$7)/($L$9*$L$10*(($L$11*'Step 2 Chemical_Parameters'!$E40*'Step 1 Toxicity_Values'!$D40/$L$8)+($L$12*$L$13*'Step 2 Chemical_Parameters'!$F40*'Step 1 Toxicity_Values'!$G40/$L$8)))),\"--\",($L$5*$L$6*$L$7)/($L$9*$L$10*(($L$11*'Step 2 Chemical_Parameters'!$E40*'Step 1 Toxicity_Values'!$D40/$L$8)+($L$12*$L$13*'Step 2 Chemical_Parameters'!$F40*'Step 1 Toxicity_Values'!$G40/$L$8))))","v":"--"},{"$f":"IF(ISERROR(($M$5*$M$6*$M$7)/($M$9*$M$10*(((1/'Step 1 Toxicity_Values'!$E40)*$M$11*'Step 2 Chemical_Parameters'!$E40/$M$8)+((1/'Step 1 Toxicity_Values'!$I40)*$M$12*$M$13*'Step 2 Chemical_Parameters'!$F40/$M$8)))),\"--\",($M$5*$M$6*$M$7)/($M$9*$M$10*(((1/'Step 1 Toxicity_Values'!$E40)*$M$11*'Step 2 Chemical_Parameters'!$E40/$M$8)+((1/'Step 1 Toxicity_Values'!$I40)*$M$12*$M$13*'Step 2 Chemical_Parameters'!$F40/$M$8))))","v":"--"},"--","--","--","--","--",null,{"$f":"'Step 2 Chemical_Parameters'!A40","v":"--"},{"$f":"'Step 2 Chemical_Parameters'!B40","v":"--"},null,{"$f":"IF(B62=\"--\",\"--\",IF(VLOOKUP(B62,chemical,8,FALSE)=\"M\",IF(ISERROR(($S$5*$S$7*$S$8)/((($S$16+$T$16)*'Step 2 Chemical_Parameters'!E40*'Step 1 Toxicity_Values'!D40)+(($S$17+$T$17)*'Step 2 Chemical_Parameters'!F40*'Step 1 Toxicity_Values'!G40))),\"--\",($S$5*$S$7*$S$8)/((($S$16+$T$16)*'Step 2 Chemical_Parameters'!E40*'Step 1 Toxicity_Values'!D40)+(($S$17+$T$17)*'Step 2 Chemical_Parameters'!F40*'Step 1 Toxicity_Values'!G40))),\"--\"))","v":"--"},{"$f":"IF(B62=\"--\",\"--\",IF(VLOOKUP(B62,chemical,8,FALSE)=\"M\",IF(ISERROR(($S$5*$S$7*$S$8)/((($S$16+$T$16+$U$16+$V$16)*'Step 2 Chemical_Parameters'!E40*'Step 1 Toxicity_Values'!D40)+(($S$17+$T$17+$U$17+$V$17)*'Step 2 Chemical_Parameters'!F40*'Step 1 Toxicity_Values'!G40))),\"--\",($S$5*$S$7*$S$8)/((($S$16+$T$16+$U$16+$V$16)*'Step 2 Chemical_Parameters'!E40*'Step 1 Toxicity_Values'!D40)+(($S$17+$T$17+$U$17+$V$17)*'Step 2 Chemical_Parameters'!F40*'Step 1 Toxicity_Values'!G40))),\"--\"))","v":"--"},{"$f":"IF(B62=\"--\",\"--\",IF(VLOOKUP(B62,chemical,8,FALSE)=\"M\",IF(ISERROR(($X$5*$X$7*$X$8)/((($X$16+$Y$16+$Z$16+$AA$16)*'Step 2 Chemical_Parameters'!E40*'Step 1 Toxicity_Values'!D40)+(($X$17+$Y$17+$Z$17+$AA$17)*'Step 2 Chemical_Parameters'!F40*'Step 1 Toxicity_Values'!G40))),\"--\",($X$5*$X$7*$X$8)/((($X$16+$Y$16+$Z$16+$AA$16)*'Step 2 Chemical_Parameters'!E40*'Step 1 Toxicity_Values'!D40)+(($X$17+$Y$17+$Z$17+$AA$17)*'Step 2 Chemical_Parameters'!F40*'Step 1 Toxicity_Values'!G40))),\"--\"))","v":"--"}]
[null,"--","--",{"$f":"IF(ISERROR(($F$5*$F$6*$F$7)/($F$9*$F$10*(($F$11*'Step 2 Chemical_Parameters'!E41*'Step 1 Toxicity_Values'!$D41/$F$8)+($F$12*$F$13*'Step 2 Chemical_Parameters'!F41*'Step 1 Toxicity_Values'!G41/$F$8)))),\"--\",($F$5*$F$6*$F$7)/($F$9*$F$10*(($F$11*'Step 2 Chemical_Parameters'!E41*'Step 1 Toxicity_Values'!$D41/$F$8)+($F$12*$F$13*'Step 2 Chemical_Parameters'!F41*'Step 1 Toxicity_Values'!G41/$F$8))))","v":"--"},{"$f":"IF(ISERROR(($G$5*$G$6*$G$7)/($G$9*$G$10*(((1/'Step 1 Toxicity_Values'!$E41)*($G$11*'Step 2 Chemical_Parameters'!$E41/$G$8))+((1/'Step 1 Toxicity_Values'!$I41)*($G$12*$G$13*'Step 2 Chemical_Parameters'!$F41/$G$8))))),\"--\",($G$5*$G$6*$G$7)/($G$9*$G$10*(((1/'Step 1 Toxicity_Values'!$E41)*($G$11*'Step 2 Chemical_Parameters'!$E41/$G$8))+((1/'Step 1 Toxicity_Values'!$I41)*($G$12*$G$13*'Step 2 Chemical_Parameters'!$F41/$G$8)))))","v":"--"},"--","--","--",{"$f":"IF(ISERROR(($H$5*$H$6*$H$7)/($H$9*$H$10*(($H$11*'Step 2 Chemical_Parameters'!$E41*'Step 1 Toxicity_Values'!$D41/$H$8)+($H$12*$H$13*'Step 2 Chemical_Parameters'!$F41*'Step 1 Toxicity_Values'!$G41/$H$8)))),\"--\",($H$5*$H$6*$H$7)/($H$9*$H$10*(($H$11*'Step 2 Chemical_Parameters'!$E41*'Step 1 Toxicity_Values'!$D41/$H$8)+($H$12*$H$13*'Step 2 Chemical_Parameters'!$F41*'Step 1 Toxicity_Values'!$G41/$H$8))))","v":"--"},{"$f":"IF(ISERROR(($K$5*$K$6*$K$7)/($K$9*$K$10*(((1/'Step 1 Toxicity_Values'!$E41)*$K$11*'Step 2 Chemical_Parameters'!$E41/$K$8)+((1/'Step 1 Toxicity_Values'!$I41)*$K$12*$K$13*'Step 2 Chemical_Parameters'!$F41/$K$8)))),\"--\",($K$5*$K$6*$K$7)/($K$9*$K$10*(((1/'Step 1 Toxicity_Values'!$E41)*$K$11*'Step 2 Chemical_Parameters'!$E41/$K$8)+((1/'Step 1 Toxicity_Values'!$I41)*$K$12*$K$13*'Step 2 Chemical_Parameters'!$F41/$K$8))))","v":"--"},"--","--","--",{"$f":"IF(ISERROR(($L$5*$L$6*$L$7)/($L$9*$L$10*(($L$11*'Step 2 Chemical_Parameters'!$E41*'Step 1 Toxicity_Values'!$D41/$L$8)+($L$12*$L$13*'Step 2 Chemical_Parameters'!$F41*'Step 1 Toxicity_Values'!$G41/$L$8)))),\"--\",($L$5*$L$6*$L$7)/($L$9*$L$10*(($L$11*'Step 2 Chemical_Parameters'!$E41*'Step 1 Toxicity_Values'!$D41/$L$8)+($L$12*$L$13*'Step 2 Chemical_Parameters'!$F41*'Step 1 Toxicity_Values'!$G41/$L$8))))","v":"--"},{"$f":"IF(ISERROR(($M$5*$M$6*$M$7)/($M$9*$M$10*(((1/'Step 1 Toxicity_Values'!$E41)*$M$11*'Step 2 Chemical_Parameters'!$E41/$M$8)+((1/'Step 1 Toxicity_Values'!$I41)*$M$12*$M$13*'Step 2 Chemical_Parameters'!$F41/$M$8)))),\"--\",($M$5*$M$6*$M$7)/($M$9*$M$10*(((1/'Step 1 Toxicity_Values'!$E41)*$M$11*'Step 2 Chemical_Parameters'!$E41/$M$8)+((1/'Step 1 Toxicity_Values'!$I41)*$M$12*$M$13*'Step 2 Chemical_Parameters'!$F41/$M$8))))","v":"--"},"--","--","--","--","--",null,{"$f":"'Step 2 Chemical_Parameters'!A41","v":"--"},{"$f":"'Step 2 Chemical_Parameters'!B41","v":"--"},null,{"$f":"IF(B63=\"--\",\"--\",IF(VLOOKUP(B63,chemical,8,FALSE)=\"M\",IF(ISERROR(($S$5*$S$7*$S$8)/((($S$16+$T$16)*'Step 2 Chemical_Parameters'!E41*'Step 1 Toxicity_Values'!D41)+(($S$17+$T$17)*'Step 2 Chemical_Parameters'!F41*'Step 1 Toxicity_Values'!G41))),\"--\",($S$5*$S$7*$S$8)/((($S$16+$T$16)*'Step 2 Chemical_Parameters'!E41*'Step 1 Toxicity_Values'!D41)+(($S$17+$T$17)*'Step 2 Chemical_Parameters'!F41*'Step 1 Toxicity_Values'!G41))),\"--\"))","v":"--"},{"$f":"IF(B63=\"--\",\"--\",IF(VLOOKUP(B63,chemical,8,FALSE)=\"M\",IF(ISERROR(($S$5*$S$7*$S$8)/((($S$16+$T$16+$U$16+$V$16)*'Step 2 Chemical_Parameters'!E41*'Step 1 Toxicity_Values'!D41)+(($S$17+$T$17+$U$17+$V$17)*'Step 2 Chemical_Parameters'!F41*'Step 1 Toxicity_Values'!G41))),\"--\",($S$5*$S$7*$S$8)/((($S$16+$T$16+$U$16+$V$16)*'Step 2 Chemical_Parameters'!E41*'Step 1 Toxicity_Values'!D41)+(($S$17+$T$17+$U$17+$V$17)*'Step 2 Chemical_Parameters'!F41*'Step 1 Toxicity_Values'!G41))),\"--\"))","v":"--"},{"$f":"IF(B63=\"--\",\"--\",IF(VLOOKUP(B63,chemical,8,FALSE)=\"M\",IF(ISERROR(($X$5*$X$7*$X$8)/((($X$16+$Y$16+$Z$16+$AA$16)*'Step 2 Chemical_Parameters'!E41*'Step 1 Toxicity_Values'!D41)+(($X$17+$Y$17+$Z$17+$AA$17)*'Step 2 Chemical_Parameters'!F41*'Step 1 Toxicity_Values'!G41))),\"--\",($X$5*$X$7*$X$8)/((($X$16+$Y$16+$Z$16+$AA$16)*'Step 2 Chemical_Parameters'!E41*'Step 1 Toxicity_Values'!D41)+(($X$17+$Y$17+$Z$17+$AA$17)*'Step 2 Chemical_Parameters'!F41*'Step 1 Toxicity_Values'!G41))),\"--\"))","v":"--"}]
[null,"--","--",{"$f":"IF(ISERROR(($F$5*$F$6*$F$7)/($F$9*$F$10*(($F$11*'Step 2 Chemical_Parameters'!E42*'Step 1 Toxicity_Values'!$D42/$F$8)+($F$12*$F$13*'Step 2 Chemical_Parameters'!F42*'Step 1 Toxicity_Values'!G42/$F$8)))),\"--\",($F$5*$F$6*$F$7)/($F$9*$F$10*(($F$11*'Step 2 Chemical_Parameters'!E42*'Step 1 Toxicity_Values'!$D42/$F$8)+($F$12*$F$13*'Step 2 Chemical_Parameters'!F42*'Step 1 Toxicity_Values'!G42/$F$8))))","v":"--"},{"$f":"IF(ISERROR(($G$5*$G$6*$G$7)/($G$9*$G$10*(((1/'Step 1 Toxicity_Values'!$E42)*($G$11*'Step 2 Chemical_Parameters'!$E42/$G$8))+((1/'Step 1 Toxicity_Values'!$I42)*($G$12*$G$13*'Step 2 Chemical_Parameters'!$F42/$G$8))))),\"--\",($G$5*$G$6*$G$7)/($G$9*$G$10*(((1/'Step 1 Toxicity_Values'!$E42)*($G$11*'Step 2 Chemical_Parameters'!$E42/$G$8))+((1/'Step 1 Toxicity_Values'!$I42)*($G$12*$G$13*'Step 2 Chemical_Parameters'!$F42/$G$8)))))","v":"--"},"--","--","--",{"$f":"IF(ISERROR(($H$5*$H$6*$H$7)/($H$9*$H$10*(($H$11*'Step 2 Chemical_Parameters'!$E42*'Step 1 Toxicity_Values'!$D42/$H$8)+($H$12*$H$13*'Step 2 Chemical_Parameters'!$F42*'Step 1 Toxicity_Values'!$G42/$H$8)))),\"--\",($H$5*$H$6*$H$7)/($H$9*$H$10*(($H$11*'Step 2 Chemical_Parameters'!$E42*'Step 1 Toxicity_Values'!$D42/$H$8)+($H$12*$H$13*'Step 2 Chemical_Parameters'!$F42*'Step 1 Toxicity_Values'!$G42/$H$8))))","v":"--"},{"$f":"IF(ISERROR(($K$5*$K$6*$K$7)/($K$9*$K$10*(((1/'Step 1 Toxicity_Values'!$E42)*$K$11*'Step 2 Chemical_Parameters'!$E42/$K$8)+((1/'Step 1 Toxicity_Values'!$I42)*$K$12*$K$13*'Step 2 Chemical_Parameters'!$F42/$K$8)))),\"--\",($K$5*$K$6*$K$7)/($K$9*$K$10*(((1/'Step 1 Toxicity_Values'!$E42)*$K$11*'Step 2 Chemical_Parameters'!$E42/$K$8)+((1/'Step 1 Toxicity_Values'!$I42)*$K$12*$K$13*'Step 2 Chemical_Parameters'!$F42/$K$8))))","v":"--"},"--","--","--",{"$f":"IF(ISERROR(($L$5*$L$6*$L$7)/($L$9*$L$10*(($L$11*'Step 2 Chemical_Parameters'!$E42*'Step 1 Toxicity_Values'!$D42/$L$8)+($L$12*$L$13*'Step 2 Chemical_Parameters'!$F42*'Step 1 Toxicity_Values'!$G42/$L$8)))),\"--\",($L$5*$L$6*$L$7)/($L$9*$L$10*(($L$11*'Step 2 Chemical_Parameters'!$E42*'Step 1 Toxicity_Values'!$D42/$L$8)+($L$12*$L$13*'Step 2 Chemical_Parameters'!$F42*'Step 1 Toxicity_Values'!$G42/$L$8))))","v":"--"},{"$f":"IF(ISERROR(($M$5*$M$6*$M$7)/($M$9*$M$10*(((1/'Step 1 Toxicity_Values'!$E42)*$M$11*'Step 2 Chemical_Parameters'!$E42/$M$8)+((1/'Step 1 Toxicity_Values'!$I42)*$M$12*$M$13*'Step 2 Chemical_Parameters'!$F42/$M$8)))),\"--\",($M$5*$M$6*$M$7)/($M$9*$M$10*(((1/'Step 1 Toxicity_Values'!$E42)*$M$11*'Step 2 Chemical_Parameters'!$E42/$M$8)+((1/'Step 1 Toxicity_Values'!$I42)*$M$12*$M$13*'Step 2 Chemical_Parameters'!$F42/$M$8))))","v":"--"},"--","--","--","--","--",null,{"$f":"'Step 2 Chemical_Parameters'!A42","v":"--"},{"$f":"'Step 2 Chemical_Parameters'!B42","v":"--"},null,{"$f":"IF(B64=\"--\",\"--\",IF(VLOOKUP(B64,chemical,8,FALSE)=\"M\",IF(ISERROR(($S$5*$S$7*$S$8)/((($S$16+$T$16)*'Step 2 Chemical_Parameters'!E42*'Step 1 Toxicity_Values'!D42)+(($S$17+$T$17)*'Step 2 Chemical_Parameters'!F42*'Step 1 Toxicity_Values'!G42))),\"--\",($S$5*$S$7*$S$8)/((($S$16+$T$16)*'Step 2 Chemical_Parameters'!E42*'Step 1 Toxicity_Values'!D42)+(($S$17+$T$17)*'Step 2 Chemical_Parameters'!F42*'Step 1 Toxicity_Values'!G42))),\"--\"))","v":"--"},{"$f":"IF(B64=\"--\",\"--\",IF(VLOOKUP(B64,chemical,8,FALSE)=\"M\",IF(ISERROR(($S$5*$S$7*$S$8)/((($S$16+$T$16+$U$16+$V$16)*'Step 2 Chemical_Parameters'!E42*'Step 1 Toxicity_Values'!D42)+(($S$17+$T$17+$U$17+$V$17)*'Step 2 Chemical_Parameters'!F42*'Step 1 Toxicity_Values'!G42))),\"--\",($S$5*$S$7*$S$8)/((($S$16+$T$16+$U$16+$V$16)*'Step 2 Chemical_Parameters'!E42*'Step 1 Toxicity_Values'!D42)+(($S$17+$T$17+$U$17+$V$17)*'Step 2 Chemical_Parameters'!F42*'Step 1 Toxicity_Values'!G42))),\"--\"))","v":"--"},{"$f":"IF(B64=\"--\",\"--\",IF(VLOOKUP(B64,chemical,8,FALSE)=\"M\",IF(ISERROR(($X$5*$X$7*$X$8)/((($X$16+$Y$16+$Z$16+$AA$16)*'Step 2 Chemical_Parameters'!E42*'Step 1 Toxicity_Values'!D42)+(($X$17+$Y$17+$Z$17+$AA$17)*'Step 2 Chemical_Parameters'!F42*'Step 1 Toxicity_Values'!G42))),\"--\",($X$5*$X$7*$X$8)/((($X$16+$Y$16+$Z$16+$AA$16)*'Step 2 Chemical_Parameters'!E42*'Step 1 Toxicity_Values'!D42)+(($X$17+$Y$17+$Z$17+$AA$17)*'Step 2 Chemical_Parameters'!F42*'Step 1 Toxicity_Values'!G42))),\"--\"))","v":"--"}]
[null,"--","--",{"$f":"IF(ISERROR(($F$5*$F$6*$F$7)/($F$9*$F$10*(($F$11*'Step 2 Chemical_Parameters'!E43*'Step 1 Toxicity_Values'!$D43/$F$8)+($F$12*$F$13*'Step 2 Chemical_Parameters'!F43*'Step 1 Toxicity_Values'!G43/$F$8)))),\"--\",($F$5*$F$6*$F$7)/($F$9*$F$10*(($F$11*'Step 2 Chemical_Parameters'!E43*'Step 1 Toxicity_Values'!$D43/$F$8)+($F$12*$F$13*'Step 2 Chemical_Parameters'!F43*'Step 1 Toxicity_Values'!G43/$F$8))))","v":"--"},{"$f":"IF(ISERROR(($G$5*$G$6*$G$7)/($G$9*$G$10*(((1/'Step 1 Toxicity_Values'!$E43)*($G$11*'Step 2 Chemical_Parameters'!$E43/$G$8))+((1/'Step 1 Toxicity_Values'!$I43)*($G$12*$G$13*'Step 2 Chemical_Parameters'!$F43/$G$8))))),\"--\",($G$5*$G$6*$G$7)/($G$9*$G$10*(((1/'Step 1 Toxicity_Values'!$E43)*($G$11*'Step 2 Chemical_Parameters'!$E43/$G$8))+((1/'Step 1 Toxicity_Values'!$I43)*($G$12*$G$13*'Step 2 Chemical_Parameters'!$F43/$G$8)))))","v":"--"},"--","--","--",{"$f":"IF(ISERROR(($H$5*$H$6*$H$7)/($H$9*$H$10*(($H$11*'Step 2 Chemical_Parameters'!$E43*'Step 1 Toxicity_Values'!$D43/$H$8)+($H$12*$H$13*'Step 2 Chemical_Parameters'!$F43*'Step 1 Toxicity_Values'!$G43/$H$8)))),\"--\",($H$5*$H$6*$H$7)/($H$9*$H$10*(($H$11*'Step 2 Chemical_Parameters'!$E43*'Step 1 Toxicity_Values'!$D43/$H$8)+($H$12*$H$13*'Step 2 Chemical_Parameters'!$F43*'Step 1 Toxicity_Values'!$G43/$H$8))))","v":"--"},{"$f":"IF(ISERROR(($K$5*$K$6*$K$7)/($K$9*$K$10*(((1/'Step 1 Toxicity_Values'!$E43)*$K$11*'Step 2 Chemical_Parameters'!$E43/$K$8)+((1/'Step 1 Toxicity_Values'!$I43)*$K$12*$K$13*'Step 2 Chemical_Parameters'!$F43/$K$8)))),\"--\",($K$5*$K$6*$K$7)/($K$9*$K$10*(((1/'Step 1 Toxicity_Values'!$E43)*$K$11*'Step 2 Chemical_Parameters'!$E43/$K$8)+((1/'Step 1 Toxicity_Values'!$I43)*$K$12*$K$13*'Step 2 Chemical_Parameters'!$F43/$K$8))))","v":"--"},"--","--","--",{"$f":"IF(ISERROR(($L$5*$L$6*$L$7)/($L$9*$L$10*(($L$11*'Step 2 Chemical_Parameters'!$E43*'Step 1 Toxicity_Values'!$D43/$L$8)+($L$12*$L$13*'Step 2 Chemical_Parameters'!$F43*'Step 1 Toxicity_Values'!$G43/$L$8)))),\"--\",($L$5*$L$6*$L$7)/($L$9*$L$10*(($L$11*'Step 2 Chemical_Parameters'!$E43*'Step 1 Toxicity_Values'!$D43/$L$8)+($L$12*$L$13*'Step 2 Chemical_Parameters'!$F43*'Step 1 Toxicity_Values'!$G43/$L$8))))","v":"--"},{"$f":"IF(ISERROR(($M$5*$M$6*$M$7)/($M$9*$M$10*(((1/'Step 1 Toxicity_Values'!$E43)*$M$11*'Step 2 Chemical_Parameters'!$E43/$M$8)+((1/'Step 1 Toxicity_Values'!$I43)*$M$12*$M$13*'Step 2 Chemical_Parameters'!$F43/$M$8)))),\"--\",($M$5*$M$6*$M$7)/($M$9*$M$10*(((1/'Step 1 Toxicity_Values'!$E43)*$M$11*'Step 2 Chemical_Parameters'!$E43/$M$8)+((1/'Step 1 Toxicity_Values'!$I43)*$M$12*$M$13*'Step 2 Chemical_Parameters'!$F43/$M$8))))","v":"--"},"--","--","--","--","--",null,{"$f":"'Step 2 Chemical_Parameters'!A43","v":"--"},{"$f":"'Step 2 Chemical_Parameters'!B43","v":"--"},null,{"$f":"IF(B65=\"--\",\"--\",IF(VLOOKUP(B65,chemical,8,FALSE)=\"M\",IF(ISERROR(($S$5*$S$7*$S$8)/((($S$16+$T$16)*'Step 2 Chemical_Parameters'!E43*'Step 1 Toxicity_Values'!D43)+(($S$17+$T$17)*'Step 2 Chemical_Parameters'!F43*'Step 1 Toxicity_Values'!G43))),\"--\",($S$5*$S$7*$S$8)/((($S$16+$T$16)*'Step 2 Chemical_Parameters'!E43*'Step 1 Toxicity_Values'!D43)+(($S$17+$T$17)*'Step 2 Chemical_Parameters'!F43*'Step 1 Toxicity_Values'!G43))),\"--\"))","v":"--"},{"$f":"IF(B65=\"--\",\"--\",IF(VLOOKUP(B65,chemical,8,FALSE)=\"M\",IF(ISERROR(($S$5*$S$7*$S$8)/((($S$16+$T$16+$U$16+$V$16)*'Step 2 Chemical_Parameters'!E43*'Step 1 Toxicity_Values'!D43)+(($S$17+$T$17+$U$17+$V$17)*'Step 2 Chemical_Parameters'!F43*'Step 1 Toxicity_Values'!G43))),\"--\",($S$5*$S$7*$S$8)/((($S$16+$T$16+$U$16+$V$16)*'Step 2 Chemical_Parameters'!E43*'Step 1 Toxicity_Values'!D43)+(($S$17+$T$17+$U$17+$V$17)*'Step 2 Chemical_Parameters'!F43*'Step 1 Toxicity_Values'!G43))),\"--\"))","v":"--"},{"$f":"IF(B65=\"--\",\"--\",IF(VLOOKUP(B65,chemical,8,FALSE)=\"M\",IF(ISERROR(($X$5*$X$7*$X$8)/((($X$16+$Y$16+$Z$16+$AA$16)*'Step 2 Chemical_Parameters'!E43*'Step 1 Toxicity_Values'!D43)+(($X$17+$Y$17+$Z$17+$AA$17)*'Step 2 Chemical_Parameters'!F43*'Step 1 Toxicity_Values'!G43))),\"--\",($X$5*$X$7*$X$8)/((($X$16+$Y$16+$Z$16+$AA$16)*'Step 2 Chemical_Parameters'!E43*'Step 1 Toxicity_Values'!D43)+(($X$17+$Y$17+$Z$17+$AA$17)*'Step 2 Chemical_Parameters'!F43*'Step 1 Toxicity_Values'!G43))),\"--\"))","v":"--"}]
[null,"--","--",{"$f":"IF(ISERROR(($F$5*$F$6*$F$7)/($F$9*$F$10*(($F$11*'Step 2 Chemical_Parameters'!E44*'Step 1 Toxicity_Values'!$D44/$F$8)+($F$12*$F$13*'Step 2 Chemical_Parameters'!F44*'Step 1 Toxicity_Values'!G44/$F$8)))),\"--\",($F$5*$F$6*$F$7)/($F$9*$F$10*(($F$11*'Step 2 Chemical_Parameters'!E44*'Step 1 Toxicity_Values'!$D44/$F$8)+($F$12*$F$13*'Step 2 Chemical_Parameters'!F44*'Step 1 Toxicity_Values'!G44/$F$8))))","v":"--"},{"$f":"IF(ISERROR(($G$5*$G$6*$G$7)/($G$9*$G$10*(((1/'Step 1 Toxicity_Values'!$E44)*($G$11*'Step 2 Chemical_Parameters'!$E44/$G$8))+((1/'Step 1 Toxicity_Values'!$I44)*($G$12*$G$13*'Step 2 Chemical_Parameters'!$F44/$G$8))))),\"--\",($G$5*$G$6*$G$7)/($G$9*$G$10*(((1/'Step 1 Toxicity_Values'!$E44)*($G$11*'Step 2 Chemical_Parameters'!$E44/$G$8))+((1/'Step 1 Toxicity_Values'!$I44)*($G$12*$G$13*'Step 2 Chemical_Parameters'!$F44/$G$8)))))","v":"--"},"--","--","--",{"$f":"IF(ISERROR(($H$5*$H$6*$H$7)/($H$9*$H$10*(($H$11*'Step 2 Chemical_Parameters'!$E44*'Step 1 Toxicity_Values'!$D44/$H$8)+($H$12*$H$13*'Step 2 Chemical_Parameters'!$F44*'Step 1 Toxicity_Values'!$G44/$H$8)))),\"--\",($H$5*$H$6*$H$7)/($H$9*$H$10*(($H$11*'Step 2 Chemical_Parameters'!$E44*'Step 1 Toxicity_Values'!$D44/$H$8)+($H$12*$H$13*'Step 2 Chemical_Parameters'!$F44*'Step 1 Toxicity_Values'!$G44/$H$8))))","v":"--"},{"$f":"IF(ISERROR(($K$5*$K$6*$K$7)/($K$9*$K$10*(((1/'Step 1 Toxicity_Values'!$E44)*$K$11*'Step 2 Chemical_Parameters'!$E44/$K$8)+((1/'Step 1 Toxicity_Values'!$I44)*$K$12*$K$13*'Step 2 Chemical_Parameters'!$F44/$K$8)))),\"--\",($K$5*$K$6*$K$7)/($K$9*$K$10*(((1/'Step 1 Toxicity_Values'!$E44)*$K$11*'Step 2 Chemical_Parameters'!$E44/$K$8)+((1/'Step 1 Toxicity_Values'!$I44)*$K$12*$K$13*'Step 2 Chemical_Parameters'!$F44/$K$8))))","v":"--"},"--","--","--",{"$f":"IF(ISERROR(($L$5*$L$6*$L$7)/($L$9*$L$10*(($L$11*'Step 2 Chemical_Parameters'!$E44*'Step 1 Toxicity_Values'!$D44/$L$8)+($L$12*$L$13*'Step 2 Chemical_Parameters'!$F44*'Step 1 Toxicity_Values'!$G44/$L$8)))),\"--\",($L$5*$L$6*$L$7)/($L$9*$L$10*(($L$11*'Step 2 Chemical_Parameters'!$E44*'Step 1 Toxicity_Values'!$D44/$L$8)+($L$12*$L$13*'Step 2 Chemical_Parameters'!$F44*'Step 1 Toxicity_Values'!$G44/$L$8))))","v":"--"},{"$f":"IF(ISERROR(($M$5*$M$6*$M$7)/($M$9*$M$10*(((1/'Step 1 Toxicity_Values'!$E44)*$M$11*'Step 2 Chemical_Parameters'!$E44/$M$8)+((1/'Step 1 Toxicity_Values'!$I44)*$M$12*$M$13*'Step 2 Chemical_Parameters'!$F44/$M$8)))),\"--\",($M$5*$M$6*$M$7)/($M$9*$M$10*(((1/'Step 1 Toxicity_Values'!$E44)*$M$11*'Step 2 Chemical_Parameters'!$E44/$M$8)+((1/'Step 1 Toxicity_Values'!$I44)*$M$12*$M$13*'Step 2 Chemical_Parameters'!$F44/$M$8))))","v":"--"},"--","--","--","--","--",null,{"$f":"'Step 2 Chemical_Parameters'!A44","v":"--"},{"$f":"'Step 2 Chemical_Parameters'!B44","v":"--"},null,{"$f":"IF(B66=\"--\",\"--\",IF(VLOOKUP(B66,chemical,8,FALSE)=\"M\",IF(ISERROR(($S$5*$S$7*$S$8)/((($S$16+$T$16)*'Step 2 Chemical_Parameters'!E44*'Step 1 Toxicity_Values'!D44)+(($S$17+$T$17)*'Step 2 Chemical_Parameters'!F44*'Step 1 Toxicity_Values'!G44))),\"--\",($S$5*$S$7*$S$8)/((($S$16+$T$16)*'Step 2 Chemical_Parameters'!E44*'Step 1 Toxicity_Values'!D44)+(($S$17+$T$17)*'Step 2 Chemical_Parameters'!F44*'Step 1 Toxicity_Values'!G44))),\"--\"))","v":"--"},{"$f":"IF(B66=\"--\",\"--\",IF(VLOOKUP(B66,chemical,8,FALSE)=\"M\",IF(ISERROR(($S$5*$S$7*$S$8)/((($S$16+$T$16+$U$16+$V$16)*'Step 2 Chemical_Parameters'!E44*'Step 1 Toxicity_Values'!D44)+(($S$17+$T$17+$U$17+$V$17)*'Step 2 Chemical_Parameters'!F44*'Step 1 Toxicity_Values'!G44))),\"--\",($S$5*$S$7*$S$8)/((($S$16+$T$16+$U$16+$V$16)*'Step 2 Chemical_Parameters'!E44*'Step 1 Toxicity_Values'!D44)+(($S$17+$T$17+$U$17+$V$17)*'Step 2 Chemical_Parameters'!F44*'Step 1 Toxicity_Values'!G44))),\"--\"))","v":"--"},{"$f":"IF(B66=\"--\",\"--\",IF(VLOOKUP(B66,chemical,8,FALSE)=\"M\",IF(ISERROR(($X$5*$X$7*$X$8)/((($X$16+$Y$16+$Z$16+$AA$16)*'Step 2 Chemical_Parameters'!E44*'Step 1 Toxicity_Values'!D44)+(($X$17+$Y$17+$Z$17+$AA$17)*'Step 2 Chemical_Parameters'!F44*'Step 1 Toxicity_Values'!G44))),\"--\",($X$5*$X$7*$X$8)/((($X$16+$Y$16+$Z$16+$AA$16)*'Step 2 Chemical_Parameters'!E44*'Step 1 Toxicity_Values'!D44)+(($X$17+$Y$17+$Z$17+$AA$17)*'Step 2 Chemical_Parameters'!F44*'Step 1 Toxicity_Values'!G44))),\"--\"))","v":"--"}]